{"text_format":"1","workbook":"xlsx","n_sheets":8,"sheets":["Instructions","Version History","Facility Overview Information","SF6 GIS Equipment","Early Action Credit","SF6 Transferred","SF6 Gas Containers","Reference"],"not_rendered":{"charts":0,"images":0,"macros":1,"external_links":1,"defined_names":11,"comments":0,"pivot_tables":0},"unopened":[],"bounds":{"document_bytes":16777216,"sheet_cells":100000,"rows_first":2000,"rows_last":500,"rows_between":2000,"halvings":0,"cell_chars":16384,"cell_head_chars":4096},"cells_cut":0,"cells_raw":0,"read":"whole","date_system":"1900"}

{"sheet":"Instructions","index":0,"n_rows":36,"n_cols":3,"rows_kept":36,"cut":false,"hidden":false,"merged":[[0,1,0,3],[1,1,1,3],[2,1,2,3]]}
[null,"SF6 Gas Insulated Switchgear"]
[null,"Data Year 2021"]
[null,"Version: R.04"]
[]
[null,null,"This reporting form for data year 2021 largely reflects the reporting requirements of the Regulation for Reducing Sulfur Hexafluoride Emissions from Gas Insulated Switchgear (original Regulation). The emissions limit, associated inputs, and Early Action Credit are new provisions found in the Regulation for Reducing Greenhouse Gas Emissions from Gas-Insulated Equipment (amended Regulation) which became effective January 1, 2022."]
[null,null,"Original Regulation"]
[null,null,"Amended Regulation"]
[]
[null,null,"Workbook Instructions:"]
[null,null,"This workbook is protected by default and contains locked cells to ensure that the user does not inadvertently alter any of the included formulas and/or calculations."]
[]
[null,null,"Please use this workbook, and submit it to CARB, to comply with the 2021 reporting requirement. The workbook contains the following worksheets, representing the required reporting elements for the 2021 data year. Click a button below to be brought to the corresponding worksheet."]
[]
[null,null,"Facility Overview Information"]
[null,null,"SF6 GIS Equipment"]
[null,null,"Early Action Credit"]
[null,null,"SF6 Transferred"]
[null,null,"SF6 Gas Containers"]
[]
[null,null,"Cells have been color coded to indicate where user inputs are required, and where intermediate and final results of calculations can be found. The following color coding has been used:"]
[]
[null,null,"Light green cells require user inputs. These inputs may be text or numerical, are required to be reported, and some are used to execute equations."]
[]
[null,null,"Grey cells are locked and may denote informational items, field descriptions, or fields in which data entry is not required."]
[]
[null,null,"White cells with red outline are locked. These cells contain either auto-populated data or calculated results based on other reported information."]
[]
[null,null,"To complete the annual report, enter data in green boxes only. If you do not have data for a given cell or worksheet, leave it blank. The unit of measure or format in which data should be entered are provided (e.g., enter dates in mm/dd/yyyy format). In some cases drop down menus are provided to assist with data entry. "]
[]
[null,null,"The spreadsheet is equipped with data validation checks that flag potential errors, giving you an opportunity to address the errors before the report is submitted. These checks are designed to help you comply with the Regulation. If you attempt to enter invalid data, an error message may pop up that requests you try again."]
[]
[null,null,"These checks work best when data are directly entered, instead of copied and pasted, into the spreadsheet. If you must copy and paste data into fields that contain a drop-down menu, please ensure your source data exactly matches one of the allowed options and use Paste Special \\ Values to transfer data into the form. Using Paste Special \\ Values will preserve some, but not all, functions of the reporting form. Additionally, if invalid data are copied into the spreadsheet, certain functions may not work as expected, which can lead to incorrect reporting."]
[]
[null,null,"If you have any questions, please email energy@arb.ca.gov."]
[]
[null,null,"When completed, regulated entities that submit through Cal e-GGRT must upload this workbook, then certify the report for the submission to be considered complete. While all regulated entities are encouraged to use Cal e-GGRT, those specifically mentioned in section 95355(b)(2) of the amended Regulation (or section 95356(c)(2) of the original Regulation) may elect to email the completed form, along with an attestation letter, to energy@arb.ca.gov. "]

{"sheet":"Version History","index":1,"n_rows":6,"n_cols":5,"rows_kept":6,"cut":false,"hidden":false,"merged":[[0,1,0,4]]}
[null,"Version History"]
[null,"Version","Data Year(s)","Date Posted","Description"]
[null,"R.04",2021,"2022-03-04","Updated workbook per revised reporting requirements for data year 2021 and eliminated need to export to XML prior to reporting."]
[null,"R.03","2011-2020","2015-01-02","Added two columns to the SF6 Gas Containers worksheet (Date Container Weighed and Reason for Weighing Container)."]
[null,"R.02","N/A","2012-10-08","Updated workbook formatting and added XML mapping for automated upload."]
[null,"R.01","N/A","2012-07-05","Original workbook"]

{"sheet":"Facility Overview Information","index":2,"n_rows":26,"n_cols":2,"rows_kept":26,"cut":false,"hidden":false,"merged":[[0,0,0,1],[1,0,1,2],[2,0,2,2],[3,0,3,2]]}
["Facility Overview Information (Data Year 2021)"]
["This reporting form for data year 2021 largely reflects the reporting requirements of the original Regulation. The emissions limit, and associated inputs, are new requirements in the amended Regulation, which became effective January 1, 2022."]
["Original Regulation"]
["Amended Regulation"]
["Today's date   ",{"$f":"TODAY()","v":"2022-03-04"}]
["Entity Name:"]
["ARB ID:"]
[]
["Record Location (if different than physical address of entity's headquarters)"]
["Street:"]
["City:"]
["State"]
["ZIP/Postal Code:"]
[]
["Preparer's Name:"]
["Preparer's e-Mail:"]
["Preparer's Phone:"]
[]
["Reporting Year:",2021]
["Average System Capacity (pounds):"]
["Average CO2e Capacity (MTCO2e):",{"$f":"(B20*22800)/2204.62","v":0}]
["Early Action Credit (MTCO2e):",{"$f":"SUM('Early Action Credit'!M4:M503)","v":0}]
["EAC≤10 (MTCO2e):",{"$f":"IF($B$22>0.1*$B$21,0.1*$B$21,$B$22)","v":0}]
["Emissions Limit (MTCO2e):",{"$f":"IF(B21>=10000,(B21+B23)*0.01,IF((B21+B23)*0.02>50,(B21+B23)*0.02,50))","v":50}]
["Annual SF6 Emissions (in pounds):"]
["CO2e Emissions (MTCO2e):",{"$f":"(B25*22800)/2204.62","v":0}]

{"sheet":"SF6 GIS Equipment","index":3,"n_rows":3,"n_cols":8,"rows_kept":3,"cut":false,"hidden":false,"merged":[[1,0,1,7],[0,0,0,2]]}
["SF6 GIS Equipment (Data Year 2021)"]
[]
["GIS Serial Number","GIS Equipment Type","GIS Seal Type","GIS Manufacturer","GIS Date Manufactured\n(mm/dd/yyyy)","GIS Voltage Capacity\n(kilovolts, kV)","GIS SF6 Capacity \n(lbs.)","GIS Status"]

{"sheet":"Early Action Credit","index":4,"n_rows":503,"n_cols":13,"rows_kept":503,"cut":false,"hidden":false,"merged":[[1,0,1,11],[0,0,0,3]]}
["Early Action Credit (Data Year 2021)"]
["Discussion of the \"Early Action Credit\" can be found in section 95353(d) of the amended Regulation. Completion of this worksheet is optional."]
["Serial Number","Equipment Type","Manufacturer","Date Activated for the First Time (mm/dd/yyyy)","Voltage Capacity\n(kilovolts)","Medium that Provides Insulating and/or Interrupting Functions","Covered Insulating Gas (if applicable)","Covered Insulating Gas GWP (if applicable)","Was Device Removed from Regular Use/Transferred While in Use During Data Year?","Jointly Owned?","GIE Owner's Equity Share (%)","Name, ARB ID and Equity Shares (%) of Other Co-Owners","Credit"]
[null,{"$f":"IF(AND(ISBLANK('Early Action Credit'!$A4),ISBLANK('Early Action Credit'!$C4),ISBLANK('Early Action Credit'!$D4),ISBLANK('Early Action Credit'!$E4),ISBLANK('Early Action Credit'!$F4),ISBLANK('Early Action Credit'!$G4),ISBLANK('Early Action Credit'!$H4),ISBLANK('Early Action Credit'!$I4),ISBLANK('Early Action Credit'!$J4),ISBLANK('Early Action Credit'!$L4)),\"\",\"Circuit Breaker\")","v":""},null,null,null,null,null,null,null,null,null,null,{"$f":"IF('Early Action Credit'!$I4=\"Yes\",0,IF('Early Action Credit'!$E4<72.5,0,IF('Early Action Credit'!$E4=72.5,300,IF('Early Action Credit'!$E4<=145,700,IF('Early Action Credit'!$E4<=245,1900,2400)))))*IF(ISBLANK('Early Action Credit'!$J4),0,IF('Early Action Credit'!$J4=\"No\",1,'Early Action Credit'!$K4))","v":0}]
[null,{"$f":"IF(AND(ISBLANK('Early Action Credit'!$A5),ISBLANK('Early Action Credit'!$C5),ISBLANK('Early Action Credit'!$D5),ISBLANK('Early Action Credit'!$E5),ISBLANK('Early Action Credit'!$F5),ISBLANK('Early Action Credit'!$G5),ISBLANK('Early Action Credit'!$H5),ISBLANK('Early Action Credit'!$I5),ISBLANK('Early Action Credit'!$J5),ISBLANK('Early Action Credit'!$L5)),\"\",\"Circuit Breaker\")","v":""},null,null,null,null,null,null,null,null,null,null,{"$f":"IF('Early Action Credit'!$I5=\"Yes\",0,IF('Early Action Credit'!$E5<72.5,0,IF('Early Action Credit'!$E5=72.5,300,IF('Early Action Credit'!$E5<=145,700,IF('Early Action Credit'!$E5<=245,1900,2400)))))*IF(ISBLANK('Early Action Credit'!$J5),0,IF('Early Action Credit'!$J5=\"No\",1,'Early Action Credit'!$K5))","v":0}]
[null,{"$f":"IF(AND(ISBLANK('Early Action Credit'!$A6),ISBLANK('Early Action Credit'!$C6),ISBLANK('Early Action Credit'!$D6),ISBLANK('Early Action Credit'!$E6),ISBLANK('Early Action Credit'!$F6),ISBLANK('Early Action Credit'!$G6),ISBLANK('Early Action Credit'!$H6),ISBLANK('Early Action Credit'!$I6),ISBLANK('Early Action Credit'!$J6),ISBLANK('Early Action Credit'!$L6)),\"\",\"Circuit Breaker\")","v":""},null,null,null,null,null,null,null,null,null,null,{"$f":"IF('Early Action Credit'!$I6=\"Yes\",0,IF('Early Action Credit'!$E6<72.5,0,IF('Early Action Credit'!$E6=72.5,300,IF('Early Action Credit'!$E6<=145,700,IF('Early Action Credit'!$E6<=245,1900,2400)))))*IF(ISBLANK('Early Action Credit'!$J6),0,IF('Early Action Credit'!$J6=\"No\",1,'Early Action Credit'!$K6))","v":0}]
[null,{"$f":"IF(AND(ISBLANK('Early Action Credit'!$A7),ISBLANK('Early Action Credit'!$C7),ISBLANK('Early Action Credit'!$D7),ISBLANK('Early Action Credit'!$E7),ISBLANK('Early Action Credit'!$F7),ISBLANK('Early Action Credit'!$G7),ISBLANK('Early Action Credit'!$H7),ISBLANK('Early Action Credit'!$I7),ISBLANK('Early Action Credit'!$J7),ISBLANK('Early Action Credit'!$L7)),\"\",\"Circuit Breaker\")","v":""},null,null,null,null,null,null,null,null,null,null,{"$f":"IF('Early Action Credit'!$I7=\"Yes\",0,IF('Early Action Credit'!$E7<72.5,0,IF('Early Action Credit'!$E7=72.5,300,IF('Early Action Credit'!$E7<=145,700,IF('Early Action Credit'!$E7<=245,1900,2400)))))*IF(ISBLANK('Early Action Credit'!$J7),0,IF('Early Action Credit'!$J7=\"No\",1,'Early Action Credit'!$K7))","v":0}]
[null,{"$f":"IF(AND(ISBLANK('Early Action Credit'!$A8),ISBLANK('Early Action Credit'!$C8),ISBLANK('Early Action Credit'!$D8),ISBLANK('Early Action Credit'!$E8),ISBLANK('Early Action Credit'!$F8),ISBLANK('Early Action Credit'!$G8),ISBLANK('Early Action Credit'!$H8),ISBLANK('Early Action Credit'!$I8),ISBLANK('Early Action Credit'!$J8),ISBLANK('Early Action Credit'!$L8)),\"\",\"Circuit Breaker\")","v":""},null,null,null,null,null,null,null,null,null,null,{"$f":"IF('Early Action Credit'!$I8=\"Yes\",0,IF('Early Action Credit'!$E8<72.5,0,IF('Early Action Credit'!$E8=72.5,300,IF('Early Action Credit'!$E8<=145,700,IF('Early Action Credit'!$E8<=245,1900,2400)))))*IF(ISBLANK('Early Action Credit'!$J8),0,IF('Early Action Credit'!$J8=\"No\",1,'Early Action Credit'!$K8))","v":0}]
[null,{"$f":"IF(AND(ISBLANK('Early Action Credit'!$A9),ISBLANK('Early Action Credit'!$C9),ISBLANK('Early Action Credit'!$D9),ISBLANK('Early Action Credit'!$E9),ISBLANK('Early Action Credit'!$F9),ISBLANK('Early Action Credit'!$G9),ISBLANK('Early Action Credit'!$H9),ISBLANK('Early Action Credit'!$I9),ISBLANK('Early Action Credit'!$J9),ISBLANK('Early Action Credit'!$L9)),\"\",\"Circuit Breaker\")","v":""},null,null,null,null,null,null,null,null,null,null,{"$f":"IF('Early Action Credit'!$I9=\"Yes\",0,IF('Early Action Credit'!$E9<72.5,0,IF('Early Action Credit'!$E9=72.5,300,IF('Early Action Credit'!$E9<=145,700,IF('Early Action Credit'!$E9<=245,1900,2400)))))*IF(ISBLANK('Early Action Credit'!$J9),0,IF('Early Action Credit'!$J9=\"No\",1,'Early Action Credit'!$K9))","v":0}]
[null,{"$f":"IF(AND(ISBLANK('Early Action Credit'!$A10),ISBLANK('Early Action Credit'!$C10),ISBLANK('Early Action Credit'!$D10),ISBLANK('Early Action Credit'!$E10),ISBLANK('Early Action Credit'!$F10),ISBLANK('Early Action Credit'!$G10),ISBLANK('Early Action Credit'!$H10),ISBLANK('Early Action Credit'!$I10),ISBLANK('Early Action Credit'!$J10),ISBLANK('Early Action Credit'!$L10)),\"\",\"Circuit Breaker\")","v":""},null,null,null,null,null,null,null,null,null,null,{"$f":"IF('Early Action Credit'!$I10=\"Yes\",0,IF('Early Action Credit'!$E10<72.5,0,IF('Early Action Credit'!$E10=72.5,300,IF('Early Action Credit'!$E10<=145,700,IF('Early Action Credit'!$E10<=245,1900,2400)))))*IF(ISBLANK('Early Action Credit'!$J10),0,IF('Early Action Credit'!$J10=\"No\",1,'Early Action Credit'!$K10))","v":0}]
[null,{"$f":"IF(AND(ISBLANK('Early Action Credit'!$A11),ISBLANK('Early Action Credit'!$C11),ISBLANK('Early Action Credit'!$D11),ISBLANK('Early Action Credit'!$E11),ISBLANK('Early Action Credit'!$F11),ISBLANK('Early Action Credit'!$G11),ISBLANK('Early Action Credit'!$H11),ISBLANK('Early Action Credit'!$I11),ISBLANK('Early Action Credit'!$J11),ISBLANK('Early Action Credit'!$L11)),\"\",\"Circuit Breaker\")","v":""},null,null,null,null,null,null,null,null,null,null,{"$f":"IF('Early Action Credit'!$I11=\"Yes\",0,IF('Early Action Credit'!$E11<72.5,0,IF('Early Action Credit'!$E11=72.5,300,IF('Early Action Credit'!$E11<=145,700,IF('Early Action Credit'!$E11<=245,1900,2400)))))*IF(ISBLANK('Early Action Credit'!$J11),0,IF('Early Action Credit'!$J11=\"No\",1,'Early Action Credit'!$K11))","v":0}]
[null,{"$f":"IF(AND(ISBLANK('Early Action Credit'!$A12),ISBLANK('Early Action Credit'!$C12),ISBLANK('Early Action Credit'!$D12),ISBLANK('Early Action Credit'!$E12),ISBLANK('Early Action Credit'!$F12),ISBLANK('Early Action Credit'!$G12),ISBLANK('Early Action Credit'!$H12),ISBLANK('Early Action Credit'!$I12),ISBLANK('Early Action Credit'!$J12),ISBLANK('Early Action Credit'!$L12)),\"\",\"Circuit Breaker\")","v":""},null,null,null,null,null,null,null,null,null,null,{"$f":"IF('Early Action Credit'!$I12=\"Yes\",0,IF('Early Action Credit'!$E12<72.5,0,IF('Early Action Credit'!$E12=72.5,300,IF('Early Action Credit'!$E12<=145,700,IF('Early Action Credit'!$E12<=245,1900,2400)))))*IF(ISBLANK('Early Action Credit'!$J12),0,IF('Early Action Credit'!$J12=\"No\",1,'Early Action Credit'!$K12))","v":0}]
[null,{"$f":"IF(AND(ISBLANK('Early Action Credit'!$A13),ISBLANK('Early Action Credit'!$C13),ISBLANK('Early Action Credit'!$D13),ISBLANK('Early Action Credit'!$E13),ISBLANK('Early Action Credit'!$F13),ISBLANK('Early Action Credit'!$G13),ISBLANK('Early Action Credit'!$H13),ISBLANK('Early Action Credit'!$I13),ISBLANK('Early Action Credit'!$J13),ISBLANK('Early Action Credit'!$L13)),\"\",\"Circuit Breaker\")","v":""},null,null,null,null,null,null,null,null,null,null,{"$f":"IF('Early Action Credit'!$I13=\"Yes\",0,IF('Early Action Credit'!$E13<72.5,0,IF('Early Action Credit'!$E13=72.5,300,IF('Early Action Credit'!$E13<=145,700,IF('Early Action Credit'!$E13<=245,1900,2400)))))*IF(ISBLANK('Early Action Credit'!$J13),0,IF('Early Action Credit'!$J13=\"No\",1,'Early Action Credit'!$K13))","v":0}]
[null,{"$f":"IF(AND(ISBLANK('Early Action Credit'!$A14),ISBLANK('Early Action Credit'!$C14),ISBLANK('Early Action Credit'!$D14),ISBLANK('Early Action Credit'!$E14),ISBLANK('Early Action Credit'!$F14),ISBLANK('Early Action Credit'!$G14),ISBLANK('Early Action Credit'!$H14),ISBLANK('Early Action Credit'!$I14),ISBLANK('Early Action Credit'!$J14),ISBLANK('Early Action Credit'!$L14)),\"\",\"Circuit Breaker\")","v":""},null,null,null,null,null,null,null,null,null,null,{"$f":"IF('Early Action Credit'!$I14=\"Yes\",0,IF('Early Action Credit'!$E14<72.5,0,IF('Early Action Credit'!$E14=72.5,300,IF('Early Action Credit'!$E14<=145,700,IF('Early Action Credit'!$E14<=245,1900,2400)))))*IF(ISBLANK('Early Action Credit'!$J14),0,IF('Early Action Credit'!$J14=\"No\",1,'Early Action Credit'!$K14))","v":0}]
[null,{"$f":"IF(AND(ISBLANK('Early Action Credit'!$A15),ISBLANK('Early Action Credit'!$C15),ISBLANK('Early Action Credit'!$D15),ISBLANK('Early Action Credit'!$E15),ISBLANK('Early Action Credit'!$F15),ISBLANK('Early Action Credit'!$G15),ISBLANK('Early Action Credit'!$H15),ISBLANK('Early Action Credit'!$I15),ISBLANK('Early Action Credit'!$J15),ISBLANK('Early Action Credit'!$L15)),\"\",\"Circuit Breaker\")","v":""},null,null,null,null,null,null,null,null,null,null,{"$f":"IF('Early Action Credit'!$I15=\"Yes\",0,IF('Early Action Credit'!$E15<72.5,0,IF('Early Action Credit'!$E15=72.5,300,IF('Early Action Credit'!$E15<=145,700,IF('Early Action Credit'!$E15<=245,1900,2400)))))*IF(ISBLANK('Early Action Credit'!$J15),0,IF('Early Action Credit'!$J15=\"No\",1,'Early Action Credit'!$K15))","v":0}]
[null,{"$f":"IF(AND(ISBLANK('Early Action Credit'!$A16),ISBLANK('Early Action Credit'!$C16),ISBLANK('Early Action Credit'!$D16),ISBLANK('Early Action Credit'!$E16),ISBLANK('Early Action Credit'!$F16),ISBLANK('Early Action Credit'!$G16),ISBLANK('Early Action Credit'!$H16),ISBLANK('Early Action Credit'!$I16),ISBLANK('Early Action Credit'!$J16),ISBLANK('Early Action Credit'!$L16)),\"\",\"Circuit Breaker\")","v":""},null,null,null,null,null,null,null,null,null,null,{"$f":"IF('Early Action Credit'!$I16=\"Yes\",0,IF('Early Action Credit'!$E16<72.5,0,IF('Early Action Credit'!$E16=72.5,300,IF('Early Action Credit'!$E16<=145,700,IF('Early Action Credit'!$E16<=245,1900,2400)))))*IF(ISBLANK('Early Action Credit'!$J16),0,IF('Early Action Credit'!$J16=\"No\",1,'Early Action Credit'!$K16))","v":0}]
[null,{"$f":"IF(AND(ISBLANK('Early Action Credit'!$A17),ISBLANK('Early Action Credit'!$C17),ISBLANK('Early Action Credit'!$D17),ISBLANK('Early Action Credit'!$E17),ISBLANK('Early Action Credit'!$F17),ISBLANK('Early Action Credit'!$G17),ISBLANK('Early Action Credit'!$H17),ISBLANK('Early Action Credit'!$I17),ISBLANK('Early Action Credit'!$J17),ISBLANK('Early Action Credit'!$L17)),\"\",\"Circuit Breaker\")","v":""},null,null,null,null,null,null,null,null,null,null,{"$f":"IF('Early Action Credit'!$I17=\"Yes\",0,IF('Early Action Credit'!$E17<72.5,0,IF('Early Action Credit'!$E17=72.5,300,IF('Early Action Credit'!$E17<=145,700,IF('Early Action Credit'!$E17<=245,1900,2400)))))*IF(ISBLANK('Early Action Credit'!$J17),0,IF('Early Action Credit'!$J17=\"No\",1,'Early Action Credit'!$K17))","v":0}]
[null,{"$f":"IF(AND(ISBLANK('Early Action Credit'!$A18),ISBLANK('Early Action Credit'!$C18),ISBLANK('Early Action Credit'!$D18),ISBLANK('Early Action Credit'!$E18),ISBLANK('Early Action Credit'!$F18),ISBLANK('Early Action Credit'!$G18),ISBLANK('Early Action Credit'!$H18),ISBLANK('Early Action Credit'!$I18),ISBLANK('Early Action Credit'!$J18),ISBLANK('Early Action Credit'!$L18)),\"\",\"Circuit Breaker\")","v":""},null,null,null,null,null,null,null,null,null,null,{"$f":"IF('Early Action Credit'!$I18=\"Yes\",0,IF('Early Action Credit'!$E18<72.5,0,IF('Early Action Credit'!$E18=72.5,300,IF('Early Action Credit'!$E18<=145,700,IF('Early Action Credit'!$E18<=245,1900,2400)))))*IF(ISBLANK('Early Action Credit'!$J18),0,IF('Early Action Credit'!$J18=\"No\",1,'Early Action Credit'!$K18))","v":0}]
[null,{"$f":"IF(AND(ISBLANK('Early Action Credit'!$A19),ISBLANK('Early Action Credit'!$C19),ISBLANK('Early Action Credit'!$D19),ISBLANK('Early Action Credit'!$E19),ISBLANK('Early Action Credit'!$F19),ISBLANK('Early Action Credit'!$G19),ISBLANK('Early Action Credit'!$H19),ISBLANK('Early Action Credit'!$I19),ISBLANK('Early Action Credit'!$J19),ISBLANK('Early Action Credit'!$L19)),\"\",\"Circuit Breaker\")","v":""},null,null,null,null,null,null,null,null,null,null,{"$f":"IF('Early Action Credit'!$I19=\"Yes\",0,IF('Early Action Credit'!$E19<72.5,0,IF('Early Action Credit'!$E19=72.5,300,IF('Early Action Credit'!$E19<=145,700,IF('Early Action Credit'!$E19<=245,1900,2400)))))*IF(ISBLANK('Early Action Credit'!$J19),0,IF('Early Action Credit'!$J19=\"No\",1,'Early Action Credit'!$K19))","v":0}]
[null,{"$f":"IF(AND(ISBLANK('Early Action Credit'!$A20),ISBLANK('Early Action Credit'!$C20),ISBLANK('Early Action Credit'!$D20),ISBLANK('Early Action Credit'!$E20),ISBLANK('Early Action Credit'!$F20),ISBLANK('Early Action Credit'!$G20),ISBLANK('Early Action Credit'!$H20),ISBLANK('Early Action Credit'!$I20),ISBLANK('Early Action Credit'!$J20),ISBLANK('Early Action Credit'!$L20)),\"\",\"Circuit Breaker\")","v":""},null,null,null,null,null,null,null,null,null,null,{"$f":"IF('Early Action Credit'!$I20=\"Yes\",0,IF('Early Action Credit'!$E20<72.5,0,IF('Early Action Credit'!$E20=72.5,300,IF('Early Action Credit'!$E20<=145,700,IF('Early Action Credit'!$E20<=245,1900,2400)))))*IF(ISBLANK('Early Action Credit'!$J20),0,IF('Early Action Credit'!$J20=\"No\",1,'Early Action Credit'!$K20))","v":0}]
[null,{"$f":"IF(AND(ISBLANK('Early Action Credit'!$A21),ISBLANK('Early Action Credit'!$C21),ISBLANK('Early Action Credit'!$D21),ISBLANK('Early Action Credit'!$E21),ISBLANK('Early Action Credit'!$F21),ISBLANK('Early Action Credit'!$G21),ISBLANK('Early Action Credit'!$H21),ISBLANK('Early Action Credit'!$I21),ISBLANK('Early Action Credit'!$J21),ISBLANK('Early Action Credit'!$L21)),\"\",\"Circuit Breaker\")","v":""},null,null,null,null,null,null,null,null,null,null,{"$f":"IF('Early Action Credit'!$I21=\"Yes\",0,IF('Early Action Credit'!$E21<72.5,0,IF('Early Action Credit'!$E21=72.5,300,IF('Early Action Credit'!$E21<=145,700,IF('Early Action Credit'!$E21<=245,1900,2400)))))*IF(ISBLANK('Early Action Credit'!$J21),0,IF('Early Action Credit'!$J21=\"No\",1,'Early Action Credit'!$K21))","v":0}]
[null,{"$f":"IF(AND(ISBLANK('Early Action Credit'!$A22),ISBLANK('Early Action Credit'!$C22),ISBLANK('Early Action Credit'!$D22),ISBLANK('Early Action Credit'!$E22),ISBLANK('Early Action Credit'!$F22),ISBLANK('Early Action Credit'!$G22),ISBLANK('Early Action Credit'!$H22),ISBLANK('Early Action Credit'!$I22),ISBLANK('Early Action Credit'!$J22),ISBLANK('Early Action Credit'!$L22)),\"\",\"Circuit Breaker\")","v":""},null,null,null,null,null,null,null,null,null,null,{"$f":"IF('Early Action Credit'!$I22=\"Yes\",0,IF('Early Action Credit'!$E22<72.5,0,IF('Early Action Credit'!$E22=72.5,300,IF('Early Action Credit'!$E22<=145,700,IF('Early Action Credit'!$E22<=245,1900,2400)))))*IF(ISBLANK('Early Action Credit'!$J22),0,IF('Early Action Credit'!$J22=\"No\",1,'Early Action Credit'!$K22))","v":0}]
[null,{"$f":"IF(AND(ISBLANK('Early Action Credit'!$A23),ISBLANK('Early Action Credit'!$C23),ISBLANK('Early Action Credit'!$D23),ISBLANK('Early Action Credit'!$E23),ISBLANK('Early Action Credit'!$F23),ISBLANK('Early Action Credit'!$G23),ISBLANK('Early Action Credit'!$H23),ISBLANK('Early Action Credit'!$I23),ISBLANK('Early Action Credit'!$J23),ISBLANK('Early Action Credit'!$L23)),\"\",\"Circuit Breaker\")","v":""},null,null,null,null,null,null,null,null,null,null,{"$f":"IF('Early Action Credit'!$I23=\"Yes\",0,IF('Early Action Credit'!$E23<72.5,0,IF('Early Action Credit'!$E23=72.5,300,IF('Early Action Credit'!$E23<=145,700,IF('Early Action Credit'!$E23<=245,1900,2400)))))*IF(ISBLANK('Early Action Credit'!$J23),0,IF('Early Action Credit'!$J23=\"No\",1,'Early Action Credit'!$K23))","v":0}]
[null,{"$f":"IF(AND(ISBLANK('Early Action Credit'!$A24),ISBLANK('Early Action Credit'!$C24),ISBLANK('Early Action Credit'!$D24),ISBLANK('Early Action Credit'!$E24),ISBLANK('Early Action Credit'!$F24),ISBLANK('Early Action Credit'!$G24),ISBLANK('Early Action Credit'!$H24),ISBLANK('Early Action Credit'!$I24),ISBLANK('Early Action Credit'!$J24),ISBLANK('Early Action Credit'!$L24)),\"\",\"Circuit Breaker\")","v":""},null,null,null,null,null,null,null,null,null,null,{"$f":"IF('Early Action Credit'!$I24=\"Yes\",0,IF('Early Action Credit'!$E24<72.5,0,IF('Early Action Credit'!$E24=72.5,300,IF('Early Action Credit'!$E24<=145,700,IF('Early Action Credit'!$E24<=245,1900,2400)))))*IF(ISBLANK('Early Action Credit'!$J24),0,IF('Early Action Credit'!$J24=\"No\",1,'Early Action Credit'!$K24))","v":0}]
[null,{"$f":"IF(AND(ISBLANK('Early Action Credit'!$A25),ISBLANK('Early Action Credit'!$C25),ISBLANK('Early Action Credit'!$D25),ISBLANK('Early Action Credit'!$E25),ISBLANK('Early Action Credit'!$F25),ISBLANK('Early Action Credit'!$G25),ISBLANK('Early Action Credit'!$H25),ISBLANK('Early Action Credit'!$I25),ISBLANK('Early Action Credit'!$J25),ISBLANK('Early Action Credit'!$L25)),\"\",\"Circuit Breaker\")","v":""},null,null,null,null,null,null,null,null,null,null,{"$f":"IF('Early Action Credit'!$I25=\"Yes\",0,IF('Early Action Credit'!$E25<72.5,0,IF('Early Action Credit'!$E25=72.5,300,IF('Early Action Credit'!$E25<=145,700,IF('Early Action Credit'!$E25<=245,1900,2400)))))*IF(ISBLANK('Early Action Credit'!$J25),0,IF('Early Action Credit'!$J25=\"No\",1,'Early Action Credit'!$K25))","v":0}]
[null,{"$f":"IF(AND(ISBLANK('Early Action Credit'!$A26),ISBLANK('Early Action Credit'!$C26),ISBLANK('Early Action Credit'!$D26),ISBLANK('Early Action Credit'!$E26),ISBLANK('Early Action Credit'!$F26),ISBLANK('Early Action Credit'!$G26),ISBLANK('Early Action Credit'!$H26),ISBLANK('Early Action Credit'!$I26),ISBLANK('Early Action Credit'!$J26),ISBLANK('Early Action Credit'!$L26)),\"\",\"Circuit Breaker\")","v":""},null,null,null,null,null,null,null,null,null,null,{"$f":"IF('Early Action Credit'!$I26=\"Yes\",0,IF('Early Action Credit'!$E26<72.5,0,IF('Early Action Credit'!$E26=72.5,300,IF('Early Action Credit'!$E26<=145,700,IF('Early Action Credit'!$E26<=245,1900,2400)))))*IF(ISBLANK('Early Action Credit'!$J26),0,IF('Early Action Credit'!$J26=\"No\",1,'Early Action Credit'!$K26))","v":0}]
[null,{"$f":"IF(AND(ISBLANK('Early Action Credit'!$A27),ISBLANK('Early Action Credit'!$C27),ISBLANK('Early Action Credit'!$D27),ISBLANK('Early Action Credit'!$E27),ISBLANK('Early Action Credit'!$F27),ISBLANK('Early Action Credit'!$G27),ISBLANK('Early Action Credit'!$H27),ISBLANK('Early Action Credit'!$I27),ISBLANK('Early Action Credit'!$J27),ISBLANK('Early Action Credit'!$L27)),\"\",\"Circuit Breaker\")","v":""},null,null,null,null,null,null,null,null,null,null,{"$f":"IF('Early Action Credit'!$I27=\"Yes\",0,IF('Early Action Credit'!$E27<72.5,0,IF('Early Action Credit'!$E27=72.5,300,IF('Early Action Credit'!$E27<=145,700,IF('Early Action Credit'!$E27<=245,1900,2400)))))*IF(ISBLANK('Early Action Credit'!$J27),0,IF('Early Action Credit'!$J27=\"No\",1,'Early Action Credit'!$K27))","v":0}]
[null,{"$f":"IF(AND(ISBLANK('Early Action Credit'!$A28),ISBLANK('Early Action Credit'!$C28),ISBLANK('Early Action Credit'!$D28),ISBLANK('Early Action Credit'!$E28),ISBLANK('Early Action Credit'!$F28),ISBLANK('Early Action Credit'!$G28),ISBLANK('Early Action Credit'!$H28),ISBLANK('Early Action Credit'!$I28),ISBLANK('Early Action Credit'!$J28),ISBLANK('Early Action Credit'!$L28)),\"\",\"Circuit Breaker\")","v":""},null,null,null,null,null,null,null,null,null,null,{"$f":"IF('Early Action Credit'!$I28=\"Yes\",0,IF('Early Action Credit'!$E28<72.5,0,IF('Early Action Credit'!$E28=72.5,300,IF('Early Action Credit'!$E28<=145,700,IF('Early Action Credit'!$E28<=245,1900,2400)))))*IF(ISBLANK('Early Action Credit'!$J28),0,IF('Early Action Credit'!$J28=\"No\",1,'Early Action Credit'!$K28))","v":0}]
[null,{"$f":"IF(AND(ISBLANK('Early Action Credit'!$A29),ISBLANK('Early Action Credit'!$C29),ISBLANK('Early Action Credit'!$D29),ISBLANK('Early Action Credit'!$E29),ISBLANK('Early Action Credit'!$F29),ISBLANK('Early Action Credit'!$G29),ISBLANK('Early Action Credit'!$H29),ISBLANK('Early Action Credit'!$I29),ISBLANK('Early Action Credit'!$J29),ISBLANK('Early Action Credit'!$L29)),\"\",\"Circuit Breaker\")","v":""},null,null,null,null,null,null,null,null,null,null,{"$f":"IF('Early Action Credit'!$I29=\"Yes\",0,IF('Early Action Credit'!$E29<72.5,0,IF('Early Action Credit'!$E29=72.5,300,IF('Early Action Credit'!$E29<=145,700,IF('Early Action Credit'!$E29<=245,1900,2400)))))*IF(ISBLANK('Early Action Credit'!$J29),0,IF('Early Action Credit'!$J29=\"No\",1,'Early Action Credit'!$K29))","v":0}]
[null,{"$f":"IF(AND(ISBLANK('Early Action Credit'!$A30),ISBLANK('Early Action Credit'!$C30),ISBLANK('Early Action Credit'!$D30),ISBLANK('Early Action Credit'!$E30),ISBLANK('Early Action Credit'!$F30),ISBLANK('Early Action Credit'!$G30),ISBLANK('Early Action Credit'!$H30),ISBLANK('Early Action Credit'!$I30),ISBLANK('Early Action Credit'!$J30),ISBLANK('Early Action Credit'!$L30)),\"\",\"Circuit Breaker\")","v":""},null,null,null,null,null,null,null,null,null,null,{"$f":"IF('Early Action Credit'!$I30=\"Yes\",0,IF('Early Action Credit'!$E30<72.5,0,IF('Early Action Credit'!$E30=72.5,300,IF('Early Action Credit'!$E30<=145,700,IF('Early Action Credit'!$E30<=245,1900,2400)))))*IF(ISBLANK('Early Action Credit'!$J30),0,IF('Early Action Credit'!$J30=\"No\",1,'Early Action Credit'!$K30))","v":0}]
[null,{"$f":"IF(AND(ISBLANK('Early Action Credit'!$A31),ISBLANK('Early Action Credit'!$C31),ISBLANK('Early Action Credit'!$D31),ISBLANK('Early Action Credit'!$E31),ISBLANK('Early Action Credit'!$F31),ISBLANK('Early Action Credit'!$G31),ISBLANK('Early Action Credit'!$H31),ISBLANK('Early Action Credit'!$I31),ISBLANK('Early Action Credit'!$J31),ISBLANK('Early Action Credit'!$L31)),\"\",\"Circuit Breaker\")","v":""},null,null,null,null,null,null,null,null,null,null,{"$f":"IF('Early Action Credit'!$I31=\"Yes\",0,IF('Early Action Credit'!$E31<72.5,0,IF('Early Action Credit'!$E31=72.5,300,IF('Early Action Credit'!$E31<=145,700,IF('Early Action Credit'!$E31<=245,1900,2400)))))*IF(ISBLANK('Early Action Credit'!$J31),0,IF('Early Action Credit'!$J31=\"No\",1,'Early Action Credit'!$K31))","v":0}]
[null,{"$f":"IF(AND(ISBLANK('Early Action Credit'!$A32),ISBLANK('Early Action Credit'!$C32),ISBLANK('Early Action Credit'!$D32),ISBLANK('Early Action Credit'!$E32),ISBLANK('Early Action Credit'!$F32),ISBLANK('Early Action Credit'!$G32),ISBLANK('Early Action Credit'!$H32),ISBLANK('Early Action Credit'!$I32),ISBLANK('Early Action Credit'!$J32),ISBLANK('Early Action Credit'!$L32)),\"\",\"Circuit Breaker\")","v":""},null,null,null,null,null,null,null,null,null,null,{"$f":"IF('Early Action Credit'!$I32=\"Yes\",0,IF('Early Action Credit'!$E32<72.5,0,IF('Early Action Credit'!$E32=72.5,300,IF('Early Action Credit'!$E32<=145,700,IF('Early Action Credit'!$E32<=245,1900,2400)))))*IF(ISBLANK('Early Action Credit'!$J32),0,IF('Early Action Credit'!$J32=\"No\",1,'Early Action Credit'!$K32))","v":0}]
[null,{"$f":"IF(AND(ISBLANK('Early Action Credit'!$A33),ISBLANK('Early Action Credit'!$C33),ISBLANK('Early Action Credit'!$D33),ISBLANK('Early Action Credit'!$E33),ISBLANK('Early Action Credit'!$F33),ISBLANK('Early Action Credit'!$G33),ISBLANK('Early Action Credit'!$H33),ISBLANK('Early Action Credit'!$I33),ISBLANK('Early Action Credit'!$J33),ISBLANK('Early Action Credit'!$L33)),\"\",\"Circuit Breaker\")","v":""},null,null,null,null,null,null,null,null,null,null,{"$f":"IF('Early Action Credit'!$I33=\"Yes\",0,IF('Early Action Credit'!$E33<72.5,0,IF('Early Action Credit'!$E33=72.5,300,IF('Early Action Credit'!$E33<=145,700,IF('Early Action Credit'!$E33<=245,1900,2400)))))*IF(ISBLANK('Early Action Credit'!$J33),0,IF('Early Action Credit'!$J33=\"No\",1,'Early Action Credit'!$K33))","v":0}]
[null,{"$f":"IF(AND(ISBLANK('Early Action Credit'!$A34),ISBLANK('Early Action Credit'!$C34),ISBLANK('Early Action Credit'!$D34),ISBLANK('Early Action Credit'!$E34),ISBLANK('Early Action Credit'!$F34),ISBLANK('Early Action Credit'!$G34),ISBLANK('Early Action Credit'!$H34),ISBLANK('Early Action Credit'!$I34),ISBLANK('Early Action Credit'!$J34),ISBLANK('Early Action Credit'!$L34)),\"\",\"Circuit Breaker\")","v":""},null,null,null,null,null,null,null,null,null,null,{"$f":"IF('Early Action Credit'!$I34=\"Yes\",0,IF('Early Action Credit'!$E34<72.5,0,IF('Early Action Credit'!$E34=72.5,300,IF('Early Action Credit'!$E34<=145,700,IF('Early Action Credit'!$E34<=245,1900,2400)))))*IF(ISBLANK('Early Action Credit'!$J34),0,IF('Early Action Credit'!$J34=\"No\",1,'Early Action Credit'!$K34))","v":0}]
[null,{"$f":"IF(AND(ISBLANK('Early Action Credit'!$A35),ISBLANK('Early Action Credit'!$C35),ISBLANK('Early Action Credit'!$D35),ISBLANK('Early Action Credit'!$E35),ISBLANK('Early Action Credit'!$F35),ISBLANK('Early Action Credit'!$G35),ISBLANK('Early Action Credit'!$H35),ISBLANK('Early Action Credit'!$I35),ISBLANK('Early Action Credit'!$J35),ISBLANK('Early Action Credit'!$L35)),\"\",\"Circuit Breaker\")","v":""},null,null,null,null,null,null,null,null,null,null,{"$f":"IF('Early Action Credit'!$I35=\"Yes\",0,IF('Early Action Credit'!$E35<72.5,0,IF('Early Action Credit'!$E35=72.5,300,IF('Early Action Credit'!$E35<=145,700,IF('Early Action Credit'!$E35<=245,1900,2400)))))*IF(ISBLANK('Early Action Credit'!$J35),0,IF('Early Action Credit'!$J35=\"No\",1,'Early Action Credit'!$K35))","v":0}]
[null,{"$f":"IF(AND(ISBLANK('Early Action Credit'!$A36),ISBLANK('Early Action Credit'!$C36),ISBLANK('Early Action Credit'!$D36),ISBLANK('Early Action Credit'!$E36),ISBLANK('Early Action Credit'!$F36),ISBLANK('Early Action Credit'!$G36),ISBLANK('Early Action Credit'!$H36),ISBLANK('Early Action Credit'!$I36),ISBLANK('Early Action Credit'!$J36),ISBLANK('Early Action Credit'!$L36)),\"\",\"Circuit Breaker\")","v":""},null,null,null,null,null,null,null,null,null,null,{"$f":"IF('Early Action Credit'!$I36=\"Yes\",0,IF('Early Action Credit'!$E36<72.5,0,IF('Early Action Credit'!$E36=72.5,300,IF('Early Action Credit'!$E36<=145,700,IF('Early Action Credit'!$E36<=245,1900,2400)))))*IF(ISBLANK('Early Action Credit'!$J36),0,IF('Early Action Credit'!$J36=\"No\",1,'Early Action Credit'!$K36))","v":0}]
[null,{"$f":"IF(AND(ISBLANK('Early Action Credit'!$A37),ISBLANK('Early Action Credit'!$C37),ISBLANK('Early Action Credit'!$D37),ISBLANK('Early Action Credit'!$E37),ISBLANK('Early Action Credit'!$F37),ISBLANK('Early Action Credit'!$G37),ISBLANK('Early Action Credit'!$H37),ISBLANK('Early Action Credit'!$I37),ISBLANK('Early Action Credit'!$J37),ISBLANK('Early Action Credit'!$L37)),\"\",\"Circuit Breaker\")","v":""},null,null,null,null,null,null,null,null,null,null,{"$f":"IF('Early Action Credit'!$I37=\"Yes\",0,IF('Early Action Credit'!$E37<72.5,0,IF('Early Action Credit'!$E37=72.5,300,IF('Early Action Credit'!$E37<=145,700,IF('Early Action Credit'!$E37<=245,1900,2400)))))*IF(ISBLANK('Early Action Credit'!$J37),0,IF('Early Action Credit'!$J37=\"No\",1,'Early Action Credit'!$K37))","v":0}]
[null,{"$f":"IF(AND(ISBLANK('Early Action Credit'!$A38),ISBLANK('Early Action Credit'!$C38),ISBLANK('Early Action Credit'!$D38),ISBLANK('Early Action Credit'!$E38),ISBLANK('Early Action Credit'!$F38),ISBLANK('Early Action Credit'!$G38),ISBLANK('Early Action Credit'!$H38),ISBLANK('Early Action Credit'!$I38),ISBLANK('Early Action Credit'!$J38),ISBLANK('Early Action Credit'!$L38)),\"\",\"Circuit Breaker\")","v":""},null,null,null,null,null,null,null,null,null,null,{"$f":"IF('Early Action Credit'!$I38=\"Yes\",0,IF('Early Action Credit'!$E38<72.5,0,IF('Early Action Credit'!$E38=72.5,300,IF('Early Action Credit'!$E38<=145,700,IF('Early Action Credit'!$E38<=245,1900,2400)))))*IF(ISBLANK('Early Action Credit'!$J38),0,IF('Early Action Credit'!$J38=\"No\",1,'Early Action Credit'!$K38))","v":0}]
[null,{"$f":"IF(AND(ISBLANK('Early Action Credit'!$A39),ISBLANK('Early Action Credit'!$C39),ISBLANK('Early Action Credit'!$D39),ISBLANK('Early Action Credit'!$E39),ISBLANK('Early Action Credit'!$F39),ISBLANK('Early Action Credit'!$G39),ISBLANK('Early Action Credit'!$H39),ISBLANK('Early Action Credit'!$I39),ISBLANK('Early Action Credit'!$J39),ISBLANK('Early Action Credit'!$L39)),\"\",\"Circuit Breaker\")","v":""},null,null,null,null,null,null,null,null,null,null,{"$f":"IF('Early Action Credit'!$I39=\"Yes\",0,IF('Early Action Credit'!$E39<72.5,0,IF('Early Action Credit'!$E39=72.5,300,IF('Early Action Credit'!$E39<=145,700,IF('Early Action Credit'!$E39<=245,1900,2400)))))*IF(ISBLANK('Early Action Credit'!$J39),0,IF('Early Action Credit'!$J39=\"No\",1,'Early Action Credit'!$K39))","v":0}]
[null,{"$f":"IF(AND(ISBLANK('Early Action Credit'!$A40),ISBLANK('Early Action Credit'!$C40),ISBLANK('Early Action Credit'!$D40),ISBLANK('Early Action Credit'!$E40),ISBLANK('Early Action Credit'!$F40),ISBLANK('Early Action Credit'!$G40),ISBLANK('Early Action Credit'!$H40),ISBLANK('Early Action Credit'!$I40),ISBLANK('Early Action Credit'!$J40),ISBLANK('Early Action Credit'!$L40)),\"\",\"Circuit Breaker\")","v":""},null,null,null,null,null,null,null,null,null,null,{"$f":"IF('Early Action Credit'!$I40=\"Yes\",0,IF('Early Action Credit'!$E40<72.5,0,IF('Early Action Credit'!$E40=72.5,300,IF('Early Action Credit'!$E40<=145,700,IF('Early Action Credit'!$E40<=245,1900,2400)))))*IF(ISBLANK('Early Action Credit'!$J40),0,IF('Early Action Credit'!$J40=\"No\",1,'Early Action Credit'!$K40))","v":0}]
[null,{"$f":"IF(AND(ISBLANK('Early Action Credit'!$A41),ISBLANK('Early Action Credit'!$C41),ISBLANK('Early Action Credit'!$D41),ISBLANK('Early Action Credit'!$E41),ISBLANK('Early Action Credit'!$F41),ISBLANK('Early Action Credit'!$G41),ISBLANK('Early Action Credit'!$H41),ISBLANK('Early Action Credit'!$I41),ISBLANK('Early Action Credit'!$J41),ISBLANK('Early Action Credit'!$L41)),\"\",\"Circuit Breaker\")","v":""},null,null,null,null,null,null,null,null,null,null,{"$f":"IF('Early Action Credit'!$I41=\"Yes\",0,IF('Early Action Credit'!$E41<72.5,0,IF('Early Action Credit'!$E41=72.5,300,IF('Early Action Credit'!$E41<=145,700,IF('Early Action Credit'!$E41<=245,1900,2400)))))*IF(ISBLANK('Early Action Credit'!$J41),0,IF('Early Action Credit'!$J41=\"No\",1,'Early Action Credit'!$K41))","v":0}]
[null,{"$f":"IF(AND(ISBLANK('Early Action Credit'!$A42),ISBLANK('Early Action Credit'!$C42),ISBLANK('Early Action Credit'!$D42),ISBLANK('Early Action Credit'!$E42),ISBLANK('Early Action Credit'!$F42),ISBLANK('Early Action Credit'!$G42),ISBLANK('Early Action Credit'!$H42),ISBLANK('Early Action Credit'!$I42),ISBLANK('Early Action Credit'!$J42),ISBLANK('Early Action Credit'!$L42)),\"\",\"Circuit Breaker\")","v":""},null,null,null,null,null,null,null,null,null,null,{"$f":"IF('Early Action Credit'!$I42=\"Yes\",0,IF('Early Action Credit'!$E42<72.5,0,IF('Early Action Credit'!$E42=72.5,300,IF('Early Action Credit'!$E42<=145,700,IF('Early Action Credit'!$E42<=245,1900,2400)))))*IF(ISBLANK('Early Action Credit'!$J42),0,IF('Early Action Credit'!$J42=\"No\",1,'Early Action Credit'!$K42))","v":0}]
[null,{"$f":"IF(AND(ISBLANK('Early Action Credit'!$A43),ISBLANK('Early Action Credit'!$C43),ISBLANK('Early Action Credit'!$D43),ISBLANK('Early Action Credit'!$E43),ISBLANK('Early Action Credit'!$F43),ISBLANK('Early Action Credit'!$G43),ISBLANK('Early Action Credit'!$H43),ISBLANK('Early Action Credit'!$I43),ISBLANK('Early Action Credit'!$J43),ISBLANK('Early Action Credit'!$L43)),\"\",\"Circuit Breaker\")","v":""},null,null,null,null,null,null,null,null,null,null,{"$f":"IF('Early Action Credit'!$I43=\"Yes\",0,IF('Early Action Credit'!$E43<72.5,0,IF('Early Action Credit'!$E43=72.5,300,IF('Early Action Credit'!$E43<=145,700,IF('Early Action Credit'!$E43<=245,1900,2400)))))*IF(ISBLANK('Early Action Credit'!$J43),0,IF('Early Action Credit'!$J43=\"No\",1,'Early Action Credit'!$K43))","v":0}]
[null,{"$f":"IF(AND(ISBLANK('Early Action Credit'!$A44),ISBLANK('Early Action Credit'!$C44),ISBLANK('Early Action Credit'!$D44),ISBLANK('Early Action Credit'!$E44),ISBLANK('Early Action Credit'!$F44),ISBLANK('Early Action Credit'!$G44),ISBLANK('Early Action Credit'!$H44),ISBLANK('Early Action Credit'!$I44),ISBLANK('Early Action Credit'!$J44),ISBLANK('Early Action Credit'!$L44)),\"\",\"Circuit Breaker\")","v":""},null,null,null,null,null,null,null,null,null,null,{"$f":"IF('Early Action Credit'!$I44=\"Yes\",0,IF('Early Action Credit'!$E44<72.5,0,IF('Early Action Credit'!$E44=72.5,300,IF('Early Action Credit'!$E44<=145,700,IF('Early Action Credit'!$E44<=245,1900,2400)))))*IF(ISBLANK('Early Action Credit'!$J44),0,IF('Early Action Credit'!$J44=\"No\",1,'Early Action Credit'!$K44))","v":0}]
[null,{"$f":"IF(AND(ISBLANK('Early Action Credit'!$A45),ISBLANK('Early Action Credit'!$C45),ISBLANK('Early Action Credit'!$D45),ISBLANK('Early Action Credit'!$E45),ISBLANK('Early Action Credit'!$F45),ISBLANK('Early Action Credit'!$G45),ISBLANK('Early Action Credit'!$H45),ISBLANK('Early Action Credit'!$I45),ISBLANK('Early Action Credit'!$J45),ISBLANK('Early Action Credit'!$L45)),\"\",\"Circuit Breaker\")","v":""},null,null,null,null,null,null,null,null,null,null,{"$f":"IF('Early Action Credit'!$I45=\"Yes\",0,IF('Early Action Credit'!$E45<72.5,0,IF('Early Action Credit'!$E45=72.5,300,IF('Early Action Credit'!$E45<=145,700,IF('Early Action Credit'!$E45<=245,1900,2400)))))*IF(ISBLANK('Early Action Credit'!$J45),0,IF('Early Action Credit'!$J45=\"No\",1,'Early Action Credit'!$K45))","v":0}]
[null,{"$f":"IF(AND(ISBLANK('Early Action Credit'!$A46),ISBLANK('Early Action Credit'!$C46),ISBLANK('Early Action Credit'!$D46),ISBLANK('Early Action Credit'!$E46),ISBLANK('Early Action Credit'!$F46),ISBLANK('Early Action Credit'!$G46),ISBLANK('Early Action Credit'!$H46),ISBLANK('Early Action Credit'!$I46),ISBLANK('Early Action Credit'!$J46),ISBLANK('Early Action Credit'!$L46)),\"\",\"Circuit Breaker\")","v":""},null,null,null,null,null,null,null,null,null,null,{"$f":"IF('Early Action Credit'!$I46=\"Yes\",0,IF('Early Action Credit'!$E46<72.5,0,IF('Early Action Credit'!$E46=72.5,300,IF('Early Action Credit'!$E46<=145,700,IF('Early Action Credit'!$E46<=245,1900,2400)))))*IF(ISBLANK('Early Action Credit'!$J46),0,IF('Early Action Credit'!$J46=\"No\",1,'Early Action Credit'!$K46))","v":0}]
[null,{"$f":"IF(AND(ISBLANK('Early Action Credit'!$A47),ISBLANK('Early Action Credit'!$C47),ISBLANK('Early Action Credit'!$D47),ISBLANK('Early Action Credit'!$E47),ISBLANK('Early Action Credit'!$F47),ISBLANK('Early Action Credit'!$G47),ISBLANK('Early Action Credit'!$H47),ISBLANK('Early Action Credit'!$I47),ISBLANK('Early Action Credit'!$J47),ISBLANK('Early Action Credit'!$L47)),\"\",\"Circuit Breaker\")","v":""},null,null,null,null,null,null,null,null,null,null,{"$f":"IF('Early Action Credit'!$I47=\"Yes\",0,IF('Early Action Credit'!$E47<72.5,0,IF('Early Action Credit'!$E47=72.5,300,IF('Early Action Credit'!$E47<=145,700,IF('Early Action Credit'!$E47<=245,1900,2400)))))*IF(ISBLANK('Early Action Credit'!$J47),0,IF('Early Action Credit'!$J47=\"No\",1,'Early Action Credit'!$K47))","v":0}]
[null,{"$f":"IF(AND(ISBLANK('Early Action Credit'!$A48),ISBLANK('Early Action Credit'!$C48),ISBLANK('Early Action Credit'!$D48),ISBLANK('Early Action Credit'!$E48),ISBLANK('Early Action Credit'!$F48),ISBLANK('Early Action Credit'!$G48),ISBLANK('Early Action Credit'!$H48),ISBLANK('Early Action Credit'!$I48),ISBLANK('Early Action Credit'!$J48),ISBLANK('Early Action Credit'!$L48)),\"\",\"Circuit Breaker\")","v":""},null,null,null,null,null,null,null,null,null,null,{"$f":"IF('Early Action Credit'!$I48=\"Yes\",0,IF('Early Action Credit'!$E48<72.5,0,IF('Early Action Credit'!$E48=72.5,300,IF('Early Action Credit'!$E48<=145,700,IF('Early Action Credit'!$E48<=245,1900,2400)))))*IF(ISBLANK('Early Action Credit'!$J48),0,IF('Early Action Credit'!$J48=\"No\",1,'Early Action Credit'!$K48))","v":0}]
[null,{"$f":"IF(AND(ISBLANK('Early Action Credit'!$A49),ISBLANK('Early Action Credit'!$C49),ISBLANK('Early Action Credit'!$D49),ISBLANK('Early Action Credit'!$E49),ISBLANK('Early Action Credit'!$F49),ISBLANK('Early Action Credit'!$G49),ISBLANK('Early Action Credit'!$H49),ISBLANK('Early Action Credit'!$I49),ISBLANK('Early Action Credit'!$J49),ISBLANK('Early Action Credit'!$L49)),\"\",\"Circuit Breaker\")","v":""},null,null,null,null,null,null,null,null,null,null,{"$f":"IF('Early Action Credit'!$I49=\"Yes\",0,IF('Early Action Credit'!$E49<72.5,0,IF('Early Action Credit'!$E49=72.5,300,IF('Early Action Credit'!$E49<=145,700,IF('Early Action Credit'!$E49<=245,1900,2400)))))*IF(ISBLANK('Early Action Credit'!$J49),0,IF('Early Action Credit'!$J49=\"No\",1,'Early Action Credit'!$K49))","v":0}]
[null,{"$f":"IF(AND(ISBLANK('Early Action Credit'!$A50),ISBLANK('Early Action Credit'!$C50),ISBLANK('Early Action Credit'!$D50),ISBLANK('Early Action Credit'!$E50),ISBLANK('Early Action Credit'!$F50),ISBLANK('Early Action Credit'!$G50),ISBLANK('Early Action Credit'!$H50),ISBLANK('Early Action Credit'!$I50),ISBLANK('Early Action Credit'!$J50),ISBLANK('Early Action Credit'!$L50)),\"\",\"Circuit Breaker\")","v":""},null,null,null,null,null,null,null,null,null,null,{"$f":"IF('Early Action Credit'!$I50=\"Yes\",0,IF('Early Action Credit'!$E50<72.5,0,IF('Early Action Credit'!$E50=72.5,300,IF('Early Action Credit'!$E50<=145,700,IF('Early Action Credit'!$E50<=245,1900,2400)))))*IF(ISBLANK('Early Action Credit'!$J50),0,IF('Early Action Credit'!$J50=\"No\",1,'Early Action Credit'!$K50))","v":0}]
[null,{"$f":"IF(AND(ISBLANK('Early Action Credit'!$A51),ISBLANK('Early Action Credit'!$C51),ISBLANK('Early Action Credit'!$D51),ISBLANK('Early Action Credit'!$E51),ISBLANK('Early Action Credit'!$F51),ISBLANK('Early Action Credit'!$G51),ISBLANK('Early Action Credit'!$H51),ISBLANK('Early Action Credit'!$I51),ISBLANK('Early Action Credit'!$J51),ISBLANK('Early Action Credit'!$L51)),\"\",\"Circuit Breaker\")","v":""},null,null,null,null,null,null,null,null,null,null,{"$f":"IF('Early Action Credit'!$I51=\"Yes\",0,IF('Early Action Credit'!$E51<72.5,0,IF('Early Action Credit'!$E51=72.5,300,IF('Early Action Credit'!$E51<=145,700,IF('Early Action Credit'!$E51<=245,1900,2400)))))*IF(ISBLANK('Early Action Credit'!$J51),0,IF('Early Action Credit'!$J51=\"No\",1,'Early Action Credit'!$K51))","v":0}]
[null,{"$f":"IF(AND(ISBLANK('Early Action Credit'!$A52),ISBLANK('Early Action Credit'!$C52),ISBLANK('Early Action Credit'!$D52),ISBLANK('Early Action Credit'!$E52),ISBLANK('Early Action Credit'!$F52),ISBLANK('Early Action Credit'!$G52),ISBLANK('Early Action Credit'!$H52),ISBLANK('Early Action Credit'!$I52),ISBLANK('Early Action Credit'!$J52),ISBLANK('Early Action Credit'!$L52)),\"\",\"Circuit Breaker\")","v":""},null,null,null,null,null,null,null,null,null,null,{"$f":"IF('Early Action Credit'!$I52=\"Yes\",0,IF('Early Action Credit'!$E52<72.5,0,IF('Early Action Credit'!$E52=72.5,300,IF('Early Action Credit'!$E52<=145,700,IF('Early Action Credit'!$E52<=245,1900,2400)))))*IF(ISBLANK('Early Action Credit'!$J52),0,IF('Early Action Credit'!$J52=\"No\",1,'Early Action Credit'!$K52))","v":0}]
[null,{"$f":"IF(AND(ISBLANK('Early Action Credit'!$A53),ISBLANK('Early Action Credit'!$C53),ISBLANK('Early Action Credit'!$D53),ISBLANK('Early Action Credit'!$E53),ISBLANK('Early Action Credit'!$F53),ISBLANK('Early Action Credit'!$G53),ISBLANK('Early Action Credit'!$H53),ISBLANK('Early Action Credit'!$I53),ISBLANK('Early Action Credit'!$J53),ISBLANK('Early Action Credit'!$L53)),\"\",\"Circuit Breaker\")","v":""},null,null,null,null,null,null,null,null,null,null,{"$f":"IF('Early Action Credit'!$I53=\"Yes\",0,IF('Early Action Credit'!$E53<72.5,0,IF('Early Action Credit'!$E53=72.5,300,IF('Early Action Credit'!$E53<=145,700,IF('Early Action Credit'!$E53<=245,1900,2400)))))*IF(ISBLANK('Early Action Credit'!$J53),0,IF('Early Action Credit'!$J53=\"No\",1,'Early Action Credit'!$K53))","v":0}]
[null,{"$f":"IF(AND(ISBLANK('Early Action Credit'!$A54),ISBLANK('Early Action Credit'!$C54),ISBLANK('Early Action Credit'!$D54),ISBLANK('Early Action Credit'!$E54),ISBLANK('Early Action Credit'!$F54),ISBLANK('Early Action Credit'!$G54),ISBLANK('Early Action Credit'!$H54),ISBLANK('Early Action Credit'!$I54),ISBLANK('Early Action Credit'!$J54),ISBLANK('Early Action Credit'!$L54)),\"\",\"Circuit Breaker\")","v":""},null,null,null,null,null,null,null,null,null,null,{"$f":"IF('Early Action Credit'!$I54=\"Yes\",0,IF('Early Action Credit'!$E54<72.5,0,IF('Early Action Credit'!$E54=72.5,300,IF('Early Action Credit'!$E54<=145,700,IF('Early Action Credit'!$E54<=245,1900,2400)))))*IF(ISBLANK('Early Action Credit'!$J54),0,IF('Early Action Credit'!$J54=\"No\",1,'Early Action Credit'!$K54))","v":0}]
[null,{"$f":"IF(AND(ISBLANK('Early Action Credit'!$A55),ISBLANK('Early Action Credit'!$C55),ISBLANK('Early Action Credit'!$D55),ISBLANK('Early Action Credit'!$E55),ISBLANK('Early Action Credit'!$F55),ISBLANK('Early Action Credit'!$G55),ISBLANK('Early Action Credit'!$H55),ISBLANK('Early Action Credit'!$I55),ISBLANK('Early Action Credit'!$J55),ISBLANK('Early Action Credit'!$L55)),\"\",\"Circuit Breaker\")","v":""},null,null,null,null,null,null,null,null,null,null,{"$f":"IF('Early Action Credit'!$I55=\"Yes\",0,IF('Early Action Credit'!$E55<72.5,0,IF('Early Action Credit'!$E55=72.5,300,IF('Early Action Credit'!$E55<=145,700,IF('Early Action Credit'!$E55<=245,1900,2400)))))*IF(ISBLANK('Early Action Credit'!$J55),0,IF('Early Action Credit'!$J55=\"No\",1,'Early Action Credit'!$K55))","v":0}]
[null,{"$f":"IF(AND(ISBLANK('Early Action Credit'!$A56),ISBLANK('Early Action Credit'!$C56),ISBLANK('Early Action Credit'!$D56),ISBLANK('Early Action Credit'!$E56),ISBLANK('Early Action Credit'!$F56),ISBLANK('Early Action Credit'!$G56),ISBLANK('Early Action Credit'!$H56),ISBLANK('Early Action Credit'!$I56),ISBLANK('Early Action Credit'!$J56),ISBLANK('Early Action Credit'!$L56)),\"\",\"Circuit Breaker\")","v":""},null,null,null,null,null,null,null,null,null,null,{"$f":"IF('Early Action Credit'!$I56=\"Yes\",0,IF('Early Action Credit'!$E56<72.5,0,IF('Early Action Credit'!$E56=72.5,300,IF('Early Action Credit'!$E56<=145,700,IF('Early Action Credit'!$E56<=245,1900,2400)))))*IF(ISBLANK('Early Action Credit'!$J56),0,IF('Early Action Credit'!$J56=\"No\",1,'Early Action Credit'!$K56))","v":0}]
[null,{"$f":"IF(AND(ISBLANK('Early Action Credit'!$A57),ISBLANK('Early Action Credit'!$C57),ISBLANK('Early Action Credit'!$D57),ISBLANK('Early Action Credit'!$E57),ISBLANK('Early Action Credit'!$F57),ISBLANK('Early Action Credit'!$G57),ISBLANK('Early Action Credit'!$H57),ISBLANK('Early Action Credit'!$I57),ISBLANK('Early Action Credit'!$J57),ISBLANK('Early Action Credit'!$L57)),\"\",\"Circuit Breaker\")","v":""},null,null,null,null,null,null,null,null,null,null,{"$f":"IF('Early Action Credit'!$I57=\"Yes\",0,IF('Early Action Credit'!$E57<72.5,0,IF('Early Action Credit'!$E57=72.5,300,IF('Early Action Credit'!$E57<=145,700,IF('Early Action Credit'!$E57<=245,1900,2400)))))*IF(ISBLANK('Early Action Credit'!$J57),0,IF('Early Action Credit'!$J57=\"No\",1,'Early Action Credit'!$K57))","v":0}]
[null,{"$f":"IF(AND(ISBLANK('Early Action Credit'!$A58),ISBLANK('Early Action Credit'!$C58),ISBLANK('Early Action Credit'!$D58),ISBLANK('Early Action Credit'!$E58),ISBLANK('Early Action Credit'!$F58),ISBLANK('Early Action Credit'!$G58),ISBLANK('Early Action Credit'!$H58),ISBLANK('Early Action Credit'!$I58),ISBLANK('Early Action Credit'!$J58),ISBLANK('Early Action Credit'!$L58)),\"\",\"Circuit Breaker\")","v":""},null,null,null,null,null,null,null,null,null,null,{"$f":"IF('Early Action Credit'!$I58=\"Yes\",0,IF('Early Action Credit'!$E58<72.5,0,IF('Early Action Credit'!$E58=72.5,300,IF('Early Action Credit'!$E58<=145,700,IF('Early Action Credit'!$E58<=245,1900,2400)))))*IF(ISBLANK('Early Action Credit'!$J58),0,IF('Early Action Credit'!$J58=\"No\",1,'Early Action Credit'!$K58))","v":0}]
[null,{"$f":"IF(AND(ISBLANK('Early Action Credit'!$A59),ISBLANK('Early Action Credit'!$C59),ISBLANK('Early Action Credit'!$D59),ISBLANK('Early Action Credit'!$E59),ISBLANK('Early Action Credit'!$F59),ISBLANK('Early Action Credit'!$G59),ISBLANK('Early Action Credit'!$H59),ISBLANK('Early Action Credit'!$I59),ISBLANK('Early Action Credit'!$J59),ISBLANK('Early Action Credit'!$L59)),\"\",\"Circuit Breaker\")","v":""},null,null,null,null,null,null,null,null,null,null,{"$f":"IF('Early Action Credit'!$I59=\"Yes\",0,IF('Early Action Credit'!$E59<72.5,0,IF('Early Action Credit'!$E59=72.5,300,IF('Early Action Credit'!$E59<=145,700,IF('Early Action Credit'!$E59<=245,1900,2400)))))*IF(ISBLANK('Early Action Credit'!$J59),0,IF('Early Action Credit'!$J59=\"No\",1,'Early Action Credit'!$K59))","v":0}]
[null,{"$f":"IF(AND(ISBLANK('Early Action Credit'!$A60),ISBLANK('Early Action Credit'!$C60),ISBLANK('Early Action Credit'!$D60),ISBLANK('Early Action Credit'!$E60),ISBLANK('Early Action Credit'!$F60),ISBLANK('Early Action Credit'!$G60),ISBLANK('Early Action Credit'!$H60),ISBLANK('Early Action Credit'!$I60),ISBLANK('Early Action Credit'!$J60),ISBLANK('Early Action Credit'!$L60)),\"\",\"Circuit Breaker\")","v":""},null,null,null,null,null,null,null,null,null,null,{"$f":"IF('Early Action Credit'!$I60=\"Yes\",0,IF('Early Action Credit'!$E60<72.5,0,IF('Early Action Credit'!$E60=72.5,300,IF('Early Action Credit'!$E60<=145,700,IF('Early Action Credit'!$E60<=245,1900,2400)))))*IF(ISBLANK('Early Action Credit'!$J60),0,IF('Early Action Credit'!$J60=\"No\",1,'Early Action Credit'!$K60))","v":0}]
[null,{"$f":"IF(AND(ISBLANK('Early Action Credit'!$A61),ISBLANK('Early Action Credit'!$C61),ISBLANK('Early Action Credit'!$D61),ISBLANK('Early Action Credit'!$E61),ISBLANK('Early Action Credit'!$F61),ISBLANK('Early Action Credit'!$G61),ISBLANK('Early Action Credit'!$H61),ISBLANK('Early Action Credit'!$I61),ISBLANK('Early Action Credit'!$J61),ISBLANK('Early Action Credit'!$L61)),\"\",\"Circuit Breaker\")","v":""},null,null,null,null,null,null,null,null,null,null,{"$f":"IF('Early Action Credit'!$I61=\"Yes\",0,IF('Early Action Credit'!$E61<72.5,0,IF('Early Action Credit'!$E61=72.5,300,IF('Early Action Credit'!$E61<=145,700,IF('Early Action Credit'!$E61<=245,1900,2400)))))*IF(ISBLANK('Early Action Credit'!$J61),0,IF('Early Action Credit'!$J61=\"No\",1,'Early Action Credit'!$K61))","v":0}]
[null,{"$f":"IF(AND(ISBLANK('Early Action Credit'!$A62),ISBLANK('Early Action Credit'!$C62),ISBLANK('Early Action Credit'!$D62),ISBLANK('Early Action Credit'!$E62),ISBLANK('Early Action Credit'!$F62),ISBLANK('Early Action Credit'!$G62),ISBLANK('Early Action Credit'!$H62),ISBLANK('Early Action Credit'!$I62),ISBLANK('Early Action Credit'!$J62),ISBLANK('Early Action Credit'!$L62)),\"\",\"Circuit Breaker\")","v":""},null,null,null,null,null,null,null,null,null,null,{"$f":"IF('Early Action Credit'!$I62=\"Yes\",0,IF('Early Action Credit'!$E62<72.5,0,IF('Early Action Credit'!$E62=72.5,300,IF('Early Action Credit'!$E62<=145,700,IF('Early Action Credit'!$E62<=245,1900,2400)))))*IF(ISBLANK('Early Action Credit'!$J62),0,IF('Early Action Credit'!$J62=\"No\",1,'Early Action Credit'!$K62))","v":0}]
[null,{"$f":"IF(AND(ISBLANK('Early Action Credit'!$A63),ISBLANK('Early Action Credit'!$C63),ISBLANK('Early Action Credit'!$D63),ISBLANK('Early Action Credit'!$E63),ISBLANK('Early Action Credit'!$F63),ISBLANK('Early Action Credit'!$G63),ISBLANK('Early Action Credit'!$H63),ISBLANK('Early Action Credit'!$I63),ISBLANK('Early Action Credit'!$J63),ISBLANK('Early Action Credit'!$L63)),\"\",\"Circuit Breaker\")","v":""},null,null,null,null,null,null,null,null,null,null,{"$f":"IF('Early Action Credit'!$I63=\"Yes\",0,IF('Early Action Credit'!$E63<72.5,0,IF('Early Action Credit'!$E63=72.5,300,IF('Early Action Credit'!$E63<=145,700,IF('Early Action Credit'!$E63<=245,1900,2400)))))*IF(ISBLANK('Early Action Credit'!$J63),0,IF('Early Action Credit'!$J63=\"No\",1,'Early Action Credit'!$K63))","v":0}]
[null,{"$f":"IF(AND(ISBLANK('Early Action Credit'!$A64),ISBLANK('Early Action Credit'!$C64),ISBLANK('Early Action Credit'!$D64),ISBLANK('Early Action Credit'!$E64),ISBLANK('Early Action Credit'!$F64),ISBLANK('Early Action Credit'!$G64),ISBLANK('Early Action Credit'!$H64),ISBLANK('Early Action Credit'!$I64),ISBLANK('Early Action Credit'!$J64),ISBLANK('Early Action Credit'!$L64)),\"\",\"Circuit Breaker\")","v":""},null,null,null,null,null,null,null,null,null,null,{"$f":"IF('Early Action Credit'!$I64=\"Yes\",0,IF('Early Action Credit'!$E64<72.5,0,IF('Early Action Credit'!$E64=72.5,300,IF('Early Action Credit'!$E64<=145,700,IF('Early Action Credit'!$E64<=245,1900,2400)))))*IF(ISBLANK('Early Action Credit'!$J64),0,IF('Early Action Credit'!$J64=\"No\",1,'Early Action Credit'!$K64))","v":0}]
[null,{"$f":"IF(AND(ISBLANK('Early Action Credit'!$A65),ISBLANK('Early Action Credit'!$C65),ISBLANK('Early Action Credit'!$D65),ISBLANK('Early Action Credit'!$E65),ISBLANK('Early Action Credit'!$F65),ISBLANK('Early Action Credit'!$G65),ISBLANK('Early Action Credit'!$H65),ISBLANK('Early Action Credit'!$I65),ISBLANK('Early Action Credit'!$J65),ISBLANK('Early Action Credit'!$L65)),\"\",\"Circuit Breaker\")","v":""},null,null,null,null,null,null,null,null,null,null,{"$f":"IF('Early Action Credit'!$I65=\"Yes\",0,IF('Early Action Credit'!$E65<72.5,0,IF('Early Action Credit'!$E65=72.5,300,IF('Early Action Credit'!$E65<=145,700,IF('Early Action Credit'!$E65<=245,1900,2400)))))*IF(ISBLANK('Early Action Credit'!$J65),0,IF('Early Action Credit'!$J65=\"No\",1,'Early Action Credit'!$K65))","v":0}]
[null,{"$f":"IF(AND(ISBLANK('Early Action Credit'!$A66),ISBLANK('Early Action Credit'!$C66),ISBLANK('Early Action Credit'!$D66),ISBLANK('Early Action Credit'!$E66),ISBLANK('Early Action Credit'!$F66),ISBLANK('Early Action Credit'!$G66),ISBLANK('Early Action Credit'!$H66),ISBLANK('Early Action Credit'!$I66),ISBLANK('Early Action Credit'!$J66),ISBLANK('Early Action Credit'!$L66)),\"\",\"Circuit Breaker\")","v":""},null,null,null,null,null,null,null,null,null,null,{"$f":"IF('Early Action Credit'!$I66=\"Yes\",0,IF('Early Action Credit'!$E66<72.5,0,IF('Early Action Credit'!$E66=72.5,300,IF('Early Action Credit'!$E66<=145,700,IF('Early Action Credit'!$E66<=245,1900,2400)))))*IF(ISBLANK('Early Action Credit'!$J66),0,IF('Early Action Credit'!$J66=\"No\",1,'Early Action Credit'!$K66))","v":0}]
[null,{"$f":"IF(AND(ISBLANK('Early Action Credit'!$A67),ISBLANK('Early Action Credit'!$C67),ISBLANK('Early Action Credit'!$D67),ISBLANK('Early Action Credit'!$E67),ISBLANK('Early Action Credit'!$F67),ISBLANK('Early Action Credit'!$G67),ISBLANK('Early Action Credit'!$H67),ISBLANK('Early Action Credit'!$I67),ISBLANK('Early Action Credit'!$J67),ISBLANK('Early Action Credit'!$L67)),\"\",\"Circuit Breaker\")","v":""},null,null,null,null,null,null,null,null,null,null,{"$f":"IF('Early Action Credit'!$I67=\"Yes\",0,IF('Early Action Credit'!$E67<72.5,0,IF('Early Action Credit'!$E67=72.5,300,IF('Early Action Credit'!$E67<=145,700,IF('Early Action Credit'!$E67<=245,1900,2400)))))*IF(ISBLANK('Early Action Credit'!$J67),0,IF('Early Action Credit'!$J67=\"No\",1,'Early Action Credit'!$K67))","v":0}]
[null,{"$f":"IF(AND(ISBLANK('Early Action Credit'!$A68),ISBLANK('Early Action Credit'!$C68),ISBLANK('Early Action Credit'!$D68),ISBLANK('Early Action Credit'!$E68),ISBLANK('Early Action Credit'!$F68),ISBLANK('Early Action Credit'!$G68),ISBLANK('Early Action Credit'!$H68),ISBLANK('Early Action Credit'!$I68),ISBLANK('Early Action Credit'!$J68),ISBLANK('Early Action Credit'!$L68)),\"\",\"Circuit Breaker\")","v":""},null,null,null,null,null,null,null,null,null,null,{"$f":"IF('Early Action Credit'!$I68=\"Yes\",0,IF('Early Action Credit'!$E68<72.5,0,IF('Early Action Credit'!$E68=72.5,300,IF('Early Action Credit'!$E68<=145,700,IF('Early Action Credit'!$E68<=245,1900,2400)))))*IF(ISBLANK('Early Action Credit'!$J68),0,IF('Early Action Credit'!$J68=\"No\",1,'Early Action Credit'!$K68))","v":0}]
[null,{"$f":"IF(AND(ISBLANK('Early Action Credit'!$A69),ISBLANK('Early Action Credit'!$C69),ISBLANK('Early Action Credit'!$D69),ISBLANK('Early Action Credit'!$E69),ISBLANK('Early Action Credit'!$F69),ISBLANK('Early Action Credit'!$G69),ISBLANK('Early Action Credit'!$H69),ISBLANK('Early Action Credit'!$I69),ISBLANK('Early Action Credit'!$J69),ISBLANK('Early Action Credit'!$L69)),\"\",\"Circuit Breaker\")","v":""},null,null,null,null,null,null,null,null,null,null,{"$f":"IF('Early Action Credit'!$I69=\"Yes\",0,IF('Early Action Credit'!$E69<72.5,0,IF('Early Action Credit'!$E69=72.5,300,IF('Early Action Credit'!$E69<=145,700,IF('Early Action Credit'!$E69<=245,1900,2400)))))*IF(ISBLANK('Early Action Credit'!$J69),0,IF('Early Action Credit'!$J69=\"No\",1,'Early Action Credit'!$K69))","v":0}]
[null,{"$f":"IF(AND(ISBLANK('Early Action Credit'!$A70),ISBLANK('Early Action Credit'!$C70),ISBLANK('Early Action Credit'!$D70),ISBLANK('Early Action Credit'!$E70),ISBLANK('Early Action Credit'!$F70),ISBLANK('Early Action Credit'!$G70),ISBLANK('Early Action Credit'!$H70),ISBLANK('Early Action Credit'!$I70),ISBLANK('Early Action Credit'!$J70),ISBLANK('Early Action Credit'!$L70)),\"\",\"Circuit Breaker\")","v":""},null,null,null,null,null,null,null,null,null,null,{"$f":"IF('Early Action Credit'!$I70=\"Yes\",0,IF('Early Action Credit'!$E70<72.5,0,IF('Early Action Credit'!$E70=72.5,300,IF('Early Action Credit'!$E70<=145,700,IF('Early Action Credit'!$E70<=245,1900,2400)))))*IF(ISBLANK('Early Action Credit'!$J70),0,IF('Early Action Credit'!$J70=\"No\",1,'Early Action Credit'!$K70))","v":0}]
[null,{"$f":"IF(AND(ISBLANK('Early Action Credit'!$A71),ISBLANK('Early Action Credit'!$C71),ISBLANK('Early Action Credit'!$D71),ISBLANK('Early Action Credit'!$E71),ISBLANK('Early Action Credit'!$F71),ISBLANK('Early Action Credit'!$G71),ISBLANK('Early Action Credit'!$H71),ISBLANK('Early Action Credit'!$I71),ISBLANK('Early Action Credit'!$J71),ISBLANK('Early Action Credit'!$L71)),\"\",\"Circuit Breaker\")","v":""},null,null,null,null,null,null,null,null,null,null,{"$f":"IF('Early Action Credit'!$I71=\"Yes\",0,IF('Early Action Credit'!$E71<72.5,0,IF('Early Action Credit'!$E71=72.5,300,IF('Early Action Credit'!$E71<=145,700,IF('Early Action Credit'!$E71<=245,1900,2400)))))*IF(ISBLANK('Early Action Credit'!$J71),0,IF('Early Action Credit'!$J71=\"No\",1,'Early Action Credit'!$K71))","v":0}]
[null,{"$f":"IF(AND(ISBLANK('Early Action Credit'!$A72),ISBLANK('Early Action Credit'!$C72),ISBLANK('Early Action Credit'!$D72),ISBLANK('Early Action Credit'!$E72),ISBLANK('Early Action Credit'!$F72),ISBLANK('Early Action Credit'!$G72),ISBLANK('Early Action Credit'!$H72),ISBLANK('Early Action Credit'!$I72),ISBLANK('Early Action Credit'!$J72),ISBLANK('Early Action Credit'!$L72)),\"\",\"Circuit Breaker\")","v":""},null,null,null,null,null,null,null,null,null,null,{"$f":"IF('Early Action Credit'!$I72=\"Yes\",0,IF('Early Action Credit'!$E72<72.5,0,IF('Early Action Credit'!$E72=72.5,300,IF('Early Action Credit'!$E72<=145,700,IF('Early Action Credit'!$E72<=245,1900,2400)))))*IF(ISBLANK('Early Action Credit'!$J72),0,IF('Early Action Credit'!$J72=\"No\",1,'Early Action Credit'!$K72))","v":0}]
[null,{"$f":"IF(AND(ISBLANK('Early Action Credit'!$A73),ISBLANK('Early Action Credit'!$C73),ISBLANK('Early Action Credit'!$D73),ISBLANK('Early Action Credit'!$E73),ISBLANK('Early Action Credit'!$F73),ISBLANK('Early Action Credit'!$G73),ISBLANK('Early Action Credit'!$H73),ISBLANK('Early Action Credit'!$I73),ISBLANK('Early Action Credit'!$J73),ISBLANK('Early Action Credit'!$L73)),\"\",\"Circuit Breaker\")","v":""},null,null,null,null,null,null,null,null,null,null,{"$f":"IF('Early Action Credit'!$I73=\"Yes\",0,IF('Early Action Credit'!$E73<72.5,0,IF('Early Action Credit'!$E73=72.5,300,IF('Early Action Credit'!$E73<=145,700,IF('Early Action Credit'!$E73<=245,1900,2400)))))*IF(ISBLANK('Early Action Credit'!$J73),0,IF('Early Action Credit'!$J73=\"No\",1,'Early Action Credit'!$K73))","v":0}]
[null,{"$f":"IF(AND(ISBLANK('Early Action Credit'!$A74),ISBLANK('Early Action Credit'!$C74),ISBLANK('Early Action Credit'!$D74),ISBLANK('Early Action Credit'!$E74),ISBLANK('Early Action Credit'!$F74),ISBLANK('Early Action Credit'!$G74),ISBLANK('Early Action Credit'!$H74),ISBLANK('Early Action Credit'!$I74),ISBLANK('Early Action Credit'!$J74),ISBLANK('Early Action Credit'!$L74)),\"\",\"Circuit Breaker\")","v":""},null,null,null,null,null,null,null,null,null,null,{"$f":"IF('Early Action Credit'!$I74=\"Yes\",0,IF('Early Action Credit'!$E74<72.5,0,IF('Early Action Credit'!$E74=72.5,300,IF('Early Action Credit'!$E74<=145,700,IF('Early Action Credit'!$E74<=245,1900,2400)))))*IF(ISBLANK('Early Action Credit'!$J74),0,IF('Early Action Credit'!$J74=\"No\",1,'Early Action Credit'!$K74))","v":0}]
[null,{"$f":"IF(AND(ISBLANK('Early Action Credit'!$A75),ISBLANK('Early Action Credit'!$C75),ISBLANK('Early Action Credit'!$D75),ISBLANK('Early Action Credit'!$E75),ISBLANK('Early Action Credit'!$F75),ISBLANK('Early Action Credit'!$G75),ISBLANK('Early Action Credit'!$H75),ISBLANK('Early Action Credit'!$I75),ISBLANK('Early Action Credit'!$J75),ISBLANK('Early Action Credit'!$L75)),\"\",\"Circuit Breaker\")","v":""},null,null,null,null,null,null,null,null,null,null,{"$f":"IF('Early Action Credit'!$I75=\"Yes\",0,IF('Early Action Credit'!$E75<72.5,0,IF('Early Action Credit'!$E75=72.5,300,IF('Early Action Credit'!$E75<=145,700,IF('Early Action Credit'!$E75<=245,1900,2400)))))*IF(ISBLANK('Early Action Credit'!$J75),0,IF('Early Action Credit'!$J75=\"No\",1,'Early Action Credit'!$K75))","v":0}]
[null,{"$f":"IF(AND(ISBLANK('Early Action Credit'!$A76),ISBLANK('Early Action Credit'!$C76),ISBLANK('Early Action Credit'!$D76),ISBLANK('Early Action Credit'!$E76),ISBLANK('Early Action Credit'!$F76),ISBLANK('Early Action Credit'!$G76),ISBLANK('Early Action Credit'!$H76),ISBLANK('Early Action Credit'!$I76),ISBLANK('Early Action Credit'!$J76),ISBLANK('Early Action Credit'!$L76)),\"\",\"Circuit Breaker\")","v":""},null,null,null,null,null,null,null,null,null,null,{"$f":"IF('Early Action Credit'!$I76=\"Yes\",0,IF('Early Action Credit'!$E76<72.5,0,IF('Early Action Credit'!$E76=72.5,300,IF('Early Action Credit'!$E76<=145,700,IF('Early Action Credit'!$E76<=245,1900,2400)))))*IF(ISBLANK('Early Action Credit'!$J76),0,IF('Early Action Credit'!$J76=\"No\",1,'Early Action Credit'!$K76))","v":0}]
[null,{"$f":"IF(AND(ISBLANK('Early Action Credit'!$A77),ISBLANK('Early Action Credit'!$C77),ISBLANK('Early Action Credit'!$D77),ISBLANK('Early Action Credit'!$E77),ISBLANK('Early Action Credit'!$F77),ISBLANK('Early Action Credit'!$G77),ISBLANK('Early Action Credit'!$H77),ISBLANK('Early Action Credit'!$I77),ISBLANK('Early Action Credit'!$J77),ISBLANK('Early Action Credit'!$L77)),\"\",\"Circuit Breaker\")","v":""},null,null,null,null,null,null,null,null,null,null,{"$f":"IF('Early Action Credit'!$I77=\"Yes\",0,IF('Early Action Credit'!$E77<72.5,0,IF('Early Action Credit'!$E77=72.5,300,IF('Early Action Credit'!$E77<=145,700,IF('Early Action Credit'!$E77<=245,1900,2400)))))*IF(ISBLANK('Early Action Credit'!$J77),0,IF('Early Action Credit'!$J77=\"No\",1,'Early Action Credit'!$K77))","v":0}]
[null,{"$f":"IF(AND(ISBLANK('Early Action Credit'!$A78),ISBLANK('Early Action Credit'!$C78),ISBLANK('Early Action Credit'!$D78),ISBLANK('Early Action Credit'!$E78),ISBLANK('Early Action Credit'!$F78),ISBLANK('Early Action Credit'!$G78),ISBLANK('Early Action Credit'!$H78),ISBLANK('Early Action Credit'!$I78),ISBLANK('Early Action Credit'!$J78),ISBLANK('Early Action Credit'!$L78)),\"\",\"Circuit Breaker\")","v":""},null,null,null,null,null,null,null,null,null,null,{"$f":"IF('Early Action Credit'!$I78=\"Yes\",0,IF('Early Action Credit'!$E78<72.5,0,IF('Early Action Credit'!$E78=72.5,300,IF('Early Action Credit'!$E78<=145,700,IF('Early Action Credit'!$E78<=245,1900,2400)))))*IF(ISBLANK('Early Action Credit'!$J78),0,IF('Early Action Credit'!$J78=\"No\",1,'Early Action Credit'!$K78))","v":0}]
[null,{"$f":"IF(AND(ISBLANK('Early Action Credit'!$A79),ISBLANK('Early Action Credit'!$C79),ISBLANK('Early Action Credit'!$D79),ISBLANK('Early Action Credit'!$E79),ISBLANK('Early Action Credit'!$F79),ISBLANK('Early Action Credit'!$G79),ISBLANK('Early Action Credit'!$H79),ISBLANK('Early Action Credit'!$I79),ISBLANK('Early Action Credit'!$J79),ISBLANK('Early Action Credit'!$L79)),\"\",\"Circuit Breaker\")","v":""},null,null,null,null,null,null,null,null,null,null,{"$f":"IF('Early Action Credit'!$I79=\"Yes\",0,IF('Early Action Credit'!$E79<72.5,0,IF('Early Action Credit'!$E79=72.5,300,IF('Early Action Credit'!$E79<=145,700,IF('Early Action Credit'!$E79<=245,1900,2400)))))*IF(ISBLANK('Early Action Credit'!$J79),0,IF('Early Action Credit'!$J79=\"No\",1,'Early Action Credit'!$K79))","v":0}]
[null,{"$f":"IF(AND(ISBLANK('Early Action Credit'!$A80),ISBLANK('Early Action Credit'!$C80),ISBLANK('Early Action Credit'!$D80),ISBLANK('Early Action Credit'!$E80),ISBLANK('Early Action Credit'!$F80),ISBLANK('Early Action Credit'!$G80),ISBLANK('Early Action Credit'!$H80),ISBLANK('Early Action Credit'!$I80),ISBLANK('Early Action Credit'!$J80),ISBLANK('Early Action Credit'!$L80)),\"\",\"Circuit Breaker\")","v":""},null,null,null,null,null,null,null,null,null,null,{"$f":"IF('Early Action Credit'!$I80=\"Yes\",0,IF('Early Action Credit'!$E80<72.5,0,IF('Early Action Credit'!$E80=72.5,300,IF('Early Action Credit'!$E80<=145,700,IF('Early Action Credit'!$E80<=245,1900,2400)))))*IF(ISBLANK('Early Action Credit'!$J80),0,IF('Early Action Credit'!$J80=\"No\",1,'Early Action Credit'!$K80))","v":0}]
[null,{"$f":"IF(AND(ISBLANK('Early Action Credit'!$A81),ISBLANK('Early Action Credit'!$C81),ISBLANK('Early Action Credit'!$D81),ISBLANK('Early Action Credit'!$E81),ISBLANK('Early Action Credit'!$F81),ISBLANK('Early Action Credit'!$G81),ISBLANK('Early Action Credit'!$H81),ISBLANK('Early Action Credit'!$I81),ISBLANK('Early Action Credit'!$J81),ISBLANK('Early Action Credit'!$L81)),\"\",\"Circuit Breaker\")","v":""},null,null,null,null,null,null,null,null,null,null,{"$f":"IF('Early Action Credit'!$I81=\"Yes\",0,IF('Early Action Credit'!$E81<72.5,0,IF('Early Action Credit'!$E81=72.5,300,IF('Early Action Credit'!$E81<=145,700,IF('Early Action Credit'!$E81<=245,1900,2400)))))*IF(ISBLANK('Early Action Credit'!$J81),0,IF('Early Action Credit'!$J81=\"No\",1,'Early Action Credit'!$K81))","v":0}]
[null,{"$f":"IF(AND(ISBLANK('Early Action Credit'!$A82),ISBLANK('Early Action Credit'!$C82),ISBLANK('Early Action Credit'!$D82),ISBLANK('Early Action Credit'!$E82),ISBLANK('Early Action Credit'!$F82),ISBLANK('Early Action Credit'!$G82),ISBLANK('Early Action Credit'!$H82),ISBLANK('Early Action Credit'!$I82),ISBLANK('Early Action Credit'!$J82),ISBLANK('Early Action Credit'!$L82)),\"\",\"Circuit Breaker\")","v":""},null,null,null,null,null,null,null,null,null,null,{"$f":"IF('Early Action Credit'!$I82=\"Yes\",0,IF('Early Action Credit'!$E82<72.5,0,IF('Early Action Credit'!$E82=72.5,300,IF('Early Action Credit'!$E82<=145,700,IF('Early Action Credit'!$E82<=245,1900,2400)))))*IF(ISBLANK('Early Action Credit'!$J82),0,IF('Early Action Credit'!$J82=\"No\",1,'Early Action Credit'!$K82))","v":0}]
[null,{"$f":"IF(AND(ISBLANK('Early Action Credit'!$A83),ISBLANK('Early Action Credit'!$C83),ISBLANK('Early Action Credit'!$D83),ISBLANK('Early Action Credit'!$E83),ISBLANK('Early Action Credit'!$F83),ISBLANK('Early Action Credit'!$G83),ISBLANK('Early Action Credit'!$H83),ISBLANK('Early Action Credit'!$I83),ISBLANK('Early Action Credit'!$J83),ISBLANK('Early Action Credit'!$L83)),\"\",\"Circuit Breaker\")","v":""},null,null,null,null,null,null,null,null,null,null,{"$f":"IF('Early Action Credit'!$I83=\"Yes\",0,IF('Early Action Credit'!$E83<72.5,0,IF('Early Action Credit'!$E83=72.5,300,IF('Early Action Credit'!$E83<=145,700,IF('Early Action Credit'!$E83<=245,1900,2400)))))*IF(ISBLANK('Early Action Credit'!$J83),0,IF('Early Action Credit'!$J83=\"No\",1,'Early Action Credit'!$K83))","v":0}]
[null,{"$f":"IF(AND(ISBLANK('Early Action Credit'!$A84),ISBLANK('Early Action Credit'!$C84),ISBLANK('Early Action Credit'!$D84),ISBLANK('Early Action Credit'!$E84),ISBLANK('Early Action Credit'!$F84),ISBLANK('Early Action Credit'!$G84),ISBLANK('Early Action Credit'!$H84),ISBLANK('Early Action Credit'!$I84),ISBLANK('Early Action Credit'!$J84),ISBLANK('Early Action Credit'!$L84)),\"\",\"Circuit Breaker\")","v":""},null,null,null,null,null,null,null,null,null,null,{"$f":"IF('Early Action Credit'!$I84=\"Yes\",0,IF('Early Action Credit'!$E84<72.5,0,IF('Early Action Credit'!$E84=72.5,300,IF('Early Action Credit'!$E84<=145,700,IF('Early Action Credit'!$E84<=245,1900,2400)))))*IF(ISBLANK('Early Action Credit'!$J84),0,IF('Early Action Credit'!$J84=\"No\",1,'Early Action Credit'!$K84))","v":0}]
[null,{"$f":"IF(AND(ISBLANK('Early Action Credit'!$A85),ISBLANK('Early Action Credit'!$C85),ISBLANK('Early Action Credit'!$D85),ISBLANK('Early Action Credit'!$E85),ISBLANK('Early Action Credit'!$F85),ISBLANK('Early Action Credit'!$G85),ISBLANK('Early Action Credit'!$H85),ISBLANK('Early Action Credit'!$I85),ISBLANK('Early Action Credit'!$J85),ISBLANK('Early Action Credit'!$L85)),\"\",\"Circuit Breaker\")","v":""},null,null,null,null,null,null,null,null,null,null,{"$f":"IF('Early Action Credit'!$I85=\"Yes\",0,IF('Early Action Credit'!$E85<72.5,0,IF('Early Action Credit'!$E85=72.5,300,IF('Early Action Credit'!$E85<=145,700,IF('Early Action Credit'!$E85<=245,1900,2400)))))*IF(ISBLANK('Early Action Credit'!$J85),0,IF('Early Action Credit'!$J85=\"No\",1,'Early Action Credit'!$K85))","v":0}]
[null,{"$f":"IF(AND(ISBLANK('Early Action Credit'!$A86),ISBLANK('Early Action Credit'!$C86),ISBLANK('Early Action Credit'!$D86),ISBLANK('Early Action Credit'!$E86),ISBLANK('Early Action Credit'!$F86),ISBLANK('Early Action Credit'!$G86),ISBLANK('Early Action Credit'!$H86),ISBLANK('Early Action Credit'!$I86),ISBLANK('Early Action Credit'!$J86),ISBLANK('Early Action Credit'!$L86)),\"\",\"Circuit Breaker\")","v":""},null,null,null,null,null,null,null,null,null,null,{"$f":"IF('Early Action Credit'!$I86=\"Yes\",0,IF('Early Action Credit'!$E86<72.5,0,IF('Early Action Credit'!$E86=72.5,300,IF('Early Action Credit'!$E86<=145,700,IF('Early Action Credit'!$E86<=245,1900,2400)))))*IF(ISBLANK('Early Action Credit'!$J86),0,IF('Early Action Credit'!$J86=\"No\",1,'Early Action Credit'!$K86))","v":0}]
[null,{"$f":"IF(AND(ISBLANK('Early Action Credit'!$A87),ISBLANK('Early Action Credit'!$C87),ISBLANK('Early Action Credit'!$D87),ISBLANK('Early Action Credit'!$E87),ISBLANK('Early Action Credit'!$F87),ISBLANK('Early Action Credit'!$G87),ISBLANK('Early Action Credit'!$H87),ISBLANK('Early Action Credit'!$I87),ISBLANK('Early Action Credit'!$J87),ISBLANK('Early Action Credit'!$L87)),\"\",\"Circuit Breaker\")","v":""},null,null,null,null,null,null,null,null,null,null,{"$f":"IF('Early Action Credit'!$I87=\"Yes\",0,IF('Early Action Credit'!$E87<72.5,0,IF('Early Action Credit'!$E87=72.5,300,IF('Early Action Credit'!$E87<=145,700,IF('Early Action Credit'!$E87<=245,1900,2400)))))*IF(ISBLANK('Early Action Credit'!$J87),0,IF('Early Action Credit'!$J87=\"No\",1,'Early Action Credit'!$K87))","v":0}]
[null,{"$f":"IF(AND(ISBLANK('Early Action Credit'!$A88),ISBLANK('Early Action Credit'!$C88),ISBLANK('Early Action Credit'!$D88),ISBLANK('Early Action Credit'!$E88),ISBLANK('Early Action Credit'!$F88),ISBLANK('Early Action Credit'!$G88),ISBLANK('Early Action Credit'!$H88),ISBLANK('Early Action Credit'!$I88),ISBLANK('Early Action Credit'!$J88),ISBLANK('Early Action Credit'!$L88)),\"\",\"Circuit Breaker\")","v":""},null,null,null,null,null,null,null,null,null,null,{"$f":"IF('Early Action Credit'!$I88=\"Yes\",0,IF('Early Action Credit'!$E88<72.5,0,IF('Early Action Credit'!$E88=72.5,300,IF('Early Action Credit'!$E88<=145,700,IF('Early Action Credit'!$E88<=245,1900,2400)))))*IF(ISBLANK('Early Action Credit'!$J88),0,IF('Early Action Credit'!$J88=\"No\",1,'Early Action Credit'!$K88))","v":0}]
[null,{"$f":"IF(AND(ISBLANK('Early Action Credit'!$A89),ISBLANK('Early Action Credit'!$C89),ISBLANK('Early Action Credit'!$D89),ISBLANK('Early Action Credit'!$E89),ISBLANK('Early Action Credit'!$F89),ISBLANK('Early Action Credit'!$G89),ISBLANK('Early Action Credit'!$H89),ISBLANK('Early Action Credit'!$I89),ISBLANK('Early Action Credit'!$J89),ISBLANK('Early Action Credit'!$L89)),\"\",\"Circuit Breaker\")","v":""},null,null,null,null,null,null,null,null,null,null,{"$f":"IF('Early Action Credit'!$I89=\"Yes\",0,IF('Early Action Credit'!$E89<72.5,0,IF('Early Action Credit'!$E89=72.5,300,IF('Early Action Credit'!$E89<=145,700,IF('Early Action Credit'!$E89<=245,1900,2400)))))*IF(ISBLANK('Early Action Credit'!$J89),0,IF('Early Action Credit'!$J89=\"No\",1,'Early Action Credit'!$K89))","v":0}]
[null,{"$f":"IF(AND(ISBLANK('Early Action Credit'!$A90),ISBLANK('Early Action Credit'!$C90),ISBLANK('Early Action Credit'!$D90),ISBLANK('Early Action Credit'!$E90),ISBLANK('Early Action Credit'!$F90),ISBLANK('Early Action Credit'!$G90),ISBLANK('Early Action Credit'!$H90),ISBLANK('Early Action Credit'!$I90),ISBLANK('Early Action Credit'!$J90),ISBLANK('Early Action Credit'!$L90)),\"\",\"Circuit Breaker\")","v":""},null,null,null,null,null,null,null,null,null,null,{"$f":"IF('Early Action Credit'!$I90=\"Yes\",0,IF('Early Action Credit'!$E90<72.5,0,IF('Early Action Credit'!$E90=72.5,300,IF('Early Action Credit'!$E90<=145,700,IF('Early Action Credit'!$E90<=245,1900,2400)))))*IF(ISBLANK('Early Action Credit'!$J90),0,IF('Early Action Credit'!$J90=\"No\",1,'Early Action Credit'!$K90))","v":0}]
[null,{"$f":"IF(AND(ISBLANK('Early Action Credit'!$A91),ISBLANK('Early Action Credit'!$C91),ISBLANK('Early Action Credit'!$D91),ISBLANK('Early Action Credit'!$E91),ISBLANK('Early Action Credit'!$F91),ISBLANK('Early Action Credit'!$G91),ISBLANK('Early Action Credit'!$H91),ISBLANK('Early Action Credit'!$I91),ISBLANK('Early Action Credit'!$J91),ISBLANK('Early Action Credit'!$L91)),\"\",\"Circuit Breaker\")","v":""},null,null,null,null,null,null,null,null,null,null,{"$f":"IF('Early Action Credit'!$I91=\"Yes\",0,IF('Early Action Credit'!$E91<72.5,0,IF('Early Action Credit'!$E91=72.5,300,IF('Early Action Credit'!$E91<=145,700,IF('Early Action Credit'!$E91<=245,1900,2400)))))*IF(ISBLANK('Early Action Credit'!$J91),0,IF('Early Action Credit'!$J91=\"No\",1,'Early Action Credit'!$K91))","v":0}]
[null,{"$f":"IF(AND(ISBLANK('Early Action Credit'!$A92),ISBLANK('Early Action Credit'!$C92),ISBLANK('Early Action Credit'!$D92),ISBLANK('Early Action Credit'!$E92),ISBLANK('Early Action Credit'!$F92),ISBLANK('Early Action Credit'!$G92),ISBLANK('Early Action Credit'!$H92),ISBLANK('Early Action Credit'!$I92),ISBLANK('Early Action Credit'!$J92),ISBLANK('Early Action Credit'!$L92)),\"\",\"Circuit Breaker\")","v":""},null,null,null,null,null,null,null,null,null,null,{"$f":"IF('Early Action Credit'!$I92=\"Yes\",0,IF('Early Action Credit'!$E92<72.5,0,IF('Early Action Credit'!$E92=72.5,300,IF('Early Action Credit'!$E92<=145,700,IF('Early Action Credit'!$E92<=245,1900,2400)))))*IF(ISBLANK('Early Action Credit'!$J92),0,IF('Early Action Credit'!$J92=\"No\",1,'Early Action Credit'!$K92))","v":0}]
[null,{"$f":"IF(AND(ISBLANK('Early Action Credit'!$A93),ISBLANK('Early Action Credit'!$C93),ISBLANK('Early Action Credit'!$D93),ISBLANK('Early Action Credit'!$E93),ISBLANK('Early Action Credit'!$F93),ISBLANK('Early Action Credit'!$G93),ISBLANK('Early Action Credit'!$H93),ISBLANK('Early Action Credit'!$I93),ISBLANK('Early Action Credit'!$J93),ISBLANK('Early Action Credit'!$L93)),\"\",\"Circuit Breaker\")","v":""},null,null,null,null,null,null,null,null,null,null,{"$f":"IF('Early Action Credit'!$I93=\"Yes\",0,IF('Early Action Credit'!$E93<72.5,0,IF('Early Action Credit'!$E93=72.5,300,IF('Early Action Credit'!$E93<=145,700,IF('Early Action Credit'!$E93<=245,1900,2400)))))*IF(ISBLANK('Early Action Credit'!$J93),0,IF('Early Action Credit'!$J93=\"No\",1,'Early Action Credit'!$K93))","v":0}]
[null,{"$f":"IF(AND(ISBLANK('Early Action Credit'!$A94),ISBLANK('Early Action Credit'!$C94),ISBLANK('Early Action Credit'!$D94),ISBLANK('Early Action Credit'!$E94),ISBLANK('Early Action Credit'!$F94),ISBLANK('Early Action Credit'!$G94),ISBLANK('Early Action Credit'!$H94),ISBLANK('Early Action Credit'!$I94),ISBLANK('Early Action Credit'!$J94),ISBLANK('Early Action Credit'!$L94)),\"\",\"Circuit Breaker\")","v":""},null,null,null,null,null,null,null,null,null,null,{"$f":"IF('Early Action Credit'!$I94=\"Yes\",0,IF('Early Action Credit'!$E94<72.5,0,IF('Early Action Credit'!$E94=72.5,300,IF('Early Action Credit'!$E94<=145,700,IF('Early Action Credit'!$E94<=245,1900,2400)))))*IF(ISBLANK('Early Action Credit'!$J94),0,IF('Early Action Credit'!$J94=\"No\",1,'Early Action Credit'!$K94))","v":0}]
[null,{"$f":"IF(AND(ISBLANK('Early Action Credit'!$A95),ISBLANK('Early Action Credit'!$C95),ISBLANK('Early Action Credit'!$D95),ISBLANK('Early Action Credit'!$E95),ISBLANK('Early Action Credit'!$F95),ISBLANK('Early Action Credit'!$G95),ISBLANK('Early Action Credit'!$H95),ISBLANK('Early Action Credit'!$I95),ISBLANK('Early Action Credit'!$J95),ISBLANK('Early Action Credit'!$L95)),\"\",\"Circuit Breaker\")","v":""},null,null,null,null,null,null,null,null,null,null,{"$f":"IF('Early Action Credit'!$I95=\"Yes\",0,IF('Early Action Credit'!$E95<72.5,0,IF('Early Action Credit'!$E95=72.5,300,IF('Early Action Credit'!$E95<=145,700,IF('Early Action Credit'!$E95<=245,1900,2400)))))*IF(ISBLANK('Early Action Credit'!$J95),0,IF('Early Action Credit'!$J95=\"No\",1,'Early Action Credit'!$K95))","v":0}]
[null,{"$f":"IF(AND(ISBLANK('Early Action Credit'!$A96),ISBLANK('Early Action Credit'!$C96),ISBLANK('Early Action Credit'!$D96),ISBLANK('Early Action Credit'!$E96),ISBLANK('Early Action Credit'!$F96),ISBLANK('Early Action Credit'!$G96),ISBLANK('Early Action Credit'!$H96),ISBLANK('Early Action Credit'!$I96),ISBLANK('Early Action Credit'!$J96),ISBLANK('Early Action Credit'!$L96)),\"\",\"Circuit Breaker\")","v":""},null,null,null,null,null,null,null,null,null,null,{"$f":"IF('Early Action Credit'!$I96=\"Yes\",0,IF('Early Action Credit'!$E96<72.5,0,IF('Early Action Credit'!$E96=72.5,300,IF('Early Action Credit'!$E96<=145,700,IF('Early Action Credit'!$E96<=245,1900,2400)))))*IF(ISBLANK('Early Action Credit'!$J96),0,IF('Early Action Credit'!$J96=\"No\",1,'Early Action Credit'!$K96))","v":0}]
[null,{"$f":"IF(AND(ISBLANK('Early Action Credit'!$A97),ISBLANK('Early Action Credit'!$C97),ISBLANK('Early Action Credit'!$D97),ISBLANK('Early Action Credit'!$E97),ISBLANK('Early Action Credit'!$F97),ISBLANK('Early Action Credit'!$G97),ISBLANK('Early Action Credit'!$H97),ISBLANK('Early Action Credit'!$I97),ISBLANK('Early Action Credit'!$J97),ISBLANK('Early Action Credit'!$L97)),\"\",\"Circuit Breaker\")","v":""},null,null,null,null,null,null,null,null,null,null,{"$f":"IF('Early Action Credit'!$I97=\"Yes\",0,IF('Early Action Credit'!$E97<72.5,0,IF('Early Action Credit'!$E97=72.5,300,IF('Early Action Credit'!$E97<=145,700,IF('Early Action Credit'!$E97<=245,1900,2400)))))*IF(ISBLANK('Early Action Credit'!$J97),0,IF('Early Action Credit'!$J97=\"No\",1,'Early Action Credit'!$K97))","v":0}]
[null,{"$f":"IF(AND(ISBLANK('Early Action Credit'!$A98),ISBLANK('Early Action Credit'!$C98),ISBLANK('Early Action Credit'!$D98),ISBLANK('Early Action Credit'!$E98),ISBLANK('Early Action Credit'!$F98),ISBLANK('Early Action Credit'!$G98),ISBLANK('Early Action Credit'!$H98),ISBLANK('Early Action Credit'!$I98),ISBLANK('Early Action Credit'!$J98),ISBLANK('Early Action Credit'!$L98)),\"\",\"Circuit Breaker\")","v":""},null,null,null,null,null,null,null,null,null,null,{"$f":"IF('Early Action Credit'!$I98=\"Yes\",0,IF('Early Action Credit'!$E98<72.5,0,IF('Early Action Credit'!$E98=72.5,300,IF('Early Action Credit'!$E98<=145,700,IF('Early Action Credit'!$E98<=245,1900,2400)))))*IF(ISBLANK('Early Action Credit'!$J98),0,IF('Early Action Credit'!$J98=\"No\",1,'Early Action Credit'!$K98))","v":0}]
[null,{"$f":"IF(AND(ISBLANK('Early Action Credit'!$A99),ISBLANK('Early Action Credit'!$C99),ISBLANK('Early Action Credit'!$D99),ISBLANK('Early Action Credit'!$E99),ISBLANK('Early Action Credit'!$F99),ISBLANK('Early Action Credit'!$G99),ISBLANK('Early Action Credit'!$H99),ISBLANK('Early Action Credit'!$I99),ISBLANK('Early Action Credit'!$J99),ISBLANK('Early Action Credit'!$L99)),\"\",\"Circuit Breaker\")","v":""},null,null,null,null,null,null,null,null,null,null,{"$f":"IF('Early Action Credit'!$I99=\"Yes\",0,IF('Early Action Credit'!$E99<72.5,0,IF('Early Action Credit'!$E99=72.5,300,IF('Early Action Credit'!$E99<=145,700,IF('Early Action Credit'!$E99<=245,1900,2400)))))*IF(ISBLANK('Early Action Credit'!$J99),0,IF('Early Action Credit'!$J99=\"No\",1,'Early Action Credit'!$K99))","v":0}]
[null,{"$f":"IF(AND(ISBLANK('Early Action Credit'!$A100),ISBLANK('Early Action Credit'!$C100),ISBLANK('Early Action Credit'!$D100),ISBLANK('Early Action Credit'!$E100),ISBLANK('Early Action Credit'!$F100),ISBLANK('Early Action Credit'!$G100),ISBLANK('Early Action Credit'!$H100),ISBLANK('Early Action Credit'!$I100),ISBLANK('Early Action Credit'!$J100),ISBLANK('Early Action Credit'!$L100)),\"\",\"Circuit Breaker\")","v":""},null,null,null,null,null,null,null,null,null,null,{"$f":"IF('Early Action Credit'!$I100=\"Yes\",0,IF('Early Action Credit'!$E100<72.5,0,IF('Early Action Credit'!$E100=72.5,300,IF('Early Action Credit'!$E100<=145,700,IF('Early Action Credit'!$E100<=245,1900,2400)))))*IF(ISBLANK('Early Action Credit'!$J100),0,IF('Early Action Credit'!$J100=\"No\",1,'Early Action Credit'!$K100))","v":0}]
[null,{"$f":"IF(AND(ISBLANK('Early Action Credit'!$A101),ISBLANK('Early Action Credit'!$C101),ISBLANK('Early Action Credit'!$D101),ISBLANK('Early Action Credit'!$E101),ISBLANK('Early Action Credit'!$F101),ISBLANK('Early Action Credit'!$G101),ISBLANK('Early Action Credit'!$H101),ISBLANK('Early Action Credit'!$I101),ISBLANK('Early Action Credit'!$J101),ISBLANK('Early Action Credit'!$L101)),\"\",\"Circuit Breaker\")","v":""},null,null,null,null,null,null,null,null,null,null,{"$f":"IF('Early Action Credit'!$I101=\"Yes\",0,IF('Early Action Credit'!$E101<72.5,0,IF('Early Action Credit'!$E101=72.5,300,IF('Early Action Credit'!$E101<=145,700,IF('Early Action Credit'!$E101<=245,1900,2400)))))*IF(ISBLANK('Early Action Credit'!$J101),0,IF('Early Action Credit'!$J101=\"No\",1,'Early Action Credit'!$K101))","v":0}]
[null,{"$f":"IF(AND(ISBLANK('Early Action Credit'!$A102),ISBLANK('Early Action Credit'!$C102),ISBLANK('Early Action Credit'!$D102),ISBLANK('Early Action Credit'!$E102),ISBLANK('Early Action Credit'!$F102),ISBLANK('Early Action Credit'!$G102),ISBLANK('Early Action Credit'!$H102),ISBLANK('Early Action Credit'!$I102),ISBLANK('Early Action Credit'!$J102),ISBLANK('Early Action Credit'!$L102)),\"\",\"Circuit Breaker\")","v":""},null,null,null,null,null,null,null,null,null,null,{"$f":"IF('Early Action Credit'!$I102=\"Yes\",0,IF('Early Action Credit'!$E102<72.5,0,IF('Early Action Credit'!$E102=72.5,300,IF('Early Action Credit'!$E102<=145,700,IF('Early Action Credit'!$E102<=245,1900,2400)))))*IF(ISBLANK('Early Action Credit'!$J102),0,IF('Early Action Credit'!$J102=\"No\",1,'Early Action Credit'!$K102))","v":0}]
[null,{"$f":"IF(AND(ISBLANK('Early Action Credit'!$A103),ISBLANK('Early Action Credit'!$C103),ISBLANK('Early Action Credit'!$D103),ISBLANK('Early Action Credit'!$E103),ISBLANK('Early Action Credit'!$F103),ISBLANK('Early Action Credit'!$G103),ISBLANK('Early Action Credit'!$H103),ISBLANK('Early Action Credit'!$I103),ISBLANK('Early Action Credit'!$J103),ISBLANK('Early Action Credit'!$L103)),\"\",\"Circuit Breaker\")","v":""},null,null,null,null,null,null,null,null,null,null,{"$f":"IF('Early Action Credit'!$I103=\"Yes\",0,IF('Early Action Credit'!$E103<72.5,0,IF('Early Action Credit'!$E103=72.5,300,IF('Early Action Credit'!$E103<=145,700,IF('Early Action Credit'!$E103<=245,1900,2400)))))*IF(ISBLANK('Early Action Credit'!$J103),0,IF('Early Action Credit'!$J103=\"No\",1,'Early Action Credit'!$K103))","v":0}]
[null,{"$f":"IF(AND(ISBLANK('Early Action Credit'!$A104),ISBLANK('Early Action Credit'!$C104),ISBLANK('Early Action Credit'!$D104),ISBLANK('Early Action Credit'!$E104),ISBLANK('Early Action Credit'!$F104),ISBLANK('Early Action Credit'!$G104),ISBLANK('Early Action Credit'!$H104),ISBLANK('Early Action Credit'!$I104),ISBLANK('Early Action Credit'!$J104),ISBLANK('Early Action Credit'!$L104)),\"\",\"Circuit Breaker\")","v":""},null,null,null,null,null,null,null,null,null,null,{"$f":"IF('Early Action Credit'!$I104=\"Yes\",0,IF('Early Action Credit'!$E104<72.5,0,IF('Early Action Credit'!$E104=72.5,300,IF('Early Action Credit'!$E104<=145,700,IF('Early Action Credit'!$E104<=245,1900,2400)))))*IF(ISBLANK('Early Action Credit'!$J104),0,IF('Early Action Credit'!$J104=\"No\",1,'Early Action Credit'!$K104))","v":0}]
[null,{"$f":"IF(AND(ISBLANK('Early Action Credit'!$A105),ISBLANK('Early Action Credit'!$C105),ISBLANK('Early Action Credit'!$D105),ISBLANK('Early Action Credit'!$E105),ISBLANK('Early Action Credit'!$F105),ISBLANK('Early Action Credit'!$G105),ISBLANK('Early Action Credit'!$H105),ISBLANK('Early Action Credit'!$I105),ISBLANK('Early Action Credit'!$J105),ISBLANK('Early Action Credit'!$L105)),\"\",\"Circuit Breaker\")","v":""},null,null,null,null,null,null,null,null,null,null,{"$f":"IF('Early Action Credit'!$I105=\"Yes\",0,IF('Early Action Credit'!$E105<72.5,0,IF('Early Action Credit'!$E105=72.5,300,IF('Early Action Credit'!$E105<=145,700,IF('Early Action Credit'!$E105<=245,1900,2400)))))*IF(ISBLANK('Early Action Credit'!$J105),0,IF('Early Action Credit'!$J105=\"No\",1,'Early Action Credit'!$K105))","v":0}]
[null,{"$f":"IF(AND(ISBLANK('Early Action Credit'!$A106),ISBLANK('Early Action Credit'!$C106),ISBLANK('Early Action Credit'!$D106),ISBLANK('Early Action Credit'!$E106),ISBLANK('Early Action Credit'!$F106),ISBLANK('Early Action Credit'!$G106),ISBLANK('Early Action Credit'!$H106),ISBLANK('Early Action Credit'!$I106),ISBLANK('Early Action Credit'!$J106),ISBLANK('Early Action Credit'!$L106)),\"\",\"Circuit Breaker\")","v":""},null,null,null,null,null,null,null,null,null,null,{"$f":"IF('Early Action Credit'!$I106=\"Yes\",0,IF('Early Action Credit'!$E106<72.5,0,IF('Early Action Credit'!$E106=72.5,300,IF('Early Action Credit'!$E106<=145,700,IF('Early Action Credit'!$E106<=245,1900,2400)))))*IF(ISBLANK('Early Action Credit'!$J106),0,IF('Early Action Credit'!$J106=\"No\",1,'Early Action Credit'!$K106))","v":0}]
[null,{"$f":"IF(AND(ISBLANK('Early Action Credit'!$A107),ISBLANK('Early Action Credit'!$C107),ISBLANK('Early Action Credit'!$D107),ISBLANK('Early Action Credit'!$E107),ISBLANK('Early Action Credit'!$F107),ISBLANK('Early Action Credit'!$G107),ISBLANK('Early Action Credit'!$H107),ISBLANK('Early Action Credit'!$I107),ISBLANK('Early Action Credit'!$J107),ISBLANK('Early Action Credit'!$L107)),\"\",\"Circuit Breaker\")","v":""},null,null,null,null,null,null,null,null,null,null,{"$f":"IF('Early Action Credit'!$I107=\"Yes\",0,IF('Early Action Credit'!$E107<72.5,0,IF('Early Action Credit'!$E107=72.5,300,IF('Early Action Credit'!$E107<=145,700,IF('Early Action Credit'!$E107<=245,1900,2400)))))*IF(ISBLANK('Early Action Credit'!$J107),0,IF('Early Action Credit'!$J107=\"No\",1,'Early Action Credit'!$K107))","v":0}]
[null,{"$f":"IF(AND(ISBLANK('Early Action Credit'!$A108),ISBLANK('Early Action Credit'!$C108),ISBLANK('Early Action Credit'!$D108),ISBLANK('Early Action Credit'!$E108),ISBLANK('Early Action Credit'!$F108),ISBLANK('Early Action Credit'!$G108),ISBLANK('Early Action Credit'!$H108),ISBLANK('Early Action Credit'!$I108),ISBLANK('Early Action Credit'!$J108),ISBLANK('Early Action Credit'!$L108)),\"\",\"Circuit Breaker\")","v":""},null,null,null,null,null,null,null,null,null,null,{"$f":"IF('Early Action Credit'!$I108=\"Yes\",0,IF('Early Action Credit'!$E108<72.5,0,IF('Early Action Credit'!$E108=72.5,300,IF('Early Action Credit'!$E108<=145,700,IF('Early Action Credit'!$E108<=245,1900,2400)))))*IF(ISBLANK('Early Action Credit'!$J108),0,IF('Early Action Credit'!$J108=\"No\",1,'Early Action Credit'!$K108))","v":0}]
[null,{"$f":"IF(AND(ISBLANK('Early Action Credit'!$A109),ISBLANK('Early Action Credit'!$C109),ISBLANK('Early Action Credit'!$D109),ISBLANK('Early Action Credit'!$E109),ISBLANK('Early Action Credit'!$F109),ISBLANK('Early Action Credit'!$G109),ISBLANK('Early Action Credit'!$H109),ISBLANK('Early Action Credit'!$I109),ISBLANK('Early Action Credit'!$J109),ISBLANK('Early Action Credit'!$L109)),\"\",\"Circuit Breaker\")","v":""},null,null,null,null,null,null,null,null,null,null,{"$f":"IF('Early Action Credit'!$I109=\"Yes\",0,IF('Early Action Credit'!$E109<72.5,0,IF('Early Action Credit'!$E109=72.5,300,IF('Early Action Credit'!$E109<=145,700,IF('Early Action Credit'!$E109<=245,1900,2400)))))*IF(ISBLANK('Early Action Credit'!$J109),0,IF('Early Action Credit'!$J109=\"No\",1,'Early Action Credit'!$K109))","v":0}]
[null,{"$f":"IF(AND(ISBLANK('Early Action Credit'!$A110),ISBLANK('Early Action Credit'!$C110),ISBLANK('Early Action Credit'!$D110),ISBLANK('Early Action Credit'!$E110),ISBLANK('Early Action Credit'!$F110),ISBLANK('Early Action Credit'!$G110),ISBLANK('Early Action Credit'!$H110),ISBLANK('Early Action Credit'!$I110),ISBLANK('Early Action Credit'!$J110),ISBLANK('Early Action Credit'!$L110)),\"\",\"Circuit Breaker\")","v":""},null,null,null,null,null,null,null,null,null,null,{"$f":"IF('Early Action Credit'!$I110=\"Yes\",0,IF('Early Action Credit'!$E110<72.5,0,IF('Early Action Credit'!$E110=72.5,300,IF('Early Action Credit'!$E110<=145,700,IF('Early Action Credit'!$E110<=245,1900,2400)))))*IF(ISBLANK('Early Action Credit'!$J110),0,IF('Early Action Credit'!$J110=\"No\",1,'Early Action Credit'!$K110))","v":0}]
[null,{"$f":"IF(AND(ISBLANK('Early Action Credit'!$A111),ISBLANK('Early Action Credit'!$C111),ISBLANK('Early Action Credit'!$D111),ISBLANK('Early Action Credit'!$E111),ISBLANK('Early Action Credit'!$F111),ISBLANK('Early Action Credit'!$G111),ISBLANK('Early Action Credit'!$H111),ISBLANK('Early Action Credit'!$I111),ISBLANK('Early Action Credit'!$J111),ISBLANK('Early Action Credit'!$L111)),\"\",\"Circuit Breaker\")","v":""},null,null,null,null,null,null,null,null,null,null,{"$f":"IF('Early Action Credit'!$I111=\"Yes\",0,IF('Early Action Credit'!$E111<72.5,0,IF('Early Action Credit'!$E111=72.5,300,IF('Early Action Credit'!$E111<=145,700,IF('Early Action Credit'!$E111<=245,1900,2400)))))*IF(ISBLANK('Early Action Credit'!$J111),0,IF('Early Action Credit'!$J111=\"No\",1,'Early Action Credit'!$K111))","v":0}]
[null,{"$f":"IF(AND(ISBLANK('Early Action Credit'!$A112),ISBLANK('Early Action Credit'!$C112),ISBLANK('Early Action Credit'!$D112),ISBLANK('Early Action Credit'!$E112),ISBLANK('Early Action Credit'!$F112),ISBLANK('Early Action Credit'!$G112),ISBLANK('Early Action Credit'!$H112),ISBLANK('Early Action Credit'!$I112),ISBLANK('Early Action Credit'!$J112),ISBLANK('Early Action Credit'!$L112)),\"\",\"Circuit Breaker\")","v":""},null,null,null,null,null,null,null,null,null,null,{"$f":"IF('Early Action Credit'!$I112=\"Yes\",0,IF('Early Action Credit'!$E112<72.5,0,IF('Early Action Credit'!$E112=72.5,300,IF('Early Action Credit'!$E112<=145,700,IF('Early Action Credit'!$E112<=245,1900,2400)))))*IF(ISBLANK('Early Action Credit'!$J112),0,IF('Early Action Credit'!$J112=\"No\",1,'Early Action Credit'!$K112))","v":0}]
[null,{"$f":"IF(AND(ISBLANK('Early Action Credit'!$A113),ISBLANK('Early Action Credit'!$C113),ISBLANK('Early Action Credit'!$D113),ISBLANK('Early Action Credit'!$E113),ISBLANK('Early Action Credit'!$F113),ISBLANK('Early Action Credit'!$G113),ISBLANK('Early Action Credit'!$H113),ISBLANK('Early Action Credit'!$I113),ISBLANK('Early Action Credit'!$J113),ISBLANK('Early Action Credit'!$L113)),\"\",\"Circuit Breaker\")","v":""},null,null,null,null,null,null,null,null,null,null,{"$f":"IF('Early Action Credit'!$I113=\"Yes\",0,IF('Early Action Credit'!$E113<72.5,0,IF('Early Action Credit'!$E113=72.5,300,IF('Early Action Credit'!$E113<=145,700,IF('Early Action Credit'!$E113<=245,1900,2400)))))*IF(ISBLANK('Early Action Credit'!$J113),0,IF('Early Action Credit'!$J113=\"No\",1,'Early Action Credit'!$K113))","v":0}]
[null,{"$f":"IF(AND(ISBLANK('Early Action Credit'!$A114),ISBLANK('Early Action Credit'!$C114),ISBLANK('Early Action Credit'!$D114),ISBLANK('Early Action Credit'!$E114),ISBLANK('Early Action Credit'!$F114),ISBLANK('Early Action Credit'!$G114),ISBLANK('Early Action Credit'!$H114),ISBLANK('Early Action Credit'!$I114),ISBLANK('Early Action Credit'!$J114),ISBLANK('Early Action Credit'!$L114)),\"\",\"Circuit Breaker\")","v":""},null,null,null,null,null,null,null,null,null,null,{"$f":"IF('Early Action Credit'!$I114=\"Yes\",0,IF('Early Action Credit'!$E114<72.5,0,IF('Early Action Credit'!$E114=72.5,300,IF('Early Action Credit'!$E114<=145,700,IF('Early Action Credit'!$E114<=245,1900,2400)))))*IF(ISBLANK('Early Action Credit'!$J114),0,IF('Early Action Credit'!$J114=\"No\",1,'Early Action Credit'!$K114))","v":0}]
[null,{"$f":"IF(AND(ISBLANK('Early Action Credit'!$A115),ISBLANK('Early Action Credit'!$C115),ISBLANK('Early Action Credit'!$D115),ISBLANK('Early Action Credit'!$E115),ISBLANK('Early Action Credit'!$F115),ISBLANK('Early Action Credit'!$G115),ISBLANK('Early Action Credit'!$H115),ISBLANK('Early Action Credit'!$I115),ISBLANK('Early Action Credit'!$J115),ISBLANK('Early Action Credit'!$L115)),\"\",\"Circuit Breaker\")","v":""},null,null,null,null,null,null,null,null,null,null,{"$f":"IF('Early Action Credit'!$I115=\"Yes\",0,IF('Early Action Credit'!$E115<72.5,0,IF('Early Action Credit'!$E115=72.5,300,IF('Early Action Credit'!$E115<=145,700,IF('Early Action Credit'!$E115<=245,1900,2400)))))*IF(ISBLANK('Early Action Credit'!$J115),0,IF('Early Action Credit'!$J115=\"No\",1,'Early Action Credit'!$K115))","v":0}]
[null,{"$f":"IF(AND(ISBLANK('Early Action Credit'!$A116),ISBLANK('Early Action Credit'!$C116),ISBLANK('Early Action Credit'!$D116),ISBLANK('Early Action Credit'!$E116),ISBLANK('Early Action Credit'!$F116),ISBLANK('Early Action Credit'!$G116),ISBLANK('Early Action Credit'!$H116),ISBLANK('Early Action Credit'!$I116),ISBLANK('Early Action Credit'!$J116),ISBLANK('Early Action Credit'!$L116)),\"\",\"Circuit Breaker\")","v":""},null,null,null,null,null,null,null,null,null,null,{"$f":"IF('Early Action Credit'!$I116=\"Yes\",0,IF('Early Action Credit'!$E116<72.5,0,IF('Early Action Credit'!$E116=72.5,300,IF('Early Action Credit'!$E116<=145,700,IF('Early Action Credit'!$E116<=245,1900,2400)))))*IF(ISBLANK('Early Action Credit'!$J116),0,IF('Early Action Credit'!$J116=\"No\",1,'Early Action Credit'!$K116))","v":0}]
[null,{"$f":"IF(AND(ISBLANK('Early Action Credit'!$A117),ISBLANK('Early Action Credit'!$C117),ISBLANK('Early Action Credit'!$D117),ISBLANK('Early Action Credit'!$E117),ISBLANK('Early Action Credit'!$F117),ISBLANK('Early Action Credit'!$G117),ISBLANK('Early Action Credit'!$H117),ISBLANK('Early Action Credit'!$I117),ISBLANK('Early Action Credit'!$J117),ISBLANK('Early Action Credit'!$L117)),\"\",\"Circuit Breaker\")","v":""},null,null,null,null,null,null,null,null,null,null,{"$f":"IF('Early Action Credit'!$I117=\"Yes\",0,IF('Early Action Credit'!$E117<72.5,0,IF('Early Action Credit'!$E117=72.5,300,IF('Early Action Credit'!$E117<=145,700,IF('Early Action Credit'!$E117<=245,1900,2400)))))*IF(ISBLANK('Early Action Credit'!$J117),0,IF('Early Action Credit'!$J117=\"No\",1,'Early Action Credit'!$K117))","v":0}]
[null,{"$f":"IF(AND(ISBLANK('Early Action Credit'!$A118),ISBLANK('Early Action Credit'!$C118),ISBLANK('Early Action Credit'!$D118),ISBLANK('Early Action Credit'!$E118),ISBLANK('Early Action Credit'!$F118),ISBLANK('Early Action Credit'!$G118),ISBLANK('Early Action Credit'!$H118),ISBLANK('Early Action Credit'!$I118),ISBLANK('Early Action Credit'!$J118),ISBLANK('Early Action Credit'!$L118)),\"\",\"Circuit Breaker\")","v":""},null,null,null,null,null,null,null,null,null,null,{"$f":"IF('Early Action Credit'!$I118=\"Yes\",0,IF('Early Action Credit'!$E118<72.5,0,IF('Early Action Credit'!$E118=72.5,300,IF('Early Action Credit'!$E118<=145,700,IF('Early Action Credit'!$E118<=245,1900,2400)))))*IF(ISBLANK('Early Action Credit'!$J118),0,IF('Early Action Credit'!$J118=\"No\",1,'Early Action Credit'!$K118))","v":0}]
[null,{"$f":"IF(AND(ISBLANK('Early Action Credit'!$A119),ISBLANK('Early Action Credit'!$C119),ISBLANK('Early Action Credit'!$D119),ISBLANK('Early Action Credit'!$E119),ISBLANK('Early Action Credit'!$F119),ISBLANK('Early Action Credit'!$G119),ISBLANK('Early Action Credit'!$H119),ISBLANK('Early Action Credit'!$I119),ISBLANK('Early Action Credit'!$J119),ISBLANK('Early Action Credit'!$L119)),\"\",\"Circuit Breaker\")","v":""},null,null,null,null,null,null,null,null,null,null,{"$f":"IF('Early Action Credit'!$I119=\"Yes\",0,IF('Early Action Credit'!$E119<72.5,0,IF('Early Action Credit'!$E119=72.5,300,IF('Early Action Credit'!$E119<=145,700,IF('Early Action Credit'!$E119<=245,1900,2400)))))*IF(ISBLANK('Early Action Credit'!$J119),0,IF('Early Action Credit'!$J119=\"No\",1,'Early Action Credit'!$K119))","v":0}]
[null,{"$f":"IF(AND(ISBLANK('Early Action Credit'!$A120),ISBLANK('Early Action Credit'!$C120),ISBLANK('Early Action Credit'!$D120),ISBLANK('Early Action Credit'!$E120),ISBLANK('Early Action Credit'!$F120),ISBLANK('Early Action Credit'!$G120),ISBLANK('Early Action Credit'!$H120),ISBLANK('Early Action Credit'!$I120),ISBLANK('Early Action Credit'!$J120),ISBLANK('Early Action Credit'!$L120)),\"\",\"Circuit Breaker\")","v":""},null,null,null,null,null,null,null,null,null,null,{"$f":"IF('Early Action Credit'!$I120=\"Yes\",0,IF('Early Action Credit'!$E120<72.5,0,IF('Early Action Credit'!$E120=72.5,300,IF('Early Action Credit'!$E120<=145,700,IF('Early Action Credit'!$E120<=245,1900,2400)))))*IF(ISBLANK('Early Action Credit'!$J120),0,IF('Early Action Credit'!$J120=\"No\",1,'Early Action Credit'!$K120))","v":0}]
[null,{"$f":"IF(AND(ISBLANK('Early Action Credit'!$A121),ISBLANK('Early Action Credit'!$C121),ISBLANK('Early Action Credit'!$D121),ISBLANK('Early Action Credit'!$E121),ISBLANK('Early Action Credit'!$F121),ISBLANK('Early Action Credit'!$G121),ISBLANK('Early Action Credit'!$H121),ISBLANK('Early Action Credit'!$I121),ISBLANK('Early Action Credit'!$J121),ISBLANK('Early Action Credit'!$L121)),\"\",\"Circuit Breaker\")","v":""},null,null,null,null,null,null,null,null,null,null,{"$f":"IF('Early Action Credit'!$I121=\"Yes\",0,IF('Early Action Credit'!$E121<72.5,0,IF('Early Action Credit'!$E121=72.5,300,IF('Early Action Credit'!$E121<=145,700,IF('Early Action Credit'!$E121<=245,1900,2400)))))*IF(ISBLANK('Early Action Credit'!$J121),0,IF('Early Action Credit'!$J121=\"No\",1,'Early Action Credit'!$K121))","v":0}]
[null,{"$f":"IF(AND(ISBLANK('Early Action Credit'!$A122),ISBLANK('Early Action Credit'!$C122),ISBLANK('Early Action Credit'!$D122),ISBLANK('Early Action Credit'!$E122),ISBLANK('Early Action Credit'!$F122),ISBLANK('Early Action Credit'!$G122),ISBLANK('Early Action Credit'!$H122),ISBLANK('Early Action Credit'!$I122),ISBLANK('Early Action Credit'!$J122),ISBLANK('Early Action Credit'!$L122)),\"\",\"Circuit Breaker\")","v":""},null,null,null,null,null,null,null,null,null,null,{"$f":"IF('Early Action Credit'!$I122=\"Yes\",0,IF('Early Action Credit'!$E122<72.5,0,IF('Early Action Credit'!$E122=72.5,300,IF('Early Action Credit'!$E122<=145,700,IF('Early Action Credit'!$E122<=245,1900,2400)))))*IF(ISBLANK('Early Action Credit'!$J122),0,IF('Early Action Credit'!$J122=\"No\",1,'Early Action Credit'!$K122))","v":0}]
[null,{"$f":"IF(AND(ISBLANK('Early Action Credit'!$A123),ISBLANK('Early Action Credit'!$C123),ISBLANK('Early Action Credit'!$D123),ISBLANK('Early Action Credit'!$E123),ISBLANK('Early Action Credit'!$F123),ISBLANK('Early Action Credit'!$G123),ISBLANK('Early Action Credit'!$H123),ISBLANK('Early Action Credit'!$I123),ISBLANK('Early Action Credit'!$J123),ISBLANK('Early Action Credit'!$L123)),\"\",\"Circuit Breaker\")","v":""},null,null,null,null,null,null,null,null,null,null,{"$f":"IF('Early Action Credit'!$I123=\"Yes\",0,IF('Early Action Credit'!$E123<72.5,0,IF('Early Action Credit'!$E123=72.5,300,IF('Early Action Credit'!$E123<=145,700,IF('Early Action Credit'!$E123<=245,1900,2400)))))*IF(ISBLANK('Early Action Credit'!$J123),0,IF('Early Action Credit'!$J123=\"No\",1,'Early Action Credit'!$K123))","v":0}]
[null,{"$f":"IF(AND(ISBLANK('Early Action Credit'!$A124),ISBLANK('Early Action Credit'!$C124),ISBLANK('Early Action Credit'!$D124),ISBLANK('Early Action Credit'!$E124),ISBLANK('Early Action Credit'!$F124),ISBLANK('Early Action Credit'!$G124),ISBLANK('Early Action Credit'!$H124),ISBLANK('Early Action Credit'!$I124),ISBLANK('Early Action Credit'!$J124),ISBLANK('Early Action Credit'!$L124)),\"\",\"Circuit Breaker\")","v":""},null,null,null,null,null,null,null,null,null,null,{"$f":"IF('Early Action Credit'!$I124=\"Yes\",0,IF('Early Action Credit'!$E124<72.5,0,IF('Early Action Credit'!$E124=72.5,300,IF('Early Action Credit'!$E124<=145,700,IF('Early Action Credit'!$E124<=245,1900,2400)))))*IF(ISBLANK('Early Action Credit'!$J124),0,IF('Early Action Credit'!$J124=\"No\",1,'Early Action Credit'!$K124))","v":0}]
[null,{"$f":"IF(AND(ISBLANK('Early Action Credit'!$A125),ISBLANK('Early Action Credit'!$C125),ISBLANK('Early Action Credit'!$D125),ISBLANK('Early Action Credit'!$E125),ISBLANK('Early Action Credit'!$F125),ISBLANK('Early Action Credit'!$G125),ISBLANK('Early Action Credit'!$H125),ISBLANK('Early Action Credit'!$I125),ISBLANK('Early Action Credit'!$J125),ISBLANK('Early Action Credit'!$L125)),\"\",\"Circuit Breaker\")","v":""},null,null,null,null,null,null,null,null,null,null,{"$f":"IF('Early Action Credit'!$I125=\"Yes\",0,IF('Early Action Credit'!$E125<72.5,0,IF('Early Action Credit'!$E125=72.5,300,IF('Early Action Credit'!$E125<=145,700,IF('Early Action Credit'!$E125<=245,1900,2400)))))*IF(ISBLANK('Early Action Credit'!$J125),0,IF('Early Action Credit'!$J125=\"No\",1,'Early Action Credit'!$K125))","v":0}]
[null,{"$f":"IF(AND(ISBLANK('Early Action Credit'!$A126),ISBLANK('Early Action Credit'!$C126),ISBLANK('Early Action Credit'!$D126),ISBLANK('Early Action Credit'!$E126),ISBLANK('Early Action Credit'!$F126),ISBLANK('Early Action Credit'!$G126),ISBLANK('Early Action Credit'!$H126),ISBLANK('Early Action Credit'!$I126),ISBLANK('Early Action Credit'!$J126),ISBLANK('Early Action Credit'!$L126)),\"\",\"Circuit Breaker\")","v":""},null,null,null,null,null,null,null,null,null,null,{"$f":"IF('Early Action Credit'!$I126=\"Yes\",0,IF('Early Action Credit'!$E126<72.5,0,IF('Early Action Credit'!$E126=72.5,300,IF('Early Action Credit'!$E126<=145,700,IF('Early Action Credit'!$E126<=245,1900,2400)))))*IF(ISBLANK('Early Action Credit'!$J126),0,IF('Early Action Credit'!$J126=\"No\",1,'Early Action Credit'!$K126))","v":0}]
[null,{"$f":"IF(AND(ISBLANK('Early Action Credit'!$A127),ISBLANK('Early Action Credit'!$C127),ISBLANK('Early Action Credit'!$D127),ISBLANK('Early Action Credit'!$E127),ISBLANK('Early Action Credit'!$F127),ISBLANK('Early Action Credit'!$G127),ISBLANK('Early Action Credit'!$H127),ISBLANK('Early Action Credit'!$I127),ISBLANK('Early Action Credit'!$J127),ISBLANK('Early Action Credit'!$L127)),\"\",\"Circuit Breaker\")","v":""},null,null,null,null,null,null,null,null,null,null,{"$f":"IF('Early Action Credit'!$I127=\"Yes\",0,IF('Early Action Credit'!$E127<72.5,0,IF('Early Action Credit'!$E127=72.5,300,IF('Early Action Credit'!$E127<=145,700,IF('Early Action Credit'!$E127<=245,1900,2400)))))*IF(ISBLANK('Early Action Credit'!$J127),0,IF('Early Action Credit'!$J127=\"No\",1,'Early Action Credit'!$K127))","v":0}]
[null,{"$f":"IF(AND(ISBLANK('Early Action Credit'!$A128),ISBLANK('Early Action Credit'!$C128),ISBLANK('Early Action Credit'!$D128),ISBLANK('Early Action Credit'!$E128),ISBLANK('Early Action Credit'!$F128),ISBLANK('Early Action Credit'!$G128),ISBLANK('Early Action Credit'!$H128),ISBLANK('Early Action Credit'!$I128),ISBLANK('Early Action Credit'!$J128),ISBLANK('Early Action Credit'!$L128)),\"\",\"Circuit Breaker\")","v":""},null,null,null,null,null,null,null,null,null,null,{"$f":"IF('Early Action Credit'!$I128=\"Yes\",0,IF('Early Action Credit'!$E128<72.5,0,IF('Early Action Credit'!$E128=72.5,300,IF('Early Action Credit'!$E128<=145,700,IF('Early Action Credit'!$E128<=245,1900,2400)))))*IF(ISBLANK('Early Action Credit'!$J128),0,IF('Early Action Credit'!$J128=\"No\",1,'Early Action Credit'!$K128))","v":0}]
[null,{"$f":"IF(AND(ISBLANK('Early Action Credit'!$A129),ISBLANK('Early Action Credit'!$C129),ISBLANK('Early Action Credit'!$D129),ISBLANK('Early Action Credit'!$E129),ISBLANK('Early Action Credit'!$F129),ISBLANK('Early Action Credit'!$G129),ISBLANK('Early Action Credit'!$H129),ISBLANK('Early Action Credit'!$I129),ISBLANK('Early Action Credit'!$J129),ISBLANK('Early Action Credit'!$L129)),\"\",\"Circuit Breaker\")","v":""},null,null,null,null,null,null,null,null,null,null,{"$f":"IF('Early Action Credit'!$I129=\"Yes\",0,IF('Early Action Credit'!$E129<72.5,0,IF('Early Action Credit'!$E129=72.5,300,IF('Early Action Credit'!$E129<=145,700,IF('Early Action Credit'!$E129<=245,1900,2400)))))*IF(ISBLANK('Early Action Credit'!$J129),0,IF('Early Action Credit'!$J129=\"No\",1,'Early Action Credit'!$K129))","v":0}]
[null,{"$f":"IF(AND(ISBLANK('Early Action Credit'!$A130),ISBLANK('Early Action Credit'!$C130),ISBLANK('Early Action Credit'!$D130),ISBLANK('Early Action Credit'!$E130),ISBLANK('Early Action Credit'!$F130),ISBLANK('Early Action Credit'!$G130),ISBLANK('Early Action Credit'!$H130),ISBLANK('Early Action Credit'!$I130),ISBLANK('Early Action Credit'!$J130),ISBLANK('Early Action Credit'!$L130)),\"\",\"Circuit Breaker\")","v":""},null,null,null,null,null,null,null,null,null,null,{"$f":"IF('Early Action Credit'!$I130=\"Yes\",0,IF('Early Action Credit'!$E130<72.5,0,IF('Early Action Credit'!$E130=72.5,300,IF('Early Action Credit'!$E130<=145,700,IF('Early Action Credit'!$E130<=245,1900,2400)))))*IF(ISBLANK('Early Action Credit'!$J130),0,IF('Early Action Credit'!$J130=\"No\",1,'Early Action Credit'!$K130))","v":0}]
[null,{"$f":"IF(AND(ISBLANK('Early Action Credit'!$A131),ISBLANK('Early Action Credit'!$C131),ISBLANK('Early Action Credit'!$D131),ISBLANK('Early Action Credit'!$E131),ISBLANK('Early Action Credit'!$F131),ISBLANK('Early Action Credit'!$G131),ISBLANK('Early Action Credit'!$H131),ISBLANK('Early Action Credit'!$I131),ISBLANK('Early Action Credit'!$J131),ISBLANK('Early Action Credit'!$L131)),\"\",\"Circuit Breaker\")","v":""},null,null,null,null,null,null,null,null,null,null,{"$f":"IF('Early Action Credit'!$I131=\"Yes\",0,IF('Early Action Credit'!$E131<72.5,0,IF('Early Action Credit'!$E131=72.5,300,IF('Early Action Credit'!$E131<=145,700,IF('Early Action Credit'!$E131<=245,1900,2400)))))*IF(ISBLANK('Early Action Credit'!$J131),0,IF('Early Action Credit'!$J131=\"No\",1,'Early Action Credit'!$K131))","v":0}]
[null,{"$f":"IF(AND(ISBLANK('Early Action Credit'!$A132),ISBLANK('Early Action Credit'!$C132),ISBLANK('Early Action Credit'!$D132),ISBLANK('Early Action Credit'!$E132),ISBLANK('Early Action Credit'!$F132),ISBLANK('Early Action Credit'!$G132),ISBLANK('Early Action Credit'!$H132),ISBLANK('Early Action Credit'!$I132),ISBLANK('Early Action Credit'!$J132),ISBLANK('Early Action Credit'!$L132)),\"\",\"Circuit Breaker\")","v":""},null,null,null,null,null,null,null,null,null,null,{"$f":"IF('Early Action Credit'!$I132=\"Yes\",0,IF('Early Action Credit'!$E132<72.5,0,IF('Early Action Credit'!$E132=72.5,300,IF('Early Action Credit'!$E132<=145,700,IF('Early Action Credit'!$E132<=245,1900,2400)))))*IF(ISBLANK('Early Action Credit'!$J132),0,IF('Early Action Credit'!$J132=\"No\",1,'Early Action Credit'!$K132))","v":0}]
[null,{"$f":"IF(AND(ISBLANK('Early Action Credit'!$A133),ISBLANK('Early Action Credit'!$C133),ISBLANK('Early Action Credit'!$D133),ISBLANK('Early Action Credit'!$E133),ISBLANK('Early Action Credit'!$F133),ISBLANK('Early Action Credit'!$G133),ISBLANK('Early Action Credit'!$H133),ISBLANK('Early Action Credit'!$I133),ISBLANK('Early Action Credit'!$J133),ISBLANK('Early Action Credit'!$L133)),\"\",\"Circuit Breaker\")","v":""},null,null,null,null,null,null,null,null,null,null,{"$f":"IF('Early Action Credit'!$I133=\"Yes\",0,IF('Early Action Credit'!$E133<72.5,0,IF('Early Action Credit'!$E133=72.5,300,IF('Early Action Credit'!$E133<=145,700,IF('Early Action Credit'!$E133<=245,1900,2400)))))*IF(ISBLANK('Early Action Credit'!$J133),0,IF('Early Action Credit'!$J133=\"No\",1,'Early Action Credit'!$K133))","v":0}]
[null,{"$f":"IF(AND(ISBLANK('Early Action Credit'!$A134),ISBLANK('Early Action Credit'!$C134),ISBLANK('Early Action Credit'!$D134),ISBLANK('Early Action Credit'!$E134),ISBLANK('Early Action Credit'!$F134),ISBLANK('Early Action Credit'!$G134),ISBLANK('Early Action Credit'!$H134),ISBLANK('Early Action Credit'!$I134),ISBLANK('Early Action Credit'!$J134),ISBLANK('Early Action Credit'!$L134)),\"\",\"Circuit Breaker\")","v":""},null,null,null,null,null,null,null,null,null,null,{"$f":"IF('Early Action Credit'!$I134=\"Yes\",0,IF('Early Action Credit'!$E134<72.5,0,IF('Early Action Credit'!$E134=72.5,300,IF('Early Action Credit'!$E134<=145,700,IF('Early Action Credit'!$E134<=245,1900,2400)))))*IF(ISBLANK('Early Action Credit'!$J134),0,IF('Early Action Credit'!$J134=\"No\",1,'Early Action Credit'!$K134))","v":0}]
[null,{"$f":"IF(AND(ISBLANK('Early Action Credit'!$A135),ISBLANK('Early Action Credit'!$C135),ISBLANK('Early Action Credit'!$D135),ISBLANK('Early Action Credit'!$E135),ISBLANK('Early Action Credit'!$F135),ISBLANK('Early Action Credit'!$G135),ISBLANK('Early Action Credit'!$H135),ISBLANK('Early Action Credit'!$I135),ISBLANK('Early Action Credit'!$J135),ISBLANK('Early Action Credit'!$L135)),\"\",\"Circuit Breaker\")","v":""},null,null,null,null,null,null,null,null,null,null,{"$f":"IF('Early Action Credit'!$I135=\"Yes\",0,IF('Early Action Credit'!$E135<72.5,0,IF('Early Action Credit'!$E135=72.5,300,IF('Early Action Credit'!$E135<=145,700,IF('Early Action Credit'!$E135<=245,1900,2400)))))*IF(ISBLANK('Early Action Credit'!$J135),0,IF('Early Action Credit'!$J135=\"No\",1,'Early Action Credit'!$K135))","v":0}]
[null,{"$f":"IF(AND(ISBLANK('Early Action Credit'!$A136),ISBLANK('Early Action Credit'!$C136),ISBLANK('Early Action Credit'!$D136),ISBLANK('Early Action Credit'!$E136),ISBLANK('Early Action Credit'!$F136),ISBLANK('Early Action Credit'!$G136),ISBLANK('Early Action Credit'!$H136),ISBLANK('Early Action Credit'!$I136),ISBLANK('Early Action Credit'!$J136),ISBLANK('Early Action Credit'!$L136)),\"\",\"Circuit Breaker\")","v":""},null,null,null,null,null,null,null,null,null,null,{"$f":"IF('Early Action Credit'!$I136=\"Yes\",0,IF('Early Action Credit'!$E136<72.5,0,IF('Early Action Credit'!$E136=72.5,300,IF('Early Action Credit'!$E136<=145,700,IF('Early Action Credit'!$E136<=245,1900,2400)))))*IF(ISBLANK('Early Action Credit'!$J136),0,IF('Early Action Credit'!$J136=\"No\",1,'Early Action Credit'!$K136))","v":0}]
[null,{"$f":"IF(AND(ISBLANK('Early Action Credit'!$A137),ISBLANK('Early Action Credit'!$C137),ISBLANK('Early Action Credit'!$D137),ISBLANK('Early Action Credit'!$E137),ISBLANK('Early Action Credit'!$F137),ISBLANK('Early Action Credit'!$G137),ISBLANK('Early Action Credit'!$H137),ISBLANK('Early Action Credit'!$I137),ISBLANK('Early Action Credit'!$J137),ISBLANK('Early Action Credit'!$L137)),\"\",\"Circuit Breaker\")","v":""},null,null,null,null,null,null,null,null,null,null,{"$f":"IF('Early Action Credit'!$I137=\"Yes\",0,IF('Early Action Credit'!$E137<72.5,0,IF('Early Action Credit'!$E137=72.5,300,IF('Early Action Credit'!$E137<=145,700,IF('Early Action Credit'!$E137<=245,1900,2400)))))*IF(ISBLANK('Early Action Credit'!$J137),0,IF('Early Action Credit'!$J137=\"No\",1,'Early Action Credit'!$K137))","v":0}]
[null,{"$f":"IF(AND(ISBLANK('Early Action Credit'!$A138),ISBLANK('Early Action Credit'!$C138),ISBLANK('Early Action Credit'!$D138),ISBLANK('Early Action Credit'!$E138),ISBLANK('Early Action Credit'!$F138),ISBLANK('Early Action Credit'!$G138),ISBLANK('Early Action Credit'!$H138),ISBLANK('Early Action Credit'!$I138),ISBLANK('Early Action Credit'!$J138),ISBLANK('Early Action Credit'!$L138)),\"\",\"Circuit Breaker\")","v":""},null,null,null,null,null,null,null,null,null,null,{"$f":"IF('Early Action Credit'!$I138=\"Yes\",0,IF('Early Action Credit'!$E138<72.5,0,IF('Early Action Credit'!$E138=72.5,300,IF('Early Action Credit'!$E138<=145,700,IF('Early Action Credit'!$E138<=245,1900,2400)))))*IF(ISBLANK('Early Action Credit'!$J138),0,IF('Early Action Credit'!$J138=\"No\",1,'Early Action Credit'!$K138))","v":0}]
[null,{"$f":"IF(AND(ISBLANK('Early Action Credit'!$A139),ISBLANK('Early Action Credit'!$C139),ISBLANK('Early Action Credit'!$D139),ISBLANK('Early Action Credit'!$E139),ISBLANK('Early Action Credit'!$F139),ISBLANK('Early Action Credit'!$G139),ISBLANK('Early Action Credit'!$H139),ISBLANK('Early Action Credit'!$I139),ISBLANK('Early Action Credit'!$J139),ISBLANK('Early Action Credit'!$L139)),\"\",\"Circuit Breaker\")","v":""},null,null,null,null,null,null,null,null,null,null,{"$f":"IF('Early Action Credit'!$I139=\"Yes\",0,IF('Early Action Credit'!$E139<72.5,0,IF('Early Action Credit'!$E139=72.5,300,IF('Early Action Credit'!$E139<=145,700,IF('Early Action Credit'!$E139<=245,1900,2400)))))*IF(ISBLANK('Early Action Credit'!$J139),0,IF('Early Action Credit'!$J139=\"No\",1,'Early Action Credit'!$K139))","v":0}]
[null,{"$f":"IF(AND(ISBLANK('Early Action Credit'!$A140),ISBLANK('Early Action Credit'!$C140),ISBLANK('Early Action Credit'!$D140),ISBLANK('Early Action Credit'!$E140),ISBLANK('Early Action Credit'!$F140),ISBLANK('Early Action Credit'!$G140),ISBLANK('Early Action Credit'!$H140),ISBLANK('Early Action Credit'!$I140),ISBLANK('Early Action Credit'!$J140),ISBLANK('Early Action Credit'!$L140)),\"\",\"Circuit Breaker\")","v":""},null,null,null,null,null,null,null,null,null,null,{"$f":"IF('Early Action Credit'!$I140=\"Yes\",0,IF('Early Action Credit'!$E140<72.5,0,IF('Early Action Credit'!$E140=72.5,300,IF('Early Action Credit'!$E140<=145,700,IF('Early Action Credit'!$E140<=245,1900,2400)))))*IF(ISBLANK('Early Action Credit'!$J140),0,IF('Early Action Credit'!$J140=\"No\",1,'Early Action Credit'!$K140))","v":0}]
[null,{"$f":"IF(AND(ISBLANK('Early Action Credit'!$A141),ISBLANK('Early Action Credit'!$C141),ISBLANK('Early Action Credit'!$D141),ISBLANK('Early Action Credit'!$E141),ISBLANK('Early Action Credit'!$F141),ISBLANK('Early Action Credit'!$G141),ISBLANK('Early Action Credit'!$H141),ISBLANK('Early Action Credit'!$I141),ISBLANK('Early Action Credit'!$J141),ISBLANK('Early Action Credit'!$L141)),\"\",\"Circuit Breaker\")","v":""},null,null,null,null,null,null,null,null,null,null,{"$f":"IF('Early Action Credit'!$I141=\"Yes\",0,IF('Early Action Credit'!$E141<72.5,0,IF('Early Action Credit'!$E141=72.5,300,IF('Early Action Credit'!$E141<=145,700,IF('Early Action Credit'!$E141<=245,1900,2400)))))*IF(ISBLANK('Early Action Credit'!$J141),0,IF('Early Action Credit'!$J141=\"No\",1,'Early Action Credit'!$K141))","v":0}]
[null,{"$f":"IF(AND(ISBLANK('Early Action Credit'!$A142),ISBLANK('Early Action Credit'!$C142),ISBLANK('Early Action Credit'!$D142),ISBLANK('Early Action Credit'!$E142),ISBLANK('Early Action Credit'!$F142),ISBLANK('Early Action Credit'!$G142),ISBLANK('Early Action Credit'!$H142),ISBLANK('Early Action Credit'!$I142),ISBLANK('Early Action Credit'!$J142),ISBLANK('Early Action Credit'!$L142)),\"\",\"Circuit Breaker\")","v":""},null,null,null,null,null,null,null,null,null,null,{"$f":"IF('Early Action Credit'!$I142=\"Yes\",0,IF('Early Action Credit'!$E142<72.5,0,IF('Early Action Credit'!$E142=72.5,300,IF('Early Action Credit'!$E142<=145,700,IF('Early Action Credit'!$E142<=245,1900,2400)))))*IF(ISBLANK('Early Action Credit'!$J142),0,IF('Early Action Credit'!$J142=\"No\",1,'Early Action Credit'!$K142))","v":0}]
[null,{"$f":"IF(AND(ISBLANK('Early Action Credit'!$A143),ISBLANK('Early Action Credit'!$C143),ISBLANK('Early Action Credit'!$D143),ISBLANK('Early Action Credit'!$E143),ISBLANK('Early Action Credit'!$F143),ISBLANK('Early Action Credit'!$G143),ISBLANK('Early Action Credit'!$H143),ISBLANK('Early Action Credit'!$I143),ISBLANK('Early Action Credit'!$J143),ISBLANK('Early Action Credit'!$L143)),\"\",\"Circuit Breaker\")","v":""},null,null,null,null,null,null,null,null,null,null,{"$f":"IF('Early Action Credit'!$I143=\"Yes\",0,IF('Early Action Credit'!$E143<72.5,0,IF('Early Action Credit'!$E143=72.5,300,IF('Early Action Credit'!$E143<=145,700,IF('Early Action Credit'!$E143<=245,1900,2400)))))*IF(ISBLANK('Early Action Credit'!$J143),0,IF('Early Action Credit'!$J143=\"No\",1,'Early Action Credit'!$K143))","v":0}]
[null,{"$f":"IF(AND(ISBLANK('Early Action Credit'!$A144),ISBLANK('Early Action Credit'!$C144),ISBLANK('Early Action Credit'!$D144),ISBLANK('Early Action Credit'!$E144),ISBLANK('Early Action Credit'!$F144),ISBLANK('Early Action Credit'!$G144),ISBLANK('Early Action Credit'!$H144),ISBLANK('Early Action Credit'!$I144),ISBLANK('Early Action Credit'!$J144),ISBLANK('Early Action Credit'!$L144)),\"\",\"Circuit Breaker\")","v":""},null,null,null,null,null,null,null,null,null,null,{"$f":"IF('Early Action Credit'!$I144=\"Yes\",0,IF('Early Action Credit'!$E144<72.5,0,IF('Early Action Credit'!$E144=72.5,300,IF('Early Action Credit'!$E144<=145,700,IF('Early Action Credit'!$E144<=245,1900,2400)))))*IF(ISBLANK('Early Action Credit'!$J144),0,IF('Early Action Credit'!$J144=\"No\",1,'Early Action Credit'!$K144))","v":0}]
[null,{"$f":"IF(AND(ISBLANK('Early Action Credit'!$A145),ISBLANK('Early Action Credit'!$C145),ISBLANK('Early Action Credit'!$D145),ISBLANK('Early Action Credit'!$E145),ISBLANK('Early Action Credit'!$F145),ISBLANK('Early Action Credit'!$G145),ISBLANK('Early Action Credit'!$H145),ISBLANK('Early Action Credit'!$I145),ISBLANK('Early Action Credit'!$J145),ISBLANK('Early Action Credit'!$L145)),\"\",\"Circuit Breaker\")","v":""},null,null,null,null,null,null,null,null,null,null,{"$f":"IF('Early Action Credit'!$I145=\"Yes\",0,IF('Early Action Credit'!$E145<72.5,0,IF('Early Action Credit'!$E145=72.5,300,IF('Early Action Credit'!$E145<=145,700,IF('Early Action Credit'!$E145<=245,1900,2400)))))*IF(ISBLANK('Early Action Credit'!$J145),0,IF('Early Action Credit'!$J145=\"No\",1,'Early Action Credit'!$K145))","v":0}]
[null,{"$f":"IF(AND(ISBLANK('Early Action Credit'!$A146),ISBLANK('Early Action Credit'!$C146),ISBLANK('Early Action Credit'!$D146),ISBLANK('Early Action Credit'!$E146),ISBLANK('Early Action Credit'!$F146),ISBLANK('Early Action Credit'!$G146),ISBLANK('Early Action Credit'!$H146),ISBLANK('Early Action Credit'!$I146),ISBLANK('Early Action Credit'!$J146),ISBLANK('Early Action Credit'!$L146)),\"\",\"Circuit Breaker\")","v":""},null,null,null,null,null,null,null,null,null,null,{"$f":"IF('Early Action Credit'!$I146=\"Yes\",0,IF('Early Action Credit'!$E146<72.5,0,IF('Early Action Credit'!$E146=72.5,300,IF('Early Action Credit'!$E146<=145,700,IF('Early Action Credit'!$E146<=245,1900,2400)))))*IF(ISBLANK('Early Action Credit'!$J146),0,IF('Early Action Credit'!$J146=\"No\",1,'Early Action Credit'!$K146))","v":0}]
[null,{"$f":"IF(AND(ISBLANK('Early Action Credit'!$A147),ISBLANK('Early Action Credit'!$C147),ISBLANK('Early Action Credit'!$D147),ISBLANK('Early Action Credit'!$E147),ISBLANK('Early Action Credit'!$F147),ISBLANK('Early Action Credit'!$G147),ISBLANK('Early Action Credit'!$H147),ISBLANK('Early Action Credit'!$I147),ISBLANK('Early Action Credit'!$J147),ISBLANK('Early Action Credit'!$L147)),\"\",\"Circuit Breaker\")","v":""},null,null,null,null,null,null,null,null,null,null,{"$f":"IF('Early Action Credit'!$I147=\"Yes\",0,IF('Early Action Credit'!$E147<72.5,0,IF('Early Action Credit'!$E147=72.5,300,IF('Early Action Credit'!$E147<=145,700,IF('Early Action Credit'!$E147<=245,1900,2400)))))*IF(ISBLANK('Early Action Credit'!$J147),0,IF('Early Action Credit'!$J147=\"No\",1,'Early Action Credit'!$K147))","v":0}]
[null,{"$f":"IF(AND(ISBLANK('Early Action Credit'!$A148),ISBLANK('Early Action Credit'!$C148),ISBLANK('Early Action Credit'!$D148),ISBLANK('Early Action Credit'!$E148),ISBLANK('Early Action Credit'!$F148),ISBLANK('Early Action Credit'!$G148),ISBLANK('Early Action Credit'!$H148),ISBLANK('Early Action Credit'!$I148),ISBLANK('Early Action Credit'!$J148),ISBLANK('Early Action Credit'!$L148)),\"\",\"Circuit Breaker\")","v":""},null,null,null,null,null,null,null,null,null,null,{"$f":"IF('Early Action Credit'!$I148=\"Yes\",0,IF('Early Action Credit'!$E148<72.5,0,IF('Early Action Credit'!$E148=72.5,300,IF('Early Action Credit'!$E148<=145,700,IF('Early Action Credit'!$E148<=245,1900,2400)))))*IF(ISBLANK('Early Action Credit'!$J148),0,IF('Early Action Credit'!$J148=\"No\",1,'Early Action Credit'!$K148))","v":0}]
[null,{"$f":"IF(AND(ISBLANK('Early Action Credit'!$A149),ISBLANK('Early Action Credit'!$C149),ISBLANK('Early Action Credit'!$D149),ISBLANK('Early Action Credit'!$E149),ISBLANK('Early Action Credit'!$F149),ISBLANK('Early Action Credit'!$G149),ISBLANK('Early Action Credit'!$H149),ISBLANK('Early Action Credit'!$I149),ISBLANK('Early Action Credit'!$J149),ISBLANK('Early Action Credit'!$L149)),\"\",\"Circuit Breaker\")","v":""},null,null,null,null,null,null,null,null,null,null,{"$f":"IF('Early Action Credit'!$I149=\"Yes\",0,IF('Early Action Credit'!$E149<72.5,0,IF('Early Action Credit'!$E149=72.5,300,IF('Early Action Credit'!$E149<=145,700,IF('Early Action Credit'!$E149<=245,1900,2400)))))*IF(ISBLANK('Early Action Credit'!$J149),0,IF('Early Action Credit'!$J149=\"No\",1,'Early Action Credit'!$K149))","v":0}]
[null,{"$f":"IF(AND(ISBLANK('Early Action Credit'!$A150),ISBLANK('Early Action Credit'!$C150),ISBLANK('Early Action Credit'!$D150),ISBLANK('Early Action Credit'!$E150),ISBLANK('Early Action Credit'!$F150),ISBLANK('Early Action Credit'!$G150),ISBLANK('Early Action Credit'!$H150),ISBLANK('Early Action Credit'!$I150),ISBLANK('Early Action Credit'!$J150),ISBLANK('Early Action Credit'!$L150)),\"\",\"Circuit Breaker\")","v":""},null,null,null,null,null,null,null,null,null,null,{"$f":"IF('Early Action Credit'!$I150=\"Yes\",0,IF('Early Action Credit'!$E150<72.5,0,IF('Early Action Credit'!$E150=72.5,300,IF('Early Action Credit'!$E150<=145,700,IF('Early Action Credit'!$E150<=245,1900,2400)))))*IF(ISBLANK('Early Action Credit'!$J150),0,IF('Early Action Credit'!$J150=\"No\",1,'Early Action Credit'!$K150))","v":0}]
[null,{"$f":"IF(AND(ISBLANK('Early Action Credit'!$A151),ISBLANK('Early Action Credit'!$C151),ISBLANK('Early Action Credit'!$D151),ISBLANK('Early Action Credit'!$E151),ISBLANK('Early Action Credit'!$F151),ISBLANK('Early Action Credit'!$G151),ISBLANK('Early Action Credit'!$H151),ISBLANK('Early Action Credit'!$I151),ISBLANK('Early Action Credit'!$J151),ISBLANK('Early Action Credit'!$L151)),\"\",\"Circuit Breaker\")","v":""},null,null,null,null,null,null,null,null,null,null,{"$f":"IF('Early Action Credit'!$I151=\"Yes\",0,IF('Early Action Credit'!$E151<72.5,0,IF('Early Action Credit'!$E151=72.5,300,IF('Early Action Credit'!$E151<=145,700,IF('Early Action Credit'!$E151<=245,1900,2400)))))*IF(ISBLANK('Early Action Credit'!$J151),0,IF('Early Action Credit'!$J151=\"No\",1,'Early Action Credit'!$K151))","v":0}]
[null,{"$f":"IF(AND(ISBLANK('Early Action Credit'!$A152),ISBLANK('Early Action Credit'!$C152),ISBLANK('Early Action Credit'!$D152),ISBLANK('Early Action Credit'!$E152),ISBLANK('Early Action Credit'!$F152),ISBLANK('Early Action Credit'!$G152),ISBLANK('Early Action Credit'!$H152),ISBLANK('Early Action Credit'!$I152),ISBLANK('Early Action Credit'!$J152),ISBLANK('Early Action Credit'!$L152)),\"\",\"Circuit Breaker\")","v":""},null,null,null,null,null,null,null,null,null,null,{"$f":"IF('Early Action Credit'!$I152=\"Yes\",0,IF('Early Action Credit'!$E152<72.5,0,IF('Early Action Credit'!$E152=72.5,300,IF('Early Action Credit'!$E152<=145,700,IF('Early Action Credit'!$E152<=245,1900,2400)))))*IF(ISBLANK('Early Action Credit'!$J152),0,IF('Early Action Credit'!$J152=\"No\",1,'Early Action Credit'!$K152))","v":0}]
[null,{"$f":"IF(AND(ISBLANK('Early Action Credit'!$A153),ISBLANK('Early Action Credit'!$C153),ISBLANK('Early Action Credit'!$D153),ISBLANK('Early Action Credit'!$E153),ISBLANK('Early Action Credit'!$F153),ISBLANK('Early Action Credit'!$G153),ISBLANK('Early Action Credit'!$H153),ISBLANK('Early Action Credit'!$I153),ISBLANK('Early Action Credit'!$J153),ISBLANK('Early Action Credit'!$L153)),\"\",\"Circuit Breaker\")","v":""},null,null,null,null,null,null,null,null,null,null,{"$f":"IF('Early Action Credit'!$I153=\"Yes\",0,IF('Early Action Credit'!$E153<72.5,0,IF('Early Action Credit'!$E153=72.5,300,IF('Early Action Credit'!$E153<=145,700,IF('Early Action Credit'!$E153<=245,1900,2400)))))*IF(ISBLANK('Early Action Credit'!$J153),0,IF('Early Action Credit'!$J153=\"No\",1,'Early Action Credit'!$K153))","v":0}]
[null,{"$f":"IF(AND(ISBLANK('Early Action Credit'!$A154),ISBLANK('Early Action Credit'!$C154),ISBLANK('Early Action Credit'!$D154),ISBLANK('Early Action Credit'!$E154),ISBLANK('Early Action Credit'!$F154),ISBLANK('Early Action Credit'!$G154),ISBLANK('Early Action Credit'!$H154),ISBLANK('Early Action Credit'!$I154),ISBLANK('Early Action Credit'!$J154),ISBLANK('Early Action Credit'!$L154)),\"\",\"Circuit Breaker\")","v":""},null,null,null,null,null,null,null,null,null,null,{"$f":"IF('Early Action Credit'!$I154=\"Yes\",0,IF('Early Action Credit'!$E154<72.5,0,IF('Early Action Credit'!$E154=72.5,300,IF('Early Action Credit'!$E154<=145,700,IF('Early Action Credit'!$E154<=245,1900,2400)))))*IF(ISBLANK('Early Action Credit'!$J154),0,IF('Early Action Credit'!$J154=\"No\",1,'Early Action Credit'!$K154))","v":0}]
[null,{"$f":"IF(AND(ISBLANK('Early Action Credit'!$A155),ISBLANK('Early Action Credit'!$C155),ISBLANK('Early Action Credit'!$D155),ISBLANK('Early Action Credit'!$E155),ISBLANK('Early Action Credit'!$F155),ISBLANK('Early Action Credit'!$G155),ISBLANK('Early Action Credit'!$H155),ISBLANK('Early Action Credit'!$I155),ISBLANK('Early Action Credit'!$J155),ISBLANK('Early Action Credit'!$L155)),\"\",\"Circuit Breaker\")","v":""},null,null,null,null,null,null,null,null,null,null,{"$f":"IF('Early Action Credit'!$I155=\"Yes\",0,IF('Early Action Credit'!$E155<72.5,0,IF('Early Action Credit'!$E155=72.5,300,IF('Early Action Credit'!$E155<=145,700,IF('Early Action Credit'!$E155<=245,1900,2400)))))*IF(ISBLANK('Early Action Credit'!$J155),0,IF('Early Action Credit'!$J155=\"No\",1,'Early Action Credit'!$K155))","v":0}]
[null,{"$f":"IF(AND(ISBLANK('Early Action Credit'!$A156),ISBLANK('Early Action Credit'!$C156),ISBLANK('Early Action Credit'!$D156),ISBLANK('Early Action Credit'!$E156),ISBLANK('Early Action Credit'!$F156),ISBLANK('Early Action Credit'!$G156),ISBLANK('Early Action Credit'!$H156),ISBLANK('Early Action Credit'!$I156),ISBLANK('Early Action Credit'!$J156),ISBLANK('Early Action Credit'!$L156)),\"\",\"Circuit Breaker\")","v":""},null,null,null,null,null,null,null,null,null,null,{"$f":"IF('Early Action Credit'!$I156=\"Yes\",0,IF('Early Action Credit'!$E156<72.5,0,IF('Early Action Credit'!$E156=72.5,300,IF('Early Action Credit'!$E156<=145,700,IF('Early Action Credit'!$E156<=245,1900,2400)))))*IF(ISBLANK('Early Action Credit'!$J156),0,IF('Early Action Credit'!$J156=\"No\",1,'Early Action Credit'!$K156))","v":0}]
[null,{"$f":"IF(AND(ISBLANK('Early Action Credit'!$A157),ISBLANK('Early Action Credit'!$C157),ISBLANK('Early Action Credit'!$D157),ISBLANK('Early Action Credit'!$E157),ISBLANK('Early Action Credit'!$F157),ISBLANK('Early Action Credit'!$G157),ISBLANK('Early Action Credit'!$H157),ISBLANK('Early Action Credit'!$I157),ISBLANK('Early Action Credit'!$J157),ISBLANK('Early Action Credit'!$L157)),\"\",\"Circuit Breaker\")","v":""},null,null,null,null,null,null,null,null,null,null,{"$f":"IF('Early Action Credit'!$I157=\"Yes\",0,IF('Early Action Credit'!$E157<72.5,0,IF('Early Action Credit'!$E157=72.5,300,IF('Early Action Credit'!$E157<=145,700,IF('Early Action Credit'!$E157<=245,1900,2400)))))*IF(ISBLANK('Early Action Credit'!$J157),0,IF('Early Action Credit'!$J157=\"No\",1,'Early Action Credit'!$K157))","v":0}]
[null,{"$f":"IF(AND(ISBLANK('Early Action Credit'!$A158),ISBLANK('Early Action Credit'!$C158),ISBLANK('Early Action Credit'!$D158),ISBLANK('Early Action Credit'!$E158),ISBLANK('Early Action Credit'!$F158),ISBLANK('Early Action Credit'!$G158),ISBLANK('Early Action Credit'!$H158),ISBLANK('Early Action Credit'!$I158),ISBLANK('Early Action Credit'!$J158),ISBLANK('Early Action Credit'!$L158)),\"\",\"Circuit Breaker\")","v":""},null,null,null,null,null,null,null,null,null,null,{"$f":"IF('Early Action Credit'!$I158=\"Yes\",0,IF('Early Action Credit'!$E158<72.5,0,IF('Early Action Credit'!$E158=72.5,300,IF('Early Action Credit'!$E158<=145,700,IF('Early Action Credit'!$E158<=245,1900,2400)))))*IF(ISBLANK('Early Action Credit'!$J158),0,IF('Early Action Credit'!$J158=\"No\",1,'Early Action Credit'!$K158))","v":0}]
[null,{"$f":"IF(AND(ISBLANK('Early Action Credit'!$A159),ISBLANK('Early Action Credit'!$C159),ISBLANK('Early Action Credit'!$D159),ISBLANK('Early Action Credit'!$E159),ISBLANK('Early Action Credit'!$F159),ISBLANK('Early Action Credit'!$G159),ISBLANK('Early Action Credit'!$H159),ISBLANK('Early Action Credit'!$I159),ISBLANK('Early Action Credit'!$J159),ISBLANK('Early Action Credit'!$L159)),\"\",\"Circuit Breaker\")","v":""},null,null,null,null,null,null,null,null,null,null,{"$f":"IF('Early Action Credit'!$I159=\"Yes\",0,IF('Early Action Credit'!$E159<72.5,0,IF('Early Action Credit'!$E159=72.5,300,IF('Early Action Credit'!$E159<=145,700,IF('Early Action Credit'!$E159<=245,1900,2400)))))*IF(ISBLANK('Early Action Credit'!$J159),0,IF('Early Action Credit'!$J159=\"No\",1,'Early Action Credit'!$K159))","v":0}]
[null,{"$f":"IF(AND(ISBLANK('Early Action Credit'!$A160),ISBLANK('Early Action Credit'!$C160),ISBLANK('Early Action Credit'!$D160),ISBLANK('Early Action Credit'!$E160),ISBLANK('Early Action Credit'!$F160),ISBLANK('Early Action Credit'!$G160),ISBLANK('Early Action Credit'!$H160),ISBLANK('Early Action Credit'!$I160),ISBLANK('Early Action Credit'!$J160),ISBLANK('Early Action Credit'!$L160)),\"\",\"Circuit Breaker\")","v":""},null,null,null,null,null,null,null,null,null,null,{"$f":"IF('Early Action Credit'!$I160=\"Yes\",0,IF('Early Action Credit'!$E160<72.5,0,IF('Early Action Credit'!$E160=72.5,300,IF('Early Action Credit'!$E160<=145,700,IF('Early Action Credit'!$E160<=245,1900,2400)))))*IF(ISBLANK('Early Action Credit'!$J160),0,IF('Early Action Credit'!$J160=\"No\",1,'Early Action Credit'!$K160))","v":0}]
[null,{"$f":"IF(AND(ISBLANK('Early Action Credit'!$A161),ISBLANK('Early Action Credit'!$C161),ISBLANK('Early Action Credit'!$D161),ISBLANK('Early Action Credit'!$E161),ISBLANK('Early Action Credit'!$F161),ISBLANK('Early Action Credit'!$G161),ISBLANK('Early Action Credit'!$H161),ISBLANK('Early Action Credit'!$I161),ISBLANK('Early Action Credit'!$J161),ISBLANK('Early Action Credit'!$L161)),\"\",\"Circuit Breaker\")","v":""},null,null,null,null,null,null,null,null,null,null,{"$f":"IF('Early Action Credit'!$I161=\"Yes\",0,IF('Early Action Credit'!$E161<72.5,0,IF('Early Action Credit'!$E161=72.5,300,IF('Early Action Credit'!$E161<=145,700,IF('Early Action Credit'!$E161<=245,1900,2400)))))*IF(ISBLANK('Early Action Credit'!$J161),0,IF('Early Action Credit'!$J161=\"No\",1,'Early Action Credit'!$K161))","v":0}]
[null,{"$f":"IF(AND(ISBLANK('Early Action Credit'!$A162),ISBLANK('Early Action Credit'!$C162),ISBLANK('Early Action Credit'!$D162),ISBLANK('Early Action Credit'!$E162),ISBLANK('Early Action Credit'!$F162),ISBLANK('Early Action Credit'!$G162),ISBLANK('Early Action Credit'!$H162),ISBLANK('Early Action Credit'!$I162),ISBLANK('Early Action Credit'!$J162),ISBLANK('Early Action Credit'!$L162)),\"\",\"Circuit Breaker\")","v":""},null,null,null,null,null,null,null,null,null,null,{"$f":"IF('Early Action Credit'!$I162=\"Yes\",0,IF('Early Action Credit'!$E162<72.5,0,IF('Early Action Credit'!$E162=72.5,300,IF('Early Action Credit'!$E162<=145,700,IF('Early Action Credit'!$E162<=245,1900,2400)))))*IF(ISBLANK('Early Action Credit'!$J162),0,IF('Early Action Credit'!$J162=\"No\",1,'Early Action Credit'!$K162))","v":0}]
[null,{"$f":"IF(AND(ISBLANK('Early Action Credit'!$A163),ISBLANK('Early Action Credit'!$C163),ISBLANK('Early Action Credit'!$D163),ISBLANK('Early Action Credit'!$E163),ISBLANK('Early Action Credit'!$F163),ISBLANK('Early Action Credit'!$G163),ISBLANK('Early Action Credit'!$H163),ISBLANK('Early Action Credit'!$I163),ISBLANK('Early Action Credit'!$J163),ISBLANK('Early Action Credit'!$L163)),\"\",\"Circuit Breaker\")","v":""},null,null,null,null,null,null,null,null,null,null,{"$f":"IF('Early Action Credit'!$I163=\"Yes\",0,IF('Early Action Credit'!$E163<72.5,0,IF('Early Action Credit'!$E163=72.5,300,IF('Early Action Credit'!$E163<=145,700,IF('Early Action Credit'!$E163<=245,1900,2400)))))*IF(ISBLANK('Early Action Credit'!$J163),0,IF('Early Action Credit'!$J163=\"No\",1,'Early Action Credit'!$K163))","v":0}]
[null,{"$f":"IF(AND(ISBLANK('Early Action Credit'!$A164),ISBLANK('Early Action Credit'!$C164),ISBLANK('Early Action Credit'!$D164),ISBLANK('Early Action Credit'!$E164),ISBLANK('Early Action Credit'!$F164),ISBLANK('Early Action Credit'!$G164),ISBLANK('Early Action Credit'!$H164),ISBLANK('Early Action Credit'!$I164),ISBLANK('Early Action Credit'!$J164),ISBLANK('Early Action Credit'!$L164)),\"\",\"Circuit Breaker\")","v":""},null,null,null,null,null,null,null,null,null,null,{"$f":"IF('Early Action Credit'!$I164=\"Yes\",0,IF('Early Action Credit'!$E164<72.5,0,IF('Early Action Credit'!$E164=72.5,300,IF('Early Action Credit'!$E164<=145,700,IF('Early Action Credit'!$E164<=245,1900,2400)))))*IF(ISBLANK('Early Action Credit'!$J164),0,IF('Early Action Credit'!$J164=\"No\",1,'Early Action Credit'!$K164))","v":0}]
[null,{"$f":"IF(AND(ISBLANK('Early Action Credit'!$A165),ISBLANK('Early Action Credit'!$C165),ISBLANK('Early Action Credit'!$D165),ISBLANK('Early Action Credit'!$E165),ISBLANK('Early Action Credit'!$F165),ISBLANK('Early Action Credit'!$G165),ISBLANK('Early Action Credit'!$H165),ISBLANK('Early Action Credit'!$I165),ISBLANK('Early Action Credit'!$J165),ISBLANK('Early Action Credit'!$L165)),\"\",\"Circuit Breaker\")","v":""},null,null,null,null,null,null,null,null,null,null,{"$f":"IF('Early Action Credit'!$I165=\"Yes\",0,IF('Early Action Credit'!$E165<72.5,0,IF('Early Action Credit'!$E165=72.5,300,IF('Early Action Credit'!$E165<=145,700,IF('Early Action Credit'!$E165<=245,1900,2400)))))*IF(ISBLANK('Early Action Credit'!$J165),0,IF('Early Action Credit'!$J165=\"No\",1,'Early Action Credit'!$K165))","v":0}]
[null,{"$f":"IF(AND(ISBLANK('Early Action Credit'!$A166),ISBLANK('Early Action Credit'!$C166),ISBLANK('Early Action Credit'!$D166),ISBLANK('Early Action Credit'!$E166),ISBLANK('Early Action Credit'!$F166),ISBLANK('Early Action Credit'!$G166),ISBLANK('Early Action Credit'!$H166),ISBLANK('Early Action Credit'!$I166),ISBLANK('Early Action Credit'!$J166),ISBLANK('Early Action Credit'!$L166)),\"\",\"Circuit Breaker\")","v":""},null,null,null,null,null,null,null,null,null,null,{"$f":"IF('Early Action Credit'!$I166=\"Yes\",0,IF('Early Action Credit'!$E166<72.5,0,IF('Early Action Credit'!$E166=72.5,300,IF('Early Action Credit'!$E166<=145,700,IF('Early Action Credit'!$E166<=245,1900,2400)))))*IF(ISBLANK('Early Action Credit'!$J166),0,IF('Early Action Credit'!$J166=\"No\",1,'Early Action Credit'!$K166))","v":0}]
[null,{"$f":"IF(AND(ISBLANK('Early Action Credit'!$A167),ISBLANK('Early Action Credit'!$C167),ISBLANK('Early Action Credit'!$D167),ISBLANK('Early Action Credit'!$E167),ISBLANK('Early Action Credit'!$F167),ISBLANK('Early Action Credit'!$G167),ISBLANK('Early Action Credit'!$H167),ISBLANK('Early Action Credit'!$I167),ISBLANK('Early Action Credit'!$J167),ISBLANK('Early Action Credit'!$L167)),\"\",\"Circuit Breaker\")","v":""},null,null,null,null,null,null,null,null,null,null,{"$f":"IF('Early Action Credit'!$I167=\"Yes\",0,IF('Early Action Credit'!$E167<72.5,0,IF('Early Action Credit'!$E167=72.5,300,IF('Early Action Credit'!$E167<=145,700,IF('Early Action Credit'!$E167<=245,1900,2400)))))*IF(ISBLANK('Early Action Credit'!$J167),0,IF('Early Action Credit'!$J167=\"No\",1,'Early Action Credit'!$K167))","v":0}]
[null,{"$f":"IF(AND(ISBLANK('Early Action Credit'!$A168),ISBLANK('Early Action Credit'!$C168),ISBLANK('Early Action Credit'!$D168),ISBLANK('Early Action Credit'!$E168),ISBLANK('Early Action Credit'!$F168),ISBLANK('Early Action Credit'!$G168),ISBLANK('Early Action Credit'!$H168),ISBLANK('Early Action Credit'!$I168),ISBLANK('Early Action Credit'!$J168),ISBLANK('Early Action Credit'!$L168)),\"\",\"Circuit Breaker\")","v":""},null,null,null,null,null,null,null,null,null,null,{"$f":"IF('Early Action Credit'!$I168=\"Yes\",0,IF('Early Action Credit'!$E168<72.5,0,IF('Early Action Credit'!$E168=72.5,300,IF('Early Action Credit'!$E168<=145,700,IF('Early Action Credit'!$E168<=245,1900,2400)))))*IF(ISBLANK('Early Action Credit'!$J168),0,IF('Early Action Credit'!$J168=\"No\",1,'Early Action Credit'!$K168))","v":0}]
[null,{"$f":"IF(AND(ISBLANK('Early Action Credit'!$A169),ISBLANK('Early Action Credit'!$C169),ISBLANK('Early Action Credit'!$D169),ISBLANK('Early Action Credit'!$E169),ISBLANK('Early Action Credit'!$F169),ISBLANK('Early Action Credit'!$G169),ISBLANK('Early Action Credit'!$H169),ISBLANK('Early Action Credit'!$I169),ISBLANK('Early Action Credit'!$J169),ISBLANK('Early Action Credit'!$L169)),\"\",\"Circuit Breaker\")","v":""},null,null,null,null,null,null,null,null,null,null,{"$f":"IF('Early Action Credit'!$I169=\"Yes\",0,IF('Early Action Credit'!$E169<72.5,0,IF('Early Action Credit'!$E169=72.5,300,IF('Early Action Credit'!$E169<=145,700,IF('Early Action Credit'!$E169<=245,1900,2400)))))*IF(ISBLANK('Early Action Credit'!$J169),0,IF('Early Action Credit'!$J169=\"No\",1,'Early Action Credit'!$K169))","v":0}]
[null,{"$f":"IF(AND(ISBLANK('Early Action Credit'!$A170),ISBLANK('Early Action Credit'!$C170),ISBLANK('Early Action Credit'!$D170),ISBLANK('Early Action Credit'!$E170),ISBLANK('Early Action Credit'!$F170),ISBLANK('Early Action Credit'!$G170),ISBLANK('Early Action Credit'!$H170),ISBLANK('Early Action Credit'!$I170),ISBLANK('Early Action Credit'!$J170),ISBLANK('Early Action Credit'!$L170)),\"\",\"Circuit Breaker\")","v":""},null,null,null,null,null,null,null,null,null,null,{"$f":"IF('Early Action Credit'!$I170=\"Yes\",0,IF('Early Action Credit'!$E170<72.5,0,IF('Early Action Credit'!$E170=72.5,300,IF('Early Action Credit'!$E170<=145,700,IF('Early Action Credit'!$E170<=245,1900,2400)))))*IF(ISBLANK('Early Action Credit'!$J170),0,IF('Early Action Credit'!$J170=\"No\",1,'Early Action Credit'!$K170))","v":0}]
[null,{"$f":"IF(AND(ISBLANK('Early Action Credit'!$A171),ISBLANK('Early Action Credit'!$C171),ISBLANK('Early Action Credit'!$D171),ISBLANK('Early Action Credit'!$E171),ISBLANK('Early Action Credit'!$F171),ISBLANK('Early Action Credit'!$G171),ISBLANK('Early Action Credit'!$H171),ISBLANK('Early Action Credit'!$I171),ISBLANK('Early Action Credit'!$J171),ISBLANK('Early Action Credit'!$L171)),\"\",\"Circuit Breaker\")","v":""},null,null,null,null,null,null,null,null,null,null,{"$f":"IF('Early Action Credit'!$I171=\"Yes\",0,IF('Early Action Credit'!$E171<72.5,0,IF('Early Action Credit'!$E171=72.5,300,IF('Early Action Credit'!$E171<=145,700,IF('Early Action Credit'!$E171<=245,1900,2400)))))*IF(ISBLANK('Early Action Credit'!$J171),0,IF('Early Action Credit'!$J171=\"No\",1,'Early Action Credit'!$K171))","v":0}]
[null,{"$f":"IF(AND(ISBLANK('Early Action Credit'!$A172),ISBLANK('Early Action Credit'!$C172),ISBLANK('Early Action Credit'!$D172),ISBLANK('Early Action Credit'!$E172),ISBLANK('Early Action Credit'!$F172),ISBLANK('Early Action Credit'!$G172),ISBLANK('Early Action Credit'!$H172),ISBLANK('Early Action Credit'!$I172),ISBLANK('Early Action Credit'!$J172),ISBLANK('Early Action Credit'!$L172)),\"\",\"Circuit Breaker\")","v":""},null,null,null,null,null,null,null,null,null,null,{"$f":"IF('Early Action Credit'!$I172=\"Yes\",0,IF('Early Action Credit'!$E172<72.5,0,IF('Early Action Credit'!$E172=72.5,300,IF('Early Action Credit'!$E172<=145,700,IF('Early Action Credit'!$E172<=245,1900,2400)))))*IF(ISBLANK('Early Action Credit'!$J172),0,IF('Early Action Credit'!$J172=\"No\",1,'Early Action Credit'!$K172))","v":0}]
[null,{"$f":"IF(AND(ISBLANK('Early Action Credit'!$A173),ISBLANK('Early Action Credit'!$C173),ISBLANK('Early Action Credit'!$D173),ISBLANK('Early Action Credit'!$E173),ISBLANK('Early Action Credit'!$F173),ISBLANK('Early Action Credit'!$G173),ISBLANK('Early Action Credit'!$H173),ISBLANK('Early Action Credit'!$I173),ISBLANK('Early Action Credit'!$J173),ISBLANK('Early Action Credit'!$L173)),\"\",\"Circuit Breaker\")","v":""},null,null,null,null,null,null,null,null,null,null,{"$f":"IF('Early Action Credit'!$I173=\"Yes\",0,IF('Early Action Credit'!$E173<72.5,0,IF('Early Action Credit'!$E173=72.5,300,IF('Early Action Credit'!$E173<=145,700,IF('Early Action Credit'!$E173<=245,1900,2400)))))*IF(ISBLANK('Early Action Credit'!$J173),0,IF('Early Action Credit'!$J173=\"No\",1,'Early Action Credit'!$K173))","v":0}]
[null,{"$f":"IF(AND(ISBLANK('Early Action Credit'!$A174),ISBLANK('Early Action Credit'!$C174),ISBLANK('Early Action Credit'!$D174),ISBLANK('Early Action Credit'!$E174),ISBLANK('Early Action Credit'!$F174),ISBLANK('Early Action Credit'!$G174),ISBLANK('Early Action Credit'!$H174),ISBLANK('Early Action Credit'!$I174),ISBLANK('Early Action Credit'!$J174),ISBLANK('Early Action Credit'!$L174)),\"\",\"Circuit Breaker\")","v":""},null,null,null,null,null,null,null,null,null,null,{"$f":"IF('Early Action Credit'!$I174=\"Yes\",0,IF('Early Action Credit'!$E174<72.5,0,IF('Early Action Credit'!$E174=72.5,300,IF('Early Action Credit'!$E174<=145,700,IF('Early Action Credit'!$E174<=245,1900,2400)))))*IF(ISBLANK('Early Action Credit'!$J174),0,IF('Early Action Credit'!$J174=\"No\",1,'Early Action Credit'!$K174))","v":0}]
[null,{"$f":"IF(AND(ISBLANK('Early Action Credit'!$A175),ISBLANK('Early Action Credit'!$C175),ISBLANK('Early Action Credit'!$D175),ISBLANK('Early Action Credit'!$E175),ISBLANK('Early Action Credit'!$F175),ISBLANK('Early Action Credit'!$G175),ISBLANK('Early Action Credit'!$H175),ISBLANK('Early Action Credit'!$I175),ISBLANK('Early Action Credit'!$J175),ISBLANK('Early Action Credit'!$L175)),\"\",\"Circuit Breaker\")","v":""},null,null,null,null,null,null,null,null,null,null,{"$f":"IF('Early Action Credit'!$I175=\"Yes\",0,IF('Early Action Credit'!$E175<72.5,0,IF('Early Action Credit'!$E175=72.5,300,IF('Early Action Credit'!$E175<=145,700,IF('Early Action Credit'!$E175<=245,1900,2400)))))*IF(ISBLANK('Early Action Credit'!$J175),0,IF('Early Action Credit'!$J175=\"No\",1,'Early Action Credit'!$K175))","v":0}]
[null,{"$f":"IF(AND(ISBLANK('Early Action Credit'!$A176),ISBLANK('Early Action Credit'!$C176),ISBLANK('Early Action Credit'!$D176),ISBLANK('Early Action Credit'!$E176),ISBLANK('Early Action Credit'!$F176),ISBLANK('Early Action Credit'!$G176),ISBLANK('Early Action Credit'!$H176),ISBLANK('Early Action Credit'!$I176),ISBLANK('Early Action Credit'!$J176),ISBLANK('Early Action Credit'!$L176)),\"\",\"Circuit Breaker\")","v":""},null,null,null,null,null,null,null,null,null,null,{"$f":"IF('Early Action Credit'!$I176=\"Yes\",0,IF('Early Action Credit'!$E176<72.5,0,IF('Early Action Credit'!$E176=72.5,300,IF('Early Action Credit'!$E176<=145,700,IF('Early Action Credit'!$E176<=245,1900,2400)))))*IF(ISBLANK('Early Action Credit'!$J176),0,IF('Early Action Credit'!$J176=\"No\",1,'Early Action Credit'!$K176))","v":0}]
[null,{"$f":"IF(AND(ISBLANK('Early Action Credit'!$A177),ISBLANK('Early Action Credit'!$C177),ISBLANK('Early Action Credit'!$D177),ISBLANK('Early Action Credit'!$E177),ISBLANK('Early Action Credit'!$F177),ISBLANK('Early Action Credit'!$G177),ISBLANK('Early Action Credit'!$H177),ISBLANK('Early Action Credit'!$I177),ISBLANK('Early Action Credit'!$J177),ISBLANK('Early Action Credit'!$L177)),\"\",\"Circuit Breaker\")","v":""},null,null,null,null,null,null,null,null,null,null,{"$f":"IF('Early Action Credit'!$I177=\"Yes\",0,IF('Early Action Credit'!$E177<72.5,0,IF('Early Action Credit'!$E177=72.5,300,IF('Early Action Credit'!$E177<=145,700,IF('Early Action Credit'!$E177<=245,1900,2400)))))*IF(ISBLANK('Early Action Credit'!$J177),0,IF('Early Action Credit'!$J177=\"No\",1,'Early Action Credit'!$K177))","v":0}]
[null,{"$f":"IF(AND(ISBLANK('Early Action Credit'!$A178),ISBLANK('Early Action Credit'!$C178),ISBLANK('Early Action Credit'!$D178),ISBLANK('Early Action Credit'!$E178),ISBLANK('Early Action Credit'!$F178),ISBLANK('Early Action Credit'!$G178),ISBLANK('Early Action Credit'!$H178),ISBLANK('Early Action Credit'!$I178),ISBLANK('Early Action Credit'!$J178),ISBLANK('Early Action Credit'!$L178)),\"\",\"Circuit Breaker\")","v":""},null,null,null,null,null,null,null,null,null,null,{"$f":"IF('Early Action Credit'!$I178=\"Yes\",0,IF('Early Action Credit'!$E178<72.5,0,IF('Early Action Credit'!$E178=72.5,300,IF('Early Action Credit'!$E178<=145,700,IF('Early Action Credit'!$E178<=245,1900,2400)))))*IF(ISBLANK('Early Action Credit'!$J178),0,IF('Early Action Credit'!$J178=\"No\",1,'Early Action Credit'!$K178))","v":0}]
[null,{"$f":"IF(AND(ISBLANK('Early Action Credit'!$A179),ISBLANK('Early Action Credit'!$C179),ISBLANK('Early Action Credit'!$D179),ISBLANK('Early Action Credit'!$E179),ISBLANK('Early Action Credit'!$F179),ISBLANK('Early Action Credit'!$G179),ISBLANK('Early Action Credit'!$H179),ISBLANK('Early Action Credit'!$I179),ISBLANK('Early Action Credit'!$J179),ISBLANK('Early Action Credit'!$L179)),\"\",\"Circuit Breaker\")","v":""},null,null,null,null,null,null,null,null,null,null,{"$f":"IF('Early Action Credit'!$I179=\"Yes\",0,IF('Early Action Credit'!$E179<72.5,0,IF('Early Action Credit'!$E179=72.5,300,IF('Early Action Credit'!$E179<=145,700,IF('Early Action Credit'!$E179<=245,1900,2400)))))*IF(ISBLANK('Early Action Credit'!$J179),0,IF('Early Action Credit'!$J179=\"No\",1,'Early Action Credit'!$K179))","v":0}]
[null,{"$f":"IF(AND(ISBLANK('Early Action Credit'!$A180),ISBLANK('Early Action Credit'!$C180),ISBLANK('Early Action Credit'!$D180),ISBLANK('Early Action Credit'!$E180),ISBLANK('Early Action Credit'!$F180),ISBLANK('Early Action Credit'!$G180),ISBLANK('Early Action Credit'!$H180),ISBLANK('Early Action Credit'!$I180),ISBLANK('Early Action Credit'!$J180),ISBLANK('Early Action Credit'!$L180)),\"\",\"Circuit Breaker\")","v":""},null,null,null,null,null,null,null,null,null,null,{"$f":"IF('Early Action Credit'!$I180=\"Yes\",0,IF('Early Action Credit'!$E180<72.5,0,IF('Early Action Credit'!$E180=72.5,300,IF('Early Action Credit'!$E180<=145,700,IF('Early Action Credit'!$E180<=245,1900,2400)))))*IF(ISBLANK('Early Action Credit'!$J180),0,IF('Early Action Credit'!$J180=\"No\",1,'Early Action Credit'!$K180))","v":0}]
[null,{"$f":"IF(AND(ISBLANK('Early Action Credit'!$A181),ISBLANK('Early Action Credit'!$C181),ISBLANK('Early Action Credit'!$D181),ISBLANK('Early Action Credit'!$E181),ISBLANK('Early Action Credit'!$F181),ISBLANK('Early Action Credit'!$G181),ISBLANK('Early Action Credit'!$H181),ISBLANK('Early Action Credit'!$I181),ISBLANK('Early Action Credit'!$J181),ISBLANK('Early Action Credit'!$L181)),\"\",\"Circuit Breaker\")","v":""},null,null,null,null,null,null,null,null,null,null,{"$f":"IF('Early Action Credit'!$I181=\"Yes\",0,IF('Early Action Credit'!$E181<72.5,0,IF('Early Action Credit'!$E181=72.5,300,IF('Early Action Credit'!$E181<=145,700,IF('Early Action Credit'!$E181<=245,1900,2400)))))*IF(ISBLANK('Early Action Credit'!$J181),0,IF('Early Action Credit'!$J181=\"No\",1,'Early Action Credit'!$K181))","v":0}]
[null,{"$f":"IF(AND(ISBLANK('Early Action Credit'!$A182),ISBLANK('Early Action Credit'!$C182),ISBLANK('Early Action Credit'!$D182),ISBLANK('Early Action Credit'!$E182),ISBLANK('Early Action Credit'!$F182),ISBLANK('Early Action Credit'!$G182),ISBLANK('Early Action Credit'!$H182),ISBLANK('Early Action Credit'!$I182),ISBLANK('Early Action Credit'!$J182),ISBLANK('Early Action Credit'!$L182)),\"\",\"Circuit Breaker\")","v":""},null,null,null,null,null,null,null,null,null,null,{"$f":"IF('Early Action Credit'!$I182=\"Yes\",0,IF('Early Action Credit'!$E182<72.5,0,IF('Early Action Credit'!$E182=72.5,300,IF('Early Action Credit'!$E182<=145,700,IF('Early Action Credit'!$E182<=245,1900,2400)))))*IF(ISBLANK('Early Action Credit'!$J182),0,IF('Early Action Credit'!$J182=\"No\",1,'Early Action Credit'!$K182))","v":0}]
[null,{"$f":"IF(AND(ISBLANK('Early Action Credit'!$A183),ISBLANK('Early Action Credit'!$C183),ISBLANK('Early Action Credit'!$D183),ISBLANK('Early Action Credit'!$E183),ISBLANK('Early Action Credit'!$F183),ISBLANK('Early Action Credit'!$G183),ISBLANK('Early Action Credit'!$H183),ISBLANK('Early Action Credit'!$I183),ISBLANK('Early Action Credit'!$J183),ISBLANK('Early Action Credit'!$L183)),\"\",\"Circuit Breaker\")","v":""},null,null,null,null,null,null,null,null,null,null,{"$f":"IF('Early Action Credit'!$I183=\"Yes\",0,IF('Early Action Credit'!$E183<72.5,0,IF('Early Action Credit'!$E183=72.5,300,IF('Early Action Credit'!$E183<=145,700,IF('Early Action Credit'!$E183<=245,1900,2400)))))*IF(ISBLANK('Early Action Credit'!$J183),0,IF('Early Action Credit'!$J183=\"No\",1,'Early Action Credit'!$K183))","v":0}]
[null,{"$f":"IF(AND(ISBLANK('Early Action Credit'!$A184),ISBLANK('Early Action Credit'!$C184),ISBLANK('Early Action Credit'!$D184),ISBLANK('Early Action Credit'!$E184),ISBLANK('Early Action Credit'!$F184),ISBLANK('Early Action Credit'!$G184),ISBLANK('Early Action Credit'!$H184),ISBLANK('Early Action Credit'!$I184),ISBLANK('Early Action Credit'!$J184),ISBLANK('Early Action Credit'!$L184)),\"\",\"Circuit Breaker\")","v":""},null,null,null,null,null,null,null,null,null,null,{"$f":"IF('Early Action Credit'!$I184=\"Yes\",0,IF('Early Action Credit'!$E184<72.5,0,IF('Early Action Credit'!$E184=72.5,300,IF('Early Action Credit'!$E184<=145,700,IF('Early Action Credit'!$E184<=245,1900,2400)))))*IF(ISBLANK('Early Action Credit'!$J184),0,IF('Early Action Credit'!$J184=\"No\",1,'Early Action Credit'!$K184))","v":0}]
[null,{"$f":"IF(AND(ISBLANK('Early Action Credit'!$A185),ISBLANK('Early Action Credit'!$C185),ISBLANK('Early Action Credit'!$D185),ISBLANK('Early Action Credit'!$E185),ISBLANK('Early Action Credit'!$F185),ISBLANK('Early Action Credit'!$G185),ISBLANK('Early Action Credit'!$H185),ISBLANK('Early Action Credit'!$I185),ISBLANK('Early Action Credit'!$J185),ISBLANK('Early Action Credit'!$L185)),\"\",\"Circuit Breaker\")","v":""},null,null,null,null,null,null,null,null,null,null,{"$f":"IF('Early Action Credit'!$I185=\"Yes\",0,IF('Early Action Credit'!$E185<72.5,0,IF('Early Action Credit'!$E185=72.5,300,IF('Early Action Credit'!$E185<=145,700,IF('Early Action Credit'!$E185<=245,1900,2400)))))*IF(ISBLANK('Early Action Credit'!$J185),0,IF('Early Action Credit'!$J185=\"No\",1,'Early Action Credit'!$K185))","v":0}]
[null,{"$f":"IF(AND(ISBLANK('Early Action Credit'!$A186),ISBLANK('Early Action Credit'!$C186),ISBLANK('Early Action Credit'!$D186),ISBLANK('Early Action Credit'!$E186),ISBLANK('Early Action Credit'!$F186),ISBLANK('Early Action Credit'!$G186),ISBLANK('Early Action Credit'!$H186),ISBLANK('Early Action Credit'!$I186),ISBLANK('Early Action Credit'!$J186),ISBLANK('Early Action Credit'!$L186)),\"\",\"Circuit Breaker\")","v":""},null,null,null,null,null,null,null,null,null,null,{"$f":"IF('Early Action Credit'!$I186=\"Yes\",0,IF('Early Action Credit'!$E186<72.5,0,IF('Early Action Credit'!$E186=72.5,300,IF('Early Action Credit'!$E186<=145,700,IF('Early Action Credit'!$E186<=245,1900,2400)))))*IF(ISBLANK('Early Action Credit'!$J186),0,IF('Early Action Credit'!$J186=\"No\",1,'Early Action Credit'!$K186))","v":0}]
[null,{"$f":"IF(AND(ISBLANK('Early Action Credit'!$A187),ISBLANK('Early Action Credit'!$C187),ISBLANK('Early Action Credit'!$D187),ISBLANK('Early Action Credit'!$E187),ISBLANK('Early Action Credit'!$F187),ISBLANK('Early Action Credit'!$G187),ISBLANK('Early Action Credit'!$H187),ISBLANK('Early Action Credit'!$I187),ISBLANK('Early Action Credit'!$J187),ISBLANK('Early Action Credit'!$L187)),\"\",\"Circuit Breaker\")","v":""},null,null,null,null,null,null,null,null,null,null,{"$f":"IF('Early Action Credit'!$I187=\"Yes\",0,IF('Early Action Credit'!$E187<72.5,0,IF('Early Action Credit'!$E187=72.5,300,IF('Early Action Credit'!$E187<=145,700,IF('Early Action Credit'!$E187<=245,1900,2400)))))*IF(ISBLANK('Early Action Credit'!$J187),0,IF('Early Action Credit'!$J187=\"No\",1,'Early Action Credit'!$K187))","v":0}]
[null,{"$f":"IF(AND(ISBLANK('Early Action Credit'!$A188),ISBLANK('Early Action Credit'!$C188),ISBLANK('Early Action Credit'!$D188),ISBLANK('Early Action Credit'!$E188),ISBLANK('Early Action Credit'!$F188),ISBLANK('Early Action Credit'!$G188),ISBLANK('Early Action Credit'!$H188),ISBLANK('Early Action Credit'!$I188),ISBLANK('Early Action Credit'!$J188),ISBLANK('Early Action Credit'!$L188)),\"\",\"Circuit Breaker\")","v":""},null,null,null,null,null,null,null,null,null,null,{"$f":"IF('Early Action Credit'!$I188=\"Yes\",0,IF('Early Action Credit'!$E188<72.5,0,IF('Early Action Credit'!$E188=72.5,300,IF('Early Action Credit'!$E188<=145,700,IF('Early Action Credit'!$E188<=245,1900,2400)))))*IF(ISBLANK('Early Action Credit'!$J188),0,IF('Early Action Credit'!$J188=\"No\",1,'Early Action Credit'!$K188))","v":0}]
[null,{"$f":"IF(AND(ISBLANK('Early Action Credit'!$A189),ISBLANK('Early Action Credit'!$C189),ISBLANK('Early Action Credit'!$D189),ISBLANK('Early Action Credit'!$E189),ISBLANK('Early Action Credit'!$F189),ISBLANK('Early Action Credit'!$G189),ISBLANK('Early Action Credit'!$H189),ISBLANK('Early Action Credit'!$I189),ISBLANK('Early Action Credit'!$J189),ISBLANK('Early Action Credit'!$L189)),\"\",\"Circuit Breaker\")","v":""},null,null,null,null,null,null,null,null,null,null,{"$f":"IF('Early Action Credit'!$I189=\"Yes\",0,IF('Early Action Credit'!$E189<72.5,0,IF('Early Action Credit'!$E189=72.5,300,IF('Early Action Credit'!$E189<=145,700,IF('Early Action Credit'!$E189<=245,1900,2400)))))*IF(ISBLANK('Early Action Credit'!$J189),0,IF('Early Action Credit'!$J189=\"No\",1,'Early Action Credit'!$K189))","v":0}]
[null,{"$f":"IF(AND(ISBLANK('Early Action Credit'!$A190),ISBLANK('Early Action Credit'!$C190),ISBLANK('Early Action Credit'!$D190),ISBLANK('Early Action Credit'!$E190),ISBLANK('Early Action Credit'!$F190),ISBLANK('Early Action Credit'!$G190),ISBLANK('Early Action Credit'!$H190),ISBLANK('Early Action Credit'!$I190),ISBLANK('Early Action Credit'!$J190),ISBLANK('Early Action Credit'!$L190)),\"\",\"Circuit Breaker\")","v":""},null,null,null,null,null,null,null,null,null,null,{"$f":"IF('Early Action Credit'!$I190=\"Yes\",0,IF('Early Action Credit'!$E190<72.5,0,IF('Early Action Credit'!$E190=72.5,300,IF('Early Action Credit'!$E190<=145,700,IF('Early Action Credit'!$E190<=245,1900,2400)))))*IF(ISBLANK('Early Action Credit'!$J190),0,IF('Early Action Credit'!$J190=\"No\",1,'Early Action Credit'!$K190))","v":0}]
[null,{"$f":"IF(AND(ISBLANK('Early Action Credit'!$A191),ISBLANK('Early Action Credit'!$C191),ISBLANK('Early Action Credit'!$D191),ISBLANK('Early Action Credit'!$E191),ISBLANK('Early Action Credit'!$F191),ISBLANK('Early Action Credit'!$G191),ISBLANK('Early Action Credit'!$H191),ISBLANK('Early Action Credit'!$I191),ISBLANK('Early Action Credit'!$J191),ISBLANK('Early Action Credit'!$L191)),\"\",\"Circuit Breaker\")","v":""},null,null,null,null,null,null,null,null,null,null,{"$f":"IF('Early Action Credit'!$I191=\"Yes\",0,IF('Early Action Credit'!$E191<72.5,0,IF('Early Action Credit'!$E191=72.5,300,IF('Early Action Credit'!$E191<=145,700,IF('Early Action Credit'!$E191<=245,1900,2400)))))*IF(ISBLANK('Early Action Credit'!$J191),0,IF('Early Action Credit'!$J191=\"No\",1,'Early Action Credit'!$K191))","v":0}]
[null,{"$f":"IF(AND(ISBLANK('Early Action Credit'!$A192),ISBLANK('Early Action Credit'!$C192),ISBLANK('Early Action Credit'!$D192),ISBLANK('Early Action Credit'!$E192),ISBLANK('Early Action Credit'!$F192),ISBLANK('Early Action Credit'!$G192),ISBLANK('Early Action Credit'!$H192),ISBLANK('Early Action Credit'!$I192),ISBLANK('Early Action Credit'!$J192),ISBLANK('Early Action Credit'!$L192)),\"\",\"Circuit Breaker\")","v":""},null,null,null,null,null,null,null,null,null,null,{"$f":"IF('Early Action Credit'!$I192=\"Yes\",0,IF('Early Action Credit'!$E192<72.5,0,IF('Early Action Credit'!$E192=72.5,300,IF('Early Action Credit'!$E192<=145,700,IF('Early Action Credit'!$E192<=245,1900,2400)))))*IF(ISBLANK('Early Action Credit'!$J192),0,IF('Early Action Credit'!$J192=\"No\",1,'Early Action Credit'!$K192))","v":0}]
[null,{"$f":"IF(AND(ISBLANK('Early Action Credit'!$A193),ISBLANK('Early Action Credit'!$C193),ISBLANK('Early Action Credit'!$D193),ISBLANK('Early Action Credit'!$E193),ISBLANK('Early Action Credit'!$F193),ISBLANK('Early Action Credit'!$G193),ISBLANK('Early Action Credit'!$H193),ISBLANK('Early Action Credit'!$I193),ISBLANK('Early Action Credit'!$J193),ISBLANK('Early Action Credit'!$L193)),\"\",\"Circuit Breaker\")","v":""},null,null,null,null,null,null,null,null,null,null,{"$f":"IF('Early Action Credit'!$I193=\"Yes\",0,IF('Early Action Credit'!$E193<72.5,0,IF('Early Action Credit'!$E193=72.5,300,IF('Early Action Credit'!$E193<=145,700,IF('Early Action Credit'!$E193<=245,1900,2400)))))*IF(ISBLANK('Early Action Credit'!$J193),0,IF('Early Action Credit'!$J193=\"No\",1,'Early Action Credit'!$K193))","v":0}]
[null,{"$f":"IF(AND(ISBLANK('Early Action Credit'!$A194),ISBLANK('Early Action Credit'!$C194),ISBLANK('Early Action Credit'!$D194),ISBLANK('Early Action Credit'!$E194),ISBLANK('Early Action Credit'!$F194),ISBLANK('Early Action Credit'!$G194),ISBLANK('Early Action Credit'!$H194),ISBLANK('Early Action Credit'!$I194),ISBLANK('Early Action Credit'!$J194),ISBLANK('Early Action Credit'!$L194)),\"\",\"Circuit Breaker\")","v":""},null,null,null,null,null,null,null,null,null,null,{"$f":"IF('Early Action Credit'!$I194=\"Yes\",0,IF('Early Action Credit'!$E194<72.5,0,IF('Early Action Credit'!$E194=72.5,300,IF('Early Action Credit'!$E194<=145,700,IF('Early Action Credit'!$E194<=245,1900,2400)))))*IF(ISBLANK('Early Action Credit'!$J194),0,IF('Early Action Credit'!$J194=\"No\",1,'Early Action Credit'!$K194))","v":0}]
[null,{"$f":"IF(AND(ISBLANK('Early Action Credit'!$A195),ISBLANK('Early Action Credit'!$C195),ISBLANK('Early Action Credit'!$D195),ISBLANK('Early Action Credit'!$E195),ISBLANK('Early Action Credit'!$F195),ISBLANK('Early Action Credit'!$G195),ISBLANK('Early Action Credit'!$H195),ISBLANK('Early Action Credit'!$I195),ISBLANK('Early Action Credit'!$J195),ISBLANK('Early Action Credit'!$L195)),\"\",\"Circuit Breaker\")","v":""},null,null,null,null,null,null,null,null,null,null,{"$f":"IF('Early Action Credit'!$I195=\"Yes\",0,IF('Early Action Credit'!$E195<72.5,0,IF('Early Action Credit'!$E195=72.5,300,IF('Early Action Credit'!$E195<=145,700,IF('Early Action Credit'!$E195<=245,1900,2400)))))*IF(ISBLANK('Early Action Credit'!$J195),0,IF('Early Action Credit'!$J195=\"No\",1,'Early Action Credit'!$K195))","v":0}]
[null,{"$f":"IF(AND(ISBLANK('Early Action Credit'!$A196),ISBLANK('Early Action Credit'!$C196),ISBLANK('Early Action Credit'!$D196),ISBLANK('Early Action Credit'!$E196),ISBLANK('Early Action Credit'!$F196),ISBLANK('Early Action Credit'!$G196),ISBLANK('Early Action Credit'!$H196),ISBLANK('Early Action Credit'!$I196),ISBLANK('Early Action Credit'!$J196),ISBLANK('Early Action Credit'!$L196)),\"\",\"Circuit Breaker\")","v":""},null,null,null,null,null,null,null,null,null,null,{"$f":"IF('Early Action Credit'!$I196=\"Yes\",0,IF('Early Action Credit'!$E196<72.5,0,IF('Early Action Credit'!$E196=72.5,300,IF('Early Action Credit'!$E196<=145,700,IF('Early Action Credit'!$E196<=245,1900,2400)))))*IF(ISBLANK('Early Action Credit'!$J196),0,IF('Early Action Credit'!$J196=\"No\",1,'Early Action Credit'!$K196))","v":0}]
[null,{"$f":"IF(AND(ISBLANK('Early Action Credit'!$A197),ISBLANK('Early Action Credit'!$C197),ISBLANK('Early Action Credit'!$D197),ISBLANK('Early Action Credit'!$E197),ISBLANK('Early Action Credit'!$F197),ISBLANK('Early Action Credit'!$G197),ISBLANK('Early Action Credit'!$H197),ISBLANK('Early Action Credit'!$I197),ISBLANK('Early Action Credit'!$J197),ISBLANK('Early Action Credit'!$L197)),\"\",\"Circuit Breaker\")","v":""},null,null,null,null,null,null,null,null,null,null,{"$f":"IF('Early Action Credit'!$I197=\"Yes\",0,IF('Early Action Credit'!$E197<72.5,0,IF('Early Action Credit'!$E197=72.5,300,IF('Early Action Credit'!$E197<=145,700,IF('Early Action Credit'!$E197<=245,1900,2400)))))*IF(ISBLANK('Early Action Credit'!$J197),0,IF('Early Action Credit'!$J197=\"No\",1,'Early Action Credit'!$K197))","v":0}]
[null,{"$f":"IF(AND(ISBLANK('Early Action Credit'!$A198),ISBLANK('Early Action Credit'!$C198),ISBLANK('Early Action Credit'!$D198),ISBLANK('Early Action Credit'!$E198),ISBLANK('Early Action Credit'!$F198),ISBLANK('Early Action Credit'!$G198),ISBLANK('Early Action Credit'!$H198),ISBLANK('Early Action Credit'!$I198),ISBLANK('Early Action Credit'!$J198),ISBLANK('Early Action Credit'!$L198)),\"\",\"Circuit Breaker\")","v":""},null,null,null,null,null,null,null,null,null,null,{"$f":"IF('Early Action Credit'!$I198=\"Yes\",0,IF('Early Action Credit'!$E198<72.5,0,IF('Early Action Credit'!$E198=72.5,300,IF('Early Action Credit'!$E198<=145,700,IF('Early Action Credit'!$E198<=245,1900,2400)))))*IF(ISBLANK('Early Action Credit'!$J198),0,IF('Early Action Credit'!$J198=\"No\",1,'Early Action Credit'!$K198))","v":0}]
[null,{"$f":"IF(AND(ISBLANK('Early Action Credit'!$A199),ISBLANK('Early Action Credit'!$C199),ISBLANK('Early Action Credit'!$D199),ISBLANK('Early Action Credit'!$E199),ISBLANK('Early Action Credit'!$F199),ISBLANK('Early Action Credit'!$G199),ISBLANK('Early Action Credit'!$H199),ISBLANK('Early Action Credit'!$I199),ISBLANK('Early Action Credit'!$J199),ISBLANK('Early Action Credit'!$L199)),\"\",\"Circuit Breaker\")","v":""},null,null,null,null,null,null,null,null,null,null,{"$f":"IF('Early Action Credit'!$I199=\"Yes\",0,IF('Early Action Credit'!$E199<72.5,0,IF('Early Action Credit'!$E199=72.5,300,IF('Early Action Credit'!$E199<=145,700,IF('Early Action Credit'!$E199<=245,1900,2400)))))*IF(ISBLANK('Early Action Credit'!$J199),0,IF('Early Action Credit'!$J199=\"No\",1,'Early Action Credit'!$K199))","v":0}]
[null,{"$f":"IF(AND(ISBLANK('Early Action Credit'!$A200),ISBLANK('Early Action Credit'!$C200),ISBLANK('Early Action Credit'!$D200),ISBLANK('Early Action Credit'!$E200),ISBLANK('Early Action Credit'!$F200),ISBLANK('Early Action Credit'!$G200),ISBLANK('Early Action Credit'!$H200),ISBLANK('Early Action Credit'!$I200),ISBLANK('Early Action Credit'!$J200),ISBLANK('Early Action Credit'!$L200)),\"\",\"Circuit Breaker\")","v":""},null,null,null,null,null,null,null,null,null,null,{"$f":"IF('Early Action Credit'!$I200=\"Yes\",0,IF('Early Action Credit'!$E200<72.5,0,IF('Early Action Credit'!$E200=72.5,300,IF('Early Action Credit'!$E200<=145,700,IF('Early Action Credit'!$E200<=245,1900,2400)))))*IF(ISBLANK('Early Action Credit'!$J200),0,IF('Early Action Credit'!$J200=\"No\",1,'Early Action Credit'!$K200))","v":0}]
[null,{"$f":"IF(AND(ISBLANK('Early Action Credit'!$A201),ISBLANK('Early Action Credit'!$C201),ISBLANK('Early Action Credit'!$D201),ISBLANK('Early Action Credit'!$E201),ISBLANK('Early Action Credit'!$F201),ISBLANK('Early Action Credit'!$G201),ISBLANK('Early Action Credit'!$H201),ISBLANK('Early Action Credit'!$I201),ISBLANK('Early Action Credit'!$J201),ISBLANK('Early Action Credit'!$L201)),\"\",\"Circuit Breaker\")","v":""},null,null,null,null,null,null,null,null,null,null,{"$f":"IF('Early Action Credit'!$I201=\"Yes\",0,IF('Early Action Credit'!$E201<72.5,0,IF('Early Action Credit'!$E201=72.5,300,IF('Early Action Credit'!$E201<=145,700,IF('Early Action Credit'!$E201<=245,1900,2400)))))*IF(ISBLANK('Early Action Credit'!$J201),0,IF('Early Action Credit'!$J201=\"No\",1,'Early Action Credit'!$K201))","v":0}]
[null,{"$f":"IF(AND(ISBLANK('Early Action Credit'!$A202),ISBLANK('Early Action Credit'!$C202),ISBLANK('Early Action Credit'!$D202),ISBLANK('Early Action Credit'!$E202),ISBLANK('Early Action Credit'!$F202),ISBLANK('Early Action Credit'!$G202),ISBLANK('Early Action Credit'!$H202),ISBLANK('Early Action Credit'!$I202),ISBLANK('Early Action Credit'!$J202),ISBLANK('Early Action Credit'!$L202)),\"\",\"Circuit Breaker\")","v":""},null,null,null,null,null,null,null,null,null,null,{"$f":"IF('Early Action Credit'!$I202=\"Yes\",0,IF('Early Action Credit'!$E202<72.5,0,IF('Early Action Credit'!$E202=72.5,300,IF('Early Action Credit'!$E202<=145,700,IF('Early Action Credit'!$E202<=245,1900,2400)))))*IF(ISBLANK('Early Action Credit'!$J202),0,IF('Early Action Credit'!$J202=\"No\",1,'Early Action Credit'!$K202))","v":0}]
[null,{"$f":"IF(AND(ISBLANK('Early Action Credit'!$A203),ISBLANK('Early Action Credit'!$C203),ISBLANK('Early Action Credit'!$D203),ISBLANK('Early Action Credit'!$E203),ISBLANK('Early Action Credit'!$F203),ISBLANK('Early Action Credit'!$G203),ISBLANK('Early Action Credit'!$H203),ISBLANK('Early Action Credit'!$I203),ISBLANK('Early Action Credit'!$J203),ISBLANK('Early Action Credit'!$L203)),\"\",\"Circuit Breaker\")","v":""},null,null,null,null,null,null,null,null,null,null,{"$f":"IF('Early Action Credit'!$I203=\"Yes\",0,IF('Early Action Credit'!$E203<72.5,0,IF('Early Action Credit'!$E203=72.5,300,IF('Early Action Credit'!$E203<=145,700,IF('Early Action Credit'!$E203<=245,1900,2400)))))*IF(ISBLANK('Early Action Credit'!$J203),0,IF('Early Action Credit'!$J203=\"No\",1,'Early Action Credit'!$K203))","v":0}]
[null,{"$f":"IF(AND(ISBLANK('Early Action Credit'!$A204),ISBLANK('Early Action Credit'!$C204),ISBLANK('Early Action Credit'!$D204),ISBLANK('Early Action Credit'!$E204),ISBLANK('Early Action Credit'!$F204),ISBLANK('Early Action Credit'!$G204),ISBLANK('Early Action Credit'!$H204),ISBLANK('Early Action Credit'!$I204),ISBLANK('Early Action Credit'!$J204),ISBLANK('Early Action Credit'!$L204)),\"\",\"Circuit Breaker\")","v":""},null,null,null,null,null,null,null,null,null,null,{"$f":"IF('Early Action Credit'!$I204=\"Yes\",0,IF('Early Action Credit'!$E204<72.5,0,IF('Early Action Credit'!$E204=72.5,300,IF('Early Action Credit'!$E204<=145,700,IF('Early Action Credit'!$E204<=245,1900,2400)))))*IF(ISBLANK('Early Action Credit'!$J204),0,IF('Early Action Credit'!$J204=\"No\",1,'Early Action Credit'!$K204))","v":0}]
[null,{"$f":"IF(AND(ISBLANK('Early Action Credit'!$A205),ISBLANK('Early Action Credit'!$C205),ISBLANK('Early Action Credit'!$D205),ISBLANK('Early Action Credit'!$E205),ISBLANK('Early Action Credit'!$F205),ISBLANK('Early Action Credit'!$G205),ISBLANK('Early Action Credit'!$H205),ISBLANK('Early Action Credit'!$I205),ISBLANK('Early Action Credit'!$J205),ISBLANK('Early Action Credit'!$L205)),\"\",\"Circuit Breaker\")","v":""},null,null,null,null,null,null,null,null,null,null,{"$f":"IF('Early Action Credit'!$I205=\"Yes\",0,IF('Early Action Credit'!$E205<72.5,0,IF('Early Action Credit'!$E205=72.5,300,IF('Early Action Credit'!$E205<=145,700,IF('Early Action Credit'!$E205<=245,1900,2400)))))*IF(ISBLANK('Early Action Credit'!$J205),0,IF('Early Action Credit'!$J205=\"No\",1,'Early Action Credit'!$K205))","v":0}]
[null,{"$f":"IF(AND(ISBLANK('Early Action Credit'!$A206),ISBLANK('Early Action Credit'!$C206),ISBLANK('Early Action Credit'!$D206),ISBLANK('Early Action Credit'!$E206),ISBLANK('Early Action Credit'!$F206),ISBLANK('Early Action Credit'!$G206),ISBLANK('Early Action Credit'!$H206),ISBLANK('Early Action Credit'!$I206),ISBLANK('Early Action Credit'!$J206),ISBLANK('Early Action Credit'!$L206)),\"\",\"Circuit Breaker\")","v":""},null,null,null,null,null,null,null,null,null,null,{"$f":"IF('Early Action Credit'!$I206=\"Yes\",0,IF('Early Action Credit'!$E206<72.5,0,IF('Early Action Credit'!$E206=72.5,300,IF('Early Action Credit'!$E206<=145,700,IF('Early Action Credit'!$E206<=245,1900,2400)))))*IF(ISBLANK('Early Action Credit'!$J206),0,IF('Early Action Credit'!$J206=\"No\",1,'Early Action Credit'!$K206))","v":0}]
[null,{"$f":"IF(AND(ISBLANK('Early Action Credit'!$A207),ISBLANK('Early Action Credit'!$C207),ISBLANK('Early Action Credit'!$D207),ISBLANK('Early Action Credit'!$E207),ISBLANK('Early Action Credit'!$F207),ISBLANK('Early Action Credit'!$G207),ISBLANK('Early Action Credit'!$H207),ISBLANK('Early Action Credit'!$I207),ISBLANK('Early Action Credit'!$J207),ISBLANK('Early Action Credit'!$L207)),\"\",\"Circuit Breaker\")","v":""},null,null,null,null,null,null,null,null,null,null,{"$f":"IF('Early Action Credit'!$I207=\"Yes\",0,IF('Early Action Credit'!$E207<72.5,0,IF('Early Action Credit'!$E207=72.5,300,IF('Early Action Credit'!$E207<=145,700,IF('Early Action Credit'!$E207<=245,1900,2400)))))*IF(ISBLANK('Early Action Credit'!$J207),0,IF('Early Action Credit'!$J207=\"No\",1,'Early Action Credit'!$K207))","v":0}]
[null,{"$f":"IF(AND(ISBLANK('Early Action Credit'!$A208),ISBLANK('Early Action Credit'!$C208),ISBLANK('Early Action Credit'!$D208),ISBLANK('Early Action Credit'!$E208),ISBLANK('Early Action Credit'!$F208),ISBLANK('Early Action Credit'!$G208),ISBLANK('Early Action Credit'!$H208),ISBLANK('Early Action Credit'!$I208),ISBLANK('Early Action Credit'!$J208),ISBLANK('Early Action Credit'!$L208)),\"\",\"Circuit Breaker\")","v":""},null,null,null,null,null,null,null,null,null,null,{"$f":"IF('Early Action Credit'!$I208=\"Yes\",0,IF('Early Action Credit'!$E208<72.5,0,IF('Early Action Credit'!$E208=72.5,300,IF('Early Action Credit'!$E208<=145,700,IF('Early Action Credit'!$E208<=245,1900,2400)))))*IF(ISBLANK('Early Action Credit'!$J208),0,IF('Early Action Credit'!$J208=\"No\",1,'Early Action Credit'!$K208))","v":0}]
[null,{"$f":"IF(AND(ISBLANK('Early Action Credit'!$A209),ISBLANK('Early Action Credit'!$C209),ISBLANK('Early Action Credit'!$D209),ISBLANK('Early Action Credit'!$E209),ISBLANK('Early Action Credit'!$F209),ISBLANK('Early Action Credit'!$G209),ISBLANK('Early Action Credit'!$H209),ISBLANK('Early Action Credit'!$I209),ISBLANK('Early Action Credit'!$J209),ISBLANK('Early Action Credit'!$L209)),\"\",\"Circuit Breaker\")","v":""},null,null,null,null,null,null,null,null,null,null,{"$f":"IF('Early Action Credit'!$I209=\"Yes\",0,IF('Early Action Credit'!$E209<72.5,0,IF('Early Action Credit'!$E209=72.5,300,IF('Early Action Credit'!$E209<=145,700,IF('Early Action Credit'!$E209<=245,1900,2400)))))*IF(ISBLANK('Early Action Credit'!$J209),0,IF('Early Action Credit'!$J209=\"No\",1,'Early Action Credit'!$K209))","v":0}]
[null,{"$f":"IF(AND(ISBLANK('Early Action Credit'!$A210),ISBLANK('Early Action Credit'!$C210),ISBLANK('Early Action Credit'!$D210),ISBLANK('Early Action Credit'!$E210),ISBLANK('Early Action Credit'!$F210),ISBLANK('Early Action Credit'!$G210),ISBLANK('Early Action Credit'!$H210),ISBLANK('Early Action Credit'!$I210),ISBLANK('Early Action Credit'!$J210),ISBLANK('Early Action Credit'!$L210)),\"\",\"Circuit Breaker\")","v":""},null,null,null,null,null,null,null,null,null,null,{"$f":"IF('Early Action Credit'!$I210=\"Yes\",0,IF('Early Action Credit'!$E210<72.5,0,IF('Early Action Credit'!$E210=72.5,300,IF('Early Action Credit'!$E210<=145,700,IF('Early Action Credit'!$E210<=245,1900,2400)))))*IF(ISBLANK('Early Action Credit'!$J210),0,IF('Early Action Credit'!$J210=\"No\",1,'Early Action Credit'!$K210))","v":0}]
[null,{"$f":"IF(AND(ISBLANK('Early Action Credit'!$A211),ISBLANK('Early Action Credit'!$C211),ISBLANK('Early Action Credit'!$D211),ISBLANK('Early Action Credit'!$E211),ISBLANK('Early Action Credit'!$F211),ISBLANK('Early Action Credit'!$G211),ISBLANK('Early Action Credit'!$H211),ISBLANK('Early Action Credit'!$I211),ISBLANK('Early Action Credit'!$J211),ISBLANK('Early Action Credit'!$L211)),\"\",\"Circuit Breaker\")","v":""},null,null,null,null,null,null,null,null,null,null,{"$f":"IF('Early Action Credit'!$I211=\"Yes\",0,IF('Early Action Credit'!$E211<72.5,0,IF('Early Action Credit'!$E211=72.5,300,IF('Early Action Credit'!$E211<=145,700,IF('Early Action Credit'!$E211<=245,1900,2400)))))*IF(ISBLANK('Early Action Credit'!$J211),0,IF('Early Action Credit'!$J211=\"No\",1,'Early Action Credit'!$K211))","v":0}]
[null,{"$f":"IF(AND(ISBLANK('Early Action Credit'!$A212),ISBLANK('Early Action Credit'!$C212),ISBLANK('Early Action Credit'!$D212),ISBLANK('Early Action Credit'!$E212),ISBLANK('Early Action Credit'!$F212),ISBLANK('Early Action Credit'!$G212),ISBLANK('Early Action Credit'!$H212),ISBLANK('Early Action Credit'!$I212),ISBLANK('Early Action Credit'!$J212),ISBLANK('Early Action Credit'!$L212)),\"\",\"Circuit Breaker\")","v":""},null,null,null,null,null,null,null,null,null,null,{"$f":"IF('Early Action Credit'!$I212=\"Yes\",0,IF('Early Action Credit'!$E212<72.5,0,IF('Early Action Credit'!$E212=72.5,300,IF('Early Action Credit'!$E212<=145,700,IF('Early Action Credit'!$E212<=245,1900,2400)))))*IF(ISBLANK('Early Action Credit'!$J212),0,IF('Early Action Credit'!$J212=\"No\",1,'Early Action Credit'!$K212))","v":0}]
[null,{"$f":"IF(AND(ISBLANK('Early Action Credit'!$A213),ISBLANK('Early Action Credit'!$C213),ISBLANK('Early Action Credit'!$D213),ISBLANK('Early Action Credit'!$E213),ISBLANK('Early Action Credit'!$F213),ISBLANK('Early Action Credit'!$G213),ISBLANK('Early Action Credit'!$H213),ISBLANK('Early Action Credit'!$I213),ISBLANK('Early Action Credit'!$J213),ISBLANK('Early Action Credit'!$L213)),\"\",\"Circuit Breaker\")","v":""},null,null,null,null,null,null,null,null,null,null,{"$f":"IF('Early Action Credit'!$I213=\"Yes\",0,IF('Early Action Credit'!$E213<72.5,0,IF('Early Action Credit'!$E213=72.5,300,IF('Early Action Credit'!$E213<=145,700,IF('Early Action Credit'!$E213<=245,1900,2400)))))*IF(ISBLANK('Early Action Credit'!$J213),0,IF('Early Action Credit'!$J213=\"No\",1,'Early Action Credit'!$K213))","v":0}]
[null,{"$f":"IF(AND(ISBLANK('Early Action Credit'!$A214),ISBLANK('Early Action Credit'!$C214),ISBLANK('Early Action Credit'!$D214),ISBLANK('Early Action Credit'!$E214),ISBLANK('Early Action Credit'!$F214),ISBLANK('Early Action Credit'!$G214),ISBLANK('Early Action Credit'!$H214),ISBLANK('Early Action Credit'!$I214),ISBLANK('Early Action Credit'!$J214),ISBLANK('Early Action Credit'!$L214)),\"\",\"Circuit Breaker\")","v":""},null,null,null,null,null,null,null,null,null,null,{"$f":"IF('Early Action Credit'!$I214=\"Yes\",0,IF('Early Action Credit'!$E214<72.5,0,IF('Early Action Credit'!$E214=72.5,300,IF('Early Action Credit'!$E214<=145,700,IF('Early Action Credit'!$E214<=245,1900,2400)))))*IF(ISBLANK('Early Action Credit'!$J214),0,IF('Early Action Credit'!$J214=\"No\",1,'Early Action Credit'!$K214))","v":0}]
[null,{"$f":"IF(AND(ISBLANK('Early Action Credit'!$A215),ISBLANK('Early Action Credit'!$C215),ISBLANK('Early Action Credit'!$D215),ISBLANK('Early Action Credit'!$E215),ISBLANK('Early Action Credit'!$F215),ISBLANK('Early Action Credit'!$G215),ISBLANK('Early Action Credit'!$H215),ISBLANK('Early Action Credit'!$I215),ISBLANK('Early Action Credit'!$J215),ISBLANK('Early Action Credit'!$L215)),\"\",\"Circuit Breaker\")","v":""},null,null,null,null,null,null,null,null,null,null,{"$f":"IF('Early Action Credit'!$I215=\"Yes\",0,IF('Early Action Credit'!$E215<72.5,0,IF('Early Action Credit'!$E215=72.5,300,IF('Early Action Credit'!$E215<=145,700,IF('Early Action Credit'!$E215<=245,1900,2400)))))*IF(ISBLANK('Early Action Credit'!$J215),0,IF('Early Action Credit'!$J215=\"No\",1,'Early Action Credit'!$K215))","v":0}]
[null,{"$f":"IF(AND(ISBLANK('Early Action Credit'!$A216),ISBLANK('Early Action Credit'!$C216),ISBLANK('Early Action Credit'!$D216),ISBLANK('Early Action Credit'!$E216),ISBLANK('Early Action Credit'!$F216),ISBLANK('Early Action Credit'!$G216),ISBLANK('Early Action Credit'!$H216),ISBLANK('Early Action Credit'!$I216),ISBLANK('Early Action Credit'!$J216),ISBLANK('Early Action Credit'!$L216)),\"\",\"Circuit Breaker\")","v":""},null,null,null,null,null,null,null,null,null,null,{"$f":"IF('Early Action Credit'!$I216=\"Yes\",0,IF('Early Action Credit'!$E216<72.5,0,IF('Early Action Credit'!$E216=72.5,300,IF('Early Action Credit'!$E216<=145,700,IF('Early Action Credit'!$E216<=245,1900,2400)))))*IF(ISBLANK('Early Action Credit'!$J216),0,IF('Early Action Credit'!$J216=\"No\",1,'Early Action Credit'!$K216))","v":0}]
[null,{"$f":"IF(AND(ISBLANK('Early Action Credit'!$A217),ISBLANK('Early Action Credit'!$C217),ISBLANK('Early Action Credit'!$D217),ISBLANK('Early Action Credit'!$E217),ISBLANK('Early Action Credit'!$F217),ISBLANK('Early Action Credit'!$G217),ISBLANK('Early Action Credit'!$H217),ISBLANK('Early Action Credit'!$I217),ISBLANK('Early Action Credit'!$J217),ISBLANK('Early Action Credit'!$L217)),\"\",\"Circuit Breaker\")","v":""},null,null,null,null,null,null,null,null,null,null,{"$f":"IF('Early Action Credit'!$I217=\"Yes\",0,IF('Early Action Credit'!$E217<72.5,0,IF('Early Action Credit'!$E217=72.5,300,IF('Early Action Credit'!$E217<=145,700,IF('Early Action Credit'!$E217<=245,1900,2400)))))*IF(ISBLANK('Early Action Credit'!$J217),0,IF('Early Action Credit'!$J217=\"No\",1,'Early Action Credit'!$K217))","v":0}]
[null,{"$f":"IF(AND(ISBLANK('Early Action Credit'!$A218),ISBLANK('Early Action Credit'!$C218),ISBLANK('Early Action Credit'!$D218),ISBLANK('Early Action Credit'!$E218),ISBLANK('Early Action Credit'!$F218),ISBLANK('Early Action Credit'!$G218),ISBLANK('Early Action Credit'!$H218),ISBLANK('Early Action Credit'!$I218),ISBLANK('Early Action Credit'!$J218),ISBLANK('Early Action Credit'!$L218)),\"\",\"Circuit Breaker\")","v":""},null,null,null,null,null,null,null,null,null,null,{"$f":"IF('Early Action Credit'!$I218=\"Yes\",0,IF('Early Action Credit'!$E218<72.5,0,IF('Early Action Credit'!$E218=72.5,300,IF('Early Action Credit'!$E218<=145,700,IF('Early Action Credit'!$E218<=245,1900,2400)))))*IF(ISBLANK('Early Action Credit'!$J218),0,IF('Early Action Credit'!$J218=\"No\",1,'Early Action Credit'!$K218))","v":0}]
[null,{"$f":"IF(AND(ISBLANK('Early Action Credit'!$A219),ISBLANK('Early Action Credit'!$C219),ISBLANK('Early Action Credit'!$D219),ISBLANK('Early Action Credit'!$E219),ISBLANK('Early Action Credit'!$F219),ISBLANK('Early Action Credit'!$G219),ISBLANK('Early Action Credit'!$H219),ISBLANK('Early Action Credit'!$I219),ISBLANK('Early Action Credit'!$J219),ISBLANK('Early Action Credit'!$L219)),\"\",\"Circuit Breaker\")","v":""},null,null,null,null,null,null,null,null,null,null,{"$f":"IF('Early Action Credit'!$I219=\"Yes\",0,IF('Early Action Credit'!$E219<72.5,0,IF('Early Action Credit'!$E219=72.5,300,IF('Early Action Credit'!$E219<=145,700,IF('Early Action Credit'!$E219<=245,1900,2400)))))*IF(ISBLANK('Early Action Credit'!$J219),0,IF('Early Action Credit'!$J219=\"No\",1,'Early Action Credit'!$K219))","v":0}]
[null,{"$f":"IF(AND(ISBLANK('Early Action Credit'!$A220),ISBLANK('Early Action Credit'!$C220),ISBLANK('Early Action Credit'!$D220),ISBLANK('Early Action Credit'!$E220),ISBLANK('Early Action Credit'!$F220),ISBLANK('Early Action Credit'!$G220),ISBLANK('Early Action Credit'!$H220),ISBLANK('Early Action Credit'!$I220),ISBLANK('Early Action Credit'!$J220),ISBLANK('Early Action Credit'!$L220)),\"\",\"Circuit Breaker\")","v":""},null,null,null,null,null,null,null,null,null,null,{"$f":"IF('Early Action Credit'!$I220=\"Yes\",0,IF('Early Action Credit'!$E220<72.5,0,IF('Early Action Credit'!$E220=72.5,300,IF('Early Action Credit'!$E220<=145,700,IF('Early Action Credit'!$E220<=245,1900,2400)))))*IF(ISBLANK('Early Action Credit'!$J220),0,IF('Early Action Credit'!$J220=\"No\",1,'Early Action Credit'!$K220))","v":0}]
[null,{"$f":"IF(AND(ISBLANK('Early Action Credit'!$A221),ISBLANK('Early Action Credit'!$C221),ISBLANK('Early Action Credit'!$D221),ISBLANK('Early Action Credit'!$E221),ISBLANK('Early Action Credit'!$F221),ISBLANK('Early Action Credit'!$G221),ISBLANK('Early Action Credit'!$H221),ISBLANK('Early Action Credit'!$I221),ISBLANK('Early Action Credit'!$J221),ISBLANK('Early Action Credit'!$L221)),\"\",\"Circuit Breaker\")","v":""},null,null,null,null,null,null,null,null,null,null,{"$f":"IF('Early Action Credit'!$I221=\"Yes\",0,IF('Early Action Credit'!$E221<72.5,0,IF('Early Action Credit'!$E221=72.5,300,IF('Early Action Credit'!$E221<=145,700,IF('Early Action Credit'!$E221<=245,1900,2400)))))*IF(ISBLANK('Early Action Credit'!$J221),0,IF('Early Action Credit'!$J221=\"No\",1,'Early Action Credit'!$K221))","v":0}]
[null,{"$f":"IF(AND(ISBLANK('Early Action Credit'!$A222),ISBLANK('Early Action Credit'!$C222),ISBLANK('Early Action Credit'!$D222),ISBLANK('Early Action Credit'!$E222),ISBLANK('Early Action Credit'!$F222),ISBLANK('Early Action Credit'!$G222),ISBLANK('Early Action Credit'!$H222),ISBLANK('Early Action Credit'!$I222),ISBLANK('Early Action Credit'!$J222),ISBLANK('Early Action Credit'!$L222)),\"\",\"Circuit Breaker\")","v":""},null,null,null,null,null,null,null,null,null,null,{"$f":"IF('Early Action Credit'!$I222=\"Yes\",0,IF('Early Action Credit'!$E222<72.5,0,IF('Early Action Credit'!$E222=72.5,300,IF('Early Action Credit'!$E222<=145,700,IF('Early Action Credit'!$E222<=245,1900,2400)))))*IF(ISBLANK('Early Action Credit'!$J222),0,IF('Early Action Credit'!$J222=\"No\",1,'Early Action Credit'!$K222))","v":0}]
[null,{"$f":"IF(AND(ISBLANK('Early Action Credit'!$A223),ISBLANK('Early Action Credit'!$C223),ISBLANK('Early Action Credit'!$D223),ISBLANK('Early Action Credit'!$E223),ISBLANK('Early Action Credit'!$F223),ISBLANK('Early Action Credit'!$G223),ISBLANK('Early Action Credit'!$H223),ISBLANK('Early Action Credit'!$I223),ISBLANK('Early Action Credit'!$J223),ISBLANK('Early Action Credit'!$L223)),\"\",\"Circuit Breaker\")","v":""},null,null,null,null,null,null,null,null,null,null,{"$f":"IF('Early Action Credit'!$I223=\"Yes\",0,IF('Early Action Credit'!$E223<72.5,0,IF('Early Action Credit'!$E223=72.5,300,IF('Early Action Credit'!$E223<=145,700,IF('Early Action Credit'!$E223<=245,1900,2400)))))*IF(ISBLANK('Early Action Credit'!$J223),0,IF('Early Action Credit'!$J223=\"No\",1,'Early Action Credit'!$K223))","v":0}]
[null,{"$f":"IF(AND(ISBLANK('Early Action Credit'!$A224),ISBLANK('Early Action Credit'!$C224),ISBLANK('Early Action Credit'!$D224),ISBLANK('Early Action Credit'!$E224),ISBLANK('Early Action Credit'!$F224),ISBLANK('Early Action Credit'!$G224),ISBLANK('Early Action Credit'!$H224),ISBLANK('Early Action Credit'!$I224),ISBLANK('Early Action Credit'!$J224),ISBLANK('Early Action Credit'!$L224)),\"\",\"Circuit Breaker\")","v":""},null,null,null,null,null,null,null,null,null,null,{"$f":"IF('Early Action Credit'!$I224=\"Yes\",0,IF('Early Action Credit'!$E224<72.5,0,IF('Early Action Credit'!$E224=72.5,300,IF('Early Action Credit'!$E224<=145,700,IF('Early Action Credit'!$E224<=245,1900,2400)))))*IF(ISBLANK('Early Action Credit'!$J224),0,IF('Early Action Credit'!$J224=\"No\",1,'Early Action Credit'!$K224))","v":0}]
[null,{"$f":"IF(AND(ISBLANK('Early Action Credit'!$A225),ISBLANK('Early Action Credit'!$C225),ISBLANK('Early Action Credit'!$D225),ISBLANK('Early Action Credit'!$E225),ISBLANK('Early Action Credit'!$F225),ISBLANK('Early Action Credit'!$G225),ISBLANK('Early Action Credit'!$H225),ISBLANK('Early Action Credit'!$I225),ISBLANK('Early Action Credit'!$J225),ISBLANK('Early Action Credit'!$L225)),\"\",\"Circuit Breaker\")","v":""},null,null,null,null,null,null,null,null,null,null,{"$f":"IF('Early Action Credit'!$I225=\"Yes\",0,IF('Early Action Credit'!$E225<72.5,0,IF('Early Action Credit'!$E225=72.5,300,IF('Early Action Credit'!$E225<=145,700,IF('Early Action Credit'!$E225<=245,1900,2400)))))*IF(ISBLANK('Early Action Credit'!$J225),0,IF('Early Action Credit'!$J225=\"No\",1,'Early Action Credit'!$K225))","v":0}]
[null,{"$f":"IF(AND(ISBLANK('Early Action Credit'!$A226),ISBLANK('Early Action Credit'!$C226),ISBLANK('Early Action Credit'!$D226),ISBLANK('Early Action Credit'!$E226),ISBLANK('Early Action Credit'!$F226),ISBLANK('Early Action Credit'!$G226),ISBLANK('Early Action Credit'!$H226),ISBLANK('Early Action Credit'!$I226),ISBLANK('Early Action Credit'!$J226),ISBLANK('Early Action Credit'!$L226)),\"\",\"Circuit Breaker\")","v":""},null,null,null,null,null,null,null,null,null,null,{"$f":"IF('Early Action Credit'!$I226=\"Yes\",0,IF('Early Action Credit'!$E226<72.5,0,IF('Early Action Credit'!$E226=72.5,300,IF('Early Action Credit'!$E226<=145,700,IF('Early Action Credit'!$E226<=245,1900,2400)))))*IF(ISBLANK('Early Action Credit'!$J226),0,IF('Early Action Credit'!$J226=\"No\",1,'Early Action Credit'!$K226))","v":0}]
[null,{"$f":"IF(AND(ISBLANK('Early Action Credit'!$A227),ISBLANK('Early Action Credit'!$C227),ISBLANK('Early Action Credit'!$D227),ISBLANK('Early Action Credit'!$E227),ISBLANK('Early Action Credit'!$F227),ISBLANK('Early Action Credit'!$G227),ISBLANK('Early Action Credit'!$H227),ISBLANK('Early Action Credit'!$I227),ISBLANK('Early Action Credit'!$J227),ISBLANK('Early Action Credit'!$L227)),\"\",\"Circuit Breaker\")","v":""},null,null,null,null,null,null,null,null,null,null,{"$f":"IF('Early Action Credit'!$I227=\"Yes\",0,IF('Early Action Credit'!$E227<72.5,0,IF('Early Action Credit'!$E227=72.5,300,IF('Early Action Credit'!$E227<=145,700,IF('Early Action Credit'!$E227<=245,1900,2400)))))*IF(ISBLANK('Early Action Credit'!$J227),0,IF('Early Action Credit'!$J227=\"No\",1,'Early Action Credit'!$K227))","v":0}]
[null,{"$f":"IF(AND(ISBLANK('Early Action Credit'!$A228),ISBLANK('Early Action Credit'!$C228),ISBLANK('Early Action Credit'!$D228),ISBLANK('Early Action Credit'!$E228),ISBLANK('Early Action Credit'!$F228),ISBLANK('Early Action Credit'!$G228),ISBLANK('Early Action Credit'!$H228),ISBLANK('Early Action Credit'!$I228),ISBLANK('Early Action Credit'!$J228),ISBLANK('Early Action Credit'!$L228)),\"\",\"Circuit Breaker\")","v":""},null,null,null,null,null,null,null,null,null,null,{"$f":"IF('Early Action Credit'!$I228=\"Yes\",0,IF('Early Action Credit'!$E228<72.5,0,IF('Early Action Credit'!$E228=72.5,300,IF('Early Action Credit'!$E228<=145,700,IF('Early Action Credit'!$E228<=245,1900,2400)))))*IF(ISBLANK('Early Action Credit'!$J228),0,IF('Early Action Credit'!$J228=\"No\",1,'Early Action Credit'!$K228))","v":0}]
[null,{"$f":"IF(AND(ISBLANK('Early Action Credit'!$A229),ISBLANK('Early Action Credit'!$C229),ISBLANK('Early Action Credit'!$D229),ISBLANK('Early Action Credit'!$E229),ISBLANK('Early Action Credit'!$F229),ISBLANK('Early Action Credit'!$G229),ISBLANK('Early Action Credit'!$H229),ISBLANK('Early Action Credit'!$I229),ISBLANK('Early Action Credit'!$J229),ISBLANK('Early Action Credit'!$L229)),\"\",\"Circuit Breaker\")","v":""},null,null,null,null,null,null,null,null,null,null,{"$f":"IF('Early Action Credit'!$I229=\"Yes\",0,IF('Early Action Credit'!$E229<72.5,0,IF('Early Action Credit'!$E229=72.5,300,IF('Early Action Credit'!$E229<=145,700,IF('Early Action Credit'!$E229<=245,1900,2400)))))*IF(ISBLANK('Early Action Credit'!$J229),0,IF('Early Action Credit'!$J229=\"No\",1,'Early Action Credit'!$K229))","v":0}]
[null,{"$f":"IF(AND(ISBLANK('Early Action Credit'!$A230),ISBLANK('Early Action Credit'!$C230),ISBLANK('Early Action Credit'!$D230),ISBLANK('Early Action Credit'!$E230),ISBLANK('Early Action Credit'!$F230),ISBLANK('Early Action Credit'!$G230),ISBLANK('Early Action Credit'!$H230),ISBLANK('Early Action Credit'!$I230),ISBLANK('Early Action Credit'!$J230),ISBLANK('Early Action Credit'!$L230)),\"\",\"Circuit Breaker\")","v":""},null,null,null,null,null,null,null,null,null,null,{"$f":"IF('Early Action Credit'!$I230=\"Yes\",0,IF('Early Action Credit'!$E230<72.5,0,IF('Early Action Credit'!$E230=72.5,300,IF('Early Action Credit'!$E230<=145,700,IF('Early Action Credit'!$E230<=245,1900,2400)))))*IF(ISBLANK('Early Action Credit'!$J230),0,IF('Early Action Credit'!$J230=\"No\",1,'Early Action Credit'!$K230))","v":0}]
[null,{"$f":"IF(AND(ISBLANK('Early Action Credit'!$A231),ISBLANK('Early Action Credit'!$C231),ISBLANK('Early Action Credit'!$D231),ISBLANK('Early Action Credit'!$E231),ISBLANK('Early Action Credit'!$F231),ISBLANK('Early Action Credit'!$G231),ISBLANK('Early Action Credit'!$H231),ISBLANK('Early Action Credit'!$I231),ISBLANK('Early Action Credit'!$J231),ISBLANK('Early Action Credit'!$L231)),\"\",\"Circuit Breaker\")","v":""},null,null,null,null,null,null,null,null,null,null,{"$f":"IF('Early Action Credit'!$I231=\"Yes\",0,IF('Early Action Credit'!$E231<72.5,0,IF('Early Action Credit'!$E231=72.5,300,IF('Early Action Credit'!$E231<=145,700,IF('Early Action Credit'!$E231<=245,1900,2400)))))*IF(ISBLANK('Early Action Credit'!$J231),0,IF('Early Action Credit'!$J231=\"No\",1,'Early Action Credit'!$K231))","v":0}]
[null,{"$f":"IF(AND(ISBLANK('Early Action Credit'!$A232),ISBLANK('Early Action Credit'!$C232),ISBLANK('Early Action Credit'!$D232),ISBLANK('Early Action Credit'!$E232),ISBLANK('Early Action Credit'!$F232),ISBLANK('Early Action Credit'!$G232),ISBLANK('Early Action Credit'!$H232),ISBLANK('Early Action Credit'!$I232),ISBLANK('Early Action Credit'!$J232),ISBLANK('Early Action Credit'!$L232)),\"\",\"Circuit Breaker\")","v":""},null,null,null,null,null,null,null,null,null,null,{"$f":"IF('Early Action Credit'!$I232=\"Yes\",0,IF('Early Action Credit'!$E232<72.5,0,IF('Early Action Credit'!$E232=72.5,300,IF('Early Action Credit'!$E232<=145,700,IF('Early Action Credit'!$E232<=245,1900,2400)))))*IF(ISBLANK('Early Action Credit'!$J232),0,IF('Early Action Credit'!$J232=\"No\",1,'Early Action Credit'!$K232))","v":0}]
[null,{"$f":"IF(AND(ISBLANK('Early Action Credit'!$A233),ISBLANK('Early Action Credit'!$C233),ISBLANK('Early Action Credit'!$D233),ISBLANK('Early Action Credit'!$E233),ISBLANK('Early Action Credit'!$F233),ISBLANK('Early Action Credit'!$G233),ISBLANK('Early Action Credit'!$H233),ISBLANK('Early Action Credit'!$I233),ISBLANK('Early Action Credit'!$J233),ISBLANK('Early Action Credit'!$L233)),\"\",\"Circuit Breaker\")","v":""},null,null,null,null,null,null,null,null,null,null,{"$f":"IF('Early Action Credit'!$I233=\"Yes\",0,IF('Early Action Credit'!$E233<72.5,0,IF('Early Action Credit'!$E233=72.5,300,IF('Early Action Credit'!$E233<=145,700,IF('Early Action Credit'!$E233<=245,1900,2400)))))*IF(ISBLANK('Early Action Credit'!$J233),0,IF('Early Action Credit'!$J233=\"No\",1,'Early Action Credit'!$K233))","v":0}]
[null,{"$f":"IF(AND(ISBLANK('Early Action Credit'!$A234),ISBLANK('Early Action Credit'!$C234),ISBLANK('Early Action Credit'!$D234),ISBLANK('Early Action Credit'!$E234),ISBLANK('Early Action Credit'!$F234),ISBLANK('Early Action Credit'!$G234),ISBLANK('Early Action Credit'!$H234),ISBLANK('Early Action Credit'!$I234),ISBLANK('Early Action Credit'!$J234),ISBLANK('Early Action Credit'!$L234)),\"\",\"Circuit Breaker\")","v":""},null,null,null,null,null,null,null,null,null,null,{"$f":"IF('Early Action Credit'!$I234=\"Yes\",0,IF('Early Action Credit'!$E234<72.5,0,IF('Early Action Credit'!$E234=72.5,300,IF('Early Action Credit'!$E234<=145,700,IF('Early Action Credit'!$E234<=245,1900,2400)))))*IF(ISBLANK('Early Action Credit'!$J234),0,IF('Early Action Credit'!$J234=\"No\",1,'Early Action Credit'!$K234))","v":0}]
[null,{"$f":"IF(AND(ISBLANK('Early Action Credit'!$A235),ISBLANK('Early Action Credit'!$C235),ISBLANK('Early Action Credit'!$D235),ISBLANK('Early Action Credit'!$E235),ISBLANK('Early Action Credit'!$F235),ISBLANK('Early Action Credit'!$G235),ISBLANK('Early Action Credit'!$H235),ISBLANK('Early Action Credit'!$I235),ISBLANK('Early Action Credit'!$J235),ISBLANK('Early Action Credit'!$L235)),\"\",\"Circuit Breaker\")","v":""},null,null,null,null,null,null,null,null,null,null,{"$f":"IF('Early Action Credit'!$I235=\"Yes\",0,IF('Early Action Credit'!$E235<72.5,0,IF('Early Action Credit'!$E235=72.5,300,IF('Early Action Credit'!$E235<=145,700,IF('Early Action Credit'!$E235<=245,1900,2400)))))*IF(ISBLANK('Early Action Credit'!$J235),0,IF('Early Action Credit'!$J235=\"No\",1,'Early Action Credit'!$K235))","v":0}]
[null,{"$f":"IF(AND(ISBLANK('Early Action Credit'!$A236),ISBLANK('Early Action Credit'!$C236),ISBLANK('Early Action Credit'!$D236),ISBLANK('Early Action Credit'!$E236),ISBLANK('Early Action Credit'!$F236),ISBLANK('Early Action Credit'!$G236),ISBLANK('Early Action Credit'!$H236),ISBLANK('Early Action Credit'!$I236),ISBLANK('Early Action Credit'!$J236),ISBLANK('Early Action Credit'!$L236)),\"\",\"Circuit Breaker\")","v":""},null,null,null,null,null,null,null,null,null,null,{"$f":"IF('Early Action Credit'!$I236=\"Yes\",0,IF('Early Action Credit'!$E236<72.5,0,IF('Early Action Credit'!$E236=72.5,300,IF('Early Action Credit'!$E236<=145,700,IF('Early Action Credit'!$E236<=245,1900,2400)))))*IF(ISBLANK('Early Action Credit'!$J236),0,IF('Early Action Credit'!$J236=\"No\",1,'Early Action Credit'!$K236))","v":0}]
[null,{"$f":"IF(AND(ISBLANK('Early Action Credit'!$A237),ISBLANK('Early Action Credit'!$C237),ISBLANK('Early Action Credit'!$D237),ISBLANK('Early Action Credit'!$E237),ISBLANK('Early Action Credit'!$F237),ISBLANK('Early Action Credit'!$G237),ISBLANK('Early Action Credit'!$H237),ISBLANK('Early Action Credit'!$I237),ISBLANK('Early Action Credit'!$J237),ISBLANK('Early Action Credit'!$L237)),\"\",\"Circuit Breaker\")","v":""},null,null,null,null,null,null,null,null,null,null,{"$f":"IF('Early Action Credit'!$I237=\"Yes\",0,IF('Early Action Credit'!$E237<72.5,0,IF('Early Action Credit'!$E237=72.5,300,IF('Early Action Credit'!$E237<=145,700,IF('Early Action Credit'!$E237<=245,1900,2400)))))*IF(ISBLANK('Early Action Credit'!$J237),0,IF('Early Action Credit'!$J237=\"No\",1,'Early Action Credit'!$K237))","v":0}]
[null,{"$f":"IF(AND(ISBLANK('Early Action Credit'!$A238),ISBLANK('Early Action Credit'!$C238),ISBLANK('Early Action Credit'!$D238),ISBLANK('Early Action Credit'!$E238),ISBLANK('Early Action Credit'!$F238),ISBLANK('Early Action Credit'!$G238),ISBLANK('Early Action Credit'!$H238),ISBLANK('Early Action Credit'!$I238),ISBLANK('Early Action Credit'!$J238),ISBLANK('Early Action Credit'!$L238)),\"\",\"Circuit Breaker\")","v":""},null,null,null,null,null,null,null,null,null,null,{"$f":"IF('Early Action Credit'!$I238=\"Yes\",0,IF('Early Action Credit'!$E238<72.5,0,IF('Early Action Credit'!$E238=72.5,300,IF('Early Action Credit'!$E238<=145,700,IF('Early Action Credit'!$E238<=245,1900,2400)))))*IF(ISBLANK('Early Action Credit'!$J238),0,IF('Early Action Credit'!$J238=\"No\",1,'Early Action Credit'!$K238))","v":0}]
[null,{"$f":"IF(AND(ISBLANK('Early Action Credit'!$A239),ISBLANK('Early Action Credit'!$C239),ISBLANK('Early Action Credit'!$D239),ISBLANK('Early Action Credit'!$E239),ISBLANK('Early Action Credit'!$F239),ISBLANK('Early Action Credit'!$G239),ISBLANK('Early Action Credit'!$H239),ISBLANK('Early Action Credit'!$I239),ISBLANK('Early Action Credit'!$J239),ISBLANK('Early Action Credit'!$L239)),\"\",\"Circuit Breaker\")","v":""},null,null,null,null,null,null,null,null,null,null,{"$f":"IF('Early Action Credit'!$I239=\"Yes\",0,IF('Early Action Credit'!$E239<72.5,0,IF('Early Action Credit'!$E239=72.5,300,IF('Early Action Credit'!$E239<=145,700,IF('Early Action Credit'!$E239<=245,1900,2400)))))*IF(ISBLANK('Early Action Credit'!$J239),0,IF('Early Action Credit'!$J239=\"No\",1,'Early Action Credit'!$K239))","v":0}]
[null,{"$f":"IF(AND(ISBLANK('Early Action Credit'!$A240),ISBLANK('Early Action Credit'!$C240),ISBLANK('Early Action Credit'!$D240),ISBLANK('Early Action Credit'!$E240),ISBLANK('Early Action Credit'!$F240),ISBLANK('Early Action Credit'!$G240),ISBLANK('Early Action Credit'!$H240),ISBLANK('Early Action Credit'!$I240),ISBLANK('Early Action Credit'!$J240),ISBLANK('Early Action Credit'!$L240)),\"\",\"Circuit Breaker\")","v":""},null,null,null,null,null,null,null,null,null,null,{"$f":"IF('Early Action Credit'!$I240=\"Yes\",0,IF('Early Action Credit'!$E240<72.5,0,IF('Early Action Credit'!$E240=72.5,300,IF('Early Action Credit'!$E240<=145,700,IF('Early Action Credit'!$E240<=245,1900,2400)))))*IF(ISBLANK('Early Action Credit'!$J240),0,IF('Early Action Credit'!$J240=\"No\",1,'Early Action Credit'!$K240))","v":0}]
[null,{"$f":"IF(AND(ISBLANK('Early Action Credit'!$A241),ISBLANK('Early Action Credit'!$C241),ISBLANK('Early Action Credit'!$D241),ISBLANK('Early Action Credit'!$E241),ISBLANK('Early Action Credit'!$F241),ISBLANK('Early Action Credit'!$G241),ISBLANK('Early Action Credit'!$H241),ISBLANK('Early Action Credit'!$I241),ISBLANK('Early Action Credit'!$J241),ISBLANK('Early Action Credit'!$L241)),\"\",\"Circuit Breaker\")","v":""},null,null,null,null,null,null,null,null,null,null,{"$f":"IF('Early Action Credit'!$I241=\"Yes\",0,IF('Early Action Credit'!$E241<72.5,0,IF('Early Action Credit'!$E241=72.5,300,IF('Early Action Credit'!$E241<=145,700,IF('Early Action Credit'!$E241<=245,1900,2400)))))*IF(ISBLANK('Early Action Credit'!$J241),0,IF('Early Action Credit'!$J241=\"No\",1,'Early Action Credit'!$K241))","v":0}]
[null,{"$f":"IF(AND(ISBLANK('Early Action Credit'!$A242),ISBLANK('Early Action Credit'!$C242),ISBLANK('Early Action Credit'!$D242),ISBLANK('Early Action Credit'!$E242),ISBLANK('Early Action Credit'!$F242),ISBLANK('Early Action Credit'!$G242),ISBLANK('Early Action Credit'!$H242),ISBLANK('Early Action Credit'!$I242),ISBLANK('Early Action Credit'!$J242),ISBLANK('Early Action Credit'!$L242)),\"\",\"Circuit Breaker\")","v":""},null,null,null,null,null,null,null,null,null,null,{"$f":"IF('Early Action Credit'!$I242=\"Yes\",0,IF('Early Action Credit'!$E242<72.5,0,IF('Early Action Credit'!$E242=72.5,300,IF('Early Action Credit'!$E242<=145,700,IF('Early Action Credit'!$E242<=245,1900,2400)))))*IF(ISBLANK('Early Action Credit'!$J242),0,IF('Early Action Credit'!$J242=\"No\",1,'Early Action Credit'!$K242))","v":0}]
[null,{"$f":"IF(AND(ISBLANK('Early Action Credit'!$A243),ISBLANK('Early Action Credit'!$C243),ISBLANK('Early Action Credit'!$D243),ISBLANK('Early Action Credit'!$E243),ISBLANK('Early Action Credit'!$F243),ISBLANK('Early Action Credit'!$G243),ISBLANK('Early Action Credit'!$H243),ISBLANK('Early Action Credit'!$I243),ISBLANK('Early Action Credit'!$J243),ISBLANK('Early Action Credit'!$L243)),\"\",\"Circuit Breaker\")","v":""},null,null,null,null,null,null,null,null,null,null,{"$f":"IF('Early Action Credit'!$I243=\"Yes\",0,IF('Early Action Credit'!$E243<72.5,0,IF('Early Action Credit'!$E243=72.5,300,IF('Early Action Credit'!$E243<=145,700,IF('Early Action Credit'!$E243<=245,1900,2400)))))*IF(ISBLANK('Early Action Credit'!$J243),0,IF('Early Action Credit'!$J243=\"No\",1,'Early Action Credit'!$K243))","v":0}]
[null,{"$f":"IF(AND(ISBLANK('Early Action Credit'!$A244),ISBLANK('Early Action Credit'!$C244),ISBLANK('Early Action Credit'!$D244),ISBLANK('Early Action Credit'!$E244),ISBLANK('Early Action Credit'!$F244),ISBLANK('Early Action Credit'!$G244),ISBLANK('Early Action Credit'!$H244),ISBLANK('Early Action Credit'!$I244),ISBLANK('Early Action Credit'!$J244),ISBLANK('Early Action Credit'!$L244)),\"\",\"Circuit Breaker\")","v":""},null,null,null,null,null,null,null,null,null,null,{"$f":"IF('Early Action Credit'!$I244=\"Yes\",0,IF('Early Action Credit'!$E244<72.5,0,IF('Early Action Credit'!$E244=72.5,300,IF('Early Action Credit'!$E244<=145,700,IF('Early Action Credit'!$E244<=245,1900,2400)))))*IF(ISBLANK('Early Action Credit'!$J244),0,IF('Early Action Credit'!$J244=\"No\",1,'Early Action Credit'!$K244))","v":0}]
[null,{"$f":"IF(AND(ISBLANK('Early Action Credit'!$A245),ISBLANK('Early Action Credit'!$C245),ISBLANK('Early Action Credit'!$D245),ISBLANK('Early Action Credit'!$E245),ISBLANK('Early Action Credit'!$F245),ISBLANK('Early Action Credit'!$G245),ISBLANK('Early Action Credit'!$H245),ISBLANK('Early Action Credit'!$I245),ISBLANK('Early Action Credit'!$J245),ISBLANK('Early Action Credit'!$L245)),\"\",\"Circuit Breaker\")","v":""},null,null,null,null,null,null,null,null,null,null,{"$f":"IF('Early Action Credit'!$I245=\"Yes\",0,IF('Early Action Credit'!$E245<72.5,0,IF('Early Action Credit'!$E245=72.5,300,IF('Early Action Credit'!$E245<=145,700,IF('Early Action Credit'!$E245<=245,1900,2400)))))*IF(ISBLANK('Early Action Credit'!$J245),0,IF('Early Action Credit'!$J245=\"No\",1,'Early Action Credit'!$K245))","v":0}]
[null,{"$f":"IF(AND(ISBLANK('Early Action Credit'!$A246),ISBLANK('Early Action Credit'!$C246),ISBLANK('Early Action Credit'!$D246),ISBLANK('Early Action Credit'!$E246),ISBLANK('Early Action Credit'!$F246),ISBLANK('Early Action Credit'!$G246),ISBLANK('Early Action Credit'!$H246),ISBLANK('Early Action Credit'!$I246),ISBLANK('Early Action Credit'!$J246),ISBLANK('Early Action Credit'!$L246)),\"\",\"Circuit Breaker\")","v":""},null,null,null,null,null,null,null,null,null,null,{"$f":"IF('Early Action Credit'!$I246=\"Yes\",0,IF('Early Action Credit'!$E246<72.5,0,IF('Early Action Credit'!$E246=72.5,300,IF('Early Action Credit'!$E246<=145,700,IF('Early Action Credit'!$E246<=245,1900,2400)))))*IF(ISBLANK('Early Action Credit'!$J246),0,IF('Early Action Credit'!$J246=\"No\",1,'Early Action Credit'!$K246))","v":0}]
[null,{"$f":"IF(AND(ISBLANK('Early Action Credit'!$A247),ISBLANK('Early Action Credit'!$C247),ISBLANK('Early Action Credit'!$D247),ISBLANK('Early Action Credit'!$E247),ISBLANK('Early Action Credit'!$F247),ISBLANK('Early Action Credit'!$G247),ISBLANK('Early Action Credit'!$H247),ISBLANK('Early Action Credit'!$I247),ISBLANK('Early Action Credit'!$J247),ISBLANK('Early Action Credit'!$L247)),\"\",\"Circuit Breaker\")","v":""},null,null,null,null,null,null,null,null,null,null,{"$f":"IF('Early Action Credit'!$I247=\"Yes\",0,IF('Early Action Credit'!$E247<72.5,0,IF('Early Action Credit'!$E247=72.5,300,IF('Early Action Credit'!$E247<=145,700,IF('Early Action Credit'!$E247<=245,1900,2400)))))*IF(ISBLANK('Early Action Credit'!$J247),0,IF('Early Action Credit'!$J247=\"No\",1,'Early Action Credit'!$K247))","v":0}]
[null,{"$f":"IF(AND(ISBLANK('Early Action Credit'!$A248),ISBLANK('Early Action Credit'!$C248),ISBLANK('Early Action Credit'!$D248),ISBLANK('Early Action Credit'!$E248),ISBLANK('Early Action Credit'!$F248),ISBLANK('Early Action Credit'!$G248),ISBLANK('Early Action Credit'!$H248),ISBLANK('Early Action Credit'!$I248),ISBLANK('Early Action Credit'!$J248),ISBLANK('Early Action Credit'!$L248)),\"\",\"Circuit Breaker\")","v":""},null,null,null,null,null,null,null,null,null,null,{"$f":"IF('Early Action Credit'!$I248=\"Yes\",0,IF('Early Action Credit'!$E248<72.5,0,IF('Early Action Credit'!$E248=72.5,300,IF('Early Action Credit'!$E248<=145,700,IF('Early Action Credit'!$E248<=245,1900,2400)))))*IF(ISBLANK('Early Action Credit'!$J248),0,IF('Early Action Credit'!$J248=\"No\",1,'Early Action Credit'!$K248))","v":0}]
[null,{"$f":"IF(AND(ISBLANK('Early Action Credit'!$A249),ISBLANK('Early Action Credit'!$C249),ISBLANK('Early Action Credit'!$D249),ISBLANK('Early Action Credit'!$E249),ISBLANK('Early Action Credit'!$F249),ISBLANK('Early Action Credit'!$G249),ISBLANK('Early Action Credit'!$H249),ISBLANK('Early Action Credit'!$I249),ISBLANK('Early Action Credit'!$J249),ISBLANK('Early Action Credit'!$L249)),\"\",\"Circuit Breaker\")","v":""},null,null,null,null,null,null,null,null,null,null,{"$f":"IF('Early Action Credit'!$I249=\"Yes\",0,IF('Early Action Credit'!$E249<72.5,0,IF('Early Action Credit'!$E249=72.5,300,IF('Early Action Credit'!$E249<=145,700,IF('Early Action Credit'!$E249<=245,1900,2400)))))*IF(ISBLANK('Early Action Credit'!$J249),0,IF('Early Action Credit'!$J249=\"No\",1,'Early Action Credit'!$K249))","v":0}]
[null,{"$f":"IF(AND(ISBLANK('Early Action Credit'!$A250),ISBLANK('Early Action Credit'!$C250),ISBLANK('Early Action Credit'!$D250),ISBLANK('Early Action Credit'!$E250),ISBLANK('Early Action Credit'!$F250),ISBLANK('Early Action Credit'!$G250),ISBLANK('Early Action Credit'!$H250),ISBLANK('Early Action Credit'!$I250),ISBLANK('Early Action Credit'!$J250),ISBLANK('Early Action Credit'!$L250)),\"\",\"Circuit Breaker\")","v":""},null,null,null,null,null,null,null,null,null,null,{"$f":"IF('Early Action Credit'!$I250=\"Yes\",0,IF('Early Action Credit'!$E250<72.5,0,IF('Early Action Credit'!$E250=72.5,300,IF('Early Action Credit'!$E250<=145,700,IF('Early Action Credit'!$E250<=245,1900,2400)))))*IF(ISBLANK('Early Action Credit'!$J250),0,IF('Early Action Credit'!$J250=\"No\",1,'Early Action Credit'!$K250))","v":0}]
[null,{"$f":"IF(AND(ISBLANK('Early Action Credit'!$A251),ISBLANK('Early Action Credit'!$C251),ISBLANK('Early Action Credit'!$D251),ISBLANK('Early Action Credit'!$E251),ISBLANK('Early Action Credit'!$F251),ISBLANK('Early Action Credit'!$G251),ISBLANK('Early Action Credit'!$H251),ISBLANK('Early Action Credit'!$I251),ISBLANK('Early Action Credit'!$J251),ISBLANK('Early Action Credit'!$L251)),\"\",\"Circuit Breaker\")","v":""},null,null,null,null,null,null,null,null,null,null,{"$f":"IF('Early Action Credit'!$I251=\"Yes\",0,IF('Early Action Credit'!$E251<72.5,0,IF('Early Action Credit'!$E251=72.5,300,IF('Early Action Credit'!$E251<=145,700,IF('Early Action Credit'!$E251<=245,1900,2400)))))*IF(ISBLANK('Early Action Credit'!$J251),0,IF('Early Action Credit'!$J251=\"No\",1,'Early Action Credit'!$K251))","v":0}]
[null,{"$f":"IF(AND(ISBLANK('Early Action Credit'!$A252),ISBLANK('Early Action Credit'!$C252),ISBLANK('Early Action Credit'!$D252),ISBLANK('Early Action Credit'!$E252),ISBLANK('Early Action Credit'!$F252),ISBLANK('Early Action Credit'!$G252),ISBLANK('Early Action Credit'!$H252),ISBLANK('Early Action Credit'!$I252),ISBLANK('Early Action Credit'!$J252),ISBLANK('Early Action Credit'!$L252)),\"\",\"Circuit Breaker\")","v":""},null,null,null,null,null,null,null,null,null,null,{"$f":"IF('Early Action Credit'!$I252=\"Yes\",0,IF('Early Action Credit'!$E252<72.5,0,IF('Early Action Credit'!$E252=72.5,300,IF('Early Action Credit'!$E252<=145,700,IF('Early Action Credit'!$E252<=245,1900,2400)))))*IF(ISBLANK('Early Action Credit'!$J252),0,IF('Early Action Credit'!$J252=\"No\",1,'Early Action Credit'!$K252))","v":0}]
[null,{"$f":"IF(AND(ISBLANK('Early Action Credit'!$A253),ISBLANK('Early Action Credit'!$C253),ISBLANK('Early Action Credit'!$D253),ISBLANK('Early Action Credit'!$E253),ISBLANK('Early Action Credit'!$F253),ISBLANK('Early Action Credit'!$G253),ISBLANK('Early Action Credit'!$H253),ISBLANK('Early Action Credit'!$I253),ISBLANK('Early Action Credit'!$J253),ISBLANK('Early Action Credit'!$L253)),\"\",\"Circuit Breaker\")","v":""},null,null,null,null,null,null,null,null,null,null,{"$f":"IF('Early Action Credit'!$I253=\"Yes\",0,IF('Early Action Credit'!$E253<72.5,0,IF('Early Action Credit'!$E253=72.5,300,IF('Early Action Credit'!$E253<=145,700,IF('Early Action Credit'!$E253<=245,1900,2400)))))*IF(ISBLANK('Early Action Credit'!$J253),0,IF('Early Action Credit'!$J253=\"No\",1,'Early Action Credit'!$K253))","v":0}]
[null,{"$f":"IF(AND(ISBLANK('Early Action Credit'!$A254),ISBLANK('Early Action Credit'!$C254),ISBLANK('Early Action Credit'!$D254),ISBLANK('Early Action Credit'!$E254),ISBLANK('Early Action Credit'!$F254),ISBLANK('Early Action Credit'!$G254),ISBLANK('Early Action Credit'!$H254),ISBLANK('Early Action Credit'!$I254),ISBLANK('Early Action Credit'!$J254),ISBLANK('Early Action Credit'!$L254)),\"\",\"Circuit Breaker\")","v":""},null,null,null,null,null,null,null,null,null,null,{"$f":"IF('Early Action Credit'!$I254=\"Yes\",0,IF('Early Action Credit'!$E254<72.5,0,IF('Early Action Credit'!$E254=72.5,300,IF('Early Action Credit'!$E254<=145,700,IF('Early Action Credit'!$E254<=245,1900,2400)))))*IF(ISBLANK('Early Action Credit'!$J254),0,IF('Early Action Credit'!$J254=\"No\",1,'Early Action Credit'!$K254))","v":0}]
[null,{"$f":"IF(AND(ISBLANK('Early Action Credit'!$A255),ISBLANK('Early Action Credit'!$C255),ISBLANK('Early Action Credit'!$D255),ISBLANK('Early Action Credit'!$E255),ISBLANK('Early Action Credit'!$F255),ISBLANK('Early Action Credit'!$G255),ISBLANK('Early Action Credit'!$H255),ISBLANK('Early Action Credit'!$I255),ISBLANK('Early Action Credit'!$J255),ISBLANK('Early Action Credit'!$L255)),\"\",\"Circuit Breaker\")","v":""},null,null,null,null,null,null,null,null,null,null,{"$f":"IF('Early Action Credit'!$I255=\"Yes\",0,IF('Early Action Credit'!$E255<72.5,0,IF('Early Action Credit'!$E255=72.5,300,IF('Early Action Credit'!$E255<=145,700,IF('Early Action Credit'!$E255<=245,1900,2400)))))*IF(ISBLANK('Early Action Credit'!$J255),0,IF('Early Action Credit'!$J255=\"No\",1,'Early Action Credit'!$K255))","v":0}]
[null,{"$f":"IF(AND(ISBLANK('Early Action Credit'!$A256),ISBLANK('Early Action Credit'!$C256),ISBLANK('Early Action Credit'!$D256),ISBLANK('Early Action Credit'!$E256),ISBLANK('Early Action Credit'!$F256),ISBLANK('Early Action Credit'!$G256),ISBLANK('Early Action Credit'!$H256),ISBLANK('Early Action Credit'!$I256),ISBLANK('Early Action Credit'!$J256),ISBLANK('Early Action Credit'!$L256)),\"\",\"Circuit Breaker\")","v":""},null,null,null,null,null,null,null,null,null,null,{"$f":"IF('Early Action Credit'!$I256=\"Yes\",0,IF('Early Action Credit'!$E256<72.5,0,IF('Early Action Credit'!$E256=72.5,300,IF('Early Action Credit'!$E256<=145,700,IF('Early Action Credit'!$E256<=245,1900,2400)))))*IF(ISBLANK('Early Action Credit'!$J256),0,IF('Early Action Credit'!$J256=\"No\",1,'Early Action Credit'!$K256))","v":0}]
[null,{"$f":"IF(AND(ISBLANK('Early Action Credit'!$A257),ISBLANK('Early Action Credit'!$C257),ISBLANK('Early Action Credit'!$D257),ISBLANK('Early Action Credit'!$E257),ISBLANK('Early Action Credit'!$F257),ISBLANK('Early Action Credit'!$G257),ISBLANK('Early Action Credit'!$H257),ISBLANK('Early Action Credit'!$I257),ISBLANK('Early Action Credit'!$J257),ISBLANK('Early Action Credit'!$L257)),\"\",\"Circuit Breaker\")","v":""},null,null,null,null,null,null,null,null,null,null,{"$f":"IF('Early Action Credit'!$I257=\"Yes\",0,IF('Early Action Credit'!$E257<72.5,0,IF('Early Action Credit'!$E257=72.5,300,IF('Early Action Credit'!$E257<=145,700,IF('Early Action Credit'!$E257<=245,1900,2400)))))*IF(ISBLANK('Early Action Credit'!$J257),0,IF('Early Action Credit'!$J257=\"No\",1,'Early Action Credit'!$K257))","v":0}]
[null,{"$f":"IF(AND(ISBLANK('Early Action Credit'!$A258),ISBLANK('Early Action Credit'!$C258),ISBLANK('Early Action Credit'!$D258),ISBLANK('Early Action Credit'!$E258),ISBLANK('Early Action Credit'!$F258),ISBLANK('Early Action Credit'!$G258),ISBLANK('Early Action Credit'!$H258),ISBLANK('Early Action Credit'!$I258),ISBLANK('Early Action Credit'!$J258),ISBLANK('Early Action Credit'!$L258)),\"\",\"Circuit Breaker\")","v":""},null,null,null,null,null,null,null,null,null,null,{"$f":"IF('Early Action Credit'!$I258=\"Yes\",0,IF('Early Action Credit'!$E258<72.5,0,IF('Early Action Credit'!$E258=72.5,300,IF('Early Action Credit'!$E258<=145,700,IF('Early Action Credit'!$E258<=245,1900,2400)))))*IF(ISBLANK('Early Action Credit'!$J258),0,IF('Early Action Credit'!$J258=\"No\",1,'Early Action Credit'!$K258))","v":0}]
[null,{"$f":"IF(AND(ISBLANK('Early Action Credit'!$A259),ISBLANK('Early Action Credit'!$C259),ISBLANK('Early Action Credit'!$D259),ISBLANK('Early Action Credit'!$E259),ISBLANK('Early Action Credit'!$F259),ISBLANK('Early Action Credit'!$G259),ISBLANK('Early Action Credit'!$H259),ISBLANK('Early Action Credit'!$I259),ISBLANK('Early Action Credit'!$J259),ISBLANK('Early Action Credit'!$L259)),\"\",\"Circuit Breaker\")","v":""},null,null,null,null,null,null,null,null,null,null,{"$f":"IF('Early Action Credit'!$I259=\"Yes\",0,IF('Early Action Credit'!$E259<72.5,0,IF('Early Action Credit'!$E259=72.5,300,IF('Early Action Credit'!$E259<=145,700,IF('Early Action Credit'!$E259<=245,1900,2400)))))*IF(ISBLANK('Early Action Credit'!$J259),0,IF('Early Action Credit'!$J259=\"No\",1,'Early Action Credit'!$K259))","v":0}]
[null,{"$f":"IF(AND(ISBLANK('Early Action Credit'!$A260),ISBLANK('Early Action Credit'!$C260),ISBLANK('Early Action Credit'!$D260),ISBLANK('Early Action Credit'!$E260),ISBLANK('Early Action Credit'!$F260),ISBLANK('Early Action Credit'!$G260),ISBLANK('Early Action Credit'!$H260),ISBLANK('Early Action Credit'!$I260),ISBLANK('Early Action Credit'!$J260),ISBLANK('Early Action Credit'!$L260)),\"\",\"Circuit Breaker\")","v":""},null,null,null,null,null,null,null,null,null,null,{"$f":"IF('Early Action Credit'!$I260=\"Yes\",0,IF('Early Action Credit'!$E260<72.5,0,IF('Early Action Credit'!$E260=72.5,300,IF('Early Action Credit'!$E260<=145,700,IF('Early Action Credit'!$E260<=245,1900,2400)))))*IF(ISBLANK('Early Action Credit'!$J260),0,IF('Early Action Credit'!$J260=\"No\",1,'Early Action Credit'!$K260))","v":0}]
[null,{"$f":"IF(AND(ISBLANK('Early Action Credit'!$A261),ISBLANK('Early Action Credit'!$C261),ISBLANK('Early Action Credit'!$D261),ISBLANK('Early Action Credit'!$E261),ISBLANK('Early Action Credit'!$F261),ISBLANK('Early Action Credit'!$G261),ISBLANK('Early Action Credit'!$H261),ISBLANK('Early Action Credit'!$I261),ISBLANK('Early Action Credit'!$J261),ISBLANK('Early Action Credit'!$L261)),\"\",\"Circuit Breaker\")","v":""},null,null,null,null,null,null,null,null,null,null,{"$f":"IF('Early Action Credit'!$I261=\"Yes\",0,IF('Early Action Credit'!$E261<72.5,0,IF('Early Action Credit'!$E261=72.5,300,IF('Early Action Credit'!$E261<=145,700,IF('Early Action Credit'!$E261<=245,1900,2400)))))*IF(ISBLANK('Early Action Credit'!$J261),0,IF('Early Action Credit'!$J261=\"No\",1,'Early Action Credit'!$K261))","v":0}]
[null,{"$f":"IF(AND(ISBLANK('Early Action Credit'!$A262),ISBLANK('Early Action Credit'!$C262),ISBLANK('Early Action Credit'!$D262),ISBLANK('Early Action Credit'!$E262),ISBLANK('Early Action Credit'!$F262),ISBLANK('Early Action Credit'!$G262),ISBLANK('Early Action Credit'!$H262),ISBLANK('Early Action Credit'!$I262),ISBLANK('Early Action Credit'!$J262),ISBLANK('Early Action Credit'!$L262)),\"\",\"Circuit Breaker\")","v":""},null,null,null,null,null,null,null,null,null,null,{"$f":"IF('Early Action Credit'!$I262=\"Yes\",0,IF('Early Action Credit'!$E262<72.5,0,IF('Early Action Credit'!$E262=72.5,300,IF('Early Action Credit'!$E262<=145,700,IF('Early Action Credit'!$E262<=245,1900,2400)))))*IF(ISBLANK('Early Action Credit'!$J262),0,IF('Early Action Credit'!$J262=\"No\",1,'Early Action Credit'!$K262))","v":0}]
[null,{"$f":"IF(AND(ISBLANK('Early Action Credit'!$A263),ISBLANK('Early Action Credit'!$C263),ISBLANK('Early Action Credit'!$D263),ISBLANK('Early Action Credit'!$E263),ISBLANK('Early Action Credit'!$F263),ISBLANK('Early Action Credit'!$G263),ISBLANK('Early Action Credit'!$H263),ISBLANK('Early Action Credit'!$I263),ISBLANK('Early Action Credit'!$J263),ISBLANK('Early Action Credit'!$L263)),\"\",\"Circuit Breaker\")","v":""},null,null,null,null,null,null,null,null,null,null,{"$f":"IF('Early Action Credit'!$I263=\"Yes\",0,IF('Early Action Credit'!$E263<72.5,0,IF('Early Action Credit'!$E263=72.5,300,IF('Early Action Credit'!$E263<=145,700,IF('Early Action Credit'!$E263<=245,1900,2400)))))*IF(ISBLANK('Early Action Credit'!$J263),0,IF('Early Action Credit'!$J263=\"No\",1,'Early Action Credit'!$K263))","v":0}]
[null,{"$f":"IF(AND(ISBLANK('Early Action Credit'!$A264),ISBLANK('Early Action Credit'!$C264),ISBLANK('Early Action Credit'!$D264),ISBLANK('Early Action Credit'!$E264),ISBLANK('Early Action Credit'!$F264),ISBLANK('Early Action Credit'!$G264),ISBLANK('Early Action Credit'!$H264),ISBLANK('Early Action Credit'!$I264),ISBLANK('Early Action Credit'!$J264),ISBLANK('Early Action Credit'!$L264)),\"\",\"Circuit Breaker\")","v":""},null,null,null,null,null,null,null,null,null,null,{"$f":"IF('Early Action Credit'!$I264=\"Yes\",0,IF('Early Action Credit'!$E264<72.5,0,IF('Early Action Credit'!$E264=72.5,300,IF('Early Action Credit'!$E264<=145,700,IF('Early Action Credit'!$E264<=245,1900,2400)))))*IF(ISBLANK('Early Action Credit'!$J264),0,IF('Early Action Credit'!$J264=\"No\",1,'Early Action Credit'!$K264))","v":0}]
[null,{"$f":"IF(AND(ISBLANK('Early Action Credit'!$A265),ISBLANK('Early Action Credit'!$C265),ISBLANK('Early Action Credit'!$D265),ISBLANK('Early Action Credit'!$E265),ISBLANK('Early Action Credit'!$F265),ISBLANK('Early Action Credit'!$G265),ISBLANK('Early Action Credit'!$H265),ISBLANK('Early Action Credit'!$I265),ISBLANK('Early Action Credit'!$J265),ISBLANK('Early Action Credit'!$L265)),\"\",\"Circuit Breaker\")","v":""},null,null,null,null,null,null,null,null,null,null,{"$f":"IF('Early Action Credit'!$I265=\"Yes\",0,IF('Early Action Credit'!$E265<72.5,0,IF('Early Action Credit'!$E265=72.5,300,IF('Early Action Credit'!$E265<=145,700,IF('Early Action Credit'!$E265<=245,1900,2400)))))*IF(ISBLANK('Early Action Credit'!$J265),0,IF('Early Action Credit'!$J265=\"No\",1,'Early Action Credit'!$K265))","v":0}]
[null,{"$f":"IF(AND(ISBLANK('Early Action Credit'!$A266),ISBLANK('Early Action Credit'!$C266),ISBLANK('Early Action Credit'!$D266),ISBLANK('Early Action Credit'!$E266),ISBLANK('Early Action Credit'!$F266),ISBLANK('Early Action Credit'!$G266),ISBLANK('Early Action Credit'!$H266),ISBLANK('Early Action Credit'!$I266),ISBLANK('Early Action Credit'!$J266),ISBLANK('Early Action Credit'!$L266)),\"\",\"Circuit Breaker\")","v":""},null,null,null,null,null,null,null,null,null,null,{"$f":"IF('Early Action Credit'!$I266=\"Yes\",0,IF('Early Action Credit'!$E266<72.5,0,IF('Early Action Credit'!$E266=72.5,300,IF('Early Action Credit'!$E266<=145,700,IF('Early Action Credit'!$E266<=245,1900,2400)))))*IF(ISBLANK('Early Action Credit'!$J266),0,IF('Early Action Credit'!$J266=\"No\",1,'Early Action Credit'!$K266))","v":0}]
[null,{"$f":"IF(AND(ISBLANK('Early Action Credit'!$A267),ISBLANK('Early Action Credit'!$C267),ISBLANK('Early Action Credit'!$D267),ISBLANK('Early Action Credit'!$E267),ISBLANK('Early Action Credit'!$F267),ISBLANK('Early Action Credit'!$G267),ISBLANK('Early Action Credit'!$H267),ISBLANK('Early Action Credit'!$I267),ISBLANK('Early Action Credit'!$J267),ISBLANK('Early Action Credit'!$L267)),\"\",\"Circuit Breaker\")","v":""},null,null,null,null,null,null,null,null,null,null,{"$f":"IF('Early Action Credit'!$I267=\"Yes\",0,IF('Early Action Credit'!$E267<72.5,0,IF('Early Action Credit'!$E267=72.5,300,IF('Early Action Credit'!$E267<=145,700,IF('Early Action Credit'!$E267<=245,1900,2400)))))*IF(ISBLANK('Early Action Credit'!$J267),0,IF('Early Action Credit'!$J267=\"No\",1,'Early Action Credit'!$K267))","v":0}]
[null,{"$f":"IF(AND(ISBLANK('Early Action Credit'!$A268),ISBLANK('Early Action Credit'!$C268),ISBLANK('Early Action Credit'!$D268),ISBLANK('Early Action Credit'!$E268),ISBLANK('Early Action Credit'!$F268),ISBLANK('Early Action Credit'!$G268),ISBLANK('Early Action Credit'!$H268),ISBLANK('Early Action Credit'!$I268),ISBLANK('Early Action Credit'!$J268),ISBLANK('Early Action Credit'!$L268)),\"\",\"Circuit Breaker\")","v":""},null,null,null,null,null,null,null,null,null,null,{"$f":"IF('Early Action Credit'!$I268=\"Yes\",0,IF('Early Action Credit'!$E268<72.5,0,IF('Early Action Credit'!$E268=72.5,300,IF('Early Action Credit'!$E268<=145,700,IF('Early Action Credit'!$E268<=245,1900,2400)))))*IF(ISBLANK('Early Action Credit'!$J268),0,IF('Early Action Credit'!$J268=\"No\",1,'Early Action Credit'!$K268))","v":0}]
[null,{"$f":"IF(AND(ISBLANK('Early Action Credit'!$A269),ISBLANK('Early Action Credit'!$C269),ISBLANK('Early Action Credit'!$D269),ISBLANK('Early Action Credit'!$E269),ISBLANK('Early Action Credit'!$F269),ISBLANK('Early Action Credit'!$G269),ISBLANK('Early Action Credit'!$H269),ISBLANK('Early Action Credit'!$I269),ISBLANK('Early Action Credit'!$J269),ISBLANK('Early Action Credit'!$L269)),\"\",\"Circuit Breaker\")","v":""},null,null,null,null,null,null,null,null,null,null,{"$f":"IF('Early Action Credit'!$I269=\"Yes\",0,IF('Early Action Credit'!$E269<72.5,0,IF('Early Action Credit'!$E269=72.5,300,IF('Early Action Credit'!$E269<=145,700,IF('Early Action Credit'!$E269<=245,1900,2400)))))*IF(ISBLANK('Early Action Credit'!$J269),0,IF('Early Action Credit'!$J269=\"No\",1,'Early Action Credit'!$K269))","v":0}]
[null,{"$f":"IF(AND(ISBLANK('Early Action Credit'!$A270),ISBLANK('Early Action Credit'!$C270),ISBLANK('Early Action Credit'!$D270),ISBLANK('Early Action Credit'!$E270),ISBLANK('Early Action Credit'!$F270),ISBLANK('Early Action Credit'!$G270),ISBLANK('Early Action Credit'!$H270),ISBLANK('Early Action Credit'!$I270),ISBLANK('Early Action Credit'!$J270),ISBLANK('Early Action Credit'!$L270)),\"\",\"Circuit Breaker\")","v":""},null,null,null,null,null,null,null,null,null,null,{"$f":"IF('Early Action Credit'!$I270=\"Yes\",0,IF('Early Action Credit'!$E270<72.5,0,IF('Early Action Credit'!$E270=72.5,300,IF('Early Action Credit'!$E270<=145,700,IF('Early Action Credit'!$E270<=245,1900,2400)))))*IF(ISBLANK('Early Action Credit'!$J270),0,IF('Early Action Credit'!$J270=\"No\",1,'Early Action Credit'!$K270))","v":0}]
[null,{"$f":"IF(AND(ISBLANK('Early Action Credit'!$A271),ISBLANK('Early Action Credit'!$C271),ISBLANK('Early Action Credit'!$D271),ISBLANK('Early Action Credit'!$E271),ISBLANK('Early Action Credit'!$F271),ISBLANK('Early Action Credit'!$G271),ISBLANK('Early Action Credit'!$H271),ISBLANK('Early Action Credit'!$I271),ISBLANK('Early Action Credit'!$J271),ISBLANK('Early Action Credit'!$L271)),\"\",\"Circuit Breaker\")","v":""},null,null,null,null,null,null,null,null,null,null,{"$f":"IF('Early Action Credit'!$I271=\"Yes\",0,IF('Early Action Credit'!$E271<72.5,0,IF('Early Action Credit'!$E271=72.5,300,IF('Early Action Credit'!$E271<=145,700,IF('Early Action Credit'!$E271<=245,1900,2400)))))*IF(ISBLANK('Early Action Credit'!$J271),0,IF('Early Action Credit'!$J271=\"No\",1,'Early Action Credit'!$K271))","v":0}]
[null,{"$f":"IF(AND(ISBLANK('Early Action Credit'!$A272),ISBLANK('Early Action Credit'!$C272),ISBLANK('Early Action Credit'!$D272),ISBLANK('Early Action Credit'!$E272),ISBLANK('Early Action Credit'!$F272),ISBLANK('Early Action Credit'!$G272),ISBLANK('Early Action Credit'!$H272),ISBLANK('Early Action Credit'!$I272),ISBLANK('Early Action Credit'!$J272),ISBLANK('Early Action Credit'!$L272)),\"\",\"Circuit Breaker\")","v":""},null,null,null,null,null,null,null,null,null,null,{"$f":"IF('Early Action Credit'!$I272=\"Yes\",0,IF('Early Action Credit'!$E272<72.5,0,IF('Early Action Credit'!$E272=72.5,300,IF('Early Action Credit'!$E272<=145,700,IF('Early Action Credit'!$E272<=245,1900,2400)))))*IF(ISBLANK('Early Action Credit'!$J272),0,IF('Early Action Credit'!$J272=\"No\",1,'Early Action Credit'!$K272))","v":0}]
[null,{"$f":"IF(AND(ISBLANK('Early Action Credit'!$A273),ISBLANK('Early Action Credit'!$C273),ISBLANK('Early Action Credit'!$D273),ISBLANK('Early Action Credit'!$E273),ISBLANK('Early Action Credit'!$F273),ISBLANK('Early Action Credit'!$G273),ISBLANK('Early Action Credit'!$H273),ISBLANK('Early Action Credit'!$I273),ISBLANK('Early Action Credit'!$J273),ISBLANK('Early Action Credit'!$L273)),\"\",\"Circuit Breaker\")","v":""},null,null,null,null,null,null,null,null,null,null,{"$f":"IF('Early Action Credit'!$I273=\"Yes\",0,IF('Early Action Credit'!$E273<72.5,0,IF('Early Action Credit'!$E273=72.5,300,IF('Early Action Credit'!$E273<=145,700,IF('Early Action Credit'!$E273<=245,1900,2400)))))*IF(ISBLANK('Early Action Credit'!$J273),0,IF('Early Action Credit'!$J273=\"No\",1,'Early Action Credit'!$K273))","v":0}]
[null,{"$f":"IF(AND(ISBLANK('Early Action Credit'!$A274),ISBLANK('Early Action Credit'!$C274),ISBLANK('Early Action Credit'!$D274),ISBLANK('Early Action Credit'!$E274),ISBLANK('Early Action Credit'!$F274),ISBLANK('Early Action Credit'!$G274),ISBLANK('Early Action Credit'!$H274),ISBLANK('Early Action Credit'!$I274),ISBLANK('Early Action Credit'!$J274),ISBLANK('Early Action Credit'!$L274)),\"\",\"Circuit Breaker\")","v":""},null,null,null,null,null,null,null,null,null,null,{"$f":"IF('Early Action Credit'!$I274=\"Yes\",0,IF('Early Action Credit'!$E274<72.5,0,IF('Early Action Credit'!$E274=72.5,300,IF('Early Action Credit'!$E274<=145,700,IF('Early Action Credit'!$E274<=245,1900,2400)))))*IF(ISBLANK('Early Action Credit'!$J274),0,IF('Early Action Credit'!$J274=\"No\",1,'Early Action Credit'!$K274))","v":0}]
[null,{"$f":"IF(AND(ISBLANK('Early Action Credit'!$A275),ISBLANK('Early Action Credit'!$C275),ISBLANK('Early Action Credit'!$D275),ISBLANK('Early Action Credit'!$E275),ISBLANK('Early Action Credit'!$F275),ISBLANK('Early Action Credit'!$G275),ISBLANK('Early Action Credit'!$H275),ISBLANK('Early Action Credit'!$I275),ISBLANK('Early Action Credit'!$J275),ISBLANK('Early Action Credit'!$L275)),\"\",\"Circuit Breaker\")","v":""},null,null,null,null,null,null,null,null,null,null,{"$f":"IF('Early Action Credit'!$I275=\"Yes\",0,IF('Early Action Credit'!$E275<72.5,0,IF('Early Action Credit'!$E275=72.5,300,IF('Early Action Credit'!$E275<=145,700,IF('Early Action Credit'!$E275<=245,1900,2400)))))*IF(ISBLANK('Early Action Credit'!$J275),0,IF('Early Action Credit'!$J275=\"No\",1,'Early Action Credit'!$K275))","v":0}]
[null,{"$f":"IF(AND(ISBLANK('Early Action Credit'!$A276),ISBLANK('Early Action Credit'!$C276),ISBLANK('Early Action Credit'!$D276),ISBLANK('Early Action Credit'!$E276),ISBLANK('Early Action Credit'!$F276),ISBLANK('Early Action Credit'!$G276),ISBLANK('Early Action Credit'!$H276),ISBLANK('Early Action Credit'!$I276),ISBLANK('Early Action Credit'!$J276),ISBLANK('Early Action Credit'!$L276)),\"\",\"Circuit Breaker\")","v":""},null,null,null,null,null,null,null,null,null,null,{"$f":"IF('Early Action Credit'!$I276=\"Yes\",0,IF('Early Action Credit'!$E276<72.5,0,IF('Early Action Credit'!$E276=72.5,300,IF('Early Action Credit'!$E276<=145,700,IF('Early Action Credit'!$E276<=245,1900,2400)))))*IF(ISBLANK('Early Action Credit'!$J276),0,IF('Early Action Credit'!$J276=\"No\",1,'Early Action Credit'!$K276))","v":0}]
[null,{"$f":"IF(AND(ISBLANK('Early Action Credit'!$A277),ISBLANK('Early Action Credit'!$C277),ISBLANK('Early Action Credit'!$D277),ISBLANK('Early Action Credit'!$E277),ISBLANK('Early Action Credit'!$F277),ISBLANK('Early Action Credit'!$G277),ISBLANK('Early Action Credit'!$H277),ISBLANK('Early Action Credit'!$I277),ISBLANK('Early Action Credit'!$J277),ISBLANK('Early Action Credit'!$L277)),\"\",\"Circuit Breaker\")","v":""},null,null,null,null,null,null,null,null,null,null,{"$f":"IF('Early Action Credit'!$I277=\"Yes\",0,IF('Early Action Credit'!$E277<72.5,0,IF('Early Action Credit'!$E277=72.5,300,IF('Early Action Credit'!$E277<=145,700,IF('Early Action Credit'!$E277<=245,1900,2400)))))*IF(ISBLANK('Early Action Credit'!$J277),0,IF('Early Action Credit'!$J277=\"No\",1,'Early Action Credit'!$K277))","v":0}]
[null,{"$f":"IF(AND(ISBLANK('Early Action Credit'!$A278),ISBLANK('Early Action Credit'!$C278),ISBLANK('Early Action Credit'!$D278),ISBLANK('Early Action Credit'!$E278),ISBLANK('Early Action Credit'!$F278),ISBLANK('Early Action Credit'!$G278),ISBLANK('Early Action Credit'!$H278),ISBLANK('Early Action Credit'!$I278),ISBLANK('Early Action Credit'!$J278),ISBLANK('Early Action Credit'!$L278)),\"\",\"Circuit Breaker\")","v":""},null,null,null,null,null,null,null,null,null,null,{"$f":"IF('Early Action Credit'!$I278=\"Yes\",0,IF('Early Action Credit'!$E278<72.5,0,IF('Early Action Credit'!$E278=72.5,300,IF('Early Action Credit'!$E278<=145,700,IF('Early Action Credit'!$E278<=245,1900,2400)))))*IF(ISBLANK('Early Action Credit'!$J278),0,IF('Early Action Credit'!$J278=\"No\",1,'Early Action Credit'!$K278))","v":0}]
[null,{"$f":"IF(AND(ISBLANK('Early Action Credit'!$A279),ISBLANK('Early Action Credit'!$C279),ISBLANK('Early Action Credit'!$D279),ISBLANK('Early Action Credit'!$E279),ISBLANK('Early Action Credit'!$F279),ISBLANK('Early Action Credit'!$G279),ISBLANK('Early Action Credit'!$H279),ISBLANK('Early Action Credit'!$I279),ISBLANK('Early Action Credit'!$J279),ISBLANK('Early Action Credit'!$L279)),\"\",\"Circuit Breaker\")","v":""},null,null,null,null,null,null,null,null,null,null,{"$f":"IF('Early Action Credit'!$I279=\"Yes\",0,IF('Early Action Credit'!$E279<72.5,0,IF('Early Action Credit'!$E279=72.5,300,IF('Early Action Credit'!$E279<=145,700,IF('Early Action Credit'!$E279<=245,1900,2400)))))*IF(ISBLANK('Early Action Credit'!$J279),0,IF('Early Action Credit'!$J279=\"No\",1,'Early Action Credit'!$K279))","v":0}]
[null,{"$f":"IF(AND(ISBLANK('Early Action Credit'!$A280),ISBLANK('Early Action Credit'!$C280),ISBLANK('Early Action Credit'!$D280),ISBLANK('Early Action Credit'!$E280),ISBLANK('Early Action Credit'!$F280),ISBLANK('Early Action Credit'!$G280),ISBLANK('Early Action Credit'!$H280),ISBLANK('Early Action Credit'!$I280),ISBLANK('Early Action Credit'!$J280),ISBLANK('Early Action Credit'!$L280)),\"\",\"Circuit Breaker\")","v":""},null,null,null,null,null,null,null,null,null,null,{"$f":"IF('Early Action Credit'!$I280=\"Yes\",0,IF('Early Action Credit'!$E280<72.5,0,IF('Early Action Credit'!$E280=72.5,300,IF('Early Action Credit'!$E280<=145,700,IF('Early Action Credit'!$E280<=245,1900,2400)))))*IF(ISBLANK('Early Action Credit'!$J280),0,IF('Early Action Credit'!$J280=\"No\",1,'Early Action Credit'!$K280))","v":0}]
[null,{"$f":"IF(AND(ISBLANK('Early Action Credit'!$A281),ISBLANK('Early Action Credit'!$C281),ISBLANK('Early Action Credit'!$D281),ISBLANK('Early Action Credit'!$E281),ISBLANK('Early Action Credit'!$F281),ISBLANK('Early Action Credit'!$G281),ISBLANK('Early Action Credit'!$H281),ISBLANK('Early Action Credit'!$I281),ISBLANK('Early Action Credit'!$J281),ISBLANK('Early Action Credit'!$L281)),\"\",\"Circuit Breaker\")","v":""},null,null,null,null,null,null,null,null,null,null,{"$f":"IF('Early Action Credit'!$I281=\"Yes\",0,IF('Early Action Credit'!$E281<72.5,0,IF('Early Action Credit'!$E281=72.5,300,IF('Early Action Credit'!$E281<=145,700,IF('Early Action Credit'!$E281<=245,1900,2400)))))*IF(ISBLANK('Early Action Credit'!$J281),0,IF('Early Action Credit'!$J281=\"No\",1,'Early Action Credit'!$K281))","v":0}]
[null,{"$f":"IF(AND(ISBLANK('Early Action Credit'!$A282),ISBLANK('Early Action Credit'!$C282),ISBLANK('Early Action Credit'!$D282),ISBLANK('Early Action Credit'!$E282),ISBLANK('Early Action Credit'!$F282),ISBLANK('Early Action Credit'!$G282),ISBLANK('Early Action Credit'!$H282),ISBLANK('Early Action Credit'!$I282),ISBLANK('Early Action Credit'!$J282),ISBLANK('Early Action Credit'!$L282)),\"\",\"Circuit Breaker\")","v":""},null,null,null,null,null,null,null,null,null,null,{"$f":"IF('Early Action Credit'!$I282=\"Yes\",0,IF('Early Action Credit'!$E282<72.5,0,IF('Early Action Credit'!$E282=72.5,300,IF('Early Action Credit'!$E282<=145,700,IF('Early Action Credit'!$E282<=245,1900,2400)))))*IF(ISBLANK('Early Action Credit'!$J282),0,IF('Early Action Credit'!$J282=\"No\",1,'Early Action Credit'!$K282))","v":0}]
[null,{"$f":"IF(AND(ISBLANK('Early Action Credit'!$A283),ISBLANK('Early Action Credit'!$C283),ISBLANK('Early Action Credit'!$D283),ISBLANK('Early Action Credit'!$E283),ISBLANK('Early Action Credit'!$F283),ISBLANK('Early Action Credit'!$G283),ISBLANK('Early Action Credit'!$H283),ISBLANK('Early Action Credit'!$I283),ISBLANK('Early Action Credit'!$J283),ISBLANK('Early Action Credit'!$L283)),\"\",\"Circuit Breaker\")","v":""},null,null,null,null,null,null,null,null,null,null,{"$f":"IF('Early Action Credit'!$I283=\"Yes\",0,IF('Early Action Credit'!$E283<72.5,0,IF('Early Action Credit'!$E283=72.5,300,IF('Early Action Credit'!$E283<=145,700,IF('Early Action Credit'!$E283<=245,1900,2400)))))*IF(ISBLANK('Early Action Credit'!$J283),0,IF('Early Action Credit'!$J283=\"No\",1,'Early Action Credit'!$K283))","v":0}]
[null,{"$f":"IF(AND(ISBLANK('Early Action Credit'!$A284),ISBLANK('Early Action Credit'!$C284),ISBLANK('Early Action Credit'!$D284),ISBLANK('Early Action Credit'!$E284),ISBLANK('Early Action Credit'!$F284),ISBLANK('Early Action Credit'!$G284),ISBLANK('Early Action Credit'!$H284),ISBLANK('Early Action Credit'!$I284),ISBLANK('Early Action Credit'!$J284),ISBLANK('Early Action Credit'!$L284)),\"\",\"Circuit Breaker\")","v":""},null,null,null,null,null,null,null,null,null,null,{"$f":"IF('Early Action Credit'!$I284=\"Yes\",0,IF('Early Action Credit'!$E284<72.5,0,IF('Early Action Credit'!$E284=72.5,300,IF('Early Action Credit'!$E284<=145,700,IF('Early Action Credit'!$E284<=245,1900,2400)))))*IF(ISBLANK('Early Action Credit'!$J284),0,IF('Early Action Credit'!$J284=\"No\",1,'Early Action Credit'!$K284))","v":0}]
[null,{"$f":"IF(AND(ISBLANK('Early Action Credit'!$A285),ISBLANK('Early Action Credit'!$C285),ISBLANK('Early Action Credit'!$D285),ISBLANK('Early Action Credit'!$E285),ISBLANK('Early Action Credit'!$F285),ISBLANK('Early Action Credit'!$G285),ISBLANK('Early Action Credit'!$H285),ISBLANK('Early Action Credit'!$I285),ISBLANK('Early Action Credit'!$J285),ISBLANK('Early Action Credit'!$L285)),\"\",\"Circuit Breaker\")","v":""},null,null,null,null,null,null,null,null,null,null,{"$f":"IF('Early Action Credit'!$I285=\"Yes\",0,IF('Early Action Credit'!$E285<72.5,0,IF('Early Action Credit'!$E285=72.5,300,IF('Early Action Credit'!$E285<=145,700,IF('Early Action Credit'!$E285<=245,1900,2400)))))*IF(ISBLANK('Early Action Credit'!$J285),0,IF('Early Action Credit'!$J285=\"No\",1,'Early Action Credit'!$K285))","v":0}]
[null,{"$f":"IF(AND(ISBLANK('Early Action Credit'!$A286),ISBLANK('Early Action Credit'!$C286),ISBLANK('Early Action Credit'!$D286),ISBLANK('Early Action Credit'!$E286),ISBLANK('Early Action Credit'!$F286),ISBLANK('Early Action Credit'!$G286),ISBLANK('Early Action Credit'!$H286),ISBLANK('Early Action Credit'!$I286),ISBLANK('Early Action Credit'!$J286),ISBLANK('Early Action Credit'!$L286)),\"\",\"Circuit Breaker\")","v":""},null,null,null,null,null,null,null,null,null,null,{"$f":"IF('Early Action Credit'!$I286=\"Yes\",0,IF('Early Action Credit'!$E286<72.5,0,IF('Early Action Credit'!$E286=72.5,300,IF('Early Action Credit'!$E286<=145,700,IF('Early Action Credit'!$E286<=245,1900,2400)))))*IF(ISBLANK('Early Action Credit'!$J286),0,IF('Early Action Credit'!$J286=\"No\",1,'Early Action Credit'!$K286))","v":0}]
[null,{"$f":"IF(AND(ISBLANK('Early Action Credit'!$A287),ISBLANK('Early Action Credit'!$C287),ISBLANK('Early Action Credit'!$D287),ISBLANK('Early Action Credit'!$E287),ISBLANK('Early Action Credit'!$F287),ISBLANK('Early Action Credit'!$G287),ISBLANK('Early Action Credit'!$H287),ISBLANK('Early Action Credit'!$I287),ISBLANK('Early Action Credit'!$J287),ISBLANK('Early Action Credit'!$L287)),\"\",\"Circuit Breaker\")","v":""},null,null,null,null,null,null,null,null,null,null,{"$f":"IF('Early Action Credit'!$I287=\"Yes\",0,IF('Early Action Credit'!$E287<72.5,0,IF('Early Action Credit'!$E287=72.5,300,IF('Early Action Credit'!$E287<=145,700,IF('Early Action Credit'!$E287<=245,1900,2400)))))*IF(ISBLANK('Early Action Credit'!$J287),0,IF('Early Action Credit'!$J287=\"No\",1,'Early Action Credit'!$K287))","v":0}]
[null,{"$f":"IF(AND(ISBLANK('Early Action Credit'!$A288),ISBLANK('Early Action Credit'!$C288),ISBLANK('Early Action Credit'!$D288),ISBLANK('Early Action Credit'!$E288),ISBLANK('Early Action Credit'!$F288),ISBLANK('Early Action Credit'!$G288),ISBLANK('Early Action Credit'!$H288),ISBLANK('Early Action Credit'!$I288),ISBLANK('Early Action Credit'!$J288),ISBLANK('Early Action Credit'!$L288)),\"\",\"Circuit Breaker\")","v":""},null,null,null,null,null,null,null,null,null,null,{"$f":"IF('Early Action Credit'!$I288=\"Yes\",0,IF('Early Action Credit'!$E288<72.5,0,IF('Early Action Credit'!$E288=72.5,300,IF('Early Action Credit'!$E288<=145,700,IF('Early Action Credit'!$E288<=245,1900,2400)))))*IF(ISBLANK('Early Action Credit'!$J288),0,IF('Early Action Credit'!$J288=\"No\",1,'Early Action Credit'!$K288))","v":0}]
[null,{"$f":"IF(AND(ISBLANK('Early Action Credit'!$A289),ISBLANK('Early Action Credit'!$C289),ISBLANK('Early Action Credit'!$D289),ISBLANK('Early Action Credit'!$E289),ISBLANK('Early Action Credit'!$F289),ISBLANK('Early Action Credit'!$G289),ISBLANK('Early Action Credit'!$H289),ISBLANK('Early Action Credit'!$I289),ISBLANK('Early Action Credit'!$J289),ISBLANK('Early Action Credit'!$L289)),\"\",\"Circuit Breaker\")","v":""},null,null,null,null,null,null,null,null,null,null,{"$f":"IF('Early Action Credit'!$I289=\"Yes\",0,IF('Early Action Credit'!$E289<72.5,0,IF('Early Action Credit'!$E289=72.5,300,IF('Early Action Credit'!$E289<=145,700,IF('Early Action Credit'!$E289<=245,1900,2400)))))*IF(ISBLANK('Early Action Credit'!$J289),0,IF('Early Action Credit'!$J289=\"No\",1,'Early Action Credit'!$K289))","v":0}]
[null,{"$f":"IF(AND(ISBLANK('Early Action Credit'!$A290),ISBLANK('Early Action Credit'!$C290),ISBLANK('Early Action Credit'!$D290),ISBLANK('Early Action Credit'!$E290),ISBLANK('Early Action Credit'!$F290),ISBLANK('Early Action Credit'!$G290),ISBLANK('Early Action Credit'!$H290),ISBLANK('Early Action Credit'!$I290),ISBLANK('Early Action Credit'!$J290),ISBLANK('Early Action Credit'!$L290)),\"\",\"Circuit Breaker\")","v":""},null,null,null,null,null,null,null,null,null,null,{"$f":"IF('Early Action Credit'!$I290=\"Yes\",0,IF('Early Action Credit'!$E290<72.5,0,IF('Early Action Credit'!$E290=72.5,300,IF('Early Action Credit'!$E290<=145,700,IF('Early Action Credit'!$E290<=245,1900,2400)))))*IF(ISBLANK('Early Action Credit'!$J290),0,IF('Early Action Credit'!$J290=\"No\",1,'Early Action Credit'!$K290))","v":0}]
[null,{"$f":"IF(AND(ISBLANK('Early Action Credit'!$A291),ISBLANK('Early Action Credit'!$C291),ISBLANK('Early Action Credit'!$D291),ISBLANK('Early Action Credit'!$E291),ISBLANK('Early Action Credit'!$F291),ISBLANK('Early Action Credit'!$G291),ISBLANK('Early Action Credit'!$H291),ISBLANK('Early Action Credit'!$I291),ISBLANK('Early Action Credit'!$J291),ISBLANK('Early Action Credit'!$L291)),\"\",\"Circuit Breaker\")","v":""},null,null,null,null,null,null,null,null,null,null,{"$f":"IF('Early Action Credit'!$I291=\"Yes\",0,IF('Early Action Credit'!$E291<72.5,0,IF('Early Action Credit'!$E291=72.5,300,IF('Early Action Credit'!$E291<=145,700,IF('Early Action Credit'!$E291<=245,1900,2400)))))*IF(ISBLANK('Early Action Credit'!$J291),0,IF('Early Action Credit'!$J291=\"No\",1,'Early Action Credit'!$K291))","v":0}]
[null,{"$f":"IF(AND(ISBLANK('Early Action Credit'!$A292),ISBLANK('Early Action Credit'!$C292),ISBLANK('Early Action Credit'!$D292),ISBLANK('Early Action Credit'!$E292),ISBLANK('Early Action Credit'!$F292),ISBLANK('Early Action Credit'!$G292),ISBLANK('Early Action Credit'!$H292),ISBLANK('Early Action Credit'!$I292),ISBLANK('Early Action Credit'!$J292),ISBLANK('Early Action Credit'!$L292)),\"\",\"Circuit Breaker\")","v":""},null,null,null,null,null,null,null,null,null,null,{"$f":"IF('Early Action Credit'!$I292=\"Yes\",0,IF('Early Action Credit'!$E292<72.5,0,IF('Early Action Credit'!$E292=72.5,300,IF('Early Action Credit'!$E292<=145,700,IF('Early Action Credit'!$E292<=245,1900,2400)))))*IF(ISBLANK('Early Action Credit'!$J292),0,IF('Early Action Credit'!$J292=\"No\",1,'Early Action Credit'!$K292))","v":0}]
[null,{"$f":"IF(AND(ISBLANK('Early Action Credit'!$A293),ISBLANK('Early Action Credit'!$C293),ISBLANK('Early Action Credit'!$D293),ISBLANK('Early Action Credit'!$E293),ISBLANK('Early Action Credit'!$F293),ISBLANK('Early Action Credit'!$G293),ISBLANK('Early Action Credit'!$H293),ISBLANK('Early Action Credit'!$I293),ISBLANK('Early Action Credit'!$J293),ISBLANK('Early Action Credit'!$L293)),\"\",\"Circuit Breaker\")","v":""},null,null,null,null,null,null,null,null,null,null,{"$f":"IF('Early Action Credit'!$I293=\"Yes\",0,IF('Early Action Credit'!$E293<72.5,0,IF('Early Action Credit'!$E293=72.5,300,IF('Early Action Credit'!$E293<=145,700,IF('Early Action Credit'!$E293<=245,1900,2400)))))*IF(ISBLANK('Early Action Credit'!$J293),0,IF('Early Action Credit'!$J293=\"No\",1,'Early Action Credit'!$K293))","v":0}]
[null,{"$f":"IF(AND(ISBLANK('Early Action Credit'!$A294),ISBLANK('Early Action Credit'!$C294),ISBLANK('Early Action Credit'!$D294),ISBLANK('Early Action Credit'!$E294),ISBLANK('Early Action Credit'!$F294),ISBLANK('Early Action Credit'!$G294),ISBLANK('Early Action Credit'!$H294),ISBLANK('Early Action Credit'!$I294),ISBLANK('Early Action Credit'!$J294),ISBLANK('Early Action Credit'!$L294)),\"\",\"Circuit Breaker\")","v":""},null,null,null,null,null,null,null,null,null,null,{"$f":"IF('Early Action Credit'!$I294=\"Yes\",0,IF('Early Action Credit'!$E294<72.5,0,IF('Early Action Credit'!$E294=72.5,300,IF('Early Action Credit'!$E294<=145,700,IF('Early Action Credit'!$E294<=245,1900,2400)))))*IF(ISBLANK('Early Action Credit'!$J294),0,IF('Early Action Credit'!$J294=\"No\",1,'Early Action Credit'!$K294))","v":0}]
[null,{"$f":"IF(AND(ISBLANK('Early Action Credit'!$A295),ISBLANK('Early Action Credit'!$C295),ISBLANK('Early Action Credit'!$D295),ISBLANK('Early Action Credit'!$E295),ISBLANK('Early Action Credit'!$F295),ISBLANK('Early Action Credit'!$G295),ISBLANK('Early Action Credit'!$H295),ISBLANK('Early Action Credit'!$I295),ISBLANK('Early Action Credit'!$J295),ISBLANK('Early Action Credit'!$L295)),\"\",\"Circuit Breaker\")","v":""},null,null,null,null,null,null,null,null,null,null,{"$f":"IF('Early Action Credit'!$I295=\"Yes\",0,IF('Early Action Credit'!$E295<72.5,0,IF('Early Action Credit'!$E295=72.5,300,IF('Early Action Credit'!$E295<=145,700,IF('Early Action Credit'!$E295<=245,1900,2400)))))*IF(ISBLANK('Early Action Credit'!$J295),0,IF('Early Action Credit'!$J295=\"No\",1,'Early Action Credit'!$K295))","v":0}]
[null,{"$f":"IF(AND(ISBLANK('Early Action Credit'!$A296),ISBLANK('Early Action Credit'!$C296),ISBLANK('Early Action Credit'!$D296),ISBLANK('Early Action Credit'!$E296),ISBLANK('Early Action Credit'!$F296),ISBLANK('Early Action Credit'!$G296),ISBLANK('Early Action Credit'!$H296),ISBLANK('Early Action Credit'!$I296),ISBLANK('Early Action Credit'!$J296),ISBLANK('Early Action Credit'!$L296)),\"\",\"Circuit Breaker\")","v":""},null,null,null,null,null,null,null,null,null,null,{"$f":"IF('Early Action Credit'!$I296=\"Yes\",0,IF('Early Action Credit'!$E296<72.5,0,IF('Early Action Credit'!$E296=72.5,300,IF('Early Action Credit'!$E296<=145,700,IF('Early Action Credit'!$E296<=245,1900,2400)))))*IF(ISBLANK('Early Action Credit'!$J296),0,IF('Early Action Credit'!$J296=\"No\",1,'Early Action Credit'!$K296))","v":0}]
[null,{"$f":"IF(AND(ISBLANK('Early Action Credit'!$A297),ISBLANK('Early Action Credit'!$C297),ISBLANK('Early Action Credit'!$D297),ISBLANK('Early Action Credit'!$E297),ISBLANK('Early Action Credit'!$F297),ISBLANK('Early Action Credit'!$G297),ISBLANK('Early Action Credit'!$H297),ISBLANK('Early Action Credit'!$I297),ISBLANK('Early Action Credit'!$J297),ISBLANK('Early Action Credit'!$L297)),\"\",\"Circuit Breaker\")","v":""},null,null,null,null,null,null,null,null,null,null,{"$f":"IF('Early Action Credit'!$I297=\"Yes\",0,IF('Early Action Credit'!$E297<72.5,0,IF('Early Action Credit'!$E297=72.5,300,IF('Early Action Credit'!$E297<=145,700,IF('Early Action Credit'!$E297<=245,1900,2400)))))*IF(ISBLANK('Early Action Credit'!$J297),0,IF('Early Action Credit'!$J297=\"No\",1,'Early Action Credit'!$K297))","v":0}]
[null,{"$f":"IF(AND(ISBLANK('Early Action Credit'!$A298),ISBLANK('Early Action Credit'!$C298),ISBLANK('Early Action Credit'!$D298),ISBLANK('Early Action Credit'!$E298),ISBLANK('Early Action Credit'!$F298),ISBLANK('Early Action Credit'!$G298),ISBLANK('Early Action Credit'!$H298),ISBLANK('Early Action Credit'!$I298),ISBLANK('Early Action Credit'!$J298),ISBLANK('Early Action Credit'!$L298)),\"\",\"Circuit Breaker\")","v":""},null,null,null,null,null,null,null,null,null,null,{"$f":"IF('Early Action Credit'!$I298=\"Yes\",0,IF('Early Action Credit'!$E298<72.5,0,IF('Early Action Credit'!$E298=72.5,300,IF('Early Action Credit'!$E298<=145,700,IF('Early Action Credit'!$E298<=245,1900,2400)))))*IF(ISBLANK('Early Action Credit'!$J298),0,IF('Early Action Credit'!$J298=\"No\",1,'Early Action Credit'!$K298))","v":0}]
[null,{"$f":"IF(AND(ISBLANK('Early Action Credit'!$A299),ISBLANK('Early Action Credit'!$C299),ISBLANK('Early Action Credit'!$D299),ISBLANK('Early Action Credit'!$E299),ISBLANK('Early Action Credit'!$F299),ISBLANK('Early Action Credit'!$G299),ISBLANK('Early Action Credit'!$H299),ISBLANK('Early Action Credit'!$I299),ISBLANK('Early Action Credit'!$J299),ISBLANK('Early Action Credit'!$L299)),\"\",\"Circuit Breaker\")","v":""},null,null,null,null,null,null,null,null,null,null,{"$f":"IF('Early Action Credit'!$I299=\"Yes\",0,IF('Early Action Credit'!$E299<72.5,0,IF('Early Action Credit'!$E299=72.5,300,IF('Early Action Credit'!$E299<=145,700,IF('Early Action Credit'!$E299<=245,1900,2400)))))*IF(ISBLANK('Early Action Credit'!$J299),0,IF('Early Action Credit'!$J299=\"No\",1,'Early Action Credit'!$K299))","v":0}]
[null,{"$f":"IF(AND(ISBLANK('Early Action Credit'!$A300),ISBLANK('Early Action Credit'!$C300),ISBLANK('Early Action Credit'!$D300),ISBLANK('Early Action Credit'!$E300),ISBLANK('Early Action Credit'!$F300),ISBLANK('Early Action Credit'!$G300),ISBLANK('Early Action Credit'!$H300),ISBLANK('Early Action Credit'!$I300),ISBLANK('Early Action Credit'!$J300),ISBLANK('Early Action Credit'!$L300)),\"\",\"Circuit Breaker\")","v":""},null,null,null,null,null,null,null,null,null,null,{"$f":"IF('Early Action Credit'!$I300=\"Yes\",0,IF('Early Action Credit'!$E300<72.5,0,IF('Early Action Credit'!$E300=72.5,300,IF('Early Action Credit'!$E300<=145,700,IF('Early Action Credit'!$E300<=245,1900,2400)))))*IF(ISBLANK('Early Action Credit'!$J300),0,IF('Early Action Credit'!$J300=\"No\",1,'Early Action Credit'!$K300))","v":0}]
[null,{"$f":"IF(AND(ISBLANK('Early Action Credit'!$A301),ISBLANK('Early Action Credit'!$C301),ISBLANK('Early Action Credit'!$D301),ISBLANK('Early Action Credit'!$E301),ISBLANK('Early Action Credit'!$F301),ISBLANK('Early Action Credit'!$G301),ISBLANK('Early Action Credit'!$H301),ISBLANK('Early Action Credit'!$I301),ISBLANK('Early Action Credit'!$J301),ISBLANK('Early Action Credit'!$L301)),\"\",\"Circuit Breaker\")","v":""},null,null,null,null,null,null,null,null,null,null,{"$f":"IF('Early Action Credit'!$I301=\"Yes\",0,IF('Early Action Credit'!$E301<72.5,0,IF('Early Action Credit'!$E301=72.5,300,IF('Early Action Credit'!$E301<=145,700,IF('Early Action Credit'!$E301<=245,1900,2400)))))*IF(ISBLANK('Early Action Credit'!$J301),0,IF('Early Action Credit'!$J301=\"No\",1,'Early Action Credit'!$K301))","v":0}]
[null,{"$f":"IF(AND(ISBLANK('Early Action Credit'!$A302),ISBLANK('Early Action Credit'!$C302),ISBLANK('Early Action Credit'!$D302),ISBLANK('Early Action Credit'!$E302),ISBLANK('Early Action Credit'!$F302),ISBLANK('Early Action Credit'!$G302),ISBLANK('Early Action Credit'!$H302),ISBLANK('Early Action Credit'!$I302),ISBLANK('Early Action Credit'!$J302),ISBLANK('Early Action Credit'!$L302)),\"\",\"Circuit Breaker\")","v":""},null,null,null,null,null,null,null,null,null,null,{"$f":"IF('Early Action Credit'!$I302=\"Yes\",0,IF('Early Action Credit'!$E302<72.5,0,IF('Early Action Credit'!$E302=72.5,300,IF('Early Action Credit'!$E302<=145,700,IF('Early Action Credit'!$E302<=245,1900,2400)))))*IF(ISBLANK('Early Action Credit'!$J302),0,IF('Early Action Credit'!$J302=\"No\",1,'Early Action Credit'!$K302))","v":0}]
[null,{"$f":"IF(AND(ISBLANK('Early Action Credit'!$A303),ISBLANK('Early Action Credit'!$C303),ISBLANK('Early Action Credit'!$D303),ISBLANK('Early Action Credit'!$E303),ISBLANK('Early Action Credit'!$F303),ISBLANK('Early Action Credit'!$G303),ISBLANK('Early Action Credit'!$H303),ISBLANK('Early Action Credit'!$I303),ISBLANK('Early Action Credit'!$J303),ISBLANK('Early Action Credit'!$L303)),\"\",\"Circuit Breaker\")","v":""},null,null,null,null,null,null,null,null,null,null,{"$f":"IF('Early Action Credit'!$I303=\"Yes\",0,IF('Early Action Credit'!$E303<72.5,0,IF('Early Action Credit'!$E303=72.5,300,IF('Early Action Credit'!$E303<=145,700,IF('Early Action Credit'!$E303<=245,1900,2400)))))*IF(ISBLANK('Early Action Credit'!$J303),0,IF('Early Action Credit'!$J303=\"No\",1,'Early Action Credit'!$K303))","v":0}]
[null,{"$f":"IF(AND(ISBLANK('Early Action Credit'!$A304),ISBLANK('Early Action Credit'!$C304),ISBLANK('Early Action Credit'!$D304),ISBLANK('Early Action Credit'!$E304),ISBLANK('Early Action Credit'!$F304),ISBLANK('Early Action Credit'!$G304),ISBLANK('Early Action Credit'!$H304),ISBLANK('Early Action Credit'!$I304),ISBLANK('Early Action Credit'!$J304),ISBLANK('Early Action Credit'!$L304)),\"\",\"Circuit Breaker\")","v":""},null,null,null,null,null,null,null,null,null,null,{"$f":"IF('Early Action Credit'!$I304=\"Yes\",0,IF('Early Action Credit'!$E304<72.5,0,IF('Early Action Credit'!$E304=72.5,300,IF('Early Action Credit'!$E304<=145,700,IF('Early Action Credit'!$E304<=245,1900,2400)))))*IF(ISBLANK('Early Action Credit'!$J304),0,IF('Early Action Credit'!$J304=\"No\",1,'Early Action Credit'!$K304))","v":0}]
[null,{"$f":"IF(AND(ISBLANK('Early Action Credit'!$A305),ISBLANK('Early Action Credit'!$C305),ISBLANK('Early Action Credit'!$D305),ISBLANK('Early Action Credit'!$E305),ISBLANK('Early Action Credit'!$F305),ISBLANK('Early Action Credit'!$G305),ISBLANK('Early Action Credit'!$H305),ISBLANK('Early Action Credit'!$I305),ISBLANK('Early Action Credit'!$J305),ISBLANK('Early Action Credit'!$L305)),\"\",\"Circuit Breaker\")","v":""},null,null,null,null,null,null,null,null,null,null,{"$f":"IF('Early Action Credit'!$I305=\"Yes\",0,IF('Early Action Credit'!$E305<72.5,0,IF('Early Action Credit'!$E305=72.5,300,IF('Early Action Credit'!$E305<=145,700,IF('Early Action Credit'!$E305<=245,1900,2400)))))*IF(ISBLANK('Early Action Credit'!$J305),0,IF('Early Action Credit'!$J305=\"No\",1,'Early Action Credit'!$K305))","v":0}]
[null,{"$f":"IF(AND(ISBLANK('Early Action Credit'!$A306),ISBLANK('Early Action Credit'!$C306),ISBLANK('Early Action Credit'!$D306),ISBLANK('Early Action Credit'!$E306),ISBLANK('Early Action Credit'!$F306),ISBLANK('Early Action Credit'!$G306),ISBLANK('Early Action Credit'!$H306),ISBLANK('Early Action Credit'!$I306),ISBLANK('Early Action Credit'!$J306),ISBLANK('Early Action Credit'!$L306)),\"\",\"Circuit Breaker\")","v":""},null,null,null,null,null,null,null,null,null,null,{"$f":"IF('Early Action Credit'!$I306=\"Yes\",0,IF('Early Action Credit'!$E306<72.5,0,IF('Early Action Credit'!$E306=72.5,300,IF('Early Action Credit'!$E306<=145,700,IF('Early Action Credit'!$E306<=245,1900,2400)))))*IF(ISBLANK('Early Action Credit'!$J306),0,IF('Early Action Credit'!$J306=\"No\",1,'Early Action Credit'!$K306))","v":0}]
[null,{"$f":"IF(AND(ISBLANK('Early Action Credit'!$A307),ISBLANK('Early Action Credit'!$C307),ISBLANK('Early Action Credit'!$D307),ISBLANK('Early Action Credit'!$E307),ISBLANK('Early Action Credit'!$F307),ISBLANK('Early Action Credit'!$G307),ISBLANK('Early Action Credit'!$H307),ISBLANK('Early Action Credit'!$I307),ISBLANK('Early Action Credit'!$J307),ISBLANK('Early Action Credit'!$L307)),\"\",\"Circuit Breaker\")","v":""},null,null,null,null,null,null,null,null,null,null,{"$f":"IF('Early Action Credit'!$I307=\"Yes\",0,IF('Early Action Credit'!$E307<72.5,0,IF('Early Action Credit'!$E307=72.5,300,IF('Early Action Credit'!$E307<=145,700,IF('Early Action Credit'!$E307<=245,1900,2400)))))*IF(ISBLANK('Early Action Credit'!$J307),0,IF('Early Action Credit'!$J307=\"No\",1,'Early Action Credit'!$K307))","v":0}]
[null,{"$f":"IF(AND(ISBLANK('Early Action Credit'!$A308),ISBLANK('Early Action Credit'!$C308),ISBLANK('Early Action Credit'!$D308),ISBLANK('Early Action Credit'!$E308),ISBLANK('Early Action Credit'!$F308),ISBLANK('Early Action Credit'!$G308),ISBLANK('Early Action Credit'!$H308),ISBLANK('Early Action Credit'!$I308),ISBLANK('Early Action Credit'!$J308),ISBLANK('Early Action Credit'!$L308)),\"\",\"Circuit Breaker\")","v":""},null,null,null,null,null,null,null,null,null,null,{"$f":"IF('Early Action Credit'!$I308=\"Yes\",0,IF('Early Action Credit'!$E308<72.5,0,IF('Early Action Credit'!$E308=72.5,300,IF('Early Action Credit'!$E308<=145,700,IF('Early Action Credit'!$E308<=245,1900,2400)))))*IF(ISBLANK('Early Action Credit'!$J308),0,IF('Early Action Credit'!$J308=\"No\",1,'Early Action Credit'!$K308))","v":0}]
[null,{"$f":"IF(AND(ISBLANK('Early Action Credit'!$A309),ISBLANK('Early Action Credit'!$C309),ISBLANK('Early Action Credit'!$D309),ISBLANK('Early Action Credit'!$E309),ISBLANK('Early Action Credit'!$F309),ISBLANK('Early Action Credit'!$G309),ISBLANK('Early Action Credit'!$H309),ISBLANK('Early Action Credit'!$I309),ISBLANK('Early Action Credit'!$J309),ISBLANK('Early Action Credit'!$L309)),\"\",\"Circuit Breaker\")","v":""},null,null,null,null,null,null,null,null,null,null,{"$f":"IF('Early Action Credit'!$I309=\"Yes\",0,IF('Early Action Credit'!$E309<72.5,0,IF('Early Action Credit'!$E309=72.5,300,IF('Early Action Credit'!$E309<=145,700,IF('Early Action Credit'!$E309<=245,1900,2400)))))*IF(ISBLANK('Early Action Credit'!$J309),0,IF('Early Action Credit'!$J309=\"No\",1,'Early Action Credit'!$K309))","v":0}]
[null,{"$f":"IF(AND(ISBLANK('Early Action Credit'!$A310),ISBLANK('Early Action Credit'!$C310),ISBLANK('Early Action Credit'!$D310),ISBLANK('Early Action Credit'!$E310),ISBLANK('Early Action Credit'!$F310),ISBLANK('Early Action Credit'!$G310),ISBLANK('Early Action Credit'!$H310),ISBLANK('Early Action Credit'!$I310),ISBLANK('Early Action Credit'!$J310),ISBLANK('Early Action Credit'!$L310)),\"\",\"Circuit Breaker\")","v":""},null,null,null,null,null,null,null,null,null,null,{"$f":"IF('Early Action Credit'!$I310=\"Yes\",0,IF('Early Action Credit'!$E310<72.5,0,IF('Early Action Credit'!$E310=72.5,300,IF('Early Action Credit'!$E310<=145,700,IF('Early Action Credit'!$E310<=245,1900,2400)))))*IF(ISBLANK('Early Action Credit'!$J310),0,IF('Early Action Credit'!$J310=\"No\",1,'Early Action Credit'!$K310))","v":0}]
[null,{"$f":"IF(AND(ISBLANK('Early Action Credit'!$A311),ISBLANK('Early Action Credit'!$C311),ISBLANK('Early Action Credit'!$D311),ISBLANK('Early Action Credit'!$E311),ISBLANK('Early Action Credit'!$F311),ISBLANK('Early Action Credit'!$G311),ISBLANK('Early Action Credit'!$H311),ISBLANK('Early Action Credit'!$I311),ISBLANK('Early Action Credit'!$J311),ISBLANK('Early Action Credit'!$L311)),\"\",\"Circuit Breaker\")","v":""},null,null,null,null,null,null,null,null,null,null,{"$f":"IF('Early Action Credit'!$I311=\"Yes\",0,IF('Early Action Credit'!$E311<72.5,0,IF('Early Action Credit'!$E311=72.5,300,IF('Early Action Credit'!$E311<=145,700,IF('Early Action Credit'!$E311<=245,1900,2400)))))*IF(ISBLANK('Early Action Credit'!$J311),0,IF('Early Action Credit'!$J311=\"No\",1,'Early Action Credit'!$K311))","v":0}]
[null,{"$f":"IF(AND(ISBLANK('Early Action Credit'!$A312),ISBLANK('Early Action Credit'!$C312),ISBLANK('Early Action Credit'!$D312),ISBLANK('Early Action Credit'!$E312),ISBLANK('Early Action Credit'!$F312),ISBLANK('Early Action Credit'!$G312),ISBLANK('Early Action Credit'!$H312),ISBLANK('Early Action Credit'!$I312),ISBLANK('Early Action Credit'!$J312),ISBLANK('Early Action Credit'!$L312)),\"\",\"Circuit Breaker\")","v":""},null,null,null,null,null,null,null,null,null,null,{"$f":"IF('Early Action Credit'!$I312=\"Yes\",0,IF('Early Action Credit'!$E312<72.5,0,IF('Early Action Credit'!$E312=72.5,300,IF('Early Action Credit'!$E312<=145,700,IF('Early Action Credit'!$E312<=245,1900,2400)))))*IF(ISBLANK('Early Action Credit'!$J312),0,IF('Early Action Credit'!$J312=\"No\",1,'Early Action Credit'!$K312))","v":0}]
[null,{"$f":"IF(AND(ISBLANK('Early Action Credit'!$A313),ISBLANK('Early Action Credit'!$C313),ISBLANK('Early Action Credit'!$D313),ISBLANK('Early Action Credit'!$E313),ISBLANK('Early Action Credit'!$F313),ISBLANK('Early Action Credit'!$G313),ISBLANK('Early Action Credit'!$H313),ISBLANK('Early Action Credit'!$I313),ISBLANK('Early Action Credit'!$J313),ISBLANK('Early Action Credit'!$L313)),\"\",\"Circuit Breaker\")","v":""},null,null,null,null,null,null,null,null,null,null,{"$f":"IF('Early Action Credit'!$I313=\"Yes\",0,IF('Early Action Credit'!$E313<72.5,0,IF('Early Action Credit'!$E313=72.5,300,IF('Early Action Credit'!$E313<=145,700,IF('Early Action Credit'!$E313<=245,1900,2400)))))*IF(ISBLANK('Early Action Credit'!$J313),0,IF('Early Action Credit'!$J313=\"No\",1,'Early Action Credit'!$K313))","v":0}]
[null,{"$f":"IF(AND(ISBLANK('Early Action Credit'!$A314),ISBLANK('Early Action Credit'!$C314),ISBLANK('Early Action Credit'!$D314),ISBLANK('Early Action Credit'!$E314),ISBLANK('Early Action Credit'!$F314),ISBLANK('Early Action Credit'!$G314),ISBLANK('Early Action Credit'!$H314),ISBLANK('Early Action Credit'!$I314),ISBLANK('Early Action Credit'!$J314),ISBLANK('Early Action Credit'!$L314)),\"\",\"Circuit Breaker\")","v":""},null,null,null,null,null,null,null,null,null,null,{"$f":"IF('Early Action Credit'!$I314=\"Yes\",0,IF('Early Action Credit'!$E314<72.5,0,IF('Early Action Credit'!$E314=72.5,300,IF('Early Action Credit'!$E314<=145,700,IF('Early Action Credit'!$E314<=245,1900,2400)))))*IF(ISBLANK('Early Action Credit'!$J314),0,IF('Early Action Credit'!$J314=\"No\",1,'Early Action Credit'!$K314))","v":0}]
[null,{"$f":"IF(AND(ISBLANK('Early Action Credit'!$A315),ISBLANK('Early Action Credit'!$C315),ISBLANK('Early Action Credit'!$D315),ISBLANK('Early Action Credit'!$E315),ISBLANK('Early Action Credit'!$F315),ISBLANK('Early Action Credit'!$G315),ISBLANK('Early Action Credit'!$H315),ISBLANK('Early Action Credit'!$I315),ISBLANK('Early Action Credit'!$J315),ISBLANK('Early Action Credit'!$L315)),\"\",\"Circuit Breaker\")","v":""},null,null,null,null,null,null,null,null,null,null,{"$f":"IF('Early Action Credit'!$I315=\"Yes\",0,IF('Early Action Credit'!$E315<72.5,0,IF('Early Action Credit'!$E315=72.5,300,IF('Early Action Credit'!$E315<=145,700,IF('Early Action Credit'!$E315<=245,1900,2400)))))*IF(ISBLANK('Early Action Credit'!$J315),0,IF('Early Action Credit'!$J315=\"No\",1,'Early Action Credit'!$K315))","v":0}]
[null,{"$f":"IF(AND(ISBLANK('Early Action Credit'!$A316),ISBLANK('Early Action Credit'!$C316),ISBLANK('Early Action Credit'!$D316),ISBLANK('Early Action Credit'!$E316),ISBLANK('Early Action Credit'!$F316),ISBLANK('Early Action Credit'!$G316),ISBLANK('Early Action Credit'!$H316),ISBLANK('Early Action Credit'!$I316),ISBLANK('Early Action Credit'!$J316),ISBLANK('Early Action Credit'!$L316)),\"\",\"Circuit Breaker\")","v":""},null,null,null,null,null,null,null,null,null,null,{"$f":"IF('Early Action Credit'!$I316=\"Yes\",0,IF('Early Action Credit'!$E316<72.5,0,IF('Early Action Credit'!$E316=72.5,300,IF('Early Action Credit'!$E316<=145,700,IF('Early Action Credit'!$E316<=245,1900,2400)))))*IF(ISBLANK('Early Action Credit'!$J316),0,IF('Early Action Credit'!$J316=\"No\",1,'Early Action Credit'!$K316))","v":0}]
[null,{"$f":"IF(AND(ISBLANK('Early Action Credit'!$A317),ISBLANK('Early Action Credit'!$C317),ISBLANK('Early Action Credit'!$D317),ISBLANK('Early Action Credit'!$E317),ISBLANK('Early Action Credit'!$F317),ISBLANK('Early Action Credit'!$G317),ISBLANK('Early Action Credit'!$H317),ISBLANK('Early Action Credit'!$I317),ISBLANK('Early Action Credit'!$J317),ISBLANK('Early Action Credit'!$L317)),\"\",\"Circuit Breaker\")","v":""},null,null,null,null,null,null,null,null,null,null,{"$f":"IF('Early Action Credit'!$I317=\"Yes\",0,IF('Early Action Credit'!$E317<72.5,0,IF('Early Action Credit'!$E317=72.5,300,IF('Early Action Credit'!$E317<=145,700,IF('Early Action Credit'!$E317<=245,1900,2400)))))*IF(ISBLANK('Early Action Credit'!$J317),0,IF('Early Action Credit'!$J317=\"No\",1,'Early Action Credit'!$K317))","v":0}]
[null,{"$f":"IF(AND(ISBLANK('Early Action Credit'!$A318),ISBLANK('Early Action Credit'!$C318),ISBLANK('Early Action Credit'!$D318),ISBLANK('Early Action Credit'!$E318),ISBLANK('Early Action Credit'!$F318),ISBLANK('Early Action Credit'!$G318),ISBLANK('Early Action Credit'!$H318),ISBLANK('Early Action Credit'!$I318),ISBLANK('Early Action Credit'!$J318),ISBLANK('Early Action Credit'!$L318)),\"\",\"Circuit Breaker\")","v":""},null,null,null,null,null,null,null,null,null,null,{"$f":"IF('Early Action Credit'!$I318=\"Yes\",0,IF('Early Action Credit'!$E318<72.5,0,IF('Early Action Credit'!$E318=72.5,300,IF('Early Action Credit'!$E318<=145,700,IF('Early Action Credit'!$E318<=245,1900,2400)))))*IF(ISBLANK('Early Action Credit'!$J318),0,IF('Early Action Credit'!$J318=\"No\",1,'Early Action Credit'!$K318))","v":0}]
[null,{"$f":"IF(AND(ISBLANK('Early Action Credit'!$A319),ISBLANK('Early Action Credit'!$C319),ISBLANK('Early Action Credit'!$D319),ISBLANK('Early Action Credit'!$E319),ISBLANK('Early Action Credit'!$F319),ISBLANK('Early Action Credit'!$G319),ISBLANK('Early Action Credit'!$H319),ISBLANK('Early Action Credit'!$I319),ISBLANK('Early Action Credit'!$J319),ISBLANK('Early Action Credit'!$L319)),\"\",\"Circuit Breaker\")","v":""},null,null,null,null,null,null,null,null,null,null,{"$f":"IF('Early Action Credit'!$I319=\"Yes\",0,IF('Early Action Credit'!$E319<72.5,0,IF('Early Action Credit'!$E319=72.5,300,IF('Early Action Credit'!$E319<=145,700,IF('Early Action Credit'!$E319<=245,1900,2400)))))*IF(ISBLANK('Early Action Credit'!$J319),0,IF('Early Action Credit'!$J319=\"No\",1,'Early Action Credit'!$K319))","v":0}]
[null,{"$f":"IF(AND(ISBLANK('Early Action Credit'!$A320),ISBLANK('Early Action Credit'!$C320),ISBLANK('Early Action Credit'!$D320),ISBLANK('Early Action Credit'!$E320),ISBLANK('Early Action Credit'!$F320),ISBLANK('Early Action Credit'!$G320),ISBLANK('Early Action Credit'!$H320),ISBLANK('Early Action Credit'!$I320),ISBLANK('Early Action Credit'!$J320),ISBLANK('Early Action Credit'!$L320)),\"\",\"Circuit Breaker\")","v":""},null,null,null,null,null,null,null,null,null,null,{"$f":"IF('Early Action Credit'!$I320=\"Yes\",0,IF('Early Action Credit'!$E320<72.5,0,IF('Early Action Credit'!$E320=72.5,300,IF('Early Action Credit'!$E320<=145,700,IF('Early Action Credit'!$E320<=245,1900,2400)))))*IF(ISBLANK('Early Action Credit'!$J320),0,IF('Early Action Credit'!$J320=\"No\",1,'Early Action Credit'!$K320))","v":0}]
[null,{"$f":"IF(AND(ISBLANK('Early Action Credit'!$A321),ISBLANK('Early Action Credit'!$C321),ISBLANK('Early Action Credit'!$D321),ISBLANK('Early Action Credit'!$E321),ISBLANK('Early Action Credit'!$F321),ISBLANK('Early Action Credit'!$G321),ISBLANK('Early Action Credit'!$H321),ISBLANK('Early Action Credit'!$I321),ISBLANK('Early Action Credit'!$J321),ISBLANK('Early Action Credit'!$L321)),\"\",\"Circuit Breaker\")","v":""},null,null,null,null,null,null,null,null,null,null,{"$f":"IF('Early Action Credit'!$I321=\"Yes\",0,IF('Early Action Credit'!$E321<72.5,0,IF('Early Action Credit'!$E321=72.5,300,IF('Early Action Credit'!$E321<=145,700,IF('Early Action Credit'!$E321<=245,1900,2400)))))*IF(ISBLANK('Early Action Credit'!$J321),0,IF('Early Action Credit'!$J321=\"No\",1,'Early Action Credit'!$K321))","v":0}]
[null,{"$f":"IF(AND(ISBLANK('Early Action Credit'!$A322),ISBLANK('Early Action Credit'!$C322),ISBLANK('Early Action Credit'!$D322),ISBLANK('Early Action Credit'!$E322),ISBLANK('Early Action Credit'!$F322),ISBLANK('Early Action Credit'!$G322),ISBLANK('Early Action Credit'!$H322),ISBLANK('Early Action Credit'!$I322),ISBLANK('Early Action Credit'!$J322),ISBLANK('Early Action Credit'!$L322)),\"\",\"Circuit Breaker\")","v":""},null,null,null,null,null,null,null,null,null,null,{"$f":"IF('Early Action Credit'!$I322=\"Yes\",0,IF('Early Action Credit'!$E322<72.5,0,IF('Early Action Credit'!$E322=72.5,300,IF('Early Action Credit'!$E322<=145,700,IF('Early Action Credit'!$E322<=245,1900,2400)))))*IF(ISBLANK('Early Action Credit'!$J322),0,IF('Early Action Credit'!$J322=\"No\",1,'Early Action Credit'!$K322))","v":0}]
[null,{"$f":"IF(AND(ISBLANK('Early Action Credit'!$A323),ISBLANK('Early Action Credit'!$C323),ISBLANK('Early Action Credit'!$D323),ISBLANK('Early Action Credit'!$E323),ISBLANK('Early Action Credit'!$F323),ISBLANK('Early Action Credit'!$G323),ISBLANK('Early Action Credit'!$H323),ISBLANK('Early Action Credit'!$I323),ISBLANK('Early Action Credit'!$J323),ISBLANK('Early Action Credit'!$L323)),\"\",\"Circuit Breaker\")","v":""},null,null,null,null,null,null,null,null,null,null,{"$f":"IF('Early Action Credit'!$I323=\"Yes\",0,IF('Early Action Credit'!$E323<72.5,0,IF('Early Action Credit'!$E323=72.5,300,IF('Early Action Credit'!$E323<=145,700,IF('Early Action Credit'!$E323<=245,1900,2400)))))*IF(ISBLANK('Early Action Credit'!$J323),0,IF('Early Action Credit'!$J323=\"No\",1,'Early Action Credit'!$K323))","v":0}]
[null,{"$f":"IF(AND(ISBLANK('Early Action Credit'!$A324),ISBLANK('Early Action Credit'!$C324),ISBLANK('Early Action Credit'!$D324),ISBLANK('Early Action Credit'!$E324),ISBLANK('Early Action Credit'!$F324),ISBLANK('Early Action Credit'!$G324),ISBLANK('Early Action Credit'!$H324),ISBLANK('Early Action Credit'!$I324),ISBLANK('Early Action Credit'!$J324),ISBLANK('Early Action Credit'!$L324)),\"\",\"Circuit Breaker\")","v":""},null,null,null,null,null,null,null,null,null,null,{"$f":"IF('Early Action Credit'!$I324=\"Yes\",0,IF('Early Action Credit'!$E324<72.5,0,IF('Early Action Credit'!$E324=72.5,300,IF('Early Action Credit'!$E324<=145,700,IF('Early Action Credit'!$E324<=245,1900,2400)))))*IF(ISBLANK('Early Action Credit'!$J324),0,IF('Early Action Credit'!$J324=\"No\",1,'Early Action Credit'!$K324))","v":0}]
[null,{"$f":"IF(AND(ISBLANK('Early Action Credit'!$A325),ISBLANK('Early Action Credit'!$C325),ISBLANK('Early Action Credit'!$D325),ISBLANK('Early Action Credit'!$E325),ISBLANK('Early Action Credit'!$F325),ISBLANK('Early Action Credit'!$G325),ISBLANK('Early Action Credit'!$H325),ISBLANK('Early Action Credit'!$I325),ISBLANK('Early Action Credit'!$J325),ISBLANK('Early Action Credit'!$L325)),\"\",\"Circuit Breaker\")","v":""},null,null,null,null,null,null,null,null,null,null,{"$f":"IF('Early Action Credit'!$I325=\"Yes\",0,IF('Early Action Credit'!$E325<72.5,0,IF('Early Action Credit'!$E325=72.5,300,IF('Early Action Credit'!$E325<=145,700,IF('Early Action Credit'!$E325<=245,1900,2400)))))*IF(ISBLANK('Early Action Credit'!$J325),0,IF('Early Action Credit'!$J325=\"No\",1,'Early Action Credit'!$K325))","v":0}]
[null,{"$f":"IF(AND(ISBLANK('Early Action Credit'!$A326),ISBLANK('Early Action Credit'!$C326),ISBLANK('Early Action Credit'!$D326),ISBLANK('Early Action Credit'!$E326),ISBLANK('Early Action Credit'!$F326),ISBLANK('Early Action Credit'!$G326),ISBLANK('Early Action Credit'!$H326),ISBLANK('Early Action Credit'!$I326),ISBLANK('Early Action Credit'!$J326),ISBLANK('Early Action Credit'!$L326)),\"\",\"Circuit Breaker\")","v":""},null,null,null,null,null,null,null,null,null,null,{"$f":"IF('Early Action Credit'!$I326=\"Yes\",0,IF('Early Action Credit'!$E326<72.5,0,IF('Early Action Credit'!$E326=72.5,300,IF('Early Action Credit'!$E326<=145,700,IF('Early Action Credit'!$E326<=245,1900,2400)))))*IF(ISBLANK('Early Action Credit'!$J326),0,IF('Early Action Credit'!$J326=\"No\",1,'Early Action Credit'!$K326))","v":0}]
[null,{"$f":"IF(AND(ISBLANK('Early Action Credit'!$A327),ISBLANK('Early Action Credit'!$C327),ISBLANK('Early Action Credit'!$D327),ISBLANK('Early Action Credit'!$E327),ISBLANK('Early Action Credit'!$F327),ISBLANK('Early Action Credit'!$G327),ISBLANK('Early Action Credit'!$H327),ISBLANK('Early Action Credit'!$I327),ISBLANK('Early Action Credit'!$J327),ISBLANK('Early Action Credit'!$L327)),\"\",\"Circuit Breaker\")","v":""},null,null,null,null,null,null,null,null,null,null,{"$f":"IF('Early Action Credit'!$I327=\"Yes\",0,IF('Early Action Credit'!$E327<72.5,0,IF('Early Action Credit'!$E327=72.5,300,IF('Early Action Credit'!$E327<=145,700,IF('Early Action Credit'!$E327<=245,1900,2400)))))*IF(ISBLANK('Early Action Credit'!$J327),0,IF('Early Action Credit'!$J327=\"No\",1,'Early Action Credit'!$K327))","v":0}]
[null,{"$f":"IF(AND(ISBLANK('Early Action Credit'!$A328),ISBLANK('Early Action Credit'!$C328),ISBLANK('Early Action Credit'!$D328),ISBLANK('Early Action Credit'!$E328),ISBLANK('Early Action Credit'!$F328),ISBLANK('Early Action Credit'!$G328),ISBLANK('Early Action Credit'!$H328),ISBLANK('Early Action Credit'!$I328),ISBLANK('Early Action Credit'!$J328),ISBLANK('Early Action Credit'!$L328)),\"\",\"Circuit Breaker\")","v":""},null,null,null,null,null,null,null,null,null,null,{"$f":"IF('Early Action Credit'!$I328=\"Yes\",0,IF('Early Action Credit'!$E328<72.5,0,IF('Early Action Credit'!$E328=72.5,300,IF('Early Action Credit'!$E328<=145,700,IF('Early Action Credit'!$E328<=245,1900,2400)))))*IF(ISBLANK('Early Action Credit'!$J328),0,IF('Early Action Credit'!$J328=\"No\",1,'Early Action Credit'!$K328))","v":0}]
[null,{"$f":"IF(AND(ISBLANK('Early Action Credit'!$A329),ISBLANK('Early Action Credit'!$C329),ISBLANK('Early Action Credit'!$D329),ISBLANK('Early Action Credit'!$E329),ISBLANK('Early Action Credit'!$F329),ISBLANK('Early Action Credit'!$G329),ISBLANK('Early Action Credit'!$H329),ISBLANK('Early Action Credit'!$I329),ISBLANK('Early Action Credit'!$J329),ISBLANK('Early Action Credit'!$L329)),\"\",\"Circuit Breaker\")","v":""},null,null,null,null,null,null,null,null,null,null,{"$f":"IF('Early Action Credit'!$I329=\"Yes\",0,IF('Early Action Credit'!$E329<72.5,0,IF('Early Action Credit'!$E329=72.5,300,IF('Early Action Credit'!$E329<=145,700,IF('Early Action Credit'!$E329<=245,1900,2400)))))*IF(ISBLANK('Early Action Credit'!$J329),0,IF('Early Action Credit'!$J329=\"No\",1,'Early Action Credit'!$K329))","v":0}]
[null,{"$f":"IF(AND(ISBLANK('Early Action Credit'!$A330),ISBLANK('Early Action Credit'!$C330),ISBLANK('Early Action Credit'!$D330),ISBLANK('Early Action Credit'!$E330),ISBLANK('Early Action Credit'!$F330),ISBLANK('Early Action Credit'!$G330),ISBLANK('Early Action Credit'!$H330),ISBLANK('Early Action Credit'!$I330),ISBLANK('Early Action Credit'!$J330),ISBLANK('Early Action Credit'!$L330)),\"\",\"Circuit Breaker\")","v":""},null,null,null,null,null,null,null,null,null,null,{"$f":"IF('Early Action Credit'!$I330=\"Yes\",0,IF('Early Action Credit'!$E330<72.5,0,IF('Early Action Credit'!$E330=72.5,300,IF('Early Action Credit'!$E330<=145,700,IF('Early Action Credit'!$E330<=245,1900,2400)))))*IF(ISBLANK('Early Action Credit'!$J330),0,IF('Early Action Credit'!$J330=\"No\",1,'Early Action Credit'!$K330))","v":0}]
[null,{"$f":"IF(AND(ISBLANK('Early Action Credit'!$A331),ISBLANK('Early Action Credit'!$C331),ISBLANK('Early Action Credit'!$D331),ISBLANK('Early Action Credit'!$E331),ISBLANK('Early Action Credit'!$F331),ISBLANK('Early Action Credit'!$G331),ISBLANK('Early Action Credit'!$H331),ISBLANK('Early Action Credit'!$I331),ISBLANK('Early Action Credit'!$J331),ISBLANK('Early Action Credit'!$L331)),\"\",\"Circuit Breaker\")","v":""},null,null,null,null,null,null,null,null,null,null,{"$f":"IF('Early Action Credit'!$I331=\"Yes\",0,IF('Early Action Credit'!$E331<72.5,0,IF('Early Action Credit'!$E331=72.5,300,IF('Early Action Credit'!$E331<=145,700,IF('Early Action Credit'!$E331<=245,1900,2400)))))*IF(ISBLANK('Early Action Credit'!$J331),0,IF('Early Action Credit'!$J331=\"No\",1,'Early Action Credit'!$K331))","v":0}]
[null,{"$f":"IF(AND(ISBLANK('Early Action Credit'!$A332),ISBLANK('Early Action Credit'!$C332),ISBLANK('Early Action Credit'!$D332),ISBLANK('Early Action Credit'!$E332),ISBLANK('Early Action Credit'!$F332),ISBLANK('Early Action Credit'!$G332),ISBLANK('Early Action Credit'!$H332),ISBLANK('Early Action Credit'!$I332),ISBLANK('Early Action Credit'!$J332),ISBLANK('Early Action Credit'!$L332)),\"\",\"Circuit Breaker\")","v":""},null,null,null,null,null,null,null,null,null,null,{"$f":"IF('Early Action Credit'!$I332=\"Yes\",0,IF('Early Action Credit'!$E332<72.5,0,IF('Early Action Credit'!$E332=72.5,300,IF('Early Action Credit'!$E332<=145,700,IF('Early Action Credit'!$E332<=245,1900,2400)))))*IF(ISBLANK('Early Action Credit'!$J332),0,IF('Early Action Credit'!$J332=\"No\",1,'Early Action Credit'!$K332))","v":0}]
[null,{"$f":"IF(AND(ISBLANK('Early Action Credit'!$A333),ISBLANK('Early Action Credit'!$C333),ISBLANK('Early Action Credit'!$D333),ISBLANK('Early Action Credit'!$E333),ISBLANK('Early Action Credit'!$F333),ISBLANK('Early Action Credit'!$G333),ISBLANK('Early Action Credit'!$H333),ISBLANK('Early Action Credit'!$I333),ISBLANK('Early Action Credit'!$J333),ISBLANK('Early Action Credit'!$L333)),\"\",\"Circuit Breaker\")","v":""},null,null,null,null,null,null,null,null,null,null,{"$f":"IF('Early Action Credit'!$I333=\"Yes\",0,IF('Early Action Credit'!$E333<72.5,0,IF('Early Action Credit'!$E333=72.5,300,IF('Early Action Credit'!$E333<=145,700,IF('Early Action Credit'!$E333<=245,1900,2400)))))*IF(ISBLANK('Early Action Credit'!$J333),0,IF('Early Action Credit'!$J333=\"No\",1,'Early Action Credit'!$K333))","v":0}]
[null,{"$f":"IF(AND(ISBLANK('Early Action Credit'!$A334),ISBLANK('Early Action Credit'!$C334),ISBLANK('Early Action Credit'!$D334),ISBLANK('Early Action Credit'!$E334),ISBLANK('Early Action Credit'!$F334),ISBLANK('Early Action Credit'!$G334),ISBLANK('Early Action Credit'!$H334),ISBLANK('Early Action Credit'!$I334),ISBLANK('Early Action Credit'!$J334),ISBLANK('Early Action Credit'!$L334)),\"\",\"Circuit Breaker\")","v":""},null,null,null,null,null,null,null,null,null,null,{"$f":"IF('Early Action Credit'!$I334=\"Yes\",0,IF('Early Action Credit'!$E334<72.5,0,IF('Early Action Credit'!$E334=72.5,300,IF('Early Action Credit'!$E334<=145,700,IF('Early Action Credit'!$E334<=245,1900,2400)))))*IF(ISBLANK('Early Action Credit'!$J334),0,IF('Early Action Credit'!$J334=\"No\",1,'Early Action Credit'!$K334))","v":0}]
[null,{"$f":"IF(AND(ISBLANK('Early Action Credit'!$A335),ISBLANK('Early Action Credit'!$C335),ISBLANK('Early Action Credit'!$D335),ISBLANK('Early Action Credit'!$E335),ISBLANK('Early Action Credit'!$F335),ISBLANK('Early Action Credit'!$G335),ISBLANK('Early Action Credit'!$H335),ISBLANK('Early Action Credit'!$I335),ISBLANK('Early Action Credit'!$J335),ISBLANK('Early Action Credit'!$L335)),\"\",\"Circuit Breaker\")","v":""},null,null,null,null,null,null,null,null,null,null,{"$f":"IF('Early Action Credit'!$I335=\"Yes\",0,IF('Early Action Credit'!$E335<72.5,0,IF('Early Action Credit'!$E335=72.5,300,IF('Early Action Credit'!$E335<=145,700,IF('Early Action Credit'!$E335<=245,1900,2400)))))*IF(ISBLANK('Early Action Credit'!$J335),0,IF('Early Action Credit'!$J335=\"No\",1,'Early Action Credit'!$K335))","v":0}]
[null,{"$f":"IF(AND(ISBLANK('Early Action Credit'!$A336),ISBLANK('Early Action Credit'!$C336),ISBLANK('Early Action Credit'!$D336),ISBLANK('Early Action Credit'!$E336),ISBLANK('Early Action Credit'!$F336),ISBLANK('Early Action Credit'!$G336),ISBLANK('Early Action Credit'!$H336),ISBLANK('Early Action Credit'!$I336),ISBLANK('Early Action Credit'!$J336),ISBLANK('Early Action Credit'!$L336)),\"\",\"Circuit Breaker\")","v":""},null,null,null,null,null,null,null,null,null,null,{"$f":"IF('Early Action Credit'!$I336=\"Yes\",0,IF('Early Action Credit'!$E336<72.5,0,IF('Early Action Credit'!$E336=72.5,300,IF('Early Action Credit'!$E336<=145,700,IF('Early Action Credit'!$E336<=245,1900,2400)))))*IF(ISBLANK('Early Action Credit'!$J336),0,IF('Early Action Credit'!$J336=\"No\",1,'Early Action Credit'!$K336))","v":0}]
[null,{"$f":"IF(AND(ISBLANK('Early Action Credit'!$A337),ISBLANK('Early Action Credit'!$C337),ISBLANK('Early Action Credit'!$D337),ISBLANK('Early Action Credit'!$E337),ISBLANK('Early Action Credit'!$F337),ISBLANK('Early Action Credit'!$G337),ISBLANK('Early Action Credit'!$H337),ISBLANK('Early Action Credit'!$I337),ISBLANK('Early Action Credit'!$J337),ISBLANK('Early Action Credit'!$L337)),\"\",\"Circuit Breaker\")","v":""},null,null,null,null,null,null,null,null,null,null,{"$f":"IF('Early Action Credit'!$I337=\"Yes\",0,IF('Early Action Credit'!$E337<72.5,0,IF('Early Action Credit'!$E337=72.5,300,IF('Early Action Credit'!$E337<=145,700,IF('Early Action Credit'!$E337<=245,1900,2400)))))*IF(ISBLANK('Early Action Credit'!$J337),0,IF('Early Action Credit'!$J337=\"No\",1,'Early Action Credit'!$K337))","v":0}]
[null,{"$f":"IF(AND(ISBLANK('Early Action Credit'!$A338),ISBLANK('Early Action Credit'!$C338),ISBLANK('Early Action Credit'!$D338),ISBLANK('Early Action Credit'!$E338),ISBLANK('Early Action Credit'!$F338),ISBLANK('Early Action Credit'!$G338),ISBLANK('Early Action Credit'!$H338),ISBLANK('Early Action Credit'!$I338),ISBLANK('Early Action Credit'!$J338),ISBLANK('Early Action Credit'!$L338)),\"\",\"Circuit Breaker\")","v":""},null,null,null,null,null,null,null,null,null,null,{"$f":"IF('Early Action Credit'!$I338=\"Yes\",0,IF('Early Action Credit'!$E338<72.5,0,IF('Early Action Credit'!$E338=72.5,300,IF('Early Action Credit'!$E338<=145,700,IF('Early Action Credit'!$E338<=245,1900,2400)))))*IF(ISBLANK('Early Action Credit'!$J338),0,IF('Early Action Credit'!$J338=\"No\",1,'Early Action Credit'!$K338))","v":0}]
[null,{"$f":"IF(AND(ISBLANK('Early Action Credit'!$A339),ISBLANK('Early Action Credit'!$C339),ISBLANK('Early Action Credit'!$D339),ISBLANK('Early Action Credit'!$E339),ISBLANK('Early Action Credit'!$F339),ISBLANK('Early Action Credit'!$G339),ISBLANK('Early Action Credit'!$H339),ISBLANK('Early Action Credit'!$I339),ISBLANK('Early Action Credit'!$J339),ISBLANK('Early Action Credit'!$L339)),\"\",\"Circuit Breaker\")","v":""},null,null,null,null,null,null,null,null,null,null,{"$f":"IF('Early Action Credit'!$I339=\"Yes\",0,IF('Early Action Credit'!$E339<72.5,0,IF('Early Action Credit'!$E339=72.5,300,IF('Early Action Credit'!$E339<=145,700,IF('Early Action Credit'!$E339<=245,1900,2400)))))*IF(ISBLANK('Early Action Credit'!$J339),0,IF('Early Action Credit'!$J339=\"No\",1,'Early Action Credit'!$K339))","v":0}]
[null,{"$f":"IF(AND(ISBLANK('Early Action Credit'!$A340),ISBLANK('Early Action Credit'!$C340),ISBLANK('Early Action Credit'!$D340),ISBLANK('Early Action Credit'!$E340),ISBLANK('Early Action Credit'!$F340),ISBLANK('Early Action Credit'!$G340),ISBLANK('Early Action Credit'!$H340),ISBLANK('Early Action Credit'!$I340),ISBLANK('Early Action Credit'!$J340),ISBLANK('Early Action Credit'!$L340)),\"\",\"Circuit Breaker\")","v":""},null,null,null,null,null,null,null,null,null,null,{"$f":"IF('Early Action Credit'!$I340=\"Yes\",0,IF('Early Action Credit'!$E340<72.5,0,IF('Early Action Credit'!$E340=72.5,300,IF('Early Action Credit'!$E340<=145,700,IF('Early Action Credit'!$E340<=245,1900,2400)))))*IF(ISBLANK('Early Action Credit'!$J340),0,IF('Early Action Credit'!$J340=\"No\",1,'Early Action Credit'!$K340))","v":0}]
[null,{"$f":"IF(AND(ISBLANK('Early Action Credit'!$A341),ISBLANK('Early Action Credit'!$C341),ISBLANK('Early Action Credit'!$D341),ISBLANK('Early Action Credit'!$E341),ISBLANK('Early Action Credit'!$F341),ISBLANK('Early Action Credit'!$G341),ISBLANK('Early Action Credit'!$H341),ISBLANK('Early Action Credit'!$I341),ISBLANK('Early Action Credit'!$J341),ISBLANK('Early Action Credit'!$L341)),\"\",\"Circuit Breaker\")","v":""},null,null,null,null,null,null,null,null,null,null,{"$f":"IF('Early Action Credit'!$I341=\"Yes\",0,IF('Early Action Credit'!$E341<72.5,0,IF('Early Action Credit'!$E341=72.5,300,IF('Early Action Credit'!$E341<=145,700,IF('Early Action Credit'!$E341<=245,1900,2400)))))*IF(ISBLANK('Early Action Credit'!$J341),0,IF('Early Action Credit'!$J341=\"No\",1,'Early Action Credit'!$K341))","v":0}]
[null,{"$f":"IF(AND(ISBLANK('Early Action Credit'!$A342),ISBLANK('Early Action Credit'!$C342),ISBLANK('Early Action Credit'!$D342),ISBLANK('Early Action Credit'!$E342),ISBLANK('Early Action Credit'!$F342),ISBLANK('Early Action Credit'!$G342),ISBLANK('Early Action Credit'!$H342),ISBLANK('Early Action Credit'!$I342),ISBLANK('Early Action Credit'!$J342),ISBLANK('Early Action Credit'!$L342)),\"\",\"Circuit Breaker\")","v":""},null,null,null,null,null,null,null,null,null,null,{"$f":"IF('Early Action Credit'!$I342=\"Yes\",0,IF('Early Action Credit'!$E342<72.5,0,IF('Early Action Credit'!$E342=72.5,300,IF('Early Action Credit'!$E342<=145,700,IF('Early Action Credit'!$E342<=245,1900,2400)))))*IF(ISBLANK('Early Action Credit'!$J342),0,IF('Early Action Credit'!$J342=\"No\",1,'Early Action Credit'!$K342))","v":0}]
[null,{"$f":"IF(AND(ISBLANK('Early Action Credit'!$A343),ISBLANK('Early Action Credit'!$C343),ISBLANK('Early Action Credit'!$D343),ISBLANK('Early Action Credit'!$E343),ISBLANK('Early Action Credit'!$F343),ISBLANK('Early Action Credit'!$G343),ISBLANK('Early Action Credit'!$H343),ISBLANK('Early Action Credit'!$I343),ISBLANK('Early Action Credit'!$J343),ISBLANK('Early Action Credit'!$L343)),\"\",\"Circuit Breaker\")","v":""},null,null,null,null,null,null,null,null,null,null,{"$f":"IF('Early Action Credit'!$I343=\"Yes\",0,IF('Early Action Credit'!$E343<72.5,0,IF('Early Action Credit'!$E343=72.5,300,IF('Early Action Credit'!$E343<=145,700,IF('Early Action Credit'!$E343<=245,1900,2400)))))*IF(ISBLANK('Early Action Credit'!$J343),0,IF('Early Action Credit'!$J343=\"No\",1,'Early Action Credit'!$K343))","v":0}]
[null,{"$f":"IF(AND(ISBLANK('Early Action Credit'!$A344),ISBLANK('Early Action Credit'!$C344),ISBLANK('Early Action Credit'!$D344),ISBLANK('Early Action Credit'!$E344),ISBLANK('Early Action Credit'!$F344),ISBLANK('Early Action Credit'!$G344),ISBLANK('Early Action Credit'!$H344),ISBLANK('Early Action Credit'!$I344),ISBLANK('Early Action Credit'!$J344),ISBLANK('Early Action Credit'!$L344)),\"\",\"Circuit Breaker\")","v":""},null,null,null,null,null,null,null,null,null,null,{"$f":"IF('Early Action Credit'!$I344=\"Yes\",0,IF('Early Action Credit'!$E344<72.5,0,IF('Early Action Credit'!$E344=72.5,300,IF('Early Action Credit'!$E344<=145,700,IF('Early Action Credit'!$E344<=245,1900,2400)))))*IF(ISBLANK('Early Action Credit'!$J344),0,IF('Early Action Credit'!$J344=\"No\",1,'Early Action Credit'!$K344))","v":0}]
[null,{"$f":"IF(AND(ISBLANK('Early Action Credit'!$A345),ISBLANK('Early Action Credit'!$C345),ISBLANK('Early Action Credit'!$D345),ISBLANK('Early Action Credit'!$E345),ISBLANK('Early Action Credit'!$F345),ISBLANK('Early Action Credit'!$G345),ISBLANK('Early Action Credit'!$H345),ISBLANK('Early Action Credit'!$I345),ISBLANK('Early Action Credit'!$J345),ISBLANK('Early Action Credit'!$L345)),\"\",\"Circuit Breaker\")","v":""},null,null,null,null,null,null,null,null,null,null,{"$f":"IF('Early Action Credit'!$I345=\"Yes\",0,IF('Early Action Credit'!$E345<72.5,0,IF('Early Action Credit'!$E345=72.5,300,IF('Early Action Credit'!$E345<=145,700,IF('Early Action Credit'!$E345<=245,1900,2400)))))*IF(ISBLANK('Early Action Credit'!$J345),0,IF('Early Action Credit'!$J345=\"No\",1,'Early Action Credit'!$K345))","v":0}]
[null,{"$f":"IF(AND(ISBLANK('Early Action Credit'!$A346),ISBLANK('Early Action Credit'!$C346),ISBLANK('Early Action Credit'!$D346),ISBLANK('Early Action Credit'!$E346),ISBLANK('Early Action Credit'!$F346),ISBLANK('Early Action Credit'!$G346),ISBLANK('Early Action Credit'!$H346),ISBLANK('Early Action Credit'!$I346),ISBLANK('Early Action Credit'!$J346),ISBLANK('Early Action Credit'!$L346)),\"\",\"Circuit Breaker\")","v":""},null,null,null,null,null,null,null,null,null,null,{"$f":"IF('Early Action Credit'!$I346=\"Yes\",0,IF('Early Action Credit'!$E346<72.5,0,IF('Early Action Credit'!$E346=72.5,300,IF('Early Action Credit'!$E346<=145,700,IF('Early Action Credit'!$E346<=245,1900,2400)))))*IF(ISBLANK('Early Action Credit'!$J346),0,IF('Early Action Credit'!$J346=\"No\",1,'Early Action Credit'!$K346))","v":0}]
[null,{"$f":"IF(AND(ISBLANK('Early Action Credit'!$A347),ISBLANK('Early Action Credit'!$C347),ISBLANK('Early Action Credit'!$D347),ISBLANK('Early Action Credit'!$E347),ISBLANK('Early Action Credit'!$F347),ISBLANK('Early Action Credit'!$G347),ISBLANK('Early Action Credit'!$H347),ISBLANK('Early Action Credit'!$I347),ISBLANK('Early Action Credit'!$J347),ISBLANK('Early Action Credit'!$L347)),\"\",\"Circuit Breaker\")","v":""},null,null,null,null,null,null,null,null,null,null,{"$f":"IF('Early Action Credit'!$I347=\"Yes\",0,IF('Early Action Credit'!$E347<72.5,0,IF('Early Action Credit'!$E347=72.5,300,IF('Early Action Credit'!$E347<=145,700,IF('Early Action Credit'!$E347<=245,1900,2400)))))*IF(ISBLANK('Early Action Credit'!$J347),0,IF('Early Action Credit'!$J347=\"No\",1,'Early Action Credit'!$K347))","v":0}]
[null,{"$f":"IF(AND(ISBLANK('Early Action Credit'!$A348),ISBLANK('Early Action Credit'!$C348),ISBLANK('Early Action Credit'!$D348),ISBLANK('Early Action Credit'!$E348),ISBLANK('Early Action Credit'!$F348),ISBLANK('Early Action Credit'!$G348),ISBLANK('Early Action Credit'!$H348),ISBLANK('Early Action Credit'!$I348),ISBLANK('Early Action Credit'!$J348),ISBLANK('Early Action Credit'!$L348)),\"\",\"Circuit Breaker\")","v":""},null,null,null,null,null,null,null,null,null,null,{"$f":"IF('Early Action Credit'!$I348=\"Yes\",0,IF('Early Action Credit'!$E348<72.5,0,IF('Early Action Credit'!$E348=72.5,300,IF('Early Action Credit'!$E348<=145,700,IF('Early Action Credit'!$E348<=245,1900,2400)))))*IF(ISBLANK('Early Action Credit'!$J348),0,IF('Early Action Credit'!$J348=\"No\",1,'Early Action Credit'!$K348))","v":0}]
[null,{"$f":"IF(AND(ISBLANK('Early Action Credit'!$A349),ISBLANK('Early Action Credit'!$C349),ISBLANK('Early Action Credit'!$D349),ISBLANK('Early Action Credit'!$E349),ISBLANK('Early Action Credit'!$F349),ISBLANK('Early Action Credit'!$G349),ISBLANK('Early Action Credit'!$H349),ISBLANK('Early Action Credit'!$I349),ISBLANK('Early Action Credit'!$J349),ISBLANK('Early Action Credit'!$L349)),\"\",\"Circuit Breaker\")","v":""},null,null,null,null,null,null,null,null,null,null,{"$f":"IF('Early Action Credit'!$I349=\"Yes\",0,IF('Early Action Credit'!$E349<72.5,0,IF('Early Action Credit'!$E349=72.5,300,IF('Early Action Credit'!$E349<=145,700,IF('Early Action Credit'!$E349<=245,1900,2400)))))*IF(ISBLANK('Early Action Credit'!$J349),0,IF('Early Action Credit'!$J349=\"No\",1,'Early Action Credit'!$K349))","v":0}]
[null,{"$f":"IF(AND(ISBLANK('Early Action Credit'!$A350),ISBLANK('Early Action Credit'!$C350),ISBLANK('Early Action Credit'!$D350),ISBLANK('Early Action Credit'!$E350),ISBLANK('Early Action Credit'!$F350),ISBLANK('Early Action Credit'!$G350),ISBLANK('Early Action Credit'!$H350),ISBLANK('Early Action Credit'!$I350),ISBLANK('Early Action Credit'!$J350),ISBLANK('Early Action Credit'!$L350)),\"\",\"Circuit Breaker\")","v":""},null,null,null,null,null,null,null,null,null,null,{"$f":"IF('Early Action Credit'!$I350=\"Yes\",0,IF('Early Action Credit'!$E350<72.5,0,IF('Early Action Credit'!$E350=72.5,300,IF('Early Action Credit'!$E350<=145,700,IF('Early Action Credit'!$E350<=245,1900,2400)))))*IF(ISBLANK('Early Action Credit'!$J350),0,IF('Early Action Credit'!$J350=\"No\",1,'Early Action Credit'!$K350))","v":0}]
[null,{"$f":"IF(AND(ISBLANK('Early Action Credit'!$A351),ISBLANK('Early Action Credit'!$C351),ISBLANK('Early Action Credit'!$D351),ISBLANK('Early Action Credit'!$E351),ISBLANK('Early Action Credit'!$F351),ISBLANK('Early Action Credit'!$G351),ISBLANK('Early Action Credit'!$H351),ISBLANK('Early Action Credit'!$I351),ISBLANK('Early Action Credit'!$J351),ISBLANK('Early Action Credit'!$L351)),\"\",\"Circuit Breaker\")","v":""},null,null,null,null,null,null,null,null,null,null,{"$f":"IF('Early Action Credit'!$I351=\"Yes\",0,IF('Early Action Credit'!$E351<72.5,0,IF('Early Action Credit'!$E351=72.5,300,IF('Early Action Credit'!$E351<=145,700,IF('Early Action Credit'!$E351<=245,1900,2400)))))*IF(ISBLANK('Early Action Credit'!$J351),0,IF('Early Action Credit'!$J351=\"No\",1,'Early Action Credit'!$K351))","v":0}]
[null,{"$f":"IF(AND(ISBLANK('Early Action Credit'!$A352),ISBLANK('Early Action Credit'!$C352),ISBLANK('Early Action Credit'!$D352),ISBLANK('Early Action Credit'!$E352),ISBLANK('Early Action Credit'!$F352),ISBLANK('Early Action Credit'!$G352),ISBLANK('Early Action Credit'!$H352),ISBLANK('Early Action Credit'!$I352),ISBLANK('Early Action Credit'!$J352),ISBLANK('Early Action Credit'!$L352)),\"\",\"Circuit Breaker\")","v":""},null,null,null,null,null,null,null,null,null,null,{"$f":"IF('Early Action Credit'!$I352=\"Yes\",0,IF('Early Action Credit'!$E352<72.5,0,IF('Early Action Credit'!$E352=72.5,300,IF('Early Action Credit'!$E352<=145,700,IF('Early Action Credit'!$E352<=245,1900,2400)))))*IF(ISBLANK('Early Action Credit'!$J352),0,IF('Early Action Credit'!$J352=\"No\",1,'Early Action Credit'!$K352))","v":0}]
[null,{"$f":"IF(AND(ISBLANK('Early Action Credit'!$A353),ISBLANK('Early Action Credit'!$C353),ISBLANK('Early Action Credit'!$D353),ISBLANK('Early Action Credit'!$E353),ISBLANK('Early Action Credit'!$F353),ISBLANK('Early Action Credit'!$G353),ISBLANK('Early Action Credit'!$H353),ISBLANK('Early Action Credit'!$I353),ISBLANK('Early Action Credit'!$J353),ISBLANK('Early Action Credit'!$L353)),\"\",\"Circuit Breaker\")","v":""},null,null,null,null,null,null,null,null,null,null,{"$f":"IF('Early Action Credit'!$I353=\"Yes\",0,IF('Early Action Credit'!$E353<72.5,0,IF('Early Action Credit'!$E353=72.5,300,IF('Early Action Credit'!$E353<=145,700,IF('Early Action Credit'!$E353<=245,1900,2400)))))*IF(ISBLANK('Early Action Credit'!$J353),0,IF('Early Action Credit'!$J353=\"No\",1,'Early Action Credit'!$K353))","v":0}]
[null,{"$f":"IF(AND(ISBLANK('Early Action Credit'!$A354),ISBLANK('Early Action Credit'!$C354),ISBLANK('Early Action Credit'!$D354),ISBLANK('Early Action Credit'!$E354),ISBLANK('Early Action Credit'!$F354),ISBLANK('Early Action Credit'!$G354),ISBLANK('Early Action Credit'!$H354),ISBLANK('Early Action Credit'!$I354),ISBLANK('Early Action Credit'!$J354),ISBLANK('Early Action Credit'!$L354)),\"\",\"Circuit Breaker\")","v":""},null,null,null,null,null,null,null,null,null,null,{"$f":"IF('Early Action Credit'!$I354=\"Yes\",0,IF('Early Action Credit'!$E354<72.5,0,IF('Early Action Credit'!$E354=72.5,300,IF('Early Action Credit'!$E354<=145,700,IF('Early Action Credit'!$E354<=245,1900,2400)))))*IF(ISBLANK('Early Action Credit'!$J354),0,IF('Early Action Credit'!$J354=\"No\",1,'Early Action Credit'!$K354))","v":0}]
[null,{"$f":"IF(AND(ISBLANK('Early Action Credit'!$A355),ISBLANK('Early Action Credit'!$C355),ISBLANK('Early Action Credit'!$D355),ISBLANK('Early Action Credit'!$E355),ISBLANK('Early Action Credit'!$F355),ISBLANK('Early Action Credit'!$G355),ISBLANK('Early Action Credit'!$H355),ISBLANK('Early Action Credit'!$I355),ISBLANK('Early Action Credit'!$J355),ISBLANK('Early Action Credit'!$L355)),\"\",\"Circuit Breaker\")","v":""},null,null,null,null,null,null,null,null,null,null,{"$f":"IF('Early Action Credit'!$I355=\"Yes\",0,IF('Early Action Credit'!$E355<72.5,0,IF('Early Action Credit'!$E355=72.5,300,IF('Early Action Credit'!$E355<=145,700,IF('Early Action Credit'!$E355<=245,1900,2400)))))*IF(ISBLANK('Early Action Credit'!$J355),0,IF('Early Action Credit'!$J355=\"No\",1,'Early Action Credit'!$K355))","v":0}]
[null,{"$f":"IF(AND(ISBLANK('Early Action Credit'!$A356),ISBLANK('Early Action Credit'!$C356),ISBLANK('Early Action Credit'!$D356),ISBLANK('Early Action Credit'!$E356),ISBLANK('Early Action Credit'!$F356),ISBLANK('Early Action Credit'!$G356),ISBLANK('Early Action Credit'!$H356),ISBLANK('Early Action Credit'!$I356),ISBLANK('Early Action Credit'!$J356),ISBLANK('Early Action Credit'!$L356)),\"\",\"Circuit Breaker\")","v":""},null,null,null,null,null,null,null,null,null,null,{"$f":"IF('Early Action Credit'!$I356=\"Yes\",0,IF('Early Action Credit'!$E356<72.5,0,IF('Early Action Credit'!$E356=72.5,300,IF('Early Action Credit'!$E356<=145,700,IF('Early Action Credit'!$E356<=245,1900,2400)))))*IF(ISBLANK('Early Action Credit'!$J356),0,IF('Early Action Credit'!$J356=\"No\",1,'Early Action Credit'!$K356))","v":0}]
[null,{"$f":"IF(AND(ISBLANK('Early Action Credit'!$A357),ISBLANK('Early Action Credit'!$C357),ISBLANK('Early Action Credit'!$D357),ISBLANK('Early Action Credit'!$E357),ISBLANK('Early Action Credit'!$F357),ISBLANK('Early Action Credit'!$G357),ISBLANK('Early Action Credit'!$H357),ISBLANK('Early Action Credit'!$I357),ISBLANK('Early Action Credit'!$J357),ISBLANK('Early Action Credit'!$L357)),\"\",\"Circuit Breaker\")","v":""},null,null,null,null,null,null,null,null,null,null,{"$f":"IF('Early Action Credit'!$I357=\"Yes\",0,IF('Early Action Credit'!$E357<72.5,0,IF('Early Action Credit'!$E357=72.5,300,IF('Early Action Credit'!$E357<=145,700,IF('Early Action Credit'!$E357<=245,1900,2400)))))*IF(ISBLANK('Early Action Credit'!$J357),0,IF('Early Action Credit'!$J357=\"No\",1,'Early Action Credit'!$K357))","v":0}]
[null,{"$f":"IF(AND(ISBLANK('Early Action Credit'!$A358),ISBLANK('Early Action Credit'!$C358),ISBLANK('Early Action Credit'!$D358),ISBLANK('Early Action Credit'!$E358),ISBLANK('Early Action Credit'!$F358),ISBLANK('Early Action Credit'!$G358),ISBLANK('Early Action Credit'!$H358),ISBLANK('Early Action Credit'!$I358),ISBLANK('Early Action Credit'!$J358),ISBLANK('Early Action Credit'!$L358)),\"\",\"Circuit Breaker\")","v":""},null,null,null,null,null,null,null,null,null,null,{"$f":"IF('Early Action Credit'!$I358=\"Yes\",0,IF('Early Action Credit'!$E358<72.5,0,IF('Early Action Credit'!$E358=72.5,300,IF('Early Action Credit'!$E358<=145,700,IF('Early Action Credit'!$E358<=245,1900,2400)))))*IF(ISBLANK('Early Action Credit'!$J358),0,IF('Early Action Credit'!$J358=\"No\",1,'Early Action Credit'!$K358))","v":0}]
[null,{"$f":"IF(AND(ISBLANK('Early Action Credit'!$A359),ISBLANK('Early Action Credit'!$C359),ISBLANK('Early Action Credit'!$D359),ISBLANK('Early Action Credit'!$E359),ISBLANK('Early Action Credit'!$F359),ISBLANK('Early Action Credit'!$G359),ISBLANK('Early Action Credit'!$H359),ISBLANK('Early Action Credit'!$I359),ISBLANK('Early Action Credit'!$J359),ISBLANK('Early Action Credit'!$L359)),\"\",\"Circuit Breaker\")","v":""},null,null,null,null,null,null,null,null,null,null,{"$f":"IF('Early Action Credit'!$I359=\"Yes\",0,IF('Early Action Credit'!$E359<72.5,0,IF('Early Action Credit'!$E359=72.5,300,IF('Early Action Credit'!$E359<=145,700,IF('Early Action Credit'!$E359<=245,1900,2400)))))*IF(ISBLANK('Early Action Credit'!$J359),0,IF('Early Action Credit'!$J359=\"No\",1,'Early Action Credit'!$K359))","v":0}]
[null,{"$f":"IF(AND(ISBLANK('Early Action Credit'!$A360),ISBLANK('Early Action Credit'!$C360),ISBLANK('Early Action Credit'!$D360),ISBLANK('Early Action Credit'!$E360),ISBLANK('Early Action Credit'!$F360),ISBLANK('Early Action Credit'!$G360),ISBLANK('Early Action Credit'!$H360),ISBLANK('Early Action Credit'!$I360),ISBLANK('Early Action Credit'!$J360),ISBLANK('Early Action Credit'!$L360)),\"\",\"Circuit Breaker\")","v":""},null,null,null,null,null,null,null,null,null,null,{"$f":"IF('Early Action Credit'!$I360=\"Yes\",0,IF('Early Action Credit'!$E360<72.5,0,IF('Early Action Credit'!$E360=72.5,300,IF('Early Action Credit'!$E360<=145,700,IF('Early Action Credit'!$E360<=245,1900,2400)))))*IF(ISBLANK('Early Action Credit'!$J360),0,IF('Early Action Credit'!$J360=\"No\",1,'Early Action Credit'!$K360))","v":0}]
[null,{"$f":"IF(AND(ISBLANK('Early Action Credit'!$A361),ISBLANK('Early Action Credit'!$C361),ISBLANK('Early Action Credit'!$D361),ISBLANK('Early Action Credit'!$E361),ISBLANK('Early Action Credit'!$F361),ISBLANK('Early Action Credit'!$G361),ISBLANK('Early Action Credit'!$H361),ISBLANK('Early Action Credit'!$I361),ISBLANK('Early Action Credit'!$J361),ISBLANK('Early Action Credit'!$L361)),\"\",\"Circuit Breaker\")","v":""},null,null,null,null,null,null,null,null,null,null,{"$f":"IF('Early Action Credit'!$I361=\"Yes\",0,IF('Early Action Credit'!$E361<72.5,0,IF('Early Action Credit'!$E361=72.5,300,IF('Early Action Credit'!$E361<=145,700,IF('Early Action Credit'!$E361<=245,1900,2400)))))*IF(ISBLANK('Early Action Credit'!$J361),0,IF('Early Action Credit'!$J361=\"No\",1,'Early Action Credit'!$K361))","v":0}]
[null,{"$f":"IF(AND(ISBLANK('Early Action Credit'!$A362),ISBLANK('Early Action Credit'!$C362),ISBLANK('Early Action Credit'!$D362),ISBLANK('Early Action Credit'!$E362),ISBLANK('Early Action Credit'!$F362),ISBLANK('Early Action Credit'!$G362),ISBLANK('Early Action Credit'!$H362),ISBLANK('Early Action Credit'!$I362),ISBLANK('Early Action Credit'!$J362),ISBLANK('Early Action Credit'!$L362)),\"\",\"Circuit Breaker\")","v":""},null,null,null,null,null,null,null,null,null,null,{"$f":"IF('Early Action Credit'!$I362=\"Yes\",0,IF('Early Action Credit'!$E362<72.5,0,IF('Early Action Credit'!$E362=72.5,300,IF('Early Action Credit'!$E362<=145,700,IF('Early Action Credit'!$E362<=245,1900,2400)))))*IF(ISBLANK('Early Action Credit'!$J362),0,IF('Early Action Credit'!$J362=\"No\",1,'Early Action Credit'!$K362))","v":0}]
[null,{"$f":"IF(AND(ISBLANK('Early Action Credit'!$A363),ISBLANK('Early Action Credit'!$C363),ISBLANK('Early Action Credit'!$D363),ISBLANK('Early Action Credit'!$E363),ISBLANK('Early Action Credit'!$F363),ISBLANK('Early Action Credit'!$G363),ISBLANK('Early Action Credit'!$H363),ISBLANK('Early Action Credit'!$I363),ISBLANK('Early Action Credit'!$J363),ISBLANK('Early Action Credit'!$L363)),\"\",\"Circuit Breaker\")","v":""},null,null,null,null,null,null,null,null,null,null,{"$f":"IF('Early Action Credit'!$I363=\"Yes\",0,IF('Early Action Credit'!$E363<72.5,0,IF('Early Action Credit'!$E363=72.5,300,IF('Early Action Credit'!$E363<=145,700,IF('Early Action Credit'!$E363<=245,1900,2400)))))*IF(ISBLANK('Early Action Credit'!$J363),0,IF('Early Action Credit'!$J363=\"No\",1,'Early Action Credit'!$K363))","v":0}]
[null,{"$f":"IF(AND(ISBLANK('Early Action Credit'!$A364),ISBLANK('Early Action Credit'!$C364),ISBLANK('Early Action Credit'!$D364),ISBLANK('Early Action Credit'!$E364),ISBLANK('Early Action Credit'!$F364),ISBLANK('Early Action Credit'!$G364),ISBLANK('Early Action Credit'!$H364),ISBLANK('Early Action Credit'!$I364),ISBLANK('Early Action Credit'!$J364),ISBLANK('Early Action Credit'!$L364)),\"\",\"Circuit Breaker\")","v":""},null,null,null,null,null,null,null,null,null,null,{"$f":"IF('Early Action Credit'!$I364=\"Yes\",0,IF('Early Action Credit'!$E364<72.5,0,IF('Early Action Credit'!$E364=72.5,300,IF('Early Action Credit'!$E364<=145,700,IF('Early Action Credit'!$E364<=245,1900,2400)))))*IF(ISBLANK('Early Action Credit'!$J364),0,IF('Early Action Credit'!$J364=\"No\",1,'Early Action Credit'!$K364))","v":0}]
[null,{"$f":"IF(AND(ISBLANK('Early Action Credit'!$A365),ISBLANK('Early Action Credit'!$C365),ISBLANK('Early Action Credit'!$D365),ISBLANK('Early Action Credit'!$E365),ISBLANK('Early Action Credit'!$F365),ISBLANK('Early Action Credit'!$G365),ISBLANK('Early Action Credit'!$H365),ISBLANK('Early Action Credit'!$I365),ISBLANK('Early Action Credit'!$J365),ISBLANK('Early Action Credit'!$L365)),\"\",\"Circuit Breaker\")","v":""},null,null,null,null,null,null,null,null,null,null,{"$f":"IF('Early Action Credit'!$I365=\"Yes\",0,IF('Early Action Credit'!$E365<72.5,0,IF('Early Action Credit'!$E365=72.5,300,IF('Early Action Credit'!$E365<=145,700,IF('Early Action Credit'!$E365<=245,1900,2400)))))*IF(ISBLANK('Early Action Credit'!$J365),0,IF('Early Action Credit'!$J365=\"No\",1,'Early Action Credit'!$K365))","v":0}]
[null,{"$f":"IF(AND(ISBLANK('Early Action Credit'!$A366),ISBLANK('Early Action Credit'!$C366),ISBLANK('Early Action Credit'!$D366),ISBLANK('Early Action Credit'!$E366),ISBLANK('Early Action Credit'!$F366),ISBLANK('Early Action Credit'!$G366),ISBLANK('Early Action Credit'!$H366),ISBLANK('Early Action Credit'!$I366),ISBLANK('Early Action Credit'!$J366),ISBLANK('Early Action Credit'!$L366)),\"\",\"Circuit Breaker\")","v":""},null,null,null,null,null,null,null,null,null,null,{"$f":"IF('Early Action Credit'!$I366=\"Yes\",0,IF('Early Action Credit'!$E366<72.5,0,IF('Early Action Credit'!$E366=72.5,300,IF('Early Action Credit'!$E366<=145,700,IF('Early Action Credit'!$E366<=245,1900,2400)))))*IF(ISBLANK('Early Action Credit'!$J366),0,IF('Early Action Credit'!$J366=\"No\",1,'Early Action Credit'!$K366))","v":0}]
[null,{"$f":"IF(AND(ISBLANK('Early Action Credit'!$A367),ISBLANK('Early Action Credit'!$C367),ISBLANK('Early Action Credit'!$D367),ISBLANK('Early Action Credit'!$E367),ISBLANK('Early Action Credit'!$F367),ISBLANK('Early Action Credit'!$G367),ISBLANK('Early Action Credit'!$H367),ISBLANK('Early Action Credit'!$I367),ISBLANK('Early Action Credit'!$J367),ISBLANK('Early Action Credit'!$L367)),\"\",\"Circuit Breaker\")","v":""},null,null,null,null,null,null,null,null,null,null,{"$f":"IF('Early Action Credit'!$I367=\"Yes\",0,IF('Early Action Credit'!$E367<72.5,0,IF('Early Action Credit'!$E367=72.5,300,IF('Early Action Credit'!$E367<=145,700,IF('Early Action Credit'!$E367<=245,1900,2400)))))*IF(ISBLANK('Early Action Credit'!$J367),0,IF('Early Action Credit'!$J367=\"No\",1,'Early Action Credit'!$K367))","v":0}]
[null,{"$f":"IF(AND(ISBLANK('Early Action Credit'!$A368),ISBLANK('Early Action Credit'!$C368),ISBLANK('Early Action Credit'!$D368),ISBLANK('Early Action Credit'!$E368),ISBLANK('Early Action Credit'!$F368),ISBLANK('Early Action Credit'!$G368),ISBLANK('Early Action Credit'!$H368),ISBLANK('Early Action Credit'!$I368),ISBLANK('Early Action Credit'!$J368),ISBLANK('Early Action Credit'!$L368)),\"\",\"Circuit Breaker\")","v":""},null,null,null,null,null,null,null,null,null,null,{"$f":"IF('Early Action Credit'!$I368=\"Yes\",0,IF('Early Action Credit'!$E368<72.5,0,IF('Early Action Credit'!$E368=72.5,300,IF('Early Action Credit'!$E368<=145,700,IF('Early Action Credit'!$E368<=245,1900,2400)))))*IF(ISBLANK('Early Action Credit'!$J368),0,IF('Early Action Credit'!$J368=\"No\",1,'Early Action Credit'!$K368))","v":0}]
[null,{"$f":"IF(AND(ISBLANK('Early Action Credit'!$A369),ISBLANK('Early Action Credit'!$C369),ISBLANK('Early Action Credit'!$D369),ISBLANK('Early Action Credit'!$E369),ISBLANK('Early Action Credit'!$F369),ISBLANK('Early Action Credit'!$G369),ISBLANK('Early Action Credit'!$H369),ISBLANK('Early Action Credit'!$I369),ISBLANK('Early Action Credit'!$J369),ISBLANK('Early Action Credit'!$L369)),\"\",\"Circuit Breaker\")","v":""},null,null,null,null,null,null,null,null,null,null,{"$f":"IF('Early Action Credit'!$I369=\"Yes\",0,IF('Early Action Credit'!$E369<72.5,0,IF('Early Action Credit'!$E369=72.5,300,IF('Early Action Credit'!$E369<=145,700,IF('Early Action Credit'!$E369<=245,1900,2400)))))*IF(ISBLANK('Early Action Credit'!$J369),0,IF('Early Action Credit'!$J369=\"No\",1,'Early Action Credit'!$K369))","v":0}]
[null,{"$f":"IF(AND(ISBLANK('Early Action Credit'!$A370),ISBLANK('Early Action Credit'!$C370),ISBLANK('Early Action Credit'!$D370),ISBLANK('Early Action Credit'!$E370),ISBLANK('Early Action Credit'!$F370),ISBLANK('Early Action Credit'!$G370),ISBLANK('Early Action Credit'!$H370),ISBLANK('Early Action Credit'!$I370),ISBLANK('Early Action Credit'!$J370),ISBLANK('Early Action Credit'!$L370)),\"\",\"Circuit Breaker\")","v":""},null,null,null,null,null,null,null,null,null,null,{"$f":"IF('Early Action Credit'!$I370=\"Yes\",0,IF('Early Action Credit'!$E370<72.5,0,IF('Early Action Credit'!$E370=72.5,300,IF('Early Action Credit'!$E370<=145,700,IF('Early Action Credit'!$E370<=245,1900,2400)))))*IF(ISBLANK('Early Action Credit'!$J370),0,IF('Early Action Credit'!$J370=\"No\",1,'Early Action Credit'!$K370))","v":0}]
[null,{"$f":"IF(AND(ISBLANK('Early Action Credit'!$A371),ISBLANK('Early Action Credit'!$C371),ISBLANK('Early Action Credit'!$D371),ISBLANK('Early Action Credit'!$E371),ISBLANK('Early Action Credit'!$F371),ISBLANK('Early Action Credit'!$G371),ISBLANK('Early Action Credit'!$H371),ISBLANK('Early Action Credit'!$I371),ISBLANK('Early Action Credit'!$J371),ISBLANK('Early Action Credit'!$L371)),\"\",\"Circuit Breaker\")","v":""},null,null,null,null,null,null,null,null,null,null,{"$f":"IF('Early Action Credit'!$I371=\"Yes\",0,IF('Early Action Credit'!$E371<72.5,0,IF('Early Action Credit'!$E371=72.5,300,IF('Early Action Credit'!$E371<=145,700,IF('Early Action Credit'!$E371<=245,1900,2400)))))*IF(ISBLANK('Early Action Credit'!$J371),0,IF('Early Action Credit'!$J371=\"No\",1,'Early Action Credit'!$K371))","v":0}]
[null,{"$f":"IF(AND(ISBLANK('Early Action Credit'!$A372),ISBLANK('Early Action Credit'!$C372),ISBLANK('Early Action Credit'!$D372),ISBLANK('Early Action Credit'!$E372),ISBLANK('Early Action Credit'!$F372),ISBLANK('Early Action Credit'!$G372),ISBLANK('Early Action Credit'!$H372),ISBLANK('Early Action Credit'!$I372),ISBLANK('Early Action Credit'!$J372),ISBLANK('Early Action Credit'!$L372)),\"\",\"Circuit Breaker\")","v":""},null,null,null,null,null,null,null,null,null,null,{"$f":"IF('Early Action Credit'!$I372=\"Yes\",0,IF('Early Action Credit'!$E372<72.5,0,IF('Early Action Credit'!$E372=72.5,300,IF('Early Action Credit'!$E372<=145,700,IF('Early Action Credit'!$E372<=245,1900,2400)))))*IF(ISBLANK('Early Action Credit'!$J372),0,IF('Early Action Credit'!$J372=\"No\",1,'Early Action Credit'!$K372))","v":0}]
[null,{"$f":"IF(AND(ISBLANK('Early Action Credit'!$A373),ISBLANK('Early Action Credit'!$C373),ISBLANK('Early Action Credit'!$D373),ISBLANK('Early Action Credit'!$E373),ISBLANK('Early Action Credit'!$F373),ISBLANK('Early Action Credit'!$G373),ISBLANK('Early Action Credit'!$H373),ISBLANK('Early Action Credit'!$I373),ISBLANK('Early Action Credit'!$J373),ISBLANK('Early Action Credit'!$L373)),\"\",\"Circuit Breaker\")","v":""},null,null,null,null,null,null,null,null,null,null,{"$f":"IF('Early Action Credit'!$I373=\"Yes\",0,IF('Early Action Credit'!$E373<72.5,0,IF('Early Action Credit'!$E373=72.5,300,IF('Early Action Credit'!$E373<=145,700,IF('Early Action Credit'!$E373<=245,1900,2400)))))*IF(ISBLANK('Early Action Credit'!$J373),0,IF('Early Action Credit'!$J373=\"No\",1,'Early Action Credit'!$K373))","v":0}]
[null,{"$f":"IF(AND(ISBLANK('Early Action Credit'!$A374),ISBLANK('Early Action Credit'!$C374),ISBLANK('Early Action Credit'!$D374),ISBLANK('Early Action Credit'!$E374),ISBLANK('Early Action Credit'!$F374),ISBLANK('Early Action Credit'!$G374),ISBLANK('Early Action Credit'!$H374),ISBLANK('Early Action Credit'!$I374),ISBLANK('Early Action Credit'!$J374),ISBLANK('Early Action Credit'!$L374)),\"\",\"Circuit Breaker\")","v":""},null,null,null,null,null,null,null,null,null,null,{"$f":"IF('Early Action Credit'!$I374=\"Yes\",0,IF('Early Action Credit'!$E374<72.5,0,IF('Early Action Credit'!$E374=72.5,300,IF('Early Action Credit'!$E374<=145,700,IF('Early Action Credit'!$E374<=245,1900,2400)))))*IF(ISBLANK('Early Action Credit'!$J374),0,IF('Early Action Credit'!$J374=\"No\",1,'Early Action Credit'!$K374))","v":0}]
[null,{"$f":"IF(AND(ISBLANK('Early Action Credit'!$A375),ISBLANK('Early Action Credit'!$C375),ISBLANK('Early Action Credit'!$D375),ISBLANK('Early Action Credit'!$E375),ISBLANK('Early Action Credit'!$F375),ISBLANK('Early Action Credit'!$G375),ISBLANK('Early Action Credit'!$H375),ISBLANK('Early Action Credit'!$I375),ISBLANK('Early Action Credit'!$J375),ISBLANK('Early Action Credit'!$L375)),\"\",\"Circuit Breaker\")","v":""},null,null,null,null,null,null,null,null,null,null,{"$f":"IF('Early Action Credit'!$I375=\"Yes\",0,IF('Early Action Credit'!$E375<72.5,0,IF('Early Action Credit'!$E375=72.5,300,IF('Early Action Credit'!$E375<=145,700,IF('Early Action Credit'!$E375<=245,1900,2400)))))*IF(ISBLANK('Early Action Credit'!$J375),0,IF('Early Action Credit'!$J375=\"No\",1,'Early Action Credit'!$K375))","v":0}]
[null,{"$f":"IF(AND(ISBLANK('Early Action Credit'!$A376),ISBLANK('Early Action Credit'!$C376),ISBLANK('Early Action Credit'!$D376),ISBLANK('Early Action Credit'!$E376),ISBLANK('Early Action Credit'!$F376),ISBLANK('Early Action Credit'!$G376),ISBLANK('Early Action Credit'!$H376),ISBLANK('Early Action Credit'!$I376),ISBLANK('Early Action Credit'!$J376),ISBLANK('Early Action Credit'!$L376)),\"\",\"Circuit Breaker\")","v":""},null,null,null,null,null,null,null,null,null,null,{"$f":"IF('Early Action Credit'!$I376=\"Yes\",0,IF('Early Action Credit'!$E376<72.5,0,IF('Early Action Credit'!$E376=72.5,300,IF('Early Action Credit'!$E376<=145,700,IF('Early Action Credit'!$E376<=245,1900,2400)))))*IF(ISBLANK('Early Action Credit'!$J376),0,IF('Early Action Credit'!$J376=\"No\",1,'Early Action Credit'!$K376))","v":0}]
[null,{"$f":"IF(AND(ISBLANK('Early Action Credit'!$A377),ISBLANK('Early Action Credit'!$C377),ISBLANK('Early Action Credit'!$D377),ISBLANK('Early Action Credit'!$E377),ISBLANK('Early Action Credit'!$F377),ISBLANK('Early Action Credit'!$G377),ISBLANK('Early Action Credit'!$H377),ISBLANK('Early Action Credit'!$I377),ISBLANK('Early Action Credit'!$J377),ISBLANK('Early Action Credit'!$L377)),\"\",\"Circuit Breaker\")","v":""},null,null,null,null,null,null,null,null,null,null,{"$f":"IF('Early Action Credit'!$I377=\"Yes\",0,IF('Early Action Credit'!$E377<72.5,0,IF('Early Action Credit'!$E377=72.5,300,IF('Early Action Credit'!$E377<=145,700,IF('Early Action Credit'!$E377<=245,1900,2400)))))*IF(ISBLANK('Early Action Credit'!$J377),0,IF('Early Action Credit'!$J377=\"No\",1,'Early Action Credit'!$K377))","v":0}]
[null,{"$f":"IF(AND(ISBLANK('Early Action Credit'!$A378),ISBLANK('Early Action Credit'!$C378),ISBLANK('Early Action Credit'!$D378),ISBLANK('Early Action Credit'!$E378),ISBLANK('Early Action Credit'!$F378),ISBLANK('Early Action Credit'!$G378),ISBLANK('Early Action Credit'!$H378),ISBLANK('Early Action Credit'!$I378),ISBLANK('Early Action Credit'!$J378),ISBLANK('Early Action Credit'!$L378)),\"\",\"Circuit Breaker\")","v":""},null,null,null,null,null,null,null,null,null,null,{"$f":"IF('Early Action Credit'!$I378=\"Yes\",0,IF('Early Action Credit'!$E378<72.5,0,IF('Early Action Credit'!$E378=72.5,300,IF('Early Action Credit'!$E378<=145,700,IF('Early Action Credit'!$E378<=245,1900,2400)))))*IF(ISBLANK('Early Action Credit'!$J378),0,IF('Early Action Credit'!$J378=\"No\",1,'Early Action Credit'!$K378))","v":0}]
[null,{"$f":"IF(AND(ISBLANK('Early Action Credit'!$A379),ISBLANK('Early Action Credit'!$C379),ISBLANK('Early Action Credit'!$D379),ISBLANK('Early Action Credit'!$E379),ISBLANK('Early Action Credit'!$F379),ISBLANK('Early Action Credit'!$G379),ISBLANK('Early Action Credit'!$H379),ISBLANK('Early Action Credit'!$I379),ISBLANK('Early Action Credit'!$J379),ISBLANK('Early Action Credit'!$L379)),\"\",\"Circuit Breaker\")","v":""},null,null,null,null,null,null,null,null,null,null,{"$f":"IF('Early Action Credit'!$I379=\"Yes\",0,IF('Early Action Credit'!$E379<72.5,0,IF('Early Action Credit'!$E379=72.5,300,IF('Early Action Credit'!$E379<=145,700,IF('Early Action Credit'!$E379<=245,1900,2400)))))*IF(ISBLANK('Early Action Credit'!$J379),0,IF('Early Action Credit'!$J379=\"No\",1,'Early Action Credit'!$K379))","v":0}]
[null,{"$f":"IF(AND(ISBLANK('Early Action Credit'!$A380),ISBLANK('Early Action Credit'!$C380),ISBLANK('Early Action Credit'!$D380),ISBLANK('Early Action Credit'!$E380),ISBLANK('Early Action Credit'!$F380),ISBLANK('Early Action Credit'!$G380),ISBLANK('Early Action Credit'!$H380),ISBLANK('Early Action Credit'!$I380),ISBLANK('Early Action Credit'!$J380),ISBLANK('Early Action Credit'!$L380)),\"\",\"Circuit Breaker\")","v":""},null,null,null,null,null,null,null,null,null,null,{"$f":"IF('Early Action Credit'!$I380=\"Yes\",0,IF('Early Action Credit'!$E380<72.5,0,IF('Early Action Credit'!$E380=72.5,300,IF('Early Action Credit'!$E380<=145,700,IF('Early Action Credit'!$E380<=245,1900,2400)))))*IF(ISBLANK('Early Action Credit'!$J380),0,IF('Early Action Credit'!$J380=\"No\",1,'Early Action Credit'!$K380))","v":0}]
[null,{"$f":"IF(AND(ISBLANK('Early Action Credit'!$A381),ISBLANK('Early Action Credit'!$C381),ISBLANK('Early Action Credit'!$D381),ISBLANK('Early Action Credit'!$E381),ISBLANK('Early Action Credit'!$F381),ISBLANK('Early Action Credit'!$G381),ISBLANK('Early Action Credit'!$H381),ISBLANK('Early Action Credit'!$I381),ISBLANK('Early Action Credit'!$J381),ISBLANK('Early Action Credit'!$L381)),\"\",\"Circuit Breaker\")","v":""},null,null,null,null,null,null,null,null,null,null,{"$f":"IF('Early Action Credit'!$I381=\"Yes\",0,IF('Early Action Credit'!$E381<72.5,0,IF('Early Action Credit'!$E381=72.5,300,IF('Early Action Credit'!$E381<=145,700,IF('Early Action Credit'!$E381<=245,1900,2400)))))*IF(ISBLANK('Early Action Credit'!$J381),0,IF('Early Action Credit'!$J381=\"No\",1,'Early Action Credit'!$K381))","v":0}]
[null,{"$f":"IF(AND(ISBLANK('Early Action Credit'!$A382),ISBLANK('Early Action Credit'!$C382),ISBLANK('Early Action Credit'!$D382),ISBLANK('Early Action Credit'!$E382),ISBLANK('Early Action Credit'!$F382),ISBLANK('Early Action Credit'!$G382),ISBLANK('Early Action Credit'!$H382),ISBLANK('Early Action Credit'!$I382),ISBLANK('Early Action Credit'!$J382),ISBLANK('Early Action Credit'!$L382)),\"\",\"Circuit Breaker\")","v":""},null,null,null,null,null,null,null,null,null,null,{"$f":"IF('Early Action Credit'!$I382=\"Yes\",0,IF('Early Action Credit'!$E382<72.5,0,IF('Early Action Credit'!$E382=72.5,300,IF('Early Action Credit'!$E382<=145,700,IF('Early Action Credit'!$E382<=245,1900,2400)))))*IF(ISBLANK('Early Action Credit'!$J382),0,IF('Early Action Credit'!$J382=\"No\",1,'Early Action Credit'!$K382))","v":0}]
[null,{"$f":"IF(AND(ISBLANK('Early Action Credit'!$A383),ISBLANK('Early Action Credit'!$C383),ISBLANK('Early Action Credit'!$D383),ISBLANK('Early Action Credit'!$E383),ISBLANK('Early Action Credit'!$F383),ISBLANK('Early Action Credit'!$G383),ISBLANK('Early Action Credit'!$H383),ISBLANK('Early Action Credit'!$I383),ISBLANK('Early Action Credit'!$J383),ISBLANK('Early Action Credit'!$L383)),\"\",\"Circuit Breaker\")","v":""},null,null,null,null,null,null,null,null,null,null,{"$f":"IF('Early Action Credit'!$I383=\"Yes\",0,IF('Early Action Credit'!$E383<72.5,0,IF('Early Action Credit'!$E383=72.5,300,IF('Early Action Credit'!$E383<=145,700,IF('Early Action Credit'!$E383<=245,1900,2400)))))*IF(ISBLANK('Early Action Credit'!$J383),0,IF('Early Action Credit'!$J383=\"No\",1,'Early Action Credit'!$K383))","v":0}]
[null,{"$f":"IF(AND(ISBLANK('Early Action Credit'!$A384),ISBLANK('Early Action Credit'!$C384),ISBLANK('Early Action Credit'!$D384),ISBLANK('Early Action Credit'!$E384),ISBLANK('Early Action Credit'!$F384),ISBLANK('Early Action Credit'!$G384),ISBLANK('Early Action Credit'!$H384),ISBLANK('Early Action Credit'!$I384),ISBLANK('Early Action Credit'!$J384),ISBLANK('Early Action Credit'!$L384)),\"\",\"Circuit Breaker\")","v":""},null,null,null,null,null,null,null,null,null,null,{"$f":"IF('Early Action Credit'!$I384=\"Yes\",0,IF('Early Action Credit'!$E384<72.5,0,IF('Early Action Credit'!$E384=72.5,300,IF('Early Action Credit'!$E384<=145,700,IF('Early Action Credit'!$E384<=245,1900,2400)))))*IF(ISBLANK('Early Action Credit'!$J384),0,IF('Early Action Credit'!$J384=\"No\",1,'Early Action Credit'!$K384))","v":0}]
[null,{"$f":"IF(AND(ISBLANK('Early Action Credit'!$A385),ISBLANK('Early Action Credit'!$C385),ISBLANK('Early Action Credit'!$D385),ISBLANK('Early Action Credit'!$E385),ISBLANK('Early Action Credit'!$F385),ISBLANK('Early Action Credit'!$G385),ISBLANK('Early Action Credit'!$H385),ISBLANK('Early Action Credit'!$I385),ISBLANK('Early Action Credit'!$J385),ISBLANK('Early Action Credit'!$L385)),\"\",\"Circuit Breaker\")","v":""},null,null,null,null,null,null,null,null,null,null,{"$f":"IF('Early Action Credit'!$I385=\"Yes\",0,IF('Early Action Credit'!$E385<72.5,0,IF('Early Action Credit'!$E385=72.5,300,IF('Early Action Credit'!$E385<=145,700,IF('Early Action Credit'!$E385<=245,1900,2400)))))*IF(ISBLANK('Early Action Credit'!$J385),0,IF('Early Action Credit'!$J385=\"No\",1,'Early Action Credit'!$K385))","v":0}]
[null,{"$f":"IF(AND(ISBLANK('Early Action Credit'!$A386),ISBLANK('Early Action Credit'!$C386),ISBLANK('Early Action Credit'!$D386),ISBLANK('Early Action Credit'!$E386),ISBLANK('Early Action Credit'!$F386),ISBLANK('Early Action Credit'!$G386),ISBLANK('Early Action Credit'!$H386),ISBLANK('Early Action Credit'!$I386),ISBLANK('Early Action Credit'!$J386),ISBLANK('Early Action Credit'!$L386)),\"\",\"Circuit Breaker\")","v":""},null,null,null,null,null,null,null,null,null,null,{"$f":"IF('Early Action Credit'!$I386=\"Yes\",0,IF('Early Action Credit'!$E386<72.5,0,IF('Early Action Credit'!$E386=72.5,300,IF('Early Action Credit'!$E386<=145,700,IF('Early Action Credit'!$E386<=245,1900,2400)))))*IF(ISBLANK('Early Action Credit'!$J386),0,IF('Early Action Credit'!$J386=\"No\",1,'Early Action Credit'!$K386))","v":0}]
[null,{"$f":"IF(AND(ISBLANK('Early Action Credit'!$A387),ISBLANK('Early Action Credit'!$C387),ISBLANK('Early Action Credit'!$D387),ISBLANK('Early Action Credit'!$E387),ISBLANK('Early Action Credit'!$F387),ISBLANK('Early Action Credit'!$G387),ISBLANK('Early Action Credit'!$H387),ISBLANK('Early Action Credit'!$I387),ISBLANK('Early Action Credit'!$J387),ISBLANK('Early Action Credit'!$L387)),\"\",\"Circuit Breaker\")","v":""},null,null,null,null,null,null,null,null,null,null,{"$f":"IF('Early Action Credit'!$I387=\"Yes\",0,IF('Early Action Credit'!$E387<72.5,0,IF('Early Action Credit'!$E387=72.5,300,IF('Early Action Credit'!$E387<=145,700,IF('Early Action Credit'!$E387<=245,1900,2400)))))*IF(ISBLANK('Early Action Credit'!$J387),0,IF('Early Action Credit'!$J387=\"No\",1,'Early Action Credit'!$K387))","v":0}]
[null,{"$f":"IF(AND(ISBLANK('Early Action Credit'!$A388),ISBLANK('Early Action Credit'!$C388),ISBLANK('Early Action Credit'!$D388),ISBLANK('Early Action Credit'!$E388),ISBLANK('Early Action Credit'!$F388),ISBLANK('Early Action Credit'!$G388),ISBLANK('Early Action Credit'!$H388),ISBLANK('Early Action Credit'!$I388),ISBLANK('Early Action Credit'!$J388),ISBLANK('Early Action Credit'!$L388)),\"\",\"Circuit Breaker\")","v":""},null,null,null,null,null,null,null,null,null,null,{"$f":"IF('Early Action Credit'!$I388=\"Yes\",0,IF('Early Action Credit'!$E388<72.5,0,IF('Early Action Credit'!$E388=72.5,300,IF('Early Action Credit'!$E388<=145,700,IF('Early Action Credit'!$E388<=245,1900,2400)))))*IF(ISBLANK('Early Action Credit'!$J388),0,IF('Early Action Credit'!$J388=\"No\",1,'Early Action Credit'!$K388))","v":0}]
[null,{"$f":"IF(AND(ISBLANK('Early Action Credit'!$A389),ISBLANK('Early Action Credit'!$C389),ISBLANK('Early Action Credit'!$D389),ISBLANK('Early Action Credit'!$E389),ISBLANK('Early Action Credit'!$F389),ISBLANK('Early Action Credit'!$G389),ISBLANK('Early Action Credit'!$H389),ISBLANK('Early Action Credit'!$I389),ISBLANK('Early Action Credit'!$J389),ISBLANK('Early Action Credit'!$L389)),\"\",\"Circuit Breaker\")","v":""},null,null,null,null,null,null,null,null,null,null,{"$f":"IF('Early Action Credit'!$I389=\"Yes\",0,IF('Early Action Credit'!$E389<72.5,0,IF('Early Action Credit'!$E389=72.5,300,IF('Early Action Credit'!$E389<=145,700,IF('Early Action Credit'!$E389<=245,1900,2400)))))*IF(ISBLANK('Early Action Credit'!$J389),0,IF('Early Action Credit'!$J389=\"No\",1,'Early Action Credit'!$K389))","v":0}]
[null,{"$f":"IF(AND(ISBLANK('Early Action Credit'!$A390),ISBLANK('Early Action Credit'!$C390),ISBLANK('Early Action Credit'!$D390),ISBLANK('Early Action Credit'!$E390),ISBLANK('Early Action Credit'!$F390),ISBLANK('Early Action Credit'!$G390),ISBLANK('Early Action Credit'!$H390),ISBLANK('Early Action Credit'!$I390),ISBLANK('Early Action Credit'!$J390),ISBLANK('Early Action Credit'!$L390)),\"\",\"Circuit Breaker\")","v":""},null,null,null,null,null,null,null,null,null,null,{"$f":"IF('Early Action Credit'!$I390=\"Yes\",0,IF('Early Action Credit'!$E390<72.5,0,IF('Early Action Credit'!$E390=72.5,300,IF('Early Action Credit'!$E390<=145,700,IF('Early Action Credit'!$E390<=245,1900,2400)))))*IF(ISBLANK('Early Action Credit'!$J390),0,IF('Early Action Credit'!$J390=\"No\",1,'Early Action Credit'!$K390))","v":0}]
[null,{"$f":"IF(AND(ISBLANK('Early Action Credit'!$A391),ISBLANK('Early Action Credit'!$C391),ISBLANK('Early Action Credit'!$D391),ISBLANK('Early Action Credit'!$E391),ISBLANK('Early Action Credit'!$F391),ISBLANK('Early Action Credit'!$G391),ISBLANK('Early Action Credit'!$H391),ISBLANK('Early Action Credit'!$I391),ISBLANK('Early Action Credit'!$J391),ISBLANK('Early Action Credit'!$L391)),\"\",\"Circuit Breaker\")","v":""},null,null,null,null,null,null,null,null,null,null,{"$f":"IF('Early Action Credit'!$I391=\"Yes\",0,IF('Early Action Credit'!$E391<72.5,0,IF('Early Action Credit'!$E391=72.5,300,IF('Early Action Credit'!$E391<=145,700,IF('Early Action Credit'!$E391<=245,1900,2400)))))*IF(ISBLANK('Early Action Credit'!$J391),0,IF('Early Action Credit'!$J391=\"No\",1,'Early Action Credit'!$K391))","v":0}]
[null,{"$f":"IF(AND(ISBLANK('Early Action Credit'!$A392),ISBLANK('Early Action Credit'!$C392),ISBLANK('Early Action Credit'!$D392),ISBLANK('Early Action Credit'!$E392),ISBLANK('Early Action Credit'!$F392),ISBLANK('Early Action Credit'!$G392),ISBLANK('Early Action Credit'!$H392),ISBLANK('Early Action Credit'!$I392),ISBLANK('Early Action Credit'!$J392),ISBLANK('Early Action Credit'!$L392)),\"\",\"Circuit Breaker\")","v":""},null,null,null,null,null,null,null,null,null,null,{"$f":"IF('Early Action Credit'!$I392=\"Yes\",0,IF('Early Action Credit'!$E392<72.5,0,IF('Early Action Credit'!$E392=72.5,300,IF('Early Action Credit'!$E392<=145,700,IF('Early Action Credit'!$E392<=245,1900,2400)))))*IF(ISBLANK('Early Action Credit'!$J392),0,IF('Early Action Credit'!$J392=\"No\",1,'Early Action Credit'!$K392))","v":0}]
[null,{"$f":"IF(AND(ISBLANK('Early Action Credit'!$A393),ISBLANK('Early Action Credit'!$C393),ISBLANK('Early Action Credit'!$D393),ISBLANK('Early Action Credit'!$E393),ISBLANK('Early Action Credit'!$F393),ISBLANK('Early Action Credit'!$G393),ISBLANK('Early Action Credit'!$H393),ISBLANK('Early Action Credit'!$I393),ISBLANK('Early Action Credit'!$J393),ISBLANK('Early Action Credit'!$L393)),\"\",\"Circuit Breaker\")","v":""},null,null,null,null,null,null,null,null,null,null,{"$f":"IF('Early Action Credit'!$I393=\"Yes\",0,IF('Early Action Credit'!$E393<72.5,0,IF('Early Action Credit'!$E393=72.5,300,IF('Early Action Credit'!$E393<=145,700,IF('Early Action Credit'!$E393<=245,1900,2400)))))*IF(ISBLANK('Early Action Credit'!$J393),0,IF('Early Action Credit'!$J393=\"No\",1,'Early Action Credit'!$K393))","v":0}]
[null,{"$f":"IF(AND(ISBLANK('Early Action Credit'!$A394),ISBLANK('Early Action Credit'!$C394),ISBLANK('Early Action Credit'!$D394),ISBLANK('Early Action Credit'!$E394),ISBLANK('Early Action Credit'!$F394),ISBLANK('Early Action Credit'!$G394),ISBLANK('Early Action Credit'!$H394),ISBLANK('Early Action Credit'!$I394),ISBLANK('Early Action Credit'!$J394),ISBLANK('Early Action Credit'!$L394)),\"\",\"Circuit Breaker\")","v":""},null,null,null,null,null,null,null,null,null,null,{"$f":"IF('Early Action Credit'!$I394=\"Yes\",0,IF('Early Action Credit'!$E394<72.5,0,IF('Early Action Credit'!$E394=72.5,300,IF('Early Action Credit'!$E394<=145,700,IF('Early Action Credit'!$E394<=245,1900,2400)))))*IF(ISBLANK('Early Action Credit'!$J394),0,IF('Early Action Credit'!$J394=\"No\",1,'Early Action Credit'!$K394))","v":0}]
[null,{"$f":"IF(AND(ISBLANK('Early Action Credit'!$A395),ISBLANK('Early Action Credit'!$C395),ISBLANK('Early Action Credit'!$D395),ISBLANK('Early Action Credit'!$E395),ISBLANK('Early Action Credit'!$F395),ISBLANK('Early Action Credit'!$G395),ISBLANK('Early Action Credit'!$H395),ISBLANK('Early Action Credit'!$I395),ISBLANK('Early Action Credit'!$J395),ISBLANK('Early Action Credit'!$L395)),\"\",\"Circuit Breaker\")","v":""},null,null,null,null,null,null,null,null,null,null,{"$f":"IF('Early Action Credit'!$I395=\"Yes\",0,IF('Early Action Credit'!$E395<72.5,0,IF('Early Action Credit'!$E395=72.5,300,IF('Early Action Credit'!$E395<=145,700,IF('Early Action Credit'!$E395<=245,1900,2400)))))*IF(ISBLANK('Early Action Credit'!$J395),0,IF('Early Action Credit'!$J395=\"No\",1,'Early Action Credit'!$K395))","v":0}]
[null,{"$f":"IF(AND(ISBLANK('Early Action Credit'!$A396),ISBLANK('Early Action Credit'!$C396),ISBLANK('Early Action Credit'!$D396),ISBLANK('Early Action Credit'!$E396),ISBLANK('Early Action Credit'!$F396),ISBLANK('Early Action Credit'!$G396),ISBLANK('Early Action Credit'!$H396),ISBLANK('Early Action Credit'!$I396),ISBLANK('Early Action Credit'!$J396),ISBLANK('Early Action Credit'!$L396)),\"\",\"Circuit Breaker\")","v":""},null,null,null,null,null,null,null,null,null,null,{"$f":"IF('Early Action Credit'!$I396=\"Yes\",0,IF('Early Action Credit'!$E396<72.5,0,IF('Early Action Credit'!$E396=72.5,300,IF('Early Action Credit'!$E396<=145,700,IF('Early Action Credit'!$E396<=245,1900,2400)))))*IF(ISBLANK('Early Action Credit'!$J396),0,IF('Early Action Credit'!$J396=\"No\",1,'Early Action Credit'!$K396))","v":0}]
[null,{"$f":"IF(AND(ISBLANK('Early Action Credit'!$A397),ISBLANK('Early Action Credit'!$C397),ISBLANK('Early Action Credit'!$D397),ISBLANK('Early Action Credit'!$E397),ISBLANK('Early Action Credit'!$F397),ISBLANK('Early Action Credit'!$G397),ISBLANK('Early Action Credit'!$H397),ISBLANK('Early Action Credit'!$I397),ISBLANK('Early Action Credit'!$J397),ISBLANK('Early Action Credit'!$L397)),\"\",\"Circuit Breaker\")","v":""},null,null,null,null,null,null,null,null,null,null,{"$f":"IF('Early Action Credit'!$I397=\"Yes\",0,IF('Early Action Credit'!$E397<72.5,0,IF('Early Action Credit'!$E397=72.5,300,IF('Early Action Credit'!$E397<=145,700,IF('Early Action Credit'!$E397<=245,1900,2400)))))*IF(ISBLANK('Early Action Credit'!$J397),0,IF('Early Action Credit'!$J397=\"No\",1,'Early Action Credit'!$K397))","v":0}]
[null,{"$f":"IF(AND(ISBLANK('Early Action Credit'!$A398),ISBLANK('Early Action Credit'!$C398),ISBLANK('Early Action Credit'!$D398),ISBLANK('Early Action Credit'!$E398),ISBLANK('Early Action Credit'!$F398),ISBLANK('Early Action Credit'!$G398),ISBLANK('Early Action Credit'!$H398),ISBLANK('Early Action Credit'!$I398),ISBLANK('Early Action Credit'!$J398),ISBLANK('Early Action Credit'!$L398)),\"\",\"Circuit Breaker\")","v":""},null,null,null,null,null,null,null,null,null,null,{"$f":"IF('Early Action Credit'!$I398=\"Yes\",0,IF('Early Action Credit'!$E398<72.5,0,IF('Early Action Credit'!$E398=72.5,300,IF('Early Action Credit'!$E398<=145,700,IF('Early Action Credit'!$E398<=245,1900,2400)))))*IF(ISBLANK('Early Action Credit'!$J398),0,IF('Early Action Credit'!$J398=\"No\",1,'Early Action Credit'!$K398))","v":0}]
[null,{"$f":"IF(AND(ISBLANK('Early Action Credit'!$A399),ISBLANK('Early Action Credit'!$C399),ISBLANK('Early Action Credit'!$D399),ISBLANK('Early Action Credit'!$E399),ISBLANK('Early Action Credit'!$F399),ISBLANK('Early Action Credit'!$G399),ISBLANK('Early Action Credit'!$H399),ISBLANK('Early Action Credit'!$I399),ISBLANK('Early Action Credit'!$J399),ISBLANK('Early Action Credit'!$L399)),\"\",\"Circuit Breaker\")","v":""},null,null,null,null,null,null,null,null,null,null,{"$f":"IF('Early Action Credit'!$I399=\"Yes\",0,IF('Early Action Credit'!$E399<72.5,0,IF('Early Action Credit'!$E399=72.5,300,IF('Early Action Credit'!$E399<=145,700,IF('Early Action Credit'!$E399<=245,1900,2400)))))*IF(ISBLANK('Early Action Credit'!$J399),0,IF('Early Action Credit'!$J399=\"No\",1,'Early Action Credit'!$K399))","v":0}]
[null,{"$f":"IF(AND(ISBLANK('Early Action Credit'!$A400),ISBLANK('Early Action Credit'!$C400),ISBLANK('Early Action Credit'!$D400),ISBLANK('Early Action Credit'!$E400),ISBLANK('Early Action Credit'!$F400),ISBLANK('Early Action Credit'!$G400),ISBLANK('Early Action Credit'!$H400),ISBLANK('Early Action Credit'!$I400),ISBLANK('Early Action Credit'!$J400),ISBLANK('Early Action Credit'!$L400)),\"\",\"Circuit Breaker\")","v":""},null,null,null,null,null,null,null,null,null,null,{"$f":"IF('Early Action Credit'!$I400=\"Yes\",0,IF('Early Action Credit'!$E400<72.5,0,IF('Early Action Credit'!$E400=72.5,300,IF('Early Action Credit'!$E400<=145,700,IF('Early Action Credit'!$E400<=245,1900,2400)))))*IF(ISBLANK('Early Action Credit'!$J400),0,IF('Early Action Credit'!$J400=\"No\",1,'Early Action Credit'!$K400))","v":0}]
[null,{"$f":"IF(AND(ISBLANK('Early Action Credit'!$A401),ISBLANK('Early Action Credit'!$C401),ISBLANK('Early Action Credit'!$D401),ISBLANK('Early Action Credit'!$E401),ISBLANK('Early Action Credit'!$F401),ISBLANK('Early Action Credit'!$G401),ISBLANK('Early Action Credit'!$H401),ISBLANK('Early Action Credit'!$I401),ISBLANK('Early Action Credit'!$J401),ISBLANK('Early Action Credit'!$L401)),\"\",\"Circuit Breaker\")","v":""},null,null,null,null,null,null,null,null,null,null,{"$f":"IF('Early Action Credit'!$I401=\"Yes\",0,IF('Early Action Credit'!$E401<72.5,0,IF('Early Action Credit'!$E401=72.5,300,IF('Early Action Credit'!$E401<=145,700,IF('Early Action Credit'!$E401<=245,1900,2400)))))*IF(ISBLANK('Early Action Credit'!$J401),0,IF('Early Action Credit'!$J401=\"No\",1,'Early Action Credit'!$K401))","v":0}]
[null,{"$f":"IF(AND(ISBLANK('Early Action Credit'!$A402),ISBLANK('Early Action Credit'!$C402),ISBLANK('Early Action Credit'!$D402),ISBLANK('Early Action Credit'!$E402),ISBLANK('Early Action Credit'!$F402),ISBLANK('Early Action Credit'!$G402),ISBLANK('Early Action Credit'!$H402),ISBLANK('Early Action Credit'!$I402),ISBLANK('Early Action Credit'!$J402),ISBLANK('Early Action Credit'!$L402)),\"\",\"Circuit Breaker\")","v":""},null,null,null,null,null,null,null,null,null,null,{"$f":"IF('Early Action Credit'!$I402=\"Yes\",0,IF('Early Action Credit'!$E402<72.5,0,IF('Early Action Credit'!$E402=72.5,300,IF('Early Action Credit'!$E402<=145,700,IF('Early Action Credit'!$E402<=245,1900,2400)))))*IF(ISBLANK('Early Action Credit'!$J402),0,IF('Early Action Credit'!$J402=\"No\",1,'Early Action Credit'!$K402))","v":0}]
[null,{"$f":"IF(AND(ISBLANK('Early Action Credit'!$A403),ISBLANK('Early Action Credit'!$C403),ISBLANK('Early Action Credit'!$D403),ISBLANK('Early Action Credit'!$E403),ISBLANK('Early Action Credit'!$F403),ISBLANK('Early Action Credit'!$G403),ISBLANK('Early Action Credit'!$H403),ISBLANK('Early Action Credit'!$I403),ISBLANK('Early Action Credit'!$J403),ISBLANK('Early Action Credit'!$L403)),\"\",\"Circuit Breaker\")","v":""},null,null,null,null,null,null,null,null,null,null,{"$f":"IF('Early Action Credit'!$I403=\"Yes\",0,IF('Early Action Credit'!$E403<72.5,0,IF('Early Action Credit'!$E403=72.5,300,IF('Early Action Credit'!$E403<=145,700,IF('Early Action Credit'!$E403<=245,1900,2400)))))*IF(ISBLANK('Early Action Credit'!$J403),0,IF('Early Action Credit'!$J403=\"No\",1,'Early Action Credit'!$K403))","v":0}]
[null,{"$f":"IF(AND(ISBLANK('Early Action Credit'!$A404),ISBLANK('Early Action Credit'!$C404),ISBLANK('Early Action Credit'!$D404),ISBLANK('Early Action Credit'!$E404),ISBLANK('Early Action Credit'!$F404),ISBLANK('Early Action Credit'!$G404),ISBLANK('Early Action Credit'!$H404),ISBLANK('Early Action Credit'!$I404),ISBLANK('Early Action Credit'!$J404),ISBLANK('Early Action Credit'!$L404)),\"\",\"Circuit Breaker\")","v":""},null,null,null,null,null,null,null,null,null,null,{"$f":"IF('Early Action Credit'!$I404=\"Yes\",0,IF('Early Action Credit'!$E404<72.5,0,IF('Early Action Credit'!$E404=72.5,300,IF('Early Action Credit'!$E404<=145,700,IF('Early Action Credit'!$E404<=245,1900,2400)))))*IF(ISBLANK('Early Action Credit'!$J404),0,IF('Early Action Credit'!$J404=\"No\",1,'Early Action Credit'!$K404))","v":0}]
[null,{"$f":"IF(AND(ISBLANK('Early Action Credit'!$A405),ISBLANK('Early Action Credit'!$C405),ISBLANK('Early Action Credit'!$D405),ISBLANK('Early Action Credit'!$E405),ISBLANK('Early Action Credit'!$F405),ISBLANK('Early Action Credit'!$G405),ISBLANK('Early Action Credit'!$H405),ISBLANK('Early Action Credit'!$I405),ISBLANK('Early Action Credit'!$J405),ISBLANK('Early Action Credit'!$L405)),\"\",\"Circuit Breaker\")","v":""},null,null,null,null,null,null,null,null,null,null,{"$f":"IF('Early Action Credit'!$I405=\"Yes\",0,IF('Early Action Credit'!$E405<72.5,0,IF('Early Action Credit'!$E405=72.5,300,IF('Early Action Credit'!$E405<=145,700,IF('Early Action Credit'!$E405<=245,1900,2400)))))*IF(ISBLANK('Early Action Credit'!$J405),0,IF('Early Action Credit'!$J405=\"No\",1,'Early Action Credit'!$K405))","v":0}]
[null,{"$f":"IF(AND(ISBLANK('Early Action Credit'!$A406),ISBLANK('Early Action Credit'!$C406),ISBLANK('Early Action Credit'!$D406),ISBLANK('Early Action Credit'!$E406),ISBLANK('Early Action Credit'!$F406),ISBLANK('Early Action Credit'!$G406),ISBLANK('Early Action Credit'!$H406),ISBLANK('Early Action Credit'!$I406),ISBLANK('Early Action Credit'!$J406),ISBLANK('Early Action Credit'!$L406)),\"\",\"Circuit Breaker\")","v":""},null,null,null,null,null,null,null,null,null,null,{"$f":"IF('Early Action Credit'!$I406=\"Yes\",0,IF('Early Action Credit'!$E406<72.5,0,IF('Early Action Credit'!$E406=72.5,300,IF('Early Action Credit'!$E406<=145,700,IF('Early Action Credit'!$E406<=245,1900,2400)))))*IF(ISBLANK('Early Action Credit'!$J406),0,IF('Early Action Credit'!$J406=\"No\",1,'Early Action Credit'!$K406))","v":0}]
[null,{"$f":"IF(AND(ISBLANK('Early Action Credit'!$A407),ISBLANK('Early Action Credit'!$C407),ISBLANK('Early Action Credit'!$D407),ISBLANK('Early Action Credit'!$E407),ISBLANK('Early Action Credit'!$F407),ISBLANK('Early Action Credit'!$G407),ISBLANK('Early Action Credit'!$H407),ISBLANK('Early Action Credit'!$I407),ISBLANK('Early Action Credit'!$J407),ISBLANK('Early Action Credit'!$L407)),\"\",\"Circuit Breaker\")","v":""},null,null,null,null,null,null,null,null,null,null,{"$f":"IF('Early Action Credit'!$I407=\"Yes\",0,IF('Early Action Credit'!$E407<72.5,0,IF('Early Action Credit'!$E407=72.5,300,IF('Early Action Credit'!$E407<=145,700,IF('Early Action Credit'!$E407<=245,1900,2400)))))*IF(ISBLANK('Early Action Credit'!$J407),0,IF('Early Action Credit'!$J407=\"No\",1,'Early Action Credit'!$K407))","v":0}]
[null,{"$f":"IF(AND(ISBLANK('Early Action Credit'!$A408),ISBLANK('Early Action Credit'!$C408),ISBLANK('Early Action Credit'!$D408),ISBLANK('Early Action Credit'!$E408),ISBLANK('Early Action Credit'!$F408),ISBLANK('Early Action Credit'!$G408),ISBLANK('Early Action Credit'!$H408),ISBLANK('Early Action Credit'!$I408),ISBLANK('Early Action Credit'!$J408),ISBLANK('Early Action Credit'!$L408)),\"\",\"Circuit Breaker\")","v":""},null,null,null,null,null,null,null,null,null,null,{"$f":"IF('Early Action Credit'!$I408=\"Yes\",0,IF('Early Action Credit'!$E408<72.5,0,IF('Early Action Credit'!$E408=72.5,300,IF('Early Action Credit'!$E408<=145,700,IF('Early Action Credit'!$E408<=245,1900,2400)))))*IF(ISBLANK('Early Action Credit'!$J408),0,IF('Early Action Credit'!$J408=\"No\",1,'Early Action Credit'!$K408))","v":0}]
[null,{"$f":"IF(AND(ISBLANK('Early Action Credit'!$A409),ISBLANK('Early Action Credit'!$C409),ISBLANK('Early Action Credit'!$D409),ISBLANK('Early Action Credit'!$E409),ISBLANK('Early Action Credit'!$F409),ISBLANK('Early Action Credit'!$G409),ISBLANK('Early Action Credit'!$H409),ISBLANK('Early Action Credit'!$I409),ISBLANK('Early Action Credit'!$J409),ISBLANK('Early Action Credit'!$L409)),\"\",\"Circuit Breaker\")","v":""},null,null,null,null,null,null,null,null,null,null,{"$f":"IF('Early Action Credit'!$I409=\"Yes\",0,IF('Early Action Credit'!$E409<72.5,0,IF('Early Action Credit'!$E409=72.5,300,IF('Early Action Credit'!$E409<=145,700,IF('Early Action Credit'!$E409<=245,1900,2400)))))*IF(ISBLANK('Early Action Credit'!$J409),0,IF('Early Action Credit'!$J409=\"No\",1,'Early Action Credit'!$K409))","v":0}]
[null,{"$f":"IF(AND(ISBLANK('Early Action Credit'!$A410),ISBLANK('Early Action Credit'!$C410),ISBLANK('Early Action Credit'!$D410),ISBLANK('Early Action Credit'!$E410),ISBLANK('Early Action Credit'!$F410),ISBLANK('Early Action Credit'!$G410),ISBLANK('Early Action Credit'!$H410),ISBLANK('Early Action Credit'!$I410),ISBLANK('Early Action Credit'!$J410),ISBLANK('Early Action Credit'!$L410)),\"\",\"Circuit Breaker\")","v":""},null,null,null,null,null,null,null,null,null,null,{"$f":"IF('Early Action Credit'!$I410=\"Yes\",0,IF('Early Action Credit'!$E410<72.5,0,IF('Early Action Credit'!$E410=72.5,300,IF('Early Action Credit'!$E410<=145,700,IF('Early Action Credit'!$E410<=245,1900,2400)))))*IF(ISBLANK('Early Action Credit'!$J410),0,IF('Early Action Credit'!$J410=\"No\",1,'Early Action Credit'!$K410))","v":0}]
[null,{"$f":"IF(AND(ISBLANK('Early Action Credit'!$A411),ISBLANK('Early Action Credit'!$C411),ISBLANK('Early Action Credit'!$D411),ISBLANK('Early Action Credit'!$E411),ISBLANK('Early Action Credit'!$F411),ISBLANK('Early Action Credit'!$G411),ISBLANK('Early Action Credit'!$H411),ISBLANK('Early Action Credit'!$I411),ISBLANK('Early Action Credit'!$J411),ISBLANK('Early Action Credit'!$L411)),\"\",\"Circuit Breaker\")","v":""},null,null,null,null,null,null,null,null,null,null,{"$f":"IF('Early Action Credit'!$I411=\"Yes\",0,IF('Early Action Credit'!$E411<72.5,0,IF('Early Action Credit'!$E411=72.5,300,IF('Early Action Credit'!$E411<=145,700,IF('Early Action Credit'!$E411<=245,1900,2400)))))*IF(ISBLANK('Early Action Credit'!$J411),0,IF('Early Action Credit'!$J411=\"No\",1,'Early Action Credit'!$K411))","v":0}]
[null,{"$f":"IF(AND(ISBLANK('Early Action Credit'!$A412),ISBLANK('Early Action Credit'!$C412),ISBLANK('Early Action Credit'!$D412),ISBLANK('Early Action Credit'!$E412),ISBLANK('Early Action Credit'!$F412),ISBLANK('Early Action Credit'!$G412),ISBLANK('Early Action Credit'!$H412),ISBLANK('Early Action Credit'!$I412),ISBLANK('Early Action Credit'!$J412),ISBLANK('Early Action Credit'!$L412)),\"\",\"Circuit Breaker\")","v":""},null,null,null,null,null,null,null,null,null,null,{"$f":"IF('Early Action Credit'!$I412=\"Yes\",0,IF('Early Action Credit'!$E412<72.5,0,IF('Early Action Credit'!$E412=72.5,300,IF('Early Action Credit'!$E412<=145,700,IF('Early Action Credit'!$E412<=245,1900,2400)))))*IF(ISBLANK('Early Action Credit'!$J412),0,IF('Early Action Credit'!$J412=\"No\",1,'Early Action Credit'!$K412))","v":0}]
[null,{"$f":"IF(AND(ISBLANK('Early Action Credit'!$A413),ISBLANK('Early Action Credit'!$C413),ISBLANK('Early Action Credit'!$D413),ISBLANK('Early Action Credit'!$E413),ISBLANK('Early Action Credit'!$F413),ISBLANK('Early Action Credit'!$G413),ISBLANK('Early Action Credit'!$H413),ISBLANK('Early Action Credit'!$I413),ISBLANK('Early Action Credit'!$J413),ISBLANK('Early Action Credit'!$L413)),\"\",\"Circuit Breaker\")","v":""},null,null,null,null,null,null,null,null,null,null,{"$f":"IF('Early Action Credit'!$I413=\"Yes\",0,IF('Early Action Credit'!$E413<72.5,0,IF('Early Action Credit'!$E413=72.5,300,IF('Early Action Credit'!$E413<=145,700,IF('Early Action Credit'!$E413<=245,1900,2400)))))*IF(ISBLANK('Early Action Credit'!$J413),0,IF('Early Action Credit'!$J413=\"No\",1,'Early Action Credit'!$K413))","v":0}]
[null,{"$f":"IF(AND(ISBLANK('Early Action Credit'!$A414),ISBLANK('Early Action Credit'!$C414),ISBLANK('Early Action Credit'!$D414),ISBLANK('Early Action Credit'!$E414),ISBLANK('Early Action Credit'!$F414),ISBLANK('Early Action Credit'!$G414),ISBLANK('Early Action Credit'!$H414),ISBLANK('Early Action Credit'!$I414),ISBLANK('Early Action Credit'!$J414),ISBLANK('Early Action Credit'!$L414)),\"\",\"Circuit Breaker\")","v":""},null,null,null,null,null,null,null,null,null,null,{"$f":"IF('Early Action Credit'!$I414=\"Yes\",0,IF('Early Action Credit'!$E414<72.5,0,IF('Early Action Credit'!$E414=72.5,300,IF('Early Action Credit'!$E414<=145,700,IF('Early Action Credit'!$E414<=245,1900,2400)))))*IF(ISBLANK('Early Action Credit'!$J414),0,IF('Early Action Credit'!$J414=\"No\",1,'Early Action Credit'!$K414))","v":0}]
[null,{"$f":"IF(AND(ISBLANK('Early Action Credit'!$A415),ISBLANK('Early Action Credit'!$C415),ISBLANK('Early Action Credit'!$D415),ISBLANK('Early Action Credit'!$E415),ISBLANK('Early Action Credit'!$F415),ISBLANK('Early Action Credit'!$G415),ISBLANK('Early Action Credit'!$H415),ISBLANK('Early Action Credit'!$I415),ISBLANK('Early Action Credit'!$J415),ISBLANK('Early Action Credit'!$L415)),\"\",\"Circuit Breaker\")","v":""},null,null,null,null,null,null,null,null,null,null,{"$f":"IF('Early Action Credit'!$I415=\"Yes\",0,IF('Early Action Credit'!$E415<72.5,0,IF('Early Action Credit'!$E415=72.5,300,IF('Early Action Credit'!$E415<=145,700,IF('Early Action Credit'!$E415<=245,1900,2400)))))*IF(ISBLANK('Early Action Credit'!$J415),0,IF('Early Action Credit'!$J415=\"No\",1,'Early Action Credit'!$K415))","v":0}]
[null,{"$f":"IF(AND(ISBLANK('Early Action Credit'!$A416),ISBLANK('Early Action Credit'!$C416),ISBLANK('Early Action Credit'!$D416),ISBLANK('Early Action Credit'!$E416),ISBLANK('Early Action Credit'!$F416),ISBLANK('Early Action Credit'!$G416),ISBLANK('Early Action Credit'!$H416),ISBLANK('Early Action Credit'!$I416),ISBLANK('Early Action Credit'!$J416),ISBLANK('Early Action Credit'!$L416)),\"\",\"Circuit Breaker\")","v":""},null,null,null,null,null,null,null,null,null,null,{"$f":"IF('Early Action Credit'!$I416=\"Yes\",0,IF('Early Action Credit'!$E416<72.5,0,IF('Early Action Credit'!$E416=72.5,300,IF('Early Action Credit'!$E416<=145,700,IF('Early Action Credit'!$E416<=245,1900,2400)))))*IF(ISBLANK('Early Action Credit'!$J416),0,IF('Early Action Credit'!$J416=\"No\",1,'Early Action Credit'!$K416))","v":0}]
[null,{"$f":"IF(AND(ISBLANK('Early Action Credit'!$A417),ISBLANK('Early Action Credit'!$C417),ISBLANK('Early Action Credit'!$D417),ISBLANK('Early Action Credit'!$E417),ISBLANK('Early Action Credit'!$F417),ISBLANK('Early Action Credit'!$G417),ISBLANK('Early Action Credit'!$H417),ISBLANK('Early Action Credit'!$I417),ISBLANK('Early Action Credit'!$J417),ISBLANK('Early Action Credit'!$L417)),\"\",\"Circuit Breaker\")","v":""},null,null,null,null,null,null,null,null,null,null,{"$f":"IF('Early Action Credit'!$I417=\"Yes\",0,IF('Early Action Credit'!$E417<72.5,0,IF('Early Action Credit'!$E417=72.5,300,IF('Early Action Credit'!$E417<=145,700,IF('Early Action Credit'!$E417<=245,1900,2400)))))*IF(ISBLANK('Early Action Credit'!$J417),0,IF('Early Action Credit'!$J417=\"No\",1,'Early Action Credit'!$K417))","v":0}]
[null,{"$f":"IF(AND(ISBLANK('Early Action Credit'!$A418),ISBLANK('Early Action Credit'!$C418),ISBLANK('Early Action Credit'!$D418),ISBLANK('Early Action Credit'!$E418),ISBLANK('Early Action Credit'!$F418),ISBLANK('Early Action Credit'!$G418),ISBLANK('Early Action Credit'!$H418),ISBLANK('Early Action Credit'!$I418),ISBLANK('Early Action Credit'!$J418),ISBLANK('Early Action Credit'!$L418)),\"\",\"Circuit Breaker\")","v":""},null,null,null,null,null,null,null,null,null,null,{"$f":"IF('Early Action Credit'!$I418=\"Yes\",0,IF('Early Action Credit'!$E418<72.5,0,IF('Early Action Credit'!$E418=72.5,300,IF('Early Action Credit'!$E418<=145,700,IF('Early Action Credit'!$E418<=245,1900,2400)))))*IF(ISBLANK('Early Action Credit'!$J418),0,IF('Early Action Credit'!$J418=\"No\",1,'Early Action Credit'!$K418))","v":0}]
[null,{"$f":"IF(AND(ISBLANK('Early Action Credit'!$A419),ISBLANK('Early Action Credit'!$C419),ISBLANK('Early Action Credit'!$D419),ISBLANK('Early Action Credit'!$E419),ISBLANK('Early Action Credit'!$F419),ISBLANK('Early Action Credit'!$G419),ISBLANK('Early Action Credit'!$H419),ISBLANK('Early Action Credit'!$I419),ISBLANK('Early Action Credit'!$J419),ISBLANK('Early Action Credit'!$L419)),\"\",\"Circuit Breaker\")","v":""},null,null,null,null,null,null,null,null,null,null,{"$f":"IF('Early Action Credit'!$I419=\"Yes\",0,IF('Early Action Credit'!$E419<72.5,0,IF('Early Action Credit'!$E419=72.5,300,IF('Early Action Credit'!$E419<=145,700,IF('Early Action Credit'!$E419<=245,1900,2400)))))*IF(ISBLANK('Early Action Credit'!$J419),0,IF('Early Action Credit'!$J419=\"No\",1,'Early Action Credit'!$K419))","v":0}]
[null,{"$f":"IF(AND(ISBLANK('Early Action Credit'!$A420),ISBLANK('Early Action Credit'!$C420),ISBLANK('Early Action Credit'!$D420),ISBLANK('Early Action Credit'!$E420),ISBLANK('Early Action Credit'!$F420),ISBLANK('Early Action Credit'!$G420),ISBLANK('Early Action Credit'!$H420),ISBLANK('Early Action Credit'!$I420),ISBLANK('Early Action Credit'!$J420),ISBLANK('Early Action Credit'!$L420)),\"\",\"Circuit Breaker\")","v":""},null,null,null,null,null,null,null,null,null,null,{"$f":"IF('Early Action Credit'!$I420=\"Yes\",0,IF('Early Action Credit'!$E420<72.5,0,IF('Early Action Credit'!$E420=72.5,300,IF('Early Action Credit'!$E420<=145,700,IF('Early Action Credit'!$E420<=245,1900,2400)))))*IF(ISBLANK('Early Action Credit'!$J420),0,IF('Early Action Credit'!$J420=\"No\",1,'Early Action Credit'!$K420))","v":0}]
[null,{"$f":"IF(AND(ISBLANK('Early Action Credit'!$A421),ISBLANK('Early Action Credit'!$C421),ISBLANK('Early Action Credit'!$D421),ISBLANK('Early Action Credit'!$E421),ISBLANK('Early Action Credit'!$F421),ISBLANK('Early Action Credit'!$G421),ISBLANK('Early Action Credit'!$H421),ISBLANK('Early Action Credit'!$I421),ISBLANK('Early Action Credit'!$J421),ISBLANK('Early Action Credit'!$L421)),\"\",\"Circuit Breaker\")","v":""},null,null,null,null,null,null,null,null,null,null,{"$f":"IF('Early Action Credit'!$I421=\"Yes\",0,IF('Early Action Credit'!$E421<72.5,0,IF('Early Action Credit'!$E421=72.5,300,IF('Early Action Credit'!$E421<=145,700,IF('Early Action Credit'!$E421<=245,1900,2400)))))*IF(ISBLANK('Early Action Credit'!$J421),0,IF('Early Action Credit'!$J421=\"No\",1,'Early Action Credit'!$K421))","v":0}]
[null,{"$f":"IF(AND(ISBLANK('Early Action Credit'!$A422),ISBLANK('Early Action Credit'!$C422),ISBLANK('Early Action Credit'!$D422),ISBLANK('Early Action Credit'!$E422),ISBLANK('Early Action Credit'!$F422),ISBLANK('Early Action Credit'!$G422),ISBLANK('Early Action Credit'!$H422),ISBLANK('Early Action Credit'!$I422),ISBLANK('Early Action Credit'!$J422),ISBLANK('Early Action Credit'!$L422)),\"\",\"Circuit Breaker\")","v":""},null,null,null,null,null,null,null,null,null,null,{"$f":"IF('Early Action Credit'!$I422=\"Yes\",0,IF('Early Action Credit'!$E422<72.5,0,IF('Early Action Credit'!$E422=72.5,300,IF('Early Action Credit'!$E422<=145,700,IF('Early Action Credit'!$E422<=245,1900,2400)))))*IF(ISBLANK('Early Action Credit'!$J422),0,IF('Early Action Credit'!$J422=\"No\",1,'Early Action Credit'!$K422))","v":0}]
[null,{"$f":"IF(AND(ISBLANK('Early Action Credit'!$A423),ISBLANK('Early Action Credit'!$C423),ISBLANK('Early Action Credit'!$D423),ISBLANK('Early Action Credit'!$E423),ISBLANK('Early Action Credit'!$F423),ISBLANK('Early Action Credit'!$G423),ISBLANK('Early Action Credit'!$H423),ISBLANK('Early Action Credit'!$I423),ISBLANK('Early Action Credit'!$J423),ISBLANK('Early Action Credit'!$L423)),\"\",\"Circuit Breaker\")","v":""},null,null,null,null,null,null,null,null,null,null,{"$f":"IF('Early Action Credit'!$I423=\"Yes\",0,IF('Early Action Credit'!$E423<72.5,0,IF('Early Action Credit'!$E423=72.5,300,IF('Early Action Credit'!$E423<=145,700,IF('Early Action Credit'!$E423<=245,1900,2400)))))*IF(ISBLANK('Early Action Credit'!$J423),0,IF('Early Action Credit'!$J423=\"No\",1,'Early Action Credit'!$K423))","v":0}]
[null,{"$f":"IF(AND(ISBLANK('Early Action Credit'!$A424),ISBLANK('Early Action Credit'!$C424),ISBLANK('Early Action Credit'!$D424),ISBLANK('Early Action Credit'!$E424),ISBLANK('Early Action Credit'!$F424),ISBLANK('Early Action Credit'!$G424),ISBLANK('Early Action Credit'!$H424),ISBLANK('Early Action Credit'!$I424),ISBLANK('Early Action Credit'!$J424),ISBLANK('Early Action Credit'!$L424)),\"\",\"Circuit Breaker\")","v":""},null,null,null,null,null,null,null,null,null,null,{"$f":"IF('Early Action Credit'!$I424=\"Yes\",0,IF('Early Action Credit'!$E424<72.5,0,IF('Early Action Credit'!$E424=72.5,300,IF('Early Action Credit'!$E424<=145,700,IF('Early Action Credit'!$E424<=245,1900,2400)))))*IF(ISBLANK('Early Action Credit'!$J424),0,IF('Early Action Credit'!$J424=\"No\",1,'Early Action Credit'!$K424))","v":0}]
[null,{"$f":"IF(AND(ISBLANK('Early Action Credit'!$A425),ISBLANK('Early Action Credit'!$C425),ISBLANK('Early Action Credit'!$D425),ISBLANK('Early Action Credit'!$E425),ISBLANK('Early Action Credit'!$F425),ISBLANK('Early Action Credit'!$G425),ISBLANK('Early Action Credit'!$H425),ISBLANK('Early Action Credit'!$I425),ISBLANK('Early Action Credit'!$J425),ISBLANK('Early Action Credit'!$L425)),\"\",\"Circuit Breaker\")","v":""},null,null,null,null,null,null,null,null,null,null,{"$f":"IF('Early Action Credit'!$I425=\"Yes\",0,IF('Early Action Credit'!$E425<72.5,0,IF('Early Action Credit'!$E425=72.5,300,IF('Early Action Credit'!$E425<=145,700,IF('Early Action Credit'!$E425<=245,1900,2400)))))*IF(ISBLANK('Early Action Credit'!$J425),0,IF('Early Action Credit'!$J425=\"No\",1,'Early Action Credit'!$K425))","v":0}]
[null,{"$f":"IF(AND(ISBLANK('Early Action Credit'!$A426),ISBLANK('Early Action Credit'!$C426),ISBLANK('Early Action Credit'!$D426),ISBLANK('Early Action Credit'!$E426),ISBLANK('Early Action Credit'!$F426),ISBLANK('Early Action Credit'!$G426),ISBLANK('Early Action Credit'!$H426),ISBLANK('Early Action Credit'!$I426),ISBLANK('Early Action Credit'!$J426),ISBLANK('Early Action Credit'!$L426)),\"\",\"Circuit Breaker\")","v":""},null,null,null,null,null,null,null,null,null,null,{"$f":"IF('Early Action Credit'!$I426=\"Yes\",0,IF('Early Action Credit'!$E426<72.5,0,IF('Early Action Credit'!$E426=72.5,300,IF('Early Action Credit'!$E426<=145,700,IF('Early Action Credit'!$E426<=245,1900,2400)))))*IF(ISBLANK('Early Action Credit'!$J426),0,IF('Early Action Credit'!$J426=\"No\",1,'Early Action Credit'!$K426))","v":0}]
[null,{"$f":"IF(AND(ISBLANK('Early Action Credit'!$A427),ISBLANK('Early Action Credit'!$C427),ISBLANK('Early Action Credit'!$D427),ISBLANK('Early Action Credit'!$E427),ISBLANK('Early Action Credit'!$F427),ISBLANK('Early Action Credit'!$G427),ISBLANK('Early Action Credit'!$H427),ISBLANK('Early Action Credit'!$I427),ISBLANK('Early Action Credit'!$J427),ISBLANK('Early Action Credit'!$L427)),\"\",\"Circuit Breaker\")","v":""},null,null,null,null,null,null,null,null,null,null,{"$f":"IF('Early Action Credit'!$I427=\"Yes\",0,IF('Early Action Credit'!$E427<72.5,0,IF('Early Action Credit'!$E427=72.5,300,IF('Early Action Credit'!$E427<=145,700,IF('Early Action Credit'!$E427<=245,1900,2400)))))*IF(ISBLANK('Early Action Credit'!$J427),0,IF('Early Action Credit'!$J427=\"No\",1,'Early Action Credit'!$K427))","v":0}]
[null,{"$f":"IF(AND(ISBLANK('Early Action Credit'!$A428),ISBLANK('Early Action Credit'!$C428),ISBLANK('Early Action Credit'!$D428),ISBLANK('Early Action Credit'!$E428),ISBLANK('Early Action Credit'!$F428),ISBLANK('Early Action Credit'!$G428),ISBLANK('Early Action Credit'!$H428),ISBLANK('Early Action Credit'!$I428),ISBLANK('Early Action Credit'!$J428),ISBLANK('Early Action Credit'!$L428)),\"\",\"Circuit Breaker\")","v":""},null,null,null,null,null,null,null,null,null,null,{"$f":"IF('Early Action Credit'!$I428=\"Yes\",0,IF('Early Action Credit'!$E428<72.5,0,IF('Early Action Credit'!$E428=72.5,300,IF('Early Action Credit'!$E428<=145,700,IF('Early Action Credit'!$E428<=245,1900,2400)))))*IF(ISBLANK('Early Action Credit'!$J428),0,IF('Early Action Credit'!$J428=\"No\",1,'Early Action Credit'!$K428))","v":0}]
[null,{"$f":"IF(AND(ISBLANK('Early Action Credit'!$A429),ISBLANK('Early Action Credit'!$C429),ISBLANK('Early Action Credit'!$D429),ISBLANK('Early Action Credit'!$E429),ISBLANK('Early Action Credit'!$F429),ISBLANK('Early Action Credit'!$G429),ISBLANK('Early Action Credit'!$H429),ISBLANK('Early Action Credit'!$I429),ISBLANK('Early Action Credit'!$J429),ISBLANK('Early Action Credit'!$L429)),\"\",\"Circuit Breaker\")","v":""},null,null,null,null,null,null,null,null,null,null,{"$f":"IF('Early Action Credit'!$I429=\"Yes\",0,IF('Early Action Credit'!$E429<72.5,0,IF('Early Action Credit'!$E429=72.5,300,IF('Early Action Credit'!$E429<=145,700,IF('Early Action Credit'!$E429<=245,1900,2400)))))*IF(ISBLANK('Early Action Credit'!$J429),0,IF('Early Action Credit'!$J429=\"No\",1,'Early Action Credit'!$K429))","v":0}]
[null,{"$f":"IF(AND(ISBLANK('Early Action Credit'!$A430),ISBLANK('Early Action Credit'!$C430),ISBLANK('Early Action Credit'!$D430),ISBLANK('Early Action Credit'!$E430),ISBLANK('Early Action Credit'!$F430),ISBLANK('Early Action Credit'!$G430),ISBLANK('Early Action Credit'!$H430),ISBLANK('Early Action Credit'!$I430),ISBLANK('Early Action Credit'!$J430),ISBLANK('Early Action Credit'!$L430)),\"\",\"Circuit Breaker\")","v":""},null,null,null,null,null,null,null,null,null,null,{"$f":"IF('Early Action Credit'!$I430=\"Yes\",0,IF('Early Action Credit'!$E430<72.5,0,IF('Early Action Credit'!$E430=72.5,300,IF('Early Action Credit'!$E430<=145,700,IF('Early Action Credit'!$E430<=245,1900,2400)))))*IF(ISBLANK('Early Action Credit'!$J430),0,IF('Early Action Credit'!$J430=\"No\",1,'Early Action Credit'!$K430))","v":0}]
[null,{"$f":"IF(AND(ISBLANK('Early Action Credit'!$A431),ISBLANK('Early Action Credit'!$C431),ISBLANK('Early Action Credit'!$D431),ISBLANK('Early Action Credit'!$E431),ISBLANK('Early Action Credit'!$F431),ISBLANK('Early Action Credit'!$G431),ISBLANK('Early Action Credit'!$H431),ISBLANK('Early Action Credit'!$I431),ISBLANK('Early Action Credit'!$J431),ISBLANK('Early Action Credit'!$L431)),\"\",\"Circuit Breaker\")","v":""},null,null,null,null,null,null,null,null,null,null,{"$f":"IF('Early Action Credit'!$I431=\"Yes\",0,IF('Early Action Credit'!$E431<72.5,0,IF('Early Action Credit'!$E431=72.5,300,IF('Early Action Credit'!$E431<=145,700,IF('Early Action Credit'!$E431<=245,1900,2400)))))*IF(ISBLANK('Early Action Credit'!$J431),0,IF('Early Action Credit'!$J431=\"No\",1,'Early Action Credit'!$K431))","v":0}]
[null,{"$f":"IF(AND(ISBLANK('Early Action Credit'!$A432),ISBLANK('Early Action Credit'!$C432),ISBLANK('Early Action Credit'!$D432),ISBLANK('Early Action Credit'!$E432),ISBLANK('Early Action Credit'!$F432),ISBLANK('Early Action Credit'!$G432),ISBLANK('Early Action Credit'!$H432),ISBLANK('Early Action Credit'!$I432),ISBLANK('Early Action Credit'!$J432),ISBLANK('Early Action Credit'!$L432)),\"\",\"Circuit Breaker\")","v":""},null,null,null,null,null,null,null,null,null,null,{"$f":"IF('Early Action Credit'!$I432=\"Yes\",0,IF('Early Action Credit'!$E432<72.5,0,IF('Early Action Credit'!$E432=72.5,300,IF('Early Action Credit'!$E432<=145,700,IF('Early Action Credit'!$E432<=245,1900,2400)))))*IF(ISBLANK('Early Action Credit'!$J432),0,IF('Early Action Credit'!$J432=\"No\",1,'Early Action Credit'!$K432))","v":0}]
[null,{"$f":"IF(AND(ISBLANK('Early Action Credit'!$A433),ISBLANK('Early Action Credit'!$C433),ISBLANK('Early Action Credit'!$D433),ISBLANK('Early Action Credit'!$E433),ISBLANK('Early Action Credit'!$F433),ISBLANK('Early Action Credit'!$G433),ISBLANK('Early Action Credit'!$H433),ISBLANK('Early Action Credit'!$I433),ISBLANK('Early Action Credit'!$J433),ISBLANK('Early Action Credit'!$L433)),\"\",\"Circuit Breaker\")","v":""},null,null,null,null,null,null,null,null,null,null,{"$f":"IF('Early Action Credit'!$I433=\"Yes\",0,IF('Early Action Credit'!$E433<72.5,0,IF('Early Action Credit'!$E433=72.5,300,IF('Early Action Credit'!$E433<=145,700,IF('Early Action Credit'!$E433<=245,1900,2400)))))*IF(ISBLANK('Early Action Credit'!$J433),0,IF('Early Action Credit'!$J433=\"No\",1,'Early Action Credit'!$K433))","v":0}]
[null,{"$f":"IF(AND(ISBLANK('Early Action Credit'!$A434),ISBLANK('Early Action Credit'!$C434),ISBLANK('Early Action Credit'!$D434),ISBLANK('Early Action Credit'!$E434),ISBLANK('Early Action Credit'!$F434),ISBLANK('Early Action Credit'!$G434),ISBLANK('Early Action Credit'!$H434),ISBLANK('Early Action Credit'!$I434),ISBLANK('Early Action Credit'!$J434),ISBLANK('Early Action Credit'!$L434)),\"\",\"Circuit Breaker\")","v":""},null,null,null,null,null,null,null,null,null,null,{"$f":"IF('Early Action Credit'!$I434=\"Yes\",0,IF('Early Action Credit'!$E434<72.5,0,IF('Early Action Credit'!$E434=72.5,300,IF('Early Action Credit'!$E434<=145,700,IF('Early Action Credit'!$E434<=245,1900,2400)))))*IF(ISBLANK('Early Action Credit'!$J434),0,IF('Early Action Credit'!$J434=\"No\",1,'Early Action Credit'!$K434))","v":0}]
[null,{"$f":"IF(AND(ISBLANK('Early Action Credit'!$A435),ISBLANK('Early Action Credit'!$C435),ISBLANK('Early Action Credit'!$D435),ISBLANK('Early Action Credit'!$E435),ISBLANK('Early Action Credit'!$F435),ISBLANK('Early Action Credit'!$G435),ISBLANK('Early Action Credit'!$H435),ISBLANK('Early Action Credit'!$I435),ISBLANK('Early Action Credit'!$J435),ISBLANK('Early Action Credit'!$L435)),\"\",\"Circuit Breaker\")","v":""},null,null,null,null,null,null,null,null,null,null,{"$f":"IF('Early Action Credit'!$I435=\"Yes\",0,IF('Early Action Credit'!$E435<72.5,0,IF('Early Action Credit'!$E435=72.5,300,IF('Early Action Credit'!$E435<=145,700,IF('Early Action Credit'!$E435<=245,1900,2400)))))*IF(ISBLANK('Early Action Credit'!$J435),0,IF('Early Action Credit'!$J435=\"No\",1,'Early Action Credit'!$K435))","v":0}]
[null,{"$f":"IF(AND(ISBLANK('Early Action Credit'!$A436),ISBLANK('Early Action Credit'!$C436),ISBLANK('Early Action Credit'!$D436),ISBLANK('Early Action Credit'!$E436),ISBLANK('Early Action Credit'!$F436),ISBLANK('Early Action Credit'!$G436),ISBLANK('Early Action Credit'!$H436),ISBLANK('Early Action Credit'!$I436),ISBLANK('Early Action Credit'!$J436),ISBLANK('Early Action Credit'!$L436)),\"\",\"Circuit Breaker\")","v":""},null,null,null,null,null,null,null,null,null,null,{"$f":"IF('Early Action Credit'!$I436=\"Yes\",0,IF('Early Action Credit'!$E436<72.5,0,IF('Early Action Credit'!$E436=72.5,300,IF('Early Action Credit'!$E436<=145,700,IF('Early Action Credit'!$E436<=245,1900,2400)))))*IF(ISBLANK('Early Action Credit'!$J436),0,IF('Early Action Credit'!$J436=\"No\",1,'Early Action Credit'!$K436))","v":0}]
[null,{"$f":"IF(AND(ISBLANK('Early Action Credit'!$A437),ISBLANK('Early Action Credit'!$C437),ISBLANK('Early Action Credit'!$D437),ISBLANK('Early Action Credit'!$E437),ISBLANK('Early Action Credit'!$F437),ISBLANK('Early Action Credit'!$G437),ISBLANK('Early Action Credit'!$H437),ISBLANK('Early Action Credit'!$I437),ISBLANK('Early Action Credit'!$J437),ISBLANK('Early Action Credit'!$L437)),\"\",\"Circuit Breaker\")","v":""},null,null,null,null,null,null,null,null,null,null,{"$f":"IF('Early Action Credit'!$I437=\"Yes\",0,IF('Early Action Credit'!$E437<72.5,0,IF('Early Action Credit'!$E437=72.5,300,IF('Early Action Credit'!$E437<=145,700,IF('Early Action Credit'!$E437<=245,1900,2400)))))*IF(ISBLANK('Early Action Credit'!$J437),0,IF('Early Action Credit'!$J437=\"No\",1,'Early Action Credit'!$K437))","v":0}]
[null,{"$f":"IF(AND(ISBLANK('Early Action Credit'!$A438),ISBLANK('Early Action Credit'!$C438),ISBLANK('Early Action Credit'!$D438),ISBLANK('Early Action Credit'!$E438),ISBLANK('Early Action Credit'!$F438),ISBLANK('Early Action Credit'!$G438),ISBLANK('Early Action Credit'!$H438),ISBLANK('Early Action Credit'!$I438),ISBLANK('Early Action Credit'!$J438),ISBLANK('Early Action Credit'!$L438)),\"\",\"Circuit Breaker\")","v":""},null,null,null,null,null,null,null,null,null,null,{"$f":"IF('Early Action Credit'!$I438=\"Yes\",0,IF('Early Action Credit'!$E438<72.5,0,IF('Early Action Credit'!$E438=72.5,300,IF('Early Action Credit'!$E438<=145,700,IF('Early Action Credit'!$E438<=245,1900,2400)))))*IF(ISBLANK('Early Action Credit'!$J438),0,IF('Early Action Credit'!$J438=\"No\",1,'Early Action Credit'!$K438))","v":0}]
[null,{"$f":"IF(AND(ISBLANK('Early Action Credit'!$A439),ISBLANK('Early Action Credit'!$C439),ISBLANK('Early Action Credit'!$D439),ISBLANK('Early Action Credit'!$E439),ISBLANK('Early Action Credit'!$F439),ISBLANK('Early Action Credit'!$G439),ISBLANK('Early Action Credit'!$H439),ISBLANK('Early Action Credit'!$I439),ISBLANK('Early Action Credit'!$J439),ISBLANK('Early Action Credit'!$L439)),\"\",\"Circuit Breaker\")","v":""},null,null,null,null,null,null,null,null,null,null,{"$f":"IF('Early Action Credit'!$I439=\"Yes\",0,IF('Early Action Credit'!$E439<72.5,0,IF('Early Action Credit'!$E439=72.5,300,IF('Early Action Credit'!$E439<=145,700,IF('Early Action Credit'!$E439<=245,1900,2400)))))*IF(ISBLANK('Early Action Credit'!$J439),0,IF('Early Action Credit'!$J439=\"No\",1,'Early Action Credit'!$K439))","v":0}]
[null,{"$f":"IF(AND(ISBLANK('Early Action Credit'!$A440),ISBLANK('Early Action Credit'!$C440),ISBLANK('Early Action Credit'!$D440),ISBLANK('Early Action Credit'!$E440),ISBLANK('Early Action Credit'!$F440),ISBLANK('Early Action Credit'!$G440),ISBLANK('Early Action Credit'!$H440),ISBLANK('Early Action Credit'!$I440),ISBLANK('Early Action Credit'!$J440),ISBLANK('Early Action Credit'!$L440)),\"\",\"Circuit Breaker\")","v":""},null,null,null,null,null,null,null,null,null,null,{"$f":"IF('Early Action Credit'!$I440=\"Yes\",0,IF('Early Action Credit'!$E440<72.5,0,IF('Early Action Credit'!$E440=72.5,300,IF('Early Action Credit'!$E440<=145,700,IF('Early Action Credit'!$E440<=245,1900,2400)))))*IF(ISBLANK('Early Action Credit'!$J440),0,IF('Early Action Credit'!$J440=\"No\",1,'Early Action Credit'!$K440))","v":0}]
[null,{"$f":"IF(AND(ISBLANK('Early Action Credit'!$A441),ISBLANK('Early Action Credit'!$C441),ISBLANK('Early Action Credit'!$D441),ISBLANK('Early Action Credit'!$E441),ISBLANK('Early Action Credit'!$F441),ISBLANK('Early Action Credit'!$G441),ISBLANK('Early Action Credit'!$H441),ISBLANK('Early Action Credit'!$I441),ISBLANK('Early Action Credit'!$J441),ISBLANK('Early Action Credit'!$L441)),\"\",\"Circuit Breaker\")","v":""},null,null,null,null,null,null,null,null,null,null,{"$f":"IF('Early Action Credit'!$I441=\"Yes\",0,IF('Early Action Credit'!$E441<72.5,0,IF('Early Action Credit'!$E441=72.5,300,IF('Early Action Credit'!$E441<=145,700,IF('Early Action Credit'!$E441<=245,1900,2400)))))*IF(ISBLANK('Early Action Credit'!$J441),0,IF('Early Action Credit'!$J441=\"No\",1,'Early Action Credit'!$K441))","v":0}]
[null,{"$f":"IF(AND(ISBLANK('Early Action Credit'!$A442),ISBLANK('Early Action Credit'!$C442),ISBLANK('Early Action Credit'!$D442),ISBLANK('Early Action Credit'!$E442),ISBLANK('Early Action Credit'!$F442),ISBLANK('Early Action Credit'!$G442),ISBLANK('Early Action Credit'!$H442),ISBLANK('Early Action Credit'!$I442),ISBLANK('Early Action Credit'!$J442),ISBLANK('Early Action Credit'!$L442)),\"\",\"Circuit Breaker\")","v":""},null,null,null,null,null,null,null,null,null,null,{"$f":"IF('Early Action Credit'!$I442=\"Yes\",0,IF('Early Action Credit'!$E442<72.5,0,IF('Early Action Credit'!$E442=72.5,300,IF('Early Action Credit'!$E442<=145,700,IF('Early Action Credit'!$E442<=245,1900,2400)))))*IF(ISBLANK('Early Action Credit'!$J442),0,IF('Early Action Credit'!$J442=\"No\",1,'Early Action Credit'!$K442))","v":0}]
[null,{"$f":"IF(AND(ISBLANK('Early Action Credit'!$A443),ISBLANK('Early Action Credit'!$C443),ISBLANK('Early Action Credit'!$D443),ISBLANK('Early Action Credit'!$E443),ISBLANK('Early Action Credit'!$F443),ISBLANK('Early Action Credit'!$G443),ISBLANK('Early Action Credit'!$H443),ISBLANK('Early Action Credit'!$I443),ISBLANK('Early Action Credit'!$J443),ISBLANK('Early Action Credit'!$L443)),\"\",\"Circuit Breaker\")","v":""},null,null,null,null,null,null,null,null,null,null,{"$f":"IF('Early Action Credit'!$I443=\"Yes\",0,IF('Early Action Credit'!$E443<72.5,0,IF('Early Action Credit'!$E443=72.5,300,IF('Early Action Credit'!$E443<=145,700,IF('Early Action Credit'!$E443<=245,1900,2400)))))*IF(ISBLANK('Early Action Credit'!$J443),0,IF('Early Action Credit'!$J443=\"No\",1,'Early Action Credit'!$K443))","v":0}]
[null,{"$f":"IF(AND(ISBLANK('Early Action Credit'!$A444),ISBLANK('Early Action Credit'!$C444),ISBLANK('Early Action Credit'!$D444),ISBLANK('Early Action Credit'!$E444),ISBLANK('Early Action Credit'!$F444),ISBLANK('Early Action Credit'!$G444),ISBLANK('Early Action Credit'!$H444),ISBLANK('Early Action Credit'!$I444),ISBLANK('Early Action Credit'!$J444),ISBLANK('Early Action Credit'!$L444)),\"\",\"Circuit Breaker\")","v":""},null,null,null,null,null,null,null,null,null,null,{"$f":"IF('Early Action Credit'!$I444=\"Yes\",0,IF('Early Action Credit'!$E444<72.5,0,IF('Early Action Credit'!$E444=72.5,300,IF('Early Action Credit'!$E444<=145,700,IF('Early Action Credit'!$E444<=245,1900,2400)))))*IF(ISBLANK('Early Action Credit'!$J444),0,IF('Early Action Credit'!$J444=\"No\",1,'Early Action Credit'!$K444))","v":0}]
[null,{"$f":"IF(AND(ISBLANK('Early Action Credit'!$A445),ISBLANK('Early Action Credit'!$C445),ISBLANK('Early Action Credit'!$D445),ISBLANK('Early Action Credit'!$E445),ISBLANK('Early Action Credit'!$F445),ISBLANK('Early Action Credit'!$G445),ISBLANK('Early Action Credit'!$H445),ISBLANK('Early Action Credit'!$I445),ISBLANK('Early Action Credit'!$J445),ISBLANK('Early Action Credit'!$L445)),\"\",\"Circuit Breaker\")","v":""},null,null,null,null,null,null,null,null,null,null,{"$f":"IF('Early Action Credit'!$I445=\"Yes\",0,IF('Early Action Credit'!$E445<72.5,0,IF('Early Action Credit'!$E445=72.5,300,IF('Early Action Credit'!$E445<=145,700,IF('Early Action Credit'!$E445<=245,1900,2400)))))*IF(ISBLANK('Early Action Credit'!$J445),0,IF('Early Action Credit'!$J445=\"No\",1,'Early Action Credit'!$K445))","v":0}]
[null,{"$f":"IF(AND(ISBLANK('Early Action Credit'!$A446),ISBLANK('Early Action Credit'!$C446),ISBLANK('Early Action Credit'!$D446),ISBLANK('Early Action Credit'!$E446),ISBLANK('Early Action Credit'!$F446),ISBLANK('Early Action Credit'!$G446),ISBLANK('Early Action Credit'!$H446),ISBLANK('Early Action Credit'!$I446),ISBLANK('Early Action Credit'!$J446),ISBLANK('Early Action Credit'!$L446)),\"\",\"Circuit Breaker\")","v":""},null,null,null,null,null,null,null,null,null,null,{"$f":"IF('Early Action Credit'!$I446=\"Yes\",0,IF('Early Action Credit'!$E446<72.5,0,IF('Early Action Credit'!$E446=72.5,300,IF('Early Action Credit'!$E446<=145,700,IF('Early Action Credit'!$E446<=245,1900,2400)))))*IF(ISBLANK('Early Action Credit'!$J446),0,IF('Early Action Credit'!$J446=\"No\",1,'Early Action Credit'!$K446))","v":0}]
[null,{"$f":"IF(AND(ISBLANK('Early Action Credit'!$A447),ISBLANK('Early Action Credit'!$C447),ISBLANK('Early Action Credit'!$D447),ISBLANK('Early Action Credit'!$E447),ISBLANK('Early Action Credit'!$F447),ISBLANK('Early Action Credit'!$G447),ISBLANK('Early Action Credit'!$H447),ISBLANK('Early Action Credit'!$I447),ISBLANK('Early Action Credit'!$J447),ISBLANK('Early Action Credit'!$L447)),\"\",\"Circuit Breaker\")","v":""},null,null,null,null,null,null,null,null,null,null,{"$f":"IF('Early Action Credit'!$I447=\"Yes\",0,IF('Early Action Credit'!$E447<72.5,0,IF('Early Action Credit'!$E447=72.5,300,IF('Early Action Credit'!$E447<=145,700,IF('Early Action Credit'!$E447<=245,1900,2400)))))*IF(ISBLANK('Early Action Credit'!$J447),0,IF('Early Action Credit'!$J447=\"No\",1,'Early Action Credit'!$K447))","v":0}]
[null,{"$f":"IF(AND(ISBLANK('Early Action Credit'!$A448),ISBLANK('Early Action Credit'!$C448),ISBLANK('Early Action Credit'!$D448),ISBLANK('Early Action Credit'!$E448),ISBLANK('Early Action Credit'!$F448),ISBLANK('Early Action Credit'!$G448),ISBLANK('Early Action Credit'!$H448),ISBLANK('Early Action Credit'!$I448),ISBLANK('Early Action Credit'!$J448),ISBLANK('Early Action Credit'!$L448)),\"\",\"Circuit Breaker\")","v":""},null,null,null,null,null,null,null,null,null,null,{"$f":"IF('Early Action Credit'!$I448=\"Yes\",0,IF('Early Action Credit'!$E448<72.5,0,IF('Early Action Credit'!$E448=72.5,300,IF('Early Action Credit'!$E448<=145,700,IF('Early Action Credit'!$E448<=245,1900,2400)))))*IF(ISBLANK('Early Action Credit'!$J448),0,IF('Early Action Credit'!$J448=\"No\",1,'Early Action Credit'!$K448))","v":0}]
[null,{"$f":"IF(AND(ISBLANK('Early Action Credit'!$A449),ISBLANK('Early Action Credit'!$C449),ISBLANK('Early Action Credit'!$D449),ISBLANK('Early Action Credit'!$E449),ISBLANK('Early Action Credit'!$F449),ISBLANK('Early Action Credit'!$G449),ISBLANK('Early Action Credit'!$H449),ISBLANK('Early Action Credit'!$I449),ISBLANK('Early Action Credit'!$J449),ISBLANK('Early Action Credit'!$L449)),\"\",\"Circuit Breaker\")","v":""},null,null,null,null,null,null,null,null,null,null,{"$f":"IF('Early Action Credit'!$I449=\"Yes\",0,IF('Early Action Credit'!$E449<72.5,0,IF('Early Action Credit'!$E449=72.5,300,IF('Early Action Credit'!$E449<=145,700,IF('Early Action Credit'!$E449<=245,1900,2400)))))*IF(ISBLANK('Early Action Credit'!$J449),0,IF('Early Action Credit'!$J449=\"No\",1,'Early Action Credit'!$K449))","v":0}]
[null,{"$f":"IF(AND(ISBLANK('Early Action Credit'!$A450),ISBLANK('Early Action Credit'!$C450),ISBLANK('Early Action Credit'!$D450),ISBLANK('Early Action Credit'!$E450),ISBLANK('Early Action Credit'!$F450),ISBLANK('Early Action Credit'!$G450),ISBLANK('Early Action Credit'!$H450),ISBLANK('Early Action Credit'!$I450),ISBLANK('Early Action Credit'!$J450),ISBLANK('Early Action Credit'!$L450)),\"\",\"Circuit Breaker\")","v":""},null,null,null,null,null,null,null,null,null,null,{"$f":"IF('Early Action Credit'!$I450=\"Yes\",0,IF('Early Action Credit'!$E450<72.5,0,IF('Early Action Credit'!$E450=72.5,300,IF('Early Action Credit'!$E450<=145,700,IF('Early Action Credit'!$E450<=245,1900,2400)))))*IF(ISBLANK('Early Action Credit'!$J450),0,IF('Early Action Credit'!$J450=\"No\",1,'Early Action Credit'!$K450))","v":0}]
[null,{"$f":"IF(AND(ISBLANK('Early Action Credit'!$A451),ISBLANK('Early Action Credit'!$C451),ISBLANK('Early Action Credit'!$D451),ISBLANK('Early Action Credit'!$E451),ISBLANK('Early Action Credit'!$F451),ISBLANK('Early Action Credit'!$G451),ISBLANK('Early Action Credit'!$H451),ISBLANK('Early Action Credit'!$I451),ISBLANK('Early Action Credit'!$J451),ISBLANK('Early Action Credit'!$L451)),\"\",\"Circuit Breaker\")","v":""},null,null,null,null,null,null,null,null,null,null,{"$f":"IF('Early Action Credit'!$I451=\"Yes\",0,IF('Early Action Credit'!$E451<72.5,0,IF('Early Action Credit'!$E451=72.5,300,IF('Early Action Credit'!$E451<=145,700,IF('Early Action Credit'!$E451<=245,1900,2400)))))*IF(ISBLANK('Early Action Credit'!$J451),0,IF('Early Action Credit'!$J451=\"No\",1,'Early Action Credit'!$K451))","v":0}]
[null,{"$f":"IF(AND(ISBLANK('Early Action Credit'!$A452),ISBLANK('Early Action Credit'!$C452),ISBLANK('Early Action Credit'!$D452),ISBLANK('Early Action Credit'!$E452),ISBLANK('Early Action Credit'!$F452),ISBLANK('Early Action Credit'!$G452),ISBLANK('Early Action Credit'!$H452),ISBLANK('Early Action Credit'!$I452),ISBLANK('Early Action Credit'!$J452),ISBLANK('Early Action Credit'!$L452)),\"\",\"Circuit Breaker\")","v":""},null,null,null,null,null,null,null,null,null,null,{"$f":"IF('Early Action Credit'!$I452=\"Yes\",0,IF('Early Action Credit'!$E452<72.5,0,IF('Early Action Credit'!$E452=72.5,300,IF('Early Action Credit'!$E452<=145,700,IF('Early Action Credit'!$E452<=245,1900,2400)))))*IF(ISBLANK('Early Action Credit'!$J452),0,IF('Early Action Credit'!$J452=\"No\",1,'Early Action Credit'!$K452))","v":0}]
[null,{"$f":"IF(AND(ISBLANK('Early Action Credit'!$A453),ISBLANK('Early Action Credit'!$C453),ISBLANK('Early Action Credit'!$D453),ISBLANK('Early Action Credit'!$E453),ISBLANK('Early Action Credit'!$F453),ISBLANK('Early Action Credit'!$G453),ISBLANK('Early Action Credit'!$H453),ISBLANK('Early Action Credit'!$I453),ISBLANK('Early Action Credit'!$J453),ISBLANK('Early Action Credit'!$L453)),\"\",\"Circuit Breaker\")","v":""},null,null,null,null,null,null,null,null,null,null,{"$f":"IF('Early Action Credit'!$I453=\"Yes\",0,IF('Early Action Credit'!$E453<72.5,0,IF('Early Action Credit'!$E453=72.5,300,IF('Early Action Credit'!$E453<=145,700,IF('Early Action Credit'!$E453<=245,1900,2400)))))*IF(ISBLANK('Early Action Credit'!$J453),0,IF('Early Action Credit'!$J453=\"No\",1,'Early Action Credit'!$K453))","v":0}]
[null,{"$f":"IF(AND(ISBLANK('Early Action Credit'!$A454),ISBLANK('Early Action Credit'!$C454),ISBLANK('Early Action Credit'!$D454),ISBLANK('Early Action Credit'!$E454),ISBLANK('Early Action Credit'!$F454),ISBLANK('Early Action Credit'!$G454),ISBLANK('Early Action Credit'!$H454),ISBLANK('Early Action Credit'!$I454),ISBLANK('Early Action Credit'!$J454),ISBLANK('Early Action Credit'!$L454)),\"\",\"Circuit Breaker\")","v":""},null,null,null,null,null,null,null,null,null,null,{"$f":"IF('Early Action Credit'!$I454=\"Yes\",0,IF('Early Action Credit'!$E454<72.5,0,IF('Early Action Credit'!$E454=72.5,300,IF('Early Action Credit'!$E454<=145,700,IF('Early Action Credit'!$E454<=245,1900,2400)))))*IF(ISBLANK('Early Action Credit'!$J454),0,IF('Early Action Credit'!$J454=\"No\",1,'Early Action Credit'!$K454))","v":0}]
[null,{"$f":"IF(AND(ISBLANK('Early Action Credit'!$A455),ISBLANK('Early Action Credit'!$C455),ISBLANK('Early Action Credit'!$D455),ISBLANK('Early Action Credit'!$E455),ISBLANK('Early Action Credit'!$F455),ISBLANK('Early Action Credit'!$G455),ISBLANK('Early Action Credit'!$H455),ISBLANK('Early Action Credit'!$I455),ISBLANK('Early Action Credit'!$J455),ISBLANK('Early Action Credit'!$L455)),\"\",\"Circuit Breaker\")","v":""},null,null,null,null,null,null,null,null,null,null,{"$f":"IF('Early Action Credit'!$I455=\"Yes\",0,IF('Early Action Credit'!$E455<72.5,0,IF('Early Action Credit'!$E455=72.5,300,IF('Early Action Credit'!$E455<=145,700,IF('Early Action Credit'!$E455<=245,1900,2400)))))*IF(ISBLANK('Early Action Credit'!$J455),0,IF('Early Action Credit'!$J455=\"No\",1,'Early Action Credit'!$K455))","v":0}]
[null,{"$f":"IF(AND(ISBLANK('Early Action Credit'!$A456),ISBLANK('Early Action Credit'!$C456),ISBLANK('Early Action Credit'!$D456),ISBLANK('Early Action Credit'!$E456),ISBLANK('Early Action Credit'!$F456),ISBLANK('Early Action Credit'!$G456),ISBLANK('Early Action Credit'!$H456),ISBLANK('Early Action Credit'!$I456),ISBLANK('Early Action Credit'!$J456),ISBLANK('Early Action Credit'!$L456)),\"\",\"Circuit Breaker\")","v":""},null,null,null,null,null,null,null,null,null,null,{"$f":"IF('Early Action Credit'!$I456=\"Yes\",0,IF('Early Action Credit'!$E456<72.5,0,IF('Early Action Credit'!$E456=72.5,300,IF('Early Action Credit'!$E456<=145,700,IF('Early Action Credit'!$E456<=245,1900,2400)))))*IF(ISBLANK('Early Action Credit'!$J456),0,IF('Early Action Credit'!$J456=\"No\",1,'Early Action Credit'!$K456))","v":0}]
[null,{"$f":"IF(AND(ISBLANK('Early Action Credit'!$A457),ISBLANK('Early Action Credit'!$C457),ISBLANK('Early Action Credit'!$D457),ISBLANK('Early Action Credit'!$E457),ISBLANK('Early Action Credit'!$F457),ISBLANK('Early Action Credit'!$G457),ISBLANK('Early Action Credit'!$H457),ISBLANK('Early Action Credit'!$I457),ISBLANK('Early Action Credit'!$J457),ISBLANK('Early Action Credit'!$L457)),\"\",\"Circuit Breaker\")","v":""},null,null,null,null,null,null,null,null,null,null,{"$f":"IF('Early Action Credit'!$I457=\"Yes\",0,IF('Early Action Credit'!$E457<72.5,0,IF('Early Action Credit'!$E457=72.5,300,IF('Early Action Credit'!$E457<=145,700,IF('Early Action Credit'!$E457<=245,1900,2400)))))*IF(ISBLANK('Early Action Credit'!$J457),0,IF('Early Action Credit'!$J457=\"No\",1,'Early Action Credit'!$K457))","v":0}]
[null,{"$f":"IF(AND(ISBLANK('Early Action Credit'!$A458),ISBLANK('Early Action Credit'!$C458),ISBLANK('Early Action Credit'!$D458),ISBLANK('Early Action Credit'!$E458),ISBLANK('Early Action Credit'!$F458),ISBLANK('Early Action Credit'!$G458),ISBLANK('Early Action Credit'!$H458),ISBLANK('Early Action Credit'!$I458),ISBLANK('Early Action Credit'!$J458),ISBLANK('Early Action Credit'!$L458)),\"\",\"Circuit Breaker\")","v":""},null,null,null,null,null,null,null,null,null,null,{"$f":"IF('Early Action Credit'!$I458=\"Yes\",0,IF('Early Action Credit'!$E458<72.5,0,IF('Early Action Credit'!$E458=72.5,300,IF('Early Action Credit'!$E458<=145,700,IF('Early Action Credit'!$E458<=245,1900,2400)))))*IF(ISBLANK('Early Action Credit'!$J458),0,IF('Early Action Credit'!$J458=\"No\",1,'Early Action Credit'!$K458))","v":0}]
[null,{"$f":"IF(AND(ISBLANK('Early Action Credit'!$A459),ISBLANK('Early Action Credit'!$C459),ISBLANK('Early Action Credit'!$D459),ISBLANK('Early Action Credit'!$E459),ISBLANK('Early Action Credit'!$F459),ISBLANK('Early Action Credit'!$G459),ISBLANK('Early Action Credit'!$H459),ISBLANK('Early Action Credit'!$I459),ISBLANK('Early Action Credit'!$J459),ISBLANK('Early Action Credit'!$L459)),\"\",\"Circuit Breaker\")","v":""},null,null,null,null,null,null,null,null,null,null,{"$f":"IF('Early Action Credit'!$I459=\"Yes\",0,IF('Early Action Credit'!$E459<72.5,0,IF('Early Action Credit'!$E459=72.5,300,IF('Early Action Credit'!$E459<=145,700,IF('Early Action Credit'!$E459<=245,1900,2400)))))*IF(ISBLANK('Early Action Credit'!$J459),0,IF('Early Action Credit'!$J459=\"No\",1,'Early Action Credit'!$K459))","v":0}]
[null,{"$f":"IF(AND(ISBLANK('Early Action Credit'!$A460),ISBLANK('Early Action Credit'!$C460),ISBLANK('Early Action Credit'!$D460),ISBLANK('Early Action Credit'!$E460),ISBLANK('Early Action Credit'!$F460),ISBLANK('Early Action Credit'!$G460),ISBLANK('Early Action Credit'!$H460),ISBLANK('Early Action Credit'!$I460),ISBLANK('Early Action Credit'!$J460),ISBLANK('Early Action Credit'!$L460)),\"\",\"Circuit Breaker\")","v":""},null,null,null,null,null,null,null,null,null,null,{"$f":"IF('Early Action Credit'!$I460=\"Yes\",0,IF('Early Action Credit'!$E460<72.5,0,IF('Early Action Credit'!$E460=72.5,300,IF('Early Action Credit'!$E460<=145,700,IF('Early Action Credit'!$E460<=245,1900,2400)))))*IF(ISBLANK('Early Action Credit'!$J460),0,IF('Early Action Credit'!$J460=\"No\",1,'Early Action Credit'!$K460))","v":0}]
[null,{"$f":"IF(AND(ISBLANK('Early Action Credit'!$A461),ISBLANK('Early Action Credit'!$C461),ISBLANK('Early Action Credit'!$D461),ISBLANK('Early Action Credit'!$E461),ISBLANK('Early Action Credit'!$F461),ISBLANK('Early Action Credit'!$G461),ISBLANK('Early Action Credit'!$H461),ISBLANK('Early Action Credit'!$I461),ISBLANK('Early Action Credit'!$J461),ISBLANK('Early Action Credit'!$L461)),\"\",\"Circuit Breaker\")","v":""},null,null,null,null,null,null,null,null,null,null,{"$f":"IF('Early Action Credit'!$I461=\"Yes\",0,IF('Early Action Credit'!$E461<72.5,0,IF('Early Action Credit'!$E461=72.5,300,IF('Early Action Credit'!$E461<=145,700,IF('Early Action Credit'!$E461<=245,1900,2400)))))*IF(ISBLANK('Early Action Credit'!$J461),0,IF('Early Action Credit'!$J461=\"No\",1,'Early Action Credit'!$K461))","v":0}]
[null,{"$f":"IF(AND(ISBLANK('Early Action Credit'!$A462),ISBLANK('Early Action Credit'!$C462),ISBLANK('Early Action Credit'!$D462),ISBLANK('Early Action Credit'!$E462),ISBLANK('Early Action Credit'!$F462),ISBLANK('Early Action Credit'!$G462),ISBLANK('Early Action Credit'!$H462),ISBLANK('Early Action Credit'!$I462),ISBLANK('Early Action Credit'!$J462),ISBLANK('Early Action Credit'!$L462)),\"\",\"Circuit Breaker\")","v":""},null,null,null,null,null,null,null,null,null,null,{"$f":"IF('Early Action Credit'!$I462=\"Yes\",0,IF('Early Action Credit'!$E462<72.5,0,IF('Early Action Credit'!$E462=72.5,300,IF('Early Action Credit'!$E462<=145,700,IF('Early Action Credit'!$E462<=245,1900,2400)))))*IF(ISBLANK('Early Action Credit'!$J462),0,IF('Early Action Credit'!$J462=\"No\",1,'Early Action Credit'!$K462))","v":0}]
[null,{"$f":"IF(AND(ISBLANK('Early Action Credit'!$A463),ISBLANK('Early Action Credit'!$C463),ISBLANK('Early Action Credit'!$D463),ISBLANK('Early Action Credit'!$E463),ISBLANK('Early Action Credit'!$F463),ISBLANK('Early Action Credit'!$G463),ISBLANK('Early Action Credit'!$H463),ISBLANK('Early Action Credit'!$I463),ISBLANK('Early Action Credit'!$J463),ISBLANK('Early Action Credit'!$L463)),\"\",\"Circuit Breaker\")","v":""},null,null,null,null,null,null,null,null,null,null,{"$f":"IF('Early Action Credit'!$I463=\"Yes\",0,IF('Early Action Credit'!$E463<72.5,0,IF('Early Action Credit'!$E463=72.5,300,IF('Early Action Credit'!$E463<=145,700,IF('Early Action Credit'!$E463<=245,1900,2400)))))*IF(ISBLANK('Early Action Credit'!$J463),0,IF('Early Action Credit'!$J463=\"No\",1,'Early Action Credit'!$K463))","v":0}]
[null,{"$f":"IF(AND(ISBLANK('Early Action Credit'!$A464),ISBLANK('Early Action Credit'!$C464),ISBLANK('Early Action Credit'!$D464),ISBLANK('Early Action Credit'!$E464),ISBLANK('Early Action Credit'!$F464),ISBLANK('Early Action Credit'!$G464),ISBLANK('Early Action Credit'!$H464),ISBLANK('Early Action Credit'!$I464),ISBLANK('Early Action Credit'!$J464),ISBLANK('Early Action Credit'!$L464)),\"\",\"Circuit Breaker\")","v":""},null,null,null,null,null,null,null,null,null,null,{"$f":"IF('Early Action Credit'!$I464=\"Yes\",0,IF('Early Action Credit'!$E464<72.5,0,IF('Early Action Credit'!$E464=72.5,300,IF('Early Action Credit'!$E464<=145,700,IF('Early Action Credit'!$E464<=245,1900,2400)))))*IF(ISBLANK('Early Action Credit'!$J464),0,IF('Early Action Credit'!$J464=\"No\",1,'Early Action Credit'!$K464))","v":0}]
[null,{"$f":"IF(AND(ISBLANK('Early Action Credit'!$A465),ISBLANK('Early Action Credit'!$C465),ISBLANK('Early Action Credit'!$D465),ISBLANK('Early Action Credit'!$E465),ISBLANK('Early Action Credit'!$F465),ISBLANK('Early Action Credit'!$G465),ISBLANK('Early Action Credit'!$H465),ISBLANK('Early Action Credit'!$I465),ISBLANK('Early Action Credit'!$J465),ISBLANK('Early Action Credit'!$L465)),\"\",\"Circuit Breaker\")","v":""},null,null,null,null,null,null,null,null,null,null,{"$f":"IF('Early Action Credit'!$I465=\"Yes\",0,IF('Early Action Credit'!$E465<72.5,0,IF('Early Action Credit'!$E465=72.5,300,IF('Early Action Credit'!$E465<=145,700,IF('Early Action Credit'!$E465<=245,1900,2400)))))*IF(ISBLANK('Early Action Credit'!$J465),0,IF('Early Action Credit'!$J465=\"No\",1,'Early Action Credit'!$K465))","v":0}]
[null,{"$f":"IF(AND(ISBLANK('Early Action Credit'!$A466),ISBLANK('Early Action Credit'!$C466),ISBLANK('Early Action Credit'!$D466),ISBLANK('Early Action Credit'!$E466),ISBLANK('Early Action Credit'!$F466),ISBLANK('Early Action Credit'!$G466),ISBLANK('Early Action Credit'!$H466),ISBLANK('Early Action Credit'!$I466),ISBLANK('Early Action Credit'!$J466),ISBLANK('Early Action Credit'!$L466)),\"\",\"Circuit Breaker\")","v":""},null,null,null,null,null,null,null,null,null,null,{"$f":"IF('Early Action Credit'!$I466=\"Yes\",0,IF('Early Action Credit'!$E466<72.5,0,IF('Early Action Credit'!$E466=72.5,300,IF('Early Action Credit'!$E466<=145,700,IF('Early Action Credit'!$E466<=245,1900,2400)))))*IF(ISBLANK('Early Action Credit'!$J466),0,IF('Early Action Credit'!$J466=\"No\",1,'Early Action Credit'!$K466))","v":0}]
[null,{"$f":"IF(AND(ISBLANK('Early Action Credit'!$A467),ISBLANK('Early Action Credit'!$C467),ISBLANK('Early Action Credit'!$D467),ISBLANK('Early Action Credit'!$E467),ISBLANK('Early Action Credit'!$F467),ISBLANK('Early Action Credit'!$G467),ISBLANK('Early Action Credit'!$H467),ISBLANK('Early Action Credit'!$I467),ISBLANK('Early Action Credit'!$J467),ISBLANK('Early Action Credit'!$L467)),\"\",\"Circuit Breaker\")","v":""},null,null,null,null,null,null,null,null,null,null,{"$f":"IF('Early Action Credit'!$I467=\"Yes\",0,IF('Early Action Credit'!$E467<72.5,0,IF('Early Action Credit'!$E467=72.5,300,IF('Early Action Credit'!$E467<=145,700,IF('Early Action Credit'!$E467<=245,1900,2400)))))*IF(ISBLANK('Early Action Credit'!$J467),0,IF('Early Action Credit'!$J467=\"No\",1,'Early Action Credit'!$K467))","v":0}]
[null,{"$f":"IF(AND(ISBLANK('Early Action Credit'!$A468),ISBLANK('Early Action Credit'!$C468),ISBLANK('Early Action Credit'!$D468),ISBLANK('Early Action Credit'!$E468),ISBLANK('Early Action Credit'!$F468),ISBLANK('Early Action Credit'!$G468),ISBLANK('Early Action Credit'!$H468),ISBLANK('Early Action Credit'!$I468),ISBLANK('Early Action Credit'!$J468),ISBLANK('Early Action Credit'!$L468)),\"\",\"Circuit Breaker\")","v":""},null,null,null,null,null,null,null,null,null,null,{"$f":"IF('Early Action Credit'!$I468=\"Yes\",0,IF('Early Action Credit'!$E468<72.5,0,IF('Early Action Credit'!$E468=72.5,300,IF('Early Action Credit'!$E468<=145,700,IF('Early Action Credit'!$E468<=245,1900,2400)))))*IF(ISBLANK('Early Action Credit'!$J468),0,IF('Early Action Credit'!$J468=\"No\",1,'Early Action Credit'!$K468))","v":0}]
[null,{"$f":"IF(AND(ISBLANK('Early Action Credit'!$A469),ISBLANK('Early Action Credit'!$C469),ISBLANK('Early Action Credit'!$D469),ISBLANK('Early Action Credit'!$E469),ISBLANK('Early Action Credit'!$F469),ISBLANK('Early Action Credit'!$G469),ISBLANK('Early Action Credit'!$H469),ISBLANK('Early Action Credit'!$I469),ISBLANK('Early Action Credit'!$J469),ISBLANK('Early Action Credit'!$L469)),\"\",\"Circuit Breaker\")","v":""},null,null,null,null,null,null,null,null,null,null,{"$f":"IF('Early Action Credit'!$I469=\"Yes\",0,IF('Early Action Credit'!$E469<72.5,0,IF('Early Action Credit'!$E469=72.5,300,IF('Early Action Credit'!$E469<=145,700,IF('Early Action Credit'!$E469<=245,1900,2400)))))*IF(ISBLANK('Early Action Credit'!$J469),0,IF('Early Action Credit'!$J469=\"No\",1,'Early Action Credit'!$K469))","v":0}]
[null,{"$f":"IF(AND(ISBLANK('Early Action Credit'!$A470),ISBLANK('Early Action Credit'!$C470),ISBLANK('Early Action Credit'!$D470),ISBLANK('Early Action Credit'!$E470),ISBLANK('Early Action Credit'!$F470),ISBLANK('Early Action Credit'!$G470),ISBLANK('Early Action Credit'!$H470),ISBLANK('Early Action Credit'!$I470),ISBLANK('Early Action Credit'!$J470),ISBLANK('Early Action Credit'!$L470)),\"\",\"Circuit Breaker\")","v":""},null,null,null,null,null,null,null,null,null,null,{"$f":"IF('Early Action Credit'!$I470=\"Yes\",0,IF('Early Action Credit'!$E470<72.5,0,IF('Early Action Credit'!$E470=72.5,300,IF('Early Action Credit'!$E470<=145,700,IF('Early Action Credit'!$E470<=245,1900,2400)))))*IF(ISBLANK('Early Action Credit'!$J470),0,IF('Early Action Credit'!$J470=\"No\",1,'Early Action Credit'!$K470))","v":0}]
[null,{"$f":"IF(AND(ISBLANK('Early Action Credit'!$A471),ISBLANK('Early Action Credit'!$C471),ISBLANK('Early Action Credit'!$D471),ISBLANK('Early Action Credit'!$E471),ISBLANK('Early Action Credit'!$F471),ISBLANK('Early Action Credit'!$G471),ISBLANK('Early Action Credit'!$H471),ISBLANK('Early Action Credit'!$I471),ISBLANK('Early Action Credit'!$J471),ISBLANK('Early Action Credit'!$L471)),\"\",\"Circuit Breaker\")","v":""},null,null,null,null,null,null,null,null,null,null,{"$f":"IF('Early Action Credit'!$I471=\"Yes\",0,IF('Early Action Credit'!$E471<72.5,0,IF('Early Action Credit'!$E471=72.5,300,IF('Early Action Credit'!$E471<=145,700,IF('Early Action Credit'!$E471<=245,1900,2400)))))*IF(ISBLANK('Early Action Credit'!$J471),0,IF('Early Action Credit'!$J471=\"No\",1,'Early Action Credit'!$K471))","v":0}]
[null,{"$f":"IF(AND(ISBLANK('Early Action Credit'!$A472),ISBLANK('Early Action Credit'!$C472),ISBLANK('Early Action Credit'!$D472),ISBLANK('Early Action Credit'!$E472),ISBLANK('Early Action Credit'!$F472),ISBLANK('Early Action Credit'!$G472),ISBLANK('Early Action Credit'!$H472),ISBLANK('Early Action Credit'!$I472),ISBLANK('Early Action Credit'!$J472),ISBLANK('Early Action Credit'!$L472)),\"\",\"Circuit Breaker\")","v":""},null,null,null,null,null,null,null,null,null,null,{"$f":"IF('Early Action Credit'!$I472=\"Yes\",0,IF('Early Action Credit'!$E472<72.5,0,IF('Early Action Credit'!$E472=72.5,300,IF('Early Action Credit'!$E472<=145,700,IF('Early Action Credit'!$E472<=245,1900,2400)))))*IF(ISBLANK('Early Action Credit'!$J472),0,IF('Early Action Credit'!$J472=\"No\",1,'Early Action Credit'!$K472))","v":0}]
[null,{"$f":"IF(AND(ISBLANK('Early Action Credit'!$A473),ISBLANK('Early Action Credit'!$C473),ISBLANK('Early Action Credit'!$D473),ISBLANK('Early Action Credit'!$E473),ISBLANK('Early Action Credit'!$F473),ISBLANK('Early Action Credit'!$G473),ISBLANK('Early Action Credit'!$H473),ISBLANK('Early Action Credit'!$I473),ISBLANK('Early Action Credit'!$J473),ISBLANK('Early Action Credit'!$L473)),\"\",\"Circuit Breaker\")","v":""},null,null,null,null,null,null,null,null,null,null,{"$f":"IF('Early Action Credit'!$I473=\"Yes\",0,IF('Early Action Credit'!$E473<72.5,0,IF('Early Action Credit'!$E473=72.5,300,IF('Early Action Credit'!$E473<=145,700,IF('Early Action Credit'!$E473<=245,1900,2400)))))*IF(ISBLANK('Early Action Credit'!$J473),0,IF('Early Action Credit'!$J473=\"No\",1,'Early Action Credit'!$K473))","v":0}]
[null,{"$f":"IF(AND(ISBLANK('Early Action Credit'!$A474),ISBLANK('Early Action Credit'!$C474),ISBLANK('Early Action Credit'!$D474),ISBLANK('Early Action Credit'!$E474),ISBLANK('Early Action Credit'!$F474),ISBLANK('Early Action Credit'!$G474),ISBLANK('Early Action Credit'!$H474),ISBLANK('Early Action Credit'!$I474),ISBLANK('Early Action Credit'!$J474),ISBLANK('Early Action Credit'!$L474)),\"\",\"Circuit Breaker\")","v":""},null,null,null,null,null,null,null,null,null,null,{"$f":"IF('Early Action Credit'!$I474=\"Yes\",0,IF('Early Action Credit'!$E474<72.5,0,IF('Early Action Credit'!$E474=72.5,300,IF('Early Action Credit'!$E474<=145,700,IF('Early Action Credit'!$E474<=245,1900,2400)))))*IF(ISBLANK('Early Action Credit'!$J474),0,IF('Early Action Credit'!$J474=\"No\",1,'Early Action Credit'!$K474))","v":0}]
[null,{"$f":"IF(AND(ISBLANK('Early Action Credit'!$A475),ISBLANK('Early Action Credit'!$C475),ISBLANK('Early Action Credit'!$D475),ISBLANK('Early Action Credit'!$E475),ISBLANK('Early Action Credit'!$F475),ISBLANK('Early Action Credit'!$G475),ISBLANK('Early Action Credit'!$H475),ISBLANK('Early Action Credit'!$I475),ISBLANK('Early Action Credit'!$J475),ISBLANK('Early Action Credit'!$L475)),\"\",\"Circuit Breaker\")","v":""},null,null,null,null,null,null,null,null,null,null,{"$f":"IF('Early Action Credit'!$I475=\"Yes\",0,IF('Early Action Credit'!$E475<72.5,0,IF('Early Action Credit'!$E475=72.5,300,IF('Early Action Credit'!$E475<=145,700,IF('Early Action Credit'!$E475<=245,1900,2400)))))*IF(ISBLANK('Early Action Credit'!$J475),0,IF('Early Action Credit'!$J475=\"No\",1,'Early Action Credit'!$K475))","v":0}]
[null,{"$f":"IF(AND(ISBLANK('Early Action Credit'!$A476),ISBLANK('Early Action Credit'!$C476),ISBLANK('Early Action Credit'!$D476),ISBLANK('Early Action Credit'!$E476),ISBLANK('Early Action Credit'!$F476),ISBLANK('Early Action Credit'!$G476),ISBLANK('Early Action Credit'!$H476),ISBLANK('Early Action Credit'!$I476),ISBLANK('Early Action Credit'!$J476),ISBLANK('Early Action Credit'!$L476)),\"\",\"Circuit Breaker\")","v":""},null,null,null,null,null,null,null,null,null,null,{"$f":"IF('Early Action Credit'!$I476=\"Yes\",0,IF('Early Action Credit'!$E476<72.5,0,IF('Early Action Credit'!$E476=72.5,300,IF('Early Action Credit'!$E476<=145,700,IF('Early Action Credit'!$E476<=245,1900,2400)))))*IF(ISBLANK('Early Action Credit'!$J476),0,IF('Early Action Credit'!$J476=\"No\",1,'Early Action Credit'!$K476))","v":0}]
[null,{"$f":"IF(AND(ISBLANK('Early Action Credit'!$A477),ISBLANK('Early Action Credit'!$C477),ISBLANK('Early Action Credit'!$D477),ISBLANK('Early Action Credit'!$E477),ISBLANK('Early Action Credit'!$F477),ISBLANK('Early Action Credit'!$G477),ISBLANK('Early Action Credit'!$H477),ISBLANK('Early Action Credit'!$I477),ISBLANK('Early Action Credit'!$J477),ISBLANK('Early Action Credit'!$L477)),\"\",\"Circuit Breaker\")","v":""},null,null,null,null,null,null,null,null,null,null,{"$f":"IF('Early Action Credit'!$I477=\"Yes\",0,IF('Early Action Credit'!$E477<72.5,0,IF('Early Action Credit'!$E477=72.5,300,IF('Early Action Credit'!$E477<=145,700,IF('Early Action Credit'!$E477<=245,1900,2400)))))*IF(ISBLANK('Early Action Credit'!$J477),0,IF('Early Action Credit'!$J477=\"No\",1,'Early Action Credit'!$K477))","v":0}]
[null,{"$f":"IF(AND(ISBLANK('Early Action Credit'!$A478),ISBLANK('Early Action Credit'!$C478),ISBLANK('Early Action Credit'!$D478),ISBLANK('Early Action Credit'!$E478),ISBLANK('Early Action Credit'!$F478),ISBLANK('Early Action Credit'!$G478),ISBLANK('Early Action Credit'!$H478),ISBLANK('Early Action Credit'!$I478),ISBLANK('Early Action Credit'!$J478),ISBLANK('Early Action Credit'!$L478)),\"\",\"Circuit Breaker\")","v":""},null,null,null,null,null,null,null,null,null,null,{"$f":"IF('Early Action Credit'!$I478=\"Yes\",0,IF('Early Action Credit'!$E478<72.5,0,IF('Early Action Credit'!$E478=72.5,300,IF('Early Action Credit'!$E478<=145,700,IF('Early Action Credit'!$E478<=245,1900,2400)))))*IF(ISBLANK('Early Action Credit'!$J478),0,IF('Early Action Credit'!$J478=\"No\",1,'Early Action Credit'!$K478))","v":0}]
[null,{"$f":"IF(AND(ISBLANK('Early Action Credit'!$A479),ISBLANK('Early Action Credit'!$C479),ISBLANK('Early Action Credit'!$D479),ISBLANK('Early Action Credit'!$E479),ISBLANK('Early Action Credit'!$F479),ISBLANK('Early Action Credit'!$G479),ISBLANK('Early Action Credit'!$H479),ISBLANK('Early Action Credit'!$I479),ISBLANK('Early Action Credit'!$J479),ISBLANK('Early Action Credit'!$L479)),\"\",\"Circuit Breaker\")","v":""},null,null,null,null,null,null,null,null,null,null,{"$f":"IF('Early Action Credit'!$I479=\"Yes\",0,IF('Early Action Credit'!$E479<72.5,0,IF('Early Action Credit'!$E479=72.5,300,IF('Early Action Credit'!$E479<=145,700,IF('Early Action Credit'!$E479<=245,1900,2400)))))*IF(ISBLANK('Early Action Credit'!$J479),0,IF('Early Action Credit'!$J479=\"No\",1,'Early Action Credit'!$K479))","v":0}]
[null,{"$f":"IF(AND(ISBLANK('Early Action Credit'!$A480),ISBLANK('Early Action Credit'!$C480),ISBLANK('Early Action Credit'!$D480),ISBLANK('Early Action Credit'!$E480),ISBLANK('Early Action Credit'!$F480),ISBLANK('Early Action Credit'!$G480),ISBLANK('Early Action Credit'!$H480),ISBLANK('Early Action Credit'!$I480),ISBLANK('Early Action Credit'!$J480),ISBLANK('Early Action Credit'!$L480)),\"\",\"Circuit Breaker\")","v":""},null,null,null,null,null,null,null,null,null,null,{"$f":"IF('Early Action Credit'!$I480=\"Yes\",0,IF('Early Action Credit'!$E480<72.5,0,IF('Early Action Credit'!$E480=72.5,300,IF('Early Action Credit'!$E480<=145,700,IF('Early Action Credit'!$E480<=245,1900,2400)))))*IF(ISBLANK('Early Action Credit'!$J480),0,IF('Early Action Credit'!$J480=\"No\",1,'Early Action Credit'!$K480))","v":0}]
[null,{"$f":"IF(AND(ISBLANK('Early Action Credit'!$A481),ISBLANK('Early Action Credit'!$C481),ISBLANK('Early Action Credit'!$D481),ISBLANK('Early Action Credit'!$E481),ISBLANK('Early Action Credit'!$F481),ISBLANK('Early Action Credit'!$G481),ISBLANK('Early Action Credit'!$H481),ISBLANK('Early Action Credit'!$I481),ISBLANK('Early Action Credit'!$J481),ISBLANK('Early Action Credit'!$L481)),\"\",\"Circuit Breaker\")","v":""},null,null,null,null,null,null,null,null,null,null,{"$f":"IF('Early Action Credit'!$I481=\"Yes\",0,IF('Early Action Credit'!$E481<72.5,0,IF('Early Action Credit'!$E481=72.5,300,IF('Early Action Credit'!$E481<=145,700,IF('Early Action Credit'!$E481<=245,1900,2400)))))*IF(ISBLANK('Early Action Credit'!$J481),0,IF('Early Action Credit'!$J481=\"No\",1,'Early Action Credit'!$K481))","v":0}]
[null,{"$f":"IF(AND(ISBLANK('Early Action Credit'!$A482),ISBLANK('Early Action Credit'!$C482),ISBLANK('Early Action Credit'!$D482),ISBLANK('Early Action Credit'!$E482),ISBLANK('Early Action Credit'!$F482),ISBLANK('Early Action Credit'!$G482),ISBLANK('Early Action Credit'!$H482),ISBLANK('Early Action Credit'!$I482),ISBLANK('Early Action Credit'!$J482),ISBLANK('Early Action Credit'!$L482)),\"\",\"Circuit Breaker\")","v":""},null,null,null,null,null,null,null,null,null,null,{"$f":"IF('Early Action Credit'!$I482=\"Yes\",0,IF('Early Action Credit'!$E482<72.5,0,IF('Early Action Credit'!$E482=72.5,300,IF('Early Action Credit'!$E482<=145,700,IF('Early Action Credit'!$E482<=245,1900,2400)))))*IF(ISBLANK('Early Action Credit'!$J482),0,IF('Early Action Credit'!$J482=\"No\",1,'Early Action Credit'!$K482))","v":0}]
[null,{"$f":"IF(AND(ISBLANK('Early Action Credit'!$A483),ISBLANK('Early Action Credit'!$C483),ISBLANK('Early Action Credit'!$D483),ISBLANK('Early Action Credit'!$E483),ISBLANK('Early Action Credit'!$F483),ISBLANK('Early Action Credit'!$G483),ISBLANK('Early Action Credit'!$H483),ISBLANK('Early Action Credit'!$I483),ISBLANK('Early Action Credit'!$J483),ISBLANK('Early Action Credit'!$L483)),\"\",\"Circuit Breaker\")","v":""},null,null,null,null,null,null,null,null,null,null,{"$f":"IF('Early Action Credit'!$I483=\"Yes\",0,IF('Early Action Credit'!$E483<72.5,0,IF('Early Action Credit'!$E483=72.5,300,IF('Early Action Credit'!$E483<=145,700,IF('Early Action Credit'!$E483<=245,1900,2400)))))*IF(ISBLANK('Early Action Credit'!$J483),0,IF('Early Action Credit'!$J483=\"No\",1,'Early Action Credit'!$K483))","v":0}]
[null,{"$f":"IF(AND(ISBLANK('Early Action Credit'!$A484),ISBLANK('Early Action Credit'!$C484),ISBLANK('Early Action Credit'!$D484),ISBLANK('Early Action Credit'!$E484),ISBLANK('Early Action Credit'!$F484),ISBLANK('Early Action Credit'!$G484),ISBLANK('Early Action Credit'!$H484),ISBLANK('Early Action Credit'!$I484),ISBLANK('Early Action Credit'!$J484),ISBLANK('Early Action Credit'!$L484)),\"\",\"Circuit Breaker\")","v":""},null,null,null,null,null,null,null,null,null,null,{"$f":"IF('Early Action Credit'!$I484=\"Yes\",0,IF('Early Action Credit'!$E484<72.5,0,IF('Early Action Credit'!$E484=72.5,300,IF('Early Action Credit'!$E484<=145,700,IF('Early Action Credit'!$E484<=245,1900,2400)))))*IF(ISBLANK('Early Action Credit'!$J484),0,IF('Early Action Credit'!$J484=\"No\",1,'Early Action Credit'!$K484))","v":0}]
[null,{"$f":"IF(AND(ISBLANK('Early Action Credit'!$A485),ISBLANK('Early Action Credit'!$C485),ISBLANK('Early Action Credit'!$D485),ISBLANK('Early Action Credit'!$E485),ISBLANK('Early Action Credit'!$F485),ISBLANK('Early Action Credit'!$G485),ISBLANK('Early Action Credit'!$H485),ISBLANK('Early Action Credit'!$I485),ISBLANK('Early Action Credit'!$J485),ISBLANK('Early Action Credit'!$L485)),\"\",\"Circuit Breaker\")","v":""},null,null,null,null,null,null,null,null,null,null,{"$f":"IF('Early Action Credit'!$I485=\"Yes\",0,IF('Early Action Credit'!$E485<72.5,0,IF('Early Action Credit'!$E485=72.5,300,IF('Early Action Credit'!$E485<=145,700,IF('Early Action Credit'!$E485<=245,1900,2400)))))*IF(ISBLANK('Early Action Credit'!$J485),0,IF('Early Action Credit'!$J485=\"No\",1,'Early Action Credit'!$K485))","v":0}]
[null,{"$f":"IF(AND(ISBLANK('Early Action Credit'!$A486),ISBLANK('Early Action Credit'!$C486),ISBLANK('Early Action Credit'!$D486),ISBLANK('Early Action Credit'!$E486),ISBLANK('Early Action Credit'!$F486),ISBLANK('Early Action Credit'!$G486),ISBLANK('Early Action Credit'!$H486),ISBLANK('Early Action Credit'!$I486),ISBLANK('Early Action Credit'!$J486),ISBLANK('Early Action Credit'!$L486)),\"\",\"Circuit Breaker\")","v":""},null,null,null,null,null,null,null,null,null,null,{"$f":"IF('Early Action Credit'!$I486=\"Yes\",0,IF('Early Action Credit'!$E486<72.5,0,IF('Early Action Credit'!$E486=72.5,300,IF('Early Action Credit'!$E486<=145,700,IF('Early Action Credit'!$E486<=245,1900,2400)))))*IF(ISBLANK('Early Action Credit'!$J486),0,IF('Early Action Credit'!$J486=\"No\",1,'Early Action Credit'!$K486))","v":0}]
[null,{"$f":"IF(AND(ISBLANK('Early Action Credit'!$A487),ISBLANK('Early Action Credit'!$C487),ISBLANK('Early Action Credit'!$D487),ISBLANK('Early Action Credit'!$E487),ISBLANK('Early Action Credit'!$F487),ISBLANK('Early Action Credit'!$G487),ISBLANK('Early Action Credit'!$H487),ISBLANK('Early Action Credit'!$I487),ISBLANK('Early Action Credit'!$J487),ISBLANK('Early Action Credit'!$L487)),\"\",\"Circuit Breaker\")","v":""},null,null,null,null,null,null,null,null,null,null,{"$f":"IF('Early Action Credit'!$I487=\"Yes\",0,IF('Early Action Credit'!$E487<72.5,0,IF('Early Action Credit'!$E487=72.5,300,IF('Early Action Credit'!$E487<=145,700,IF('Early Action Credit'!$E487<=245,1900,2400)))))*IF(ISBLANK('Early Action Credit'!$J487),0,IF('Early Action Credit'!$J487=\"No\",1,'Early Action Credit'!$K487))","v":0}]
[null,{"$f":"IF(AND(ISBLANK('Early Action Credit'!$A488),ISBLANK('Early Action Credit'!$C488),ISBLANK('Early Action Credit'!$D488),ISBLANK('Early Action Credit'!$E488),ISBLANK('Early Action Credit'!$F488),ISBLANK('Early Action Credit'!$G488),ISBLANK('Early Action Credit'!$H488),ISBLANK('Early Action Credit'!$I488),ISBLANK('Early Action Credit'!$J488),ISBLANK('Early Action Credit'!$L488)),\"\",\"Circuit Breaker\")","v":""},null,null,null,null,null,null,null,null,null,null,{"$f":"IF('Early Action Credit'!$I488=\"Yes\",0,IF('Early Action Credit'!$E488<72.5,0,IF('Early Action Credit'!$E488=72.5,300,IF('Early Action Credit'!$E488<=145,700,IF('Early Action Credit'!$E488<=245,1900,2400)))))*IF(ISBLANK('Early Action Credit'!$J488),0,IF('Early Action Credit'!$J488=\"No\",1,'Early Action Credit'!$K488))","v":0}]
[null,{"$f":"IF(AND(ISBLANK('Early Action Credit'!$A489),ISBLANK('Early Action Credit'!$C489),ISBLANK('Early Action Credit'!$D489),ISBLANK('Early Action Credit'!$E489),ISBLANK('Early Action Credit'!$F489),ISBLANK('Early Action Credit'!$G489),ISBLANK('Early Action Credit'!$H489),ISBLANK('Early Action Credit'!$I489),ISBLANK('Early Action Credit'!$J489),ISBLANK('Early Action Credit'!$L489)),\"\",\"Circuit Breaker\")","v":""},null,null,null,null,null,null,null,null,null,null,{"$f":"IF('Early Action Credit'!$I489=\"Yes\",0,IF('Early Action Credit'!$E489<72.5,0,IF('Early Action Credit'!$E489=72.5,300,IF('Early Action Credit'!$E489<=145,700,IF('Early Action Credit'!$E489<=245,1900,2400)))))*IF(ISBLANK('Early Action Credit'!$J489),0,IF('Early Action Credit'!$J489=\"No\",1,'Early Action Credit'!$K489))","v":0}]
[null,{"$f":"IF(AND(ISBLANK('Early Action Credit'!$A490),ISBLANK('Early Action Credit'!$C490),ISBLANK('Early Action Credit'!$D490),ISBLANK('Early Action Credit'!$E490),ISBLANK('Early Action Credit'!$F490),ISBLANK('Early Action Credit'!$G490),ISBLANK('Early Action Credit'!$H490),ISBLANK('Early Action Credit'!$I490),ISBLANK('Early Action Credit'!$J490),ISBLANK('Early Action Credit'!$L490)),\"\",\"Circuit Breaker\")","v":""},null,null,null,null,null,null,null,null,null,null,{"$f":"IF('Early Action Credit'!$I490=\"Yes\",0,IF('Early Action Credit'!$E490<72.5,0,IF('Early Action Credit'!$E490=72.5,300,IF('Early Action Credit'!$E490<=145,700,IF('Early Action Credit'!$E490<=245,1900,2400)))))*IF(ISBLANK('Early Action Credit'!$J490),0,IF('Early Action Credit'!$J490=\"No\",1,'Early Action Credit'!$K490))","v":0}]
[null,{"$f":"IF(AND(ISBLANK('Early Action Credit'!$A491),ISBLANK('Early Action Credit'!$C491),ISBLANK('Early Action Credit'!$D491),ISBLANK('Early Action Credit'!$E491),ISBLANK('Early Action Credit'!$F491),ISBLANK('Early Action Credit'!$G491),ISBLANK('Early Action Credit'!$H491),ISBLANK('Early Action Credit'!$I491),ISBLANK('Early Action Credit'!$J491),ISBLANK('Early Action Credit'!$L491)),\"\",\"Circuit Breaker\")","v":""},null,null,null,null,null,null,null,null,null,null,{"$f":"IF('Early Action Credit'!$I491=\"Yes\",0,IF('Early Action Credit'!$E491<72.5,0,IF('Early Action Credit'!$E491=72.5,300,IF('Early Action Credit'!$E491<=145,700,IF('Early Action Credit'!$E491<=245,1900,2400)))))*IF(ISBLANK('Early Action Credit'!$J491),0,IF('Early Action Credit'!$J491=\"No\",1,'Early Action Credit'!$K491))","v":0}]
[null,{"$f":"IF(AND(ISBLANK('Early Action Credit'!$A492),ISBLANK('Early Action Credit'!$C492),ISBLANK('Early Action Credit'!$D492),ISBLANK('Early Action Credit'!$E492),ISBLANK('Early Action Credit'!$F492),ISBLANK('Early Action Credit'!$G492),ISBLANK('Early Action Credit'!$H492),ISBLANK('Early Action Credit'!$I492),ISBLANK('Early Action Credit'!$J492),ISBLANK('Early Action Credit'!$L492)),\"\",\"Circuit Breaker\")","v":""},null,null,null,null,null,null,null,null,null,null,{"$f":"IF('Early Action Credit'!$I492=\"Yes\",0,IF('Early Action Credit'!$E492<72.5,0,IF('Early Action Credit'!$E492=72.5,300,IF('Early Action Credit'!$E492<=145,700,IF('Early Action Credit'!$E492<=245,1900,2400)))))*IF(ISBLANK('Early Action Credit'!$J492),0,IF('Early Action Credit'!$J492=\"No\",1,'Early Action Credit'!$K492))","v":0}]
[null,{"$f":"IF(AND(ISBLANK('Early Action Credit'!$A493),ISBLANK('Early Action Credit'!$C493),ISBLANK('Early Action Credit'!$D493),ISBLANK('Early Action Credit'!$E493),ISBLANK('Early Action Credit'!$F493),ISBLANK('Early Action Credit'!$G493),ISBLANK('Early Action Credit'!$H493),ISBLANK('Early Action Credit'!$I493),ISBLANK('Early Action Credit'!$J493),ISBLANK('Early Action Credit'!$L493)),\"\",\"Circuit Breaker\")","v":""},null,null,null,null,null,null,null,null,null,null,{"$f":"IF('Early Action Credit'!$I493=\"Yes\",0,IF('Early Action Credit'!$E493<72.5,0,IF('Early Action Credit'!$E493=72.5,300,IF('Early Action Credit'!$E493<=145,700,IF('Early Action Credit'!$E493<=245,1900,2400)))))*IF(ISBLANK('Early Action Credit'!$J493),0,IF('Early Action Credit'!$J493=\"No\",1,'Early Action Credit'!$K493))","v":0}]
[null,{"$f":"IF(AND(ISBLANK('Early Action Credit'!$A494),ISBLANK('Early Action Credit'!$C494),ISBLANK('Early Action Credit'!$D494),ISBLANK('Early Action Credit'!$E494),ISBLANK('Early Action Credit'!$F494),ISBLANK('Early Action Credit'!$G494),ISBLANK('Early Action Credit'!$H494),ISBLANK('Early Action Credit'!$I494),ISBLANK('Early Action Credit'!$J494),ISBLANK('Early Action Credit'!$L494)),\"\",\"Circuit Breaker\")","v":""},null,null,null,null,null,null,null,null,null,null,{"$f":"IF('Early Action Credit'!$I494=\"Yes\",0,IF('Early Action Credit'!$E494<72.5,0,IF('Early Action Credit'!$E494=72.5,300,IF('Early Action Credit'!$E494<=145,700,IF('Early Action Credit'!$E494<=245,1900,2400)))))*IF(ISBLANK('Early Action Credit'!$J494),0,IF('Early Action Credit'!$J494=\"No\",1,'Early Action Credit'!$K494))","v":0}]
[null,{"$f":"IF(AND(ISBLANK('Early Action Credit'!$A495),ISBLANK('Early Action Credit'!$C495),ISBLANK('Early Action Credit'!$D495),ISBLANK('Early Action Credit'!$E495),ISBLANK('Early Action Credit'!$F495),ISBLANK('Early Action Credit'!$G495),ISBLANK('Early Action Credit'!$H495),ISBLANK('Early Action Credit'!$I495),ISBLANK('Early Action Credit'!$J495),ISBLANK('Early Action Credit'!$L495)),\"\",\"Circuit Breaker\")","v":""},null,null,null,null,null,null,null,null,null,null,{"$f":"IF('Early Action Credit'!$I495=\"Yes\",0,IF('Early Action Credit'!$E495<72.5,0,IF('Early Action Credit'!$E495=72.5,300,IF('Early Action Credit'!$E495<=145,700,IF('Early Action Credit'!$E495<=245,1900,2400)))))*IF(ISBLANK('Early Action Credit'!$J495),0,IF('Early Action Credit'!$J495=\"No\",1,'Early Action Credit'!$K495))","v":0}]
[null,{"$f":"IF(AND(ISBLANK('Early Action Credit'!$A496),ISBLANK('Early Action Credit'!$C496),ISBLANK('Early Action Credit'!$D496),ISBLANK('Early Action Credit'!$E496),ISBLANK('Early Action Credit'!$F496),ISBLANK('Early Action Credit'!$G496),ISBLANK('Early Action Credit'!$H496),ISBLANK('Early Action Credit'!$I496),ISBLANK('Early Action Credit'!$J496),ISBLANK('Early Action Credit'!$L496)),\"\",\"Circuit Breaker\")","v":""},null,null,null,null,null,null,null,null,null,null,{"$f":"IF('Early Action Credit'!$I496=\"Yes\",0,IF('Early Action Credit'!$E496<72.5,0,IF('Early Action Credit'!$E496=72.5,300,IF('Early Action Credit'!$E496<=145,700,IF('Early Action Credit'!$E496<=245,1900,2400)))))*IF(ISBLANK('Early Action Credit'!$J496),0,IF('Early Action Credit'!$J496=\"No\",1,'Early Action Credit'!$K496))","v":0}]
[null,{"$f":"IF(AND(ISBLANK('Early Action Credit'!$A497),ISBLANK('Early Action Credit'!$C497),ISBLANK('Early Action Credit'!$D497),ISBLANK('Early Action Credit'!$E497),ISBLANK('Early Action Credit'!$F497),ISBLANK('Early Action Credit'!$G497),ISBLANK('Early Action Credit'!$H497),ISBLANK('Early Action Credit'!$I497),ISBLANK('Early Action Credit'!$J497),ISBLANK('Early Action Credit'!$L497)),\"\",\"Circuit Breaker\")","v":""},null,null,null,null,null,null,null,null,null,null,{"$f":"IF('Early Action Credit'!$I497=\"Yes\",0,IF('Early Action Credit'!$E497<72.5,0,IF('Early Action Credit'!$E497=72.5,300,IF('Early Action Credit'!$E497<=145,700,IF('Early Action Credit'!$E497<=245,1900,2400)))))*IF(ISBLANK('Early Action Credit'!$J497),0,IF('Early Action Credit'!$J497=\"No\",1,'Early Action Credit'!$K497))","v":0}]
[null,{"$f":"IF(AND(ISBLANK('Early Action Credit'!$A498),ISBLANK('Early Action Credit'!$C498),ISBLANK('Early Action Credit'!$D498),ISBLANK('Early Action Credit'!$E498),ISBLANK('Early Action Credit'!$F498),ISBLANK('Early Action Credit'!$G498),ISBLANK('Early Action Credit'!$H498),ISBLANK('Early Action Credit'!$I498),ISBLANK('Early Action Credit'!$J498),ISBLANK('Early Action Credit'!$L498)),\"\",\"Circuit Breaker\")","v":""},null,null,null,null,null,null,null,null,null,null,{"$f":"IF('Early Action Credit'!$I498=\"Yes\",0,IF('Early Action Credit'!$E498<72.5,0,IF('Early Action Credit'!$E498=72.5,300,IF('Early Action Credit'!$E498<=145,700,IF('Early Action Credit'!$E498<=245,1900,2400)))))*IF(ISBLANK('Early Action Credit'!$J498),0,IF('Early Action Credit'!$J498=\"No\",1,'Early Action Credit'!$K498))","v":0}]
[null,{"$f":"IF(AND(ISBLANK('Early Action Credit'!$A499),ISBLANK('Early Action Credit'!$C499),ISBLANK('Early Action Credit'!$D499),ISBLANK('Early Action Credit'!$E499),ISBLANK('Early Action Credit'!$F499),ISBLANK('Early Action Credit'!$G499),ISBLANK('Early Action Credit'!$H499),ISBLANK('Early Action Credit'!$I499),ISBLANK('Early Action Credit'!$J499),ISBLANK('Early Action Credit'!$L499)),\"\",\"Circuit Breaker\")","v":""},null,null,null,null,null,null,null,null,null,null,{"$f":"IF('Early Action Credit'!$I499=\"Yes\",0,IF('Early Action Credit'!$E499<72.5,0,IF('Early Action Credit'!$E499=72.5,300,IF('Early Action Credit'!$E499<=145,700,IF('Early Action Credit'!$E499<=245,1900,2400)))))*IF(ISBLANK('Early Action Credit'!$J499),0,IF('Early Action Credit'!$J499=\"No\",1,'Early Action Credit'!$K499))","v":0}]
[null,{"$f":"IF(AND(ISBLANK('Early Action Credit'!$A500),ISBLANK('Early Action Credit'!$C500),ISBLANK('Early Action Credit'!$D500),ISBLANK('Early Action Credit'!$E500),ISBLANK('Early Action Credit'!$F500),ISBLANK('Early Action Credit'!$G500),ISBLANK('Early Action Credit'!$H500),ISBLANK('Early Action Credit'!$I500),ISBLANK('Early Action Credit'!$J500),ISBLANK('Early Action Credit'!$L500)),\"\",\"Circuit Breaker\")","v":""},null,null,null,null,null,null,null,null,null,null,{"$f":"IF('Early Action Credit'!$I500=\"Yes\",0,IF('Early Action Credit'!$E500<72.5,0,IF('Early Action Credit'!$E500=72.5,300,IF('Early Action Credit'!$E500<=145,700,IF('Early Action Credit'!$E500<=245,1900,2400)))))*IF(ISBLANK('Early Action Credit'!$J500),0,IF('Early Action Credit'!$J500=\"No\",1,'Early Action Credit'!$K500))","v":0}]
[null,{"$f":"IF(AND(ISBLANK('Early Action Credit'!$A501),ISBLANK('Early Action Credit'!$C501),ISBLANK('Early Action Credit'!$D501),ISBLANK('Early Action Credit'!$E501),ISBLANK('Early Action Credit'!$F501),ISBLANK('Early Action Credit'!$G501),ISBLANK('Early Action Credit'!$H501),ISBLANK('Early Action Credit'!$I501),ISBLANK('Early Action Credit'!$J501),ISBLANK('Early Action Credit'!$L501)),\"\",\"Circuit Breaker\")","v":""},null,null,null,null,null,null,null,null,null,null,{"$f":"IF('Early Action Credit'!$I501=\"Yes\",0,IF('Early Action Credit'!$E501<72.5,0,IF('Early Action Credit'!$E501=72.5,300,IF('Early Action Credit'!$E501<=145,700,IF('Early Action Credit'!$E501<=245,1900,2400)))))*IF(ISBLANK('Early Action Credit'!$J501),0,IF('Early Action Credit'!$J501=\"No\",1,'Early Action Credit'!$K501))","v":0}]
[null,{"$f":"IF(AND(ISBLANK('Early Action Credit'!$A502),ISBLANK('Early Action Credit'!$C502),ISBLANK('Early Action Credit'!$D502),ISBLANK('Early Action Credit'!$E502),ISBLANK('Early Action Credit'!$F502),ISBLANK('Early Action Credit'!$G502),ISBLANK('Early Action Credit'!$H502),ISBLANK('Early Action Credit'!$I502),ISBLANK('Early Action Credit'!$J502),ISBLANK('Early Action Credit'!$L502)),\"\",\"Circuit Breaker\")","v":""},null,null,null,null,null,null,null,null,null,null,{"$f":"IF('Early Action Credit'!$I502=\"Yes\",0,IF('Early Action Credit'!$E502<72.5,0,IF('Early Action Credit'!$E502=72.5,300,IF('Early Action Credit'!$E502<=145,700,IF('Early Action Credit'!$E502<=245,1900,2400)))))*IF(ISBLANK('Early Action Credit'!$J502),0,IF('Early Action Credit'!$J502=\"No\",1,'Early Action Credit'!$K502))","v":0}]
[null,{"$f":"IF(AND(ISBLANK('Early Action Credit'!$A503),ISBLANK('Early Action Credit'!$C503),ISBLANK('Early Action Credit'!$D503),ISBLANK('Early Action Credit'!$E503),ISBLANK('Early Action Credit'!$F503),ISBLANK('Early Action Credit'!$G503),ISBLANK('Early Action Credit'!$H503),ISBLANK('Early Action Credit'!$I503),ISBLANK('Early Action Credit'!$J503),ISBLANK('Early Action Credit'!$L503)),\"\",\"Circuit Breaker\")","v":""},null,null,null,null,null,null,null,null,null,null,{"$f":"IF('Early Action Credit'!$I503=\"Yes\",0,IF('Early Action Credit'!$E503<72.5,0,IF('Early Action Credit'!$E503=72.5,300,IF('Early Action Credit'!$E503<=145,700,IF('Early Action Credit'!$E503<=245,1900,2400)))))*IF(ISBLANK('Early Action Credit'!$J503),0,IF('Early Action Credit'!$J503=\"No\",1,'Early Action Credit'!$K503))","v":0}]

{"sheet":"SF6 Transferred","index":5,"n_rows":3,"n_cols":3,"rows_kept":3,"cut":false,"hidden":false,"merged":[[0,0,0,2],[1,0,1,5]]}
["SF6 Transferred (Data Year 2021)"]
[]
["GIS Serial Number","Date SF6 Transferred\n(mm/dd/yyyy)","Amount Transferred \n(lbs.)"]

{"sheet":"SF6 Gas Containers","index":6,"n_rows":3,"n_cols":9,"rows_kept":3,"cut":false,"hidden":false,"merged":[[1,0,1,8],[0,0,0,2]]}
["SF6 Gas Containers (Data Year 2021)"]
[]
["Container ID","Container Size \n(SF6 capacity in pounds)","Street Address","City","State","ZIP/Postal Code","SF6 Weight in Container (lb)","Date Container Weighed (mm/dd/yyyy)","Reason for Weighing Container"]

{"sheet":"Reference","index":7,"n_rows":17,"n_cols":10,"rows_kept":17,"cut":false,"hidden":true,"merged":[[0,0,0,16383],[2,0,2,1]]}
["Reference Data"]
[]
["Insulating Gases",null,null,"Seal Types",null,"Status Changes",null,"Equipment Types",null,"Sections for Measurement Reported"]
["Insulating Gas","GWP",null,"Seal Type",null,"Status Change",null,"Equipment Type",null,"Section for Measurement Reported"]
["SF6",22800,null,"Hermetic",null,"Activated for first time",null,"Circuit breaker",null,"95354(g)(1): Gas container owned/stored"]
[null,null,null,"Non-hermetic",null,"Activated for first time and removed from regular use",null,null,null,"95354(g)(2): Gas container not owned/stored"]
[null,null,null,null,null,"Activated for first time and transferred while in use to another entity",null,null,null,"95354(j)(2-3): Gas cart owned/stored"]
[null,null,null,"Yes/No",null,"Removed from regular use",null,null,null,"95354(j)(4): Gas cart not owned/stored"]
[null,null,null,"Yes/No",null,"Transferred while in use to another entity"]
[null,null,null,"Yes",null,"Transferred while in use from another entity"]
[null,null,null,"No"]
[]
[null,null,null,"GIS Statuses",null,"Reasons for Weighing Gas Cart or Gas Container"]
[null,null,null,"GIS Status",null,"Reason For Weighing"]
[null,null,null,"Active",null,"Added to Inventory"]
[null,null,null,"Inactive",null,"Removed from Inventory"]
[null,null,null,null,null,"End of Calendar Year Weighing"]